Workbook

Sheet Procedure
A1: TREC | B1: =Calculation!E1 -> version 4.3 | C1: =Calculation!F1 -> date 2019-05-15
A3: Procedure overview:
A4: A | B4: First step: preparation and settings
A5: 1 | B5: Obtain the kinetic information for the residue decline data for which you want to calculate the TWA concentrations
A6: 2 | B6: Obtain the exposure scenario information for which you want to calculate the TWA concentrations
A7: 3 | B7: Go to the “first input” – sheet in TREC
A8: 4 | B8: Enter the name of the compound for which you want to calculate the TWA concentrations
A9: 5 | B9: Select whether you want to include a metabolite in the assessment (drop-down menu)
A10: 6 | B10: If appropriate, enter the name of the metabolite
A11: 7 | B11: Select the kind of residue input in the drop-down menu: either application rate x RUD, or directly the residue increase in [mg/kg]
A12: 8 | B12: Select the kind of calculation in the drop-down menu: either single calculation or multiple calculations (for more than 1 trial)
A13: 9 | B13: Click on “open sheet”, and TREC will produce the data input sheet corresponding with your selections (either single or multiple calculations)
A15: B | B15: Single calculation | G15: C | H15: Multiple calculations
A16: 1 | B16: Enter length of the moving time window (C8) | G16: 1 | H16: Click buttons “clear results” and “clear inputs” (latter if you need an empty sheet)
A17: 2 | B17: Select type of residue kinetic (C9) | G17: 2 | H17: Define the length of the moving time window (C7)
A18: 3 | B18: Enter parameter for the selected kinetic (C10, C11, C12) | G18: 3 | H18: Enter all data as for single calculation for each trial (each row is one trial), start with B14
A19: 4 | B19: Enter trial identifier (eg, study number) (C14) | G19: 4 | H19: Click button “run all calcs”
A20: 5 | B20: Enter application rate in cells C18, C 19 etc. as appropriate | G20: 5 | H20: Obtain calculation results in columns Q to AA
A21: 6 | B21: Enter application interval in cells D19 etc. as appropriate | G21: 6 | H21: Find plots per evaluated trial in the same directory where your TREC file is stored, rename or copy elsewhere if you want to keep them
A22: 7 | B22: Obtain calculation results in cells C31:D37
A26: Changelog:
A27: Version | B27: Date | C27: Description
A28: v4.3 | B28: 2019-05-15 | C28: cleanup of documentation part; added MAF averaging output for multiple calcs and result tables
A29: v4.2 | B29: 2019-05-06 | C29: finalization of documentation, cleanup, provision of version information
A30: previous | B30: - | C30: development and testing versions

Sheet first input
C1: =Calculation!E1 -> version 4.3 | D1: =Calculation!F1 -> date 2019-05-15
C3: This TREC version allows TWA calculations in different ways
C4: Depending on what you select on this "first input" sheet, different views appear when you click "open sheet"
C5: Here and in the following views, enter your data into the yellow-marked cells, or select from the drop down menu in the bluish marked cells
C6: Click on buttons to launch your selected options in TREC
C8: Actice substance name: | D8: Fluopyram | E8: add name of chemical for which the residue decline is calculated
C9: Calculation incl. metabolite? | D9: no | E9: select "yes" if you want to run a combined evaluation of parent with metabolite, otherwise select "no"
C10: =IF(inclMet="yes","Metabolite name:","") ->  | D10: metabolite name | E10: =IF(AND(inclMet="no",MetName<>""),"incorrect input, delete metabolite name",IF(AND(inclMet="yes",MetName=""),"missing input","")) -> incorrect input, delete metabolite name
C12: Kind of input: | D12: Appl. rate (kg a.s./ha) & RUD | E12: select "AR & RUD" for standard calculations acc. to EFSA GD to provide MAF and fTWA; or select residue increase if you want to work with measured residues
C14: Kind of calculation: | D14: multiple | E14: select multiple if you want TREC to process more than one trial; otherwise select "single"
E16: Click on button to launch your selected options in TREC
C19: General infomations
C20: TREC generates charts which are saved in the same directory as the TREC file you are running
C21: In these charts, the x-axis standard is 60 days , when you want to modify this value change the value in cell C7 (MultipleCals) or Cell BB38 (Calculation) respectively and click the buttons Run all calcs or Save single chart again
C22: When you create new charts they will overwrite the old files present in the same directory
C23: Kind of calculation: | D23: multiple => you can process up to 100 trials at once using consistent settings
D24: single => you can run single trial using combination of appl. rates and appl. intervals

Sheet Calculation (hidden)
B1: =IF(inclMet="no","TWA residue calculator (PAR)","TWA residue calculator (PAR->MET)") -> TWA residue calculator (PAR) | E1: version 4.3 | F1: date 2019-05-15 | J1: settings | K1: settings | L1: settings | M1: settings | N1: settings | O1: settings | P1: SFO | Q1: SFO | R1: SFO | S1: SFO | T1: SFO | U1: SFO | V1: SFO | W1: DFOP | X1: DFOP | Y1: DFOP | Z1: DFOP | AA1: DFOP | AB1: DFOP | AC1: DFOP | AD1: FOMC | AE1: FOMC | AF1: FOMC | AG1: FOMC | AH1: FOMC | AI1: FOMC | AJ1: FOMC | AK1: HS | AL1: HS | AM1: HS | AN1: HS | AO1: HS | AP1: HS | AQ1: HS | AR1: SFO met | AS1: SFO met | AT1: SFO met | AU1: SFO met | AV1: SFO met | AW1: SFO met | AX1: =IF(inclMet="yes","SFO met","") ->  | AZ1: title: | BA1: =trialID -> 15-2950-03
B2: Lubos Vrbka, Petra Zerbe, BAG Crop Science Environmental Safety / Reporting & Data Management
B3: usage: enter your data into the yellow-marked cells tool is protected against accidental modification (no password)
K4: parent
B5: =IF(inclMet="yes","VERSION WITH PARENT - METABOLITE SUPPORT","") ->  | K5: metabolite
B7: PARENT | E7: METABOLITE | F7: =IF(AS21,"USED","NOT USED") -> NOT USED
B8: TWA interval (days): | C8: 21 | E8: TWA interval (days):
B9: kinetics type: | C9: SFO | E9: kinetics type: | F9: SFO | J9: kinetics type | K9: SFO | L9: DFOP | M9: FOMC | N9: HS | P9: =V1 -> SFO | Q9: parent | W9: =AC1 -> DFOP | AD9: =AJ1 -> FOMC | AK9: =AN1 -> HS | AR9: SFO | AS9: metabolite
B10: =HLOOKUP(CalcType,K9:N15,2,FALSE) & " (" & HLOOKUP(CalcType,K9:N15,5,FALSE) & "):" -> DT50 (days): | C10: 3.403 | E10: DT50 (days): | J10: SFO | K10: DT50 | L10: DT50 (1) | M10: alpha | N10: DT50 (1) | P10: =K10 -> DT50 | Q10: =C10 -> 3.403 | R10: =K13 -> days | W10: =L10 -> DT50 (1) | X10: =C10 -> 3.403 | Y10: =L13 -> days | Z10: =IF(CalcType=$W$9,Z14,"") ->  | AD10: =M10 -> alpha | AE10: =C10 -> 3.403 | AF10: =M13 -> - | AG10: =IF(CalcType=$AD$9,AG14,"") ->  | AK10: =N10 -> DT50 (1) | AL10: =C10 -> 3.403 | AM10: =N13 -> days | AN10: =IF(CalcType=$AK$9,AN14,"") ->  | AR10: =K10 -> DT50 | AS10: =param_met -> 0 | AT10: days
B11: =HLOOKUP(CalcType,K9:N15,3,FALSE) & " (" & HLOOKUP(CalcType,K9:N15,6,FALSE) & "):" -> - (-): | J11: DFOP | K11: - | L11: DT50 (2) | M11: beta | N11: DT50 (2) | W11: =L11 -> DT50 (2) | X11: =C11 -> 0 | Y11: =L14 -> days | Z11: =IF(CalcType=$W$9,Z15,"") ->  | AD11: =M11 -> beta | AE11: =C11 -> 0 | AF11: =M14 -> - | AG11: =IF(CalcType=$AD$9,AG15,"") ->  | AK11: =N11 -> DT50 (2) | AL11: =C11 -> 0 | AM11: =N14 -> days | AN11: =IF(CalcType=$AK$9,AN15,"") -> 
B12: =HLOOKUP(CalcType,K9:N15,4,FALSE) & " (" & HLOOKUP(CalcType,K9:N15,7,FALSE) & "):" -> - (-): | E12: molar mass ratio met/par: | J12: FOMC | K12: - | L12: g | M12: - | N12: tb | W12: =L12 -> g | X12: =C12 -> 0 | Y12: =L15 -> - | Z12: =IF(CalcType=$W$9,Z18,"") ->  | AK12: =N12 -> tb | AL12: =C12 -> 0 | AM12: =N15 -> days | AN12: =IF(CalcType=$AK$9,AN18,"") -> 
E13: formation fraction: | J13: HS | K13: days | L13: days | M13: - | N13: days
B14: trial: | C14: 15-2950-03 | K14: - | L14: days | M14: - | N14: days | P14: k | Q14: =IFERROR(LN(2)/Q10,999) -> 0.2036870939 | W14: k1 | X14: =IFERROR(LN(2)/X10,999) -> 0.2036870939 | Z14: =IF(OR(dfop_k1=999,dfop_k1<0),"invalid, expecting nonzero positive value", "") ->  | AD14: alpha | AE14: =IF(AE10="",999,AE10) -> 3.403 | AG14: =IF(fomc_a<=0,"invalid, expecting positive non-zero value","") ->  | AK14: k1 | AL14: =IFERROR(LN(2)/AL10,999) -> 0.2036870939 | AN14: =IF(OR(hs_k1=999,hs_k1<0),"invalid, expecting nonzero positive value", "") ->  | AR14: k | AS14: =IFERROR(LN(2)/AS10,999) -> 999
K15: - | L15: - | M15: - | N15: days | P15: int_factor | Q15: =(1-EXP(-sfo_k*dt))/sfo_k -> 0.04974625328 | W15: k2 | X15: =IFERROR(LN(2)/X11,999) -> 999 | Z15: =IF(OR(dfop_k2=999,dfop_k2<0),"invalid, expecting nonzero positive value", "") -> invalid, expecting nonzero positive value | AD15: beta | AE15: =IF(AE11="",999,AE11) -> 0 | AG15: =IF(fomc_b<=0,"invalid, expecting positive non-zero value","") -> invalid, expecting positive non-zero value | AK15: k2 | AL15: =IFERROR(LN(2)/AL11,999) -> 999 | AN15: =IF(OR(hs_k2=999,hs_k2<0),"invalid, expecting nonzero positive value", "") -> invalid, expecting nonzero positive value
C16: =IF(KindOfInput="residue increase (mg/kg)","Tested parent rate", "Application rate") -> Application rate | D16: RUD | E16: Parent residue increase | F16: Application interval | G16: Parent residue increase | H16: DAT1 | W16: int_factor1 | X16: =(1-EXP(-dfop_k1*dt))/dfop_k1 -> 0.04974625328 | AD16: int_factor | AE16: =IF(fomc_a = 1, fomc_b, fomc_b/(-fomc_a+1)) -> 0 | AK16: int_factor1 | AL16: =(1-EXP(-hs_k1*dt))/hs_k1 -> 0.04974625328
C17: (kg a.s./ha) | D17: (mg/kg / kg/ha) | E17: (mg/kg) | F17: (days) | G17: (mg/kg) | H17: (days) | J17: data for calculation | W17: int_factor2 | X17: =(1-EXP(-dfop_k2*dt))/dfop_k2 -> 0.001001001001 | AK17: int_factor2 | AL17: =(1-EXP(-hs_k2*dt))/hs_k2 -> 0.001001001001
B18: Application 1 | C18: 1 | D18: 54.2 | F18: 0 | G18: =IF(KindOfInput="residue increase (mg/kg)",E18,C18*D18) -> 54.2 | H18: =SUM(F$18:F18) -> 0 | J18: type | K18: =CalcType -> SFO | W18: g | X18: =IF(X12="",1,X12) -> 0 | Z18: =IF(OR(g<0,g>1),"invalid, expecting value in interval 0-1", "") ->  | AK18: tb | AL18: =IF(AL12="",0,AL12) -> 0 | AN18: =IF(OR(hs_tb<0,INT(hs_tb/dt) <>(hs_tb/dt)),"invalid, expecting non-negative integer multiple of timestep (" & dt & ")", "") ->  | AR18: molar mass | AS18: =molmasscorr -> 0
B19: Application 2 | C19: 1 | D19: 54.2 | F19: 10 | G19: 54.2 | H19: =SUM(F$18:F19) -> 10 | J19: steps per day | K19: 20 | AK19: tb_prefactor | AL19: =EXP(-hs_k1*hs_tb) -> 1 | AR19: FF | AS19: =ff -> 0
B20: Application 3 | G20: 0 | H20: =SUM(F$18:F20) -> 10 | J20: timestep | K20: =1/K19 -> 0.05
B21: Application 4 | G21: 0 | H21: =SUM(F$18:F21) -> 10 | J21: TWA no of steps | K21: =int_TWA*K19 -> 420 | L21: metabolite | M21: =int_TWA_met*K19 -> 0 | AR21: metabolite? | AS21: =AND(AS10>0,AS18>0,AS19>0) -> FALSE
B22: Application 5 | G22: 0 | H22: =SUM(F$18:F22) -> 10
B23: Application 6 | G23: 0 | H23: =SUM(F$18:F23) -> 10 | J23: data sources
B24: Application 7 | G24: 0 | H24: =SUM(F$18:F24) -> 10 | J24: kinetics type | K24: residue | L24: TWA
B25: Application 8 | G25: 0 | H25: =SUM(F$18:F25) -> 10 | J25: SFO | K25: =COLUMN(P51) -> 16 | L25: =COLUMN(Q51) -> 17
B26: Application 9 | G26: 0 | H26: =SUM(F$18:F26) -> 10 | J26: DFOP | K26: =COLUMN(W53) -> 23 | L26: =COLUMN(Z53) -> 26
B27: Application 10 | G27: 0 | H27: =SUM(F$18:F27) -> 10 | J27: FOMC | K27: =COLUMN(AD53) -> 30 | L27: =COLUMN(AE53) -> 31
B28: =IF(MIN(C18:C27)=MAX(C18:C27),"","MAF: Unequal application rates! Use residue values for ETE calculation!") ->  | J28: HS | K28: =COLUMN(AK53) -> 37 | L28: =COLUMN(AO53) -> 41
C31: PARENT | E31: METABOLITE
C32: residue | D32: ="parent TWA " &int_TWA & "d" -> parent TWA 21d | E32: residue | F32: ="metabolite TWA " &int_TWA & "d" -> metabolite TWA 21d
B33: maximum | C33: =MAX(C53:C3703) -> 61.2696429 | D33: =IF(C18="","",MAX(D53:D3703)) -> 23.81827144 | E33: =IF(F7="NOT USED","",MAX(E53:E3703)) ->  | F33: =IF(F7="NOT USED","",MAX(F53:F3703)) -> 
B34: timing (start) | C34: =(MATCH(C33,C53:C3703,0)/$K$19)-(1/$K$19) -> 10 | D34: =IF(C18="","",(MATCH(D33,D53:D3703,0)/$K$19)-(1/$K$19)) -> 0 | E34: =IF(F7="NOT USED","",(MATCH(E33,E53:E3703,0)/$K$19)-(1/$K$19)) ->  | F34: =IF(F7="NOT USED","",(MATCH(F33,F53:F3703,0)/$K$19)-(1/$K$19)) -> 
B35: timing (end) | C35: - | D35: =IF(C18="","",D34+int_TWA) -> 21 | E35: - | F35: =IF(F7="NOT USED","",F34+int_TWA) -> 
B36: fTWA | C36: - | D36: =IF(C33=0,"",D33/C33) -> 0.388745067 | E36: - | F36: =IF(F7="NOT USED","",F33/E33) -> 
B37: MAF | C37: =IF(C33=0,"",IF(MIN(C18:C27)=MAX(C18:C27),C33/G18,"-")) -> 1.130436216 | D37: - | E37: - | F37: -
BA38: x-axis maximum:
BB39: =IF(BB38="",xAxisMaxMultiple,BB38) -> 28
P50: =P9 -> SFO | W50: =W9 -> DFOP | AD50: =AD9 -> FOMC | AK50: =AK9 -> HS | AR50: =AR9 -> SFO | AU50: calculation
B51: data for evaluation and graphics | P51: residue | Q51: TWA (analytical) | W51: residue | Z51: TWA (analytical) | AD51: residue | AE51: TWA (analytical) | AK51: residue | AO51: TWA (analytical) | AR51: residue | AS51: TWA (trapezoidal) | AU51: par | AV51: par | AW51: met
B52: DAT1 (days) | C52: Parent (mg/kg) | D52: ="TWA ("&int_TWA&" d)" -> TWA (21 d) | E52: Metabolite (mg/kg) | F52: ="TWA ("&int_TWA_met&" d)" -> TWA ( d) | P52: =P10 -> DT50 | Q52: result | W52: sum | X52: =L10 -> DT50 (1) | Y52: =L11 -> DT50 (2) | Z52: result | AA52: =L10 -> DT50 (1) | AB52: =L11 -> DT50 (2) | AD52: total | AE52: result | AF52: integral a=1 | AG52: integral a<>1 | AK52: sum | AL52: =N10 -> DT50 (1) | AM52: tb residue | AN52: =N11 -> DT50 (2) | AO52: result | AR52: =AR10 -> DT50 | AS52: integral | AT52: result | AU52: added | AV52: degraded | AW52: generated
B53: 0 | C53: =INDIRECT(ADDRESS(ROW($A53),VLOOKUP(CalcType,$J$25:$L$28,2,FALSE))) -> 54.2 | D53: =INDIRECT(ADDRESS(ROW($A53),VLOOKUP(CalcType,$J$25:$L$28,3,FALSE))) -> 23.81827144 | E53: =IF($F$7="NOT USED","",AR53) ->  | F53: =IF($F$7="NOT USED","",AT53) ->  | P53: =SUM(IF(B53>=(H$18:H$27),(G$18:G$27)*EXP(-sfo_k*(B53-(H$18:H$27))),0)) -> 54.2 | Q53: =SUM(OFFSET(P53,0,0,n_TWA_steps,1))*sfo_intfac/int_TWA -> 23.81827144 | R53: =SUM(OFFSET(P53,0,0,n_TWA_steps,1)) -> 10054.70095 | W53: =SUM(X53:Y53) -> 54.2 | X53: =SUM(IF(B53>=(H$18:H$27),g*(G$18:G$27)*EXP(-dfop_k1*(B53-(H$18:H$27))),0)) -> 0 | Y53: =SUM(IF(B53>=(H$18:H$27),(1-g)*(G$18:G$27)*EXP(-dfop_k2*(B53-(H$18:H$27))),0)) -> 54.2 | Z53: =SUM(AA53:AB53) -> 0.005167071834 | AA53: =SUM(OFFSET(X53,0,0,n_TWA_steps,1))*dfop_intfac1/int_TWA -> 0 | AB53: =SUM(OFFSET(Y53,0,0,n_TWA_steps,1))*dfop_intfac2/int_TWA -> 0.005167071834 | AD53: =SUM(IF(B53>=(H$18:H$27),(G$18:G$27)*POWER(((B53-(H$18:H$27)))/fomc_b + 1,-fomc_a),0)) ->  | AE53: =SUM(OFFSET(AE53,0,IF(fomc_a=1,1,2),n_TWA_steps,1))*fomc_intfac/int_TWA ->  | AF53: =SUM(IF(B53>=(H$18:H$27),(G$18:G$27)*(LN((B54-(H$18:H$27))/fomc_b + 1) - LN((B53-(H$18:H$27))/fomc_b + 1)),0)) ->  | AG53: =SUM(IF(B53>=(H$18:H$27),(G$18:G$27)*(POWER((B54-(H$18:H$27))/fomc_b + 1,(-fomc_a+1)) - POWER((B53-(H$18:H$27))/fomc_b + 1,(-fomc_a+1))),0)) ->  | AK53: =SUM(AL53:AN53) -> 54.2 | AL53: =SUM(IF(B53>=(H$18:H$27),((B53-(H$18:H$27))<hs_tb)*(G$18:G$27)*EXP(-hs_k1*(B53-(H$18:H$27))),0)) -> 0 | AM53: =SUM(IF(B53>=(H$18:H$27),((B53-(H$18:H$27))=hs_tb)*(G$18:G$27)*EXP(-hs_k1*(B53-(H$18:H$27))),0)) -> 54.2 | AN53: =SUM(IF(B53>=(H$18:H$27),((B53-(H$18:H$27))>hs_tb)*(G$18:G$27)*tb_prefactor*EXP(-hs_k2*(B53-(H$18:H$27)-hs_tb)),0)) -> 0 | AO53: =(SUM(OFFSET(AL53,0,0,n_TWA_steps,1))*hs_intfac1 + SUM(OFFSET(AM53,0,0,n_TWA_steps,1))*hs_intfac2+ SUM(OFFSET(AN53,0,0,n_TWA_steps,1))*hs_intfac2)/int_TWA -> 0.005167071834 | AR53: 0 | AS53: =(AR53+AR54)*dt/2 -> 0 | AT53: =SUM(OFFSET(AS53,0,0,n_TWA_steps_met,1))/int_TWA ->  | AU53: =SUM(IF(B53=(H$18:H$27),(G$18:G$27)),0) -> 54.2 | AV53: 0 | AW53: =AV53*$AS$18*$AS$19*IF($AS$21,1,0) -> 0
B54: =ROUND(B53+1/K$19,2) -> 0.05 | C54: =INDIRECT(ADDRESS(ROW($A54),VLOOKUP(CalcType,$J$25:$L$28,2,FALSE))) -> 53.6508093 | D54: =INDIRECT(ADDRESS(ROW($A54),VLOOKUP(CalcType,$J$25:$L$28,3,FALSE))) -> 23.70532147 | E54: =IF($F$7="NOT USED","",AR54) ->  | F54: =IF($F$7="NOT USED","",AT54) ->  | P54: =SUM(IF(B54>=(H$18:H$27),(G$18:G$27)*EXP(-sfo_k*(B54-(H$18:H$27))),0)) -> 53.6508093 | Q54: =SUM(OFFSET(P54,0,0,n_TWA_steps,1))*sfo_intfac/int_TWA -> 23.70532147 | R54: =SUM(P53:P472)/420 -> 23.93976417 | W54: =SUM(X54:Y54) -> 1.09898032e-20 | X54: =SUM(IF(B54>=(H$18:H$27),g*(G$18:G$27)*EXP(-dfop_k1*(B54-(H$18:H$27))),0)) -> 0 | Y54: =SUM(IF(B54>=(H$18:H$27),(1-g)*(G$18:G$27)*EXP(-dfop_k2*(B54-(H$18:H$27))),0)) -> 1.09898032e-20 | Z54: 0.002583535917 | AA54: 0 | AB54: 0.002583535917 | AD54: =SUM(IF(B54>=(H$18:H$27),(G$18:G$27)*POWER(((B54-(H$18:H$27)))/fomc_b + 1,-fomc_a),0)) ->  | AF54: =SUM(IF(B54>=(H$18:H$27),(G$18:G$27)*(LN((B55-(H$18:H$27))/fomc_b + 1) - LN((B54-(H$18:H$27))/fomc_b + 1)),0)) ->  | AG54: =SUM(IF(B54>=(H$18:H$27),(G$18:G$27)*(POWER((B55-(H$18:H$27))/fomc_b + 1,(-fomc_a+1)) - POWER((B54-(H$18:H$27))/fomc_b + 1,(-fomc_a+1))),0)) ->  | AK54: 1.09898032e-20 | AL54: =SUM(IF(B54>=(H$18:H$27),((B54-(H$18:H$27))<hs_tb)*(G$18:G$27)*EXP(-hs_k1*(B54-(H$18:H$27))),0)) -> 0 | AM54: =SUM(IF(B54>=(H$18:H$27),((B54-(H$18:H$27))=hs_tb)*(G$18:G$27)*EXP(-hs_k1*(B54-(H$18:H$27))),0)) -> 0 | AN54: =SUM(IF(B54>=(H$18:H$27),((B54-(H$18:H$27))>hs_tb)*(G$18:G$27)*tb_prefactor*EXP(-hs_k2*(B54-(H$18:H$27)-hs_tb)),0)) -> 1.09898032e-20 | AO54: 0.002583535917 | AR54: =AR53*EXP(-$AS$14*dt)+AW54 -> 0 | AS54: 0 | AU54: =SUM(IF(B54=(H$18:H$27),(G$18:G$27)),0) -> 0 | AV54: =INDIRECT(ADDRESS(ROW($A53),VLOOKUP(CalcType,$J$25:$L$28,2,FALSE)))-INDIRECT(ADDRESS(ROW($A54),VLOOKUP(CalcType,$J$25:$L$28,2,FALSE)))+AU54 -> 0.5491907012 | AW54: =AV54*$AS$18*$AS$19*IF($AS$21,1,0) -> 0
B55: 0.1 | C55: =INDIRECT(ADDRESS(ROW($A55),VLOOKUP(CalcType,$J$25:$L$28,2,FALSE))) -> 53.10718337 | D55: 23.59351599 | E55: =IF($F$7="NOT USED","",AR55) ->  | P55: =SUM(IF(B55>=(H$18:H$27),(G$18:G$27)*EXP(-sfo_k*(B55-(H$18:H$27))),0)) -> 53.10718337 | Q55: 23.59351599 | W55: 2.228335322e-42 | X55: =SUM(IF(B55>=(H$18:H$27),g*(G$18:G$27)*EXP(-dfop_k1*(B55-(H$18:H$27))),0)) -> 0 | Y55: =SUM(IF(B55>=(H$18:H$27),(1-g)*(G$18:G$27)*EXP(-dfop_k2*(B55-(H$18:H$27))),0)) -> 2.228335322e-42 | Z55: 0.002583535917 | AA55: 0 | AB55: 0.002583535917 | AD55: =SUM(IF(B55>=(H$18:H$27),(G$18:G$27)*POWER(((B55-(H$18:H$27)))/fomc_b + 1,-fomc_a),0)) ->  | AF55: =SUM(IF(B55>=(H$18:H$27),(G$18:G$27)*(LN((B56-(H$18:H$27))/fomc_b + 1) - LN((B55-(H$18:H$27))/fomc_b + 1)),0)) ->  | AG55: =SUM(IF(B55>=(H$18:H$27),(G$18:G$27)*(POWER((B56-(H$18:H$27))/fomc_b + 1,(-fomc_a+1)) - POWER((B55-(H$18:H$27))/fomc_b + 1,(-fomc_a+1))),0)) ->  | AK55: 2.228335322e-42 | AL55: =SUM(IF(B55>=(H$18:H$27),((B55-(H$18:H$27))<hs_tb)*(G$18:G$27)*EXP(-hs_k1*(B55-(H$18:H$27))),0)) -> 0 | AM55: =SUM(IF(B55>=(H$18:H$27),((B55-(H$18:H$27))=hs_tb)*(G$18:G$27)*EXP(-hs_k1*(B55-(H$18:H$27))),0)) -> 0 | AN55: =SUM(IF(B55>=(H$18:H$27),((B55-(H$18:H$27))>hs_tb)*(G$18:G$27)*tb_prefactor*EXP(-hs_k2*(B55-(H$18:H$27)-hs_tb)),0)) -> 2.228335322e-42 | AO55: 0.002583535917 | AR55: 0 | AS55: 0 | AU55: =SUM(IF(B55=(H$18:H$27),(G$18:G$27)),0) -> 0 | AV55: 0.5436259331 | AW55: 0
B56: 0.15 | C56: 52.56906581 | D56: 23.48284339 | P56: =SUM(IF(B56>=(H$18:H$27),(G$18:G$27)*EXP(-sfo_k*(B56-(H$18:H$27))),0)) -> 52.56906581 | Q56: 23.48284339 | W56: 4.51825953e-64 | X56: =SUM(IF(B56>=(H$18:H$27),g*(G$18:G$27)*EXP(-dfop_k1*(B56-(H$18:H$27))),0)) -> 0 | Y56: =SUM(IF(B56>=(H$18:H$27),(1-g)*(G$18:G$27)*EXP(-dfop_k2*(B56-(H$18:H$27))),0)) -> 4.51825953e-64 | Z56: 0.002583535917 | AA56: 0 | AB56: 0.002583535917 | AD56: =SUM(IF(B56>=(H$18:H$27),(G$18:G$27)*POWER(((B56-(H$18:H$27)))/fomc_b + 1,-fomc_a),0)) ->  | AF56: =SUM(IF(B56>=(H$18:H$27),(G$18:G$27)*(LN((B57-(H$18:H$27))/fomc_b + 1) - LN((B56-(H$18:H$27))/fomc_b + 1)),0)) ->  | AG56: =SUM(IF(B56>=(H$18:H$27),(G$18:G$27)*(POWER((B57-(H$18:H$27))/fomc_b + 1,(-fomc_a+1)) - POWER((B56-(H$18:H$27))/fomc_b + 1,(-fomc_a+1))),0)) ->  | AK56: 4.51825953e-64 | AL56: =SUM(IF(B56>=(H$18:H$27),((B56-(H$18:H$27))<hs_tb)*(G$18:G$27)*EXP(-hs_k1*(B56-(H$18:H$27))),0)) -> 0 | AM56: =SUM(IF(B56>=(H$18:H$27),((B56-(H$18:H$27))=hs_tb)*(G$18:G$27)*EXP(-hs_k1*(B56-(H$18:H$27))),0)) -> 0 | AN56: =SUM(IF(B56>=(H$18:H$27),((B56-(H$18:H$27))>hs_tb)*(G$18:G$27)*tb_prefactor*EXP(-hs_k2*(B56-(H$18:H$27)-hs_tb)),0)) -> 4.51825953e-64 | AO56: 0.002583535917 | AR56: 0 | AS56: 0 | AU56: =SUM(IF(B56=(H$18:H$27),(G$18:G$27)),0) -> 0 | AV56: 0.5381175511 | AW56: 0
B57: 0.2 | C57: 52.03640083 | D57: 23.3732922 | P57: =SUM(IF(B57>=(H$18:H$27),(G$18:G$27)*EXP(-sfo_k*(B57-(H$18:H$27))),0)) -> 52.03640083 | Q57: 23.3732922 | W57: 9.161399088e-86 | X57: =SUM(IF(B57>=(H$18:H$27),g*(G$18:G$27)*EXP(-dfop_k1*(B57-(H$18:H$27))),0)) -> 0 | Y57: =SUM(IF(B57>=(H$18:H$27),(1-g)*(G$18:G$27)*EXP(-dfop_k2*(B57-(H$18:H$27))),0)) -> 9.161399088e-86 | Z57: 0.002583535917 | AA57: 0 | AB57: 0.002583535917 | AD57: =SUM(IF(B57>=(H$18:H$27),(G$18:G$27)*POWER(((B57-(H$18:H$27)))/fomc_b + 1,-fomc_a),0)) ->  | AF57: =SUM(IF(B57>=(H$18:H$27),(G$18:G$27)*(LN((B58-(H$18:H$27))/fomc_b + 1) - LN((B57-(H$18:H$27))/fomc_b + 1)),0)) ->  | AG57: =SUM(IF(B57>=(H$18:H$27),(G$18:G$27)*(POWER((B58-(H$18:H$27))/fomc_b + 1,(-fomc_a+1)) - POWER((B57-(H$18:H$27))/fomc_b + 1,(-fomc_a+1))),0)) ->  | AK57: 9.161399088e-86 | AL57: =SUM(IF(B57>=(H$18:H$27),((B57-(H$18:H$27))<hs_tb)*(G$18:G$27)*EXP(-hs_k1*(B57-(H$18:H$27))),0)) -> 0 | AM57: =SUM(IF(B57>=(H$18:H$27),((B57-(H$18:H$27))=hs_tb)*(G$18:G$27)*EXP(-hs_k1*(B57-(H$18:H$27))),0)) -> 0 | AN57: =SUM(IF(B57>=(H$18:H$27),((B57-(H$18:H$27))>hs_tb)*(G$18:G$27)*tb_prefactor*EXP(-hs_k2*(B57-(H$18:H$27)-hs_tb)),0)) -> 9.161399088e-86 | AO57: 0.002583535917 | AR57: 0 | AS57: 0 | AU57: =SUM(IF(B57=(H$18:H$27),(G$18:G$27)),0) -> 0 | AV57: 0.5326649837 | AW57: 0
B58: 0.25 | C58: 51.50913317 | D58: 23.26485106 | P58: =SUM(IF(B58>=(H$18:H$27),(G$18:G$27)*EXP(-sfo_k*(B58-(H$18:H$27))),0)) -> 51.50913317 | Q58: 23.26485106 | W58: 1.857600979e-107 | X58: =SUM(IF(B58>=(H$18:H$27),g*(G$18:G$27)*EXP(-dfop_k1*(B58-(H$18:H$27))),0)) -> 0 | Y58: =SUM(IF(B58>=(H$18:H$27),(1-g)*(G$18:G$27)*EXP(-dfop_k2*(B58-(H$18:H$27))),0)) -> 1.857600979e-107 | Z58: 0.002583535917 | AA58: 0 | AB58: 0.002583535917 | AD58: =SUM(IF(B58>=(H$18:H$27),(G$18:G$27)*POWER(((B58-(H$18:H$27)))/fomc_b + 1,-fomc_a),0)) ->  | AF58: =SUM(IF(B58>=(H$18:H$27),(G$18:G$27)*(LN((B59-(H$18:H$27))/fomc_b + 1) - LN((B58-(H$18:H$27))/fomc_b + 1)),0)) ->  | AG58: =SUM(IF(B58>=(H$18:H$27),(G$18:G$27)*(POWER((B59-(H$18:H$27))/fomc_b + 1,(-fomc_a+1)) - POWER((B58-(H$18:H$27))/fomc_b + 1,(-fomc_a+1))),0)) ->  | AK58: 1.857600979e-107 | AL58: =SUM(IF(B58>=(H$18:H$27),((B58-(H$18:H$27))<hs_tb)*(G$18:G$27)*EXP(-hs_k1*(B58-(H$18:H$27))),0)) -> 0 | AM58: =SUM(IF(B58>=(H$18:H$27),((B58-(H$18:H$27))=hs_tb)*(G$18:G$27)*EXP(-hs_k1*(B58-(H$18:H$27))),0)) -> 0 | AN58: =SUM(IF(B58>=(H$18:H$27),((B58-(H$18:H$27))>hs_tb)*(G$18:G$27)*tb_prefactor*EXP(-hs_k2*(B58-(H$18:H$27)-hs_tb)),0)) -> 1.857600979e-107 | AO58: 0.002583535917 | AR58: 0 | AS58: 0 | AU58: =SUM(IF(B58=(H$18:H$27),(G$18:G$27)),0) -> 0 | AV58: 0.5272676653 | AW58: 0
B59: 0.3 | C59: 50.98720813 | D59: 23.15750872 | P59: =SUM(IF(B59>=(H$18:H$27),(G$18:G$27)*EXP(-sfo_k*(B59-(H$18:H$27))),0)) -> 50.98720813 | Q59: 23.15750872 | W59: 3.76654413e-129 | X59: =SUM(IF(B59>=(H$18:H$27),g*(G$18:G$27)*EXP(-dfop_k1*(B59-(H$18:H$27))),0)) -> 0 | Y59: =SUM(IF(B59>=(H$18:H$27),(1-g)*(G$18:G$27)*EXP(-dfop_k2*(B59-(H$18:H$27))),0)) -> 3.76654413e-129 | Z59: 0.002583535917 | AA59: 0 | AB59: 0.002583535917 | AD59: =SUM(IF(B59>=(H$18:H$27),(G$18:G$27)*POWER(((B59-(H$18:H$27)))/fomc_b + 1,-fomc_a),0)) ->  | AF59: =SUM(IF(B59>=(H$18:H$27),(G$18:G$27)*(LN((B60-(H$18:H$27))/fomc_b + 1) - LN((B59-(H$18:H$27))/fomc_b + 1)),0)) ->  | AG59: =SUM(IF(B59>=(H$18:H$27),(G$18:G$27)*(POWER((B60-(H$18:H$27))/fomc_b + 1,(-fomc_a+1)) - POWER((B59-(H$18:H$27))/fomc_b + 1,(-fomc_a+1))),0)) ->  | AK59: 3.76654413e-129 | AL59: =SUM(IF(B59>=(H$18:H$27),((B59-(H$18:H$27))<hs_tb)*(G$18:G$27)*EXP(-hs_k1*(B59-(H$18:H$27))),0)) -> 0 | AM59: =SUM(IF(B59>=(H$18:H$27),((B59-(H$18:H$27))=hs_tb)*(G$18:G$27)*EXP(-hs_k1*(B59-(H$18:H$27))),0)) -> 0 | AN59: =SUM(IF(B59>=(H$18:H$27),((B59-(H$18:H$27))>hs_tb)*(G$18:G$27)*tb_prefactor*EXP(-hs_k2*(B59-(H$18:H$27)-hs_tb)),0)) -> 3.76654413e-129 | AO59: 0.002583535917 | AR59: 0 | AS59: 0 | AU59: =SUM(IF(B59=(H$18:H$27),(G$18:G$27)),0) -> 0 | AV59: 0.5219250361 | AW59: 0
B60: 0.35 | C60: 50.47057159 | D60: 23.05125404 | P60: =SUM(IF(B60>=(H$18:H$27),(G$18:G$27)*EXP(-sfo_k*(B60-(H$18:H$27))),0)) -> 50.47057159 | Q60: 23.05125404 | W60: 7.63719165e-151 | X60: =SUM(IF(B60>=(H$18:H$27),g*(G$18:G$27)*EXP(-dfop_k1*(B60-(H$18:H$27))),0)) -> 0 | Y60: =SUM(IF(B60>=(H$18:H$27),(1-g)*(G$18:G$27)*EXP(-dfop_k2*(B60-(H$18:H$27))),0)) -> 7.63719165e-151 | Z60: 0.002583535917 | AA60: 0 | AB60: 0.002583535917 | AD60: =SUM(IF(B60>=(H$18:H$27),(G$18:G$27)*POWER(((B60-(H$18:H$27)))/fomc_b + 1,-fomc_a),0)) ->  | AF60: =SUM(IF(B60>=(H$18:H$27),(G$18:G$27)*(LN((B61-(H$18:H$27))/fomc_b + 1) - LN((B60-(H$18:H$27))/fomc_b + 1)),0)) ->  | AG60: =SUM(IF(B60>=(H$18:H$27),(G$18:G$27)*(POWER((B61-(H$18:H$27))/fomc_b + 1,(-fomc_a+1)) - POWER((B60-(H$18:H$27))/fomc_b + 1,(-fomc_a+1))),0)) ->  | AK60: 7.63719165e-151 | AL60: =SUM(IF(B60>=(H$18:H$27),((B60-(H$18:H$27))<hs_tb)*(G$18:G$27)*EXP(-hs_k1*(B60-(H$18:H$27))),0)) -> 0 | AM60: =SUM(IF(B60>=(H$18:H$27),((B60-(H$18:H$27))=hs_tb)*(G$18:G$27)*EXP(-hs_k1*(B60-(H$18:H$27))),0)) -> 0 | AN60: =SUM(IF(B60>=(H$18:H$27),((B60-(H$18:H$27))>hs_tb)*(G$18:G$27)*tb_prefactor*EXP(-hs_k2*(B60-(H$18:H$27)-hs_tb)),0)) -> 7.63719165e-151 | AO60: 0.002583535917 | AR60: 0 | AS60: 0 | AU60: =SUM(IF(B60=(H$18:H$27),(G$18:G$27)),0) -> 0 | AV60: 0.5166365421 | AW60: 0
B61: 0.4 | C61: 49.95916995 | D61: 22.94607601 | P61: =SUM(IF(B61>=(H$18:H$27),(G$18:G$27)*EXP(-sfo_k*(B61-(H$18:H$27))),0)) -> 49.95916995 | Q61: 22.94607601 | W61: 1.548546739e-172 | X61: =SUM(IF(B61>=(H$18:H$27),g*(G$18:G$27)*EXP(-dfop_k1*(B61-(H$18:H$27))),0)) -> 0 | Y61: =SUM(IF(B61>=(H$18:H$27),(1-g)*(G$18:G$27)*EXP(-dfop_k2*(B61-(H$18:H$27))),0)) -> 1.548546739e-172 | Z61: 0.002583535917 | AA61: 0 | AB61: 0.002583535917 | AD61: =SUM(IF(B61>=(H$18:H$27),(G$18:G$27)*POWER(((B61-(H$18:H$27)))/fomc_b + 1,-fomc_a),0)) ->  | AF61: =SUM(IF(B61>=(H$18:H$27),(G$18:G$27)*(LN((B62-(H$18:H$27))/fomc_b + 1) - LN((B61-(H$18:H$27))/fomc_b + 1)),0)) ->  | AG61: =SUM(IF(B61>=(H$18:H$27),(G$18:G$27)*(POWER((B62-(H$18:H$27))/fomc_b + 1,(-fomc_a+1)) - POWER((B61-(H$18:H$27))/fomc_b + 1,(-fomc_a+1))),0)) ->  | AK61: 1.548546739e-172 | AL61: =SUM(IF(B61>=(H$18:H$27),((B61-(H$18:H$27))<hs_tb)*(G$18:G$27)*EXP(-hs_k1*(B61-(H$18:H$27))),0)) -> 0 | AM61: =SUM(IF(B61>=(H$18:H$27),((B61-(H$18:H$27))=hs_tb)*(G$18:G$27)*EXP(-hs_k1*(B61-(H$18:H$27))),0)) -> 0 | AN61: =SUM(IF(B61>=(H$18:H$27),((B61-(H$18:H$27))>hs_tb)*(G$18:G$27)*tb_prefactor*EXP(-hs_k2*(B61-(H$18:H$27)-hs_tb)),0)) -> 1.548546739e-172 | AO61: 0.002583535917 | AR61: 0 | AS61: 0 | AU61: =SUM(IF(B61=(H$18:H$27),(G$18:G$27)),0) -> 0 | AV61: 0.5114016346 | AW61: 0
B62: 0.45 | C62: 49.45295018 | D62: 22.84196371 | P62: =SUM(IF(B62>=(H$18:H$27),(G$18:G$27)*EXP(-sfo_k*(B62-(H$18:H$27))),0)) -> 49.45295018 | Q62: 22.84196371 | W62: 3.139893711e-194 | X62: =SUM(IF(B62>=(H$18:H$27),g*(G$18:G$27)*EXP(-dfop_k1*(B62-(H$18:H$27))),0)) -> 0 | Y62: =SUM(IF(B62>=(H$18:H$27),(1-g)*(G$18:G$27)*EXP(-dfop_k2*(B62-(H$18:H$27))),0)) -> 3.139893711e-194 | Z62: 0.002583535917 | AA62: 0 | AB62: 0.002583535917 | AD62: =SUM(IF(B62>=(H$18:H$27),(G$18:G$27)*POWER(((B62-(H$18:H$27)))/fomc_b + 1,-fomc_a),0)) ->  | AF62: =SUM(IF(B62>=(H$18:H$27),(G$18:G$27)*(LN((B63-(H$18:H$27))/fomc_b + 1) - LN((B62-(H$18:H$27))/fomc_b + 1)),0)) ->  | AG62: =SUM(IF(B62>=(H$18:H$27),(G$18:G$27)*(POWER((B63-(H$18:H$27))/fomc_b + 1,(-fomc_a+1)) - POWER((B62-(H$18:H$27))/fomc_b + 1,(-fomc_a+1))),0)) ->  | AK62: 3.139893711e-194 | AL62: =SUM(IF(B62>=(H$18:H$27),((B62-(H$18:H$27))<hs_tb)*(G$18:G$27)*EXP(-hs_k1*(B62-(H$18:H$27))),0)) -> 0 | AM62: =SUM(IF(B62>=(H$18:H$27),((B62-(H$18:H$27))=hs_tb)*(G$18:G$27)*EXP(-hs_k1*(B62-(H$18:H$27))),0)) -> 0 | AN62: =SUM(IF(B62>=(H$18:H$27),((B62-(H$18:H$27))>hs_tb)*(G$18:G$27)*tb_prefactor*EXP(-hs_k2*(B62-(H$18:H$27)-hs_tb)),0)) -> 3.139893711e-194 | AO62: 0.002583535917 | AR62: 0 | AS62: 0 | AU62: =SUM(IF(B62=(H$18:H$27),(G$18:G$27)),0) -> 0 | AV62: 0.5062197708 | AW62: 0
B63: 0.5 | C63: 48.95185977 | D63: 22.73890635 | P63: =SUM(IF(B63>=(H$18:H$27),(G$18:G$27)*EXP(-sfo_k*(B63-(H$18:H$27))),0)) -> 48.95185977 | Q63: 22.73890635 | W63: 6.366570841e-216 | X63: =SUM(IF(B63>=(H$18:H$27),g*(G$18:G$27)*EXP(-dfop_k1*(B63-(H$18:H$27))),0)) -> 0 | Y63: =SUM(IF(B63>=(H$18:H$27),(1-g)*(G$18:G$27)*EXP(-dfop_k2*(B63-(H$18:H$27))),0)) -> 6.366570841e-216 | Z63: 0.002583535917 | AA63: 0 | AB63: 0.002583535917 | AD63: =SUM(IF(B63>=(H$18:H$27),(G$18:G$27)*POWER(((B63-(H$18:H$27)))/fomc_b + 1,-fomc_a),0)) ->  | AF63: =SUM(IF(B63>=(H$18:H$27),(G$18:G$27)*(LN((B64-(H$18:H$27))/fomc_b + 1) - LN((B63-(H$18:H$27))/fomc_b + 1)),0)) ->  | AG63: =SUM(IF(B63>=(H$18:H$27),(G$18:G$27)*(POWER((B64-(H$18:H$27))/fomc_b + 1,(-fomc_a+1)) - POWER((B63-(H$18:H$27))/fomc_b + 1,(-fomc_a+1))),0)) ->  | AK63: 6.366570841e-216 | AL63: =SUM(IF(B63>=(H$18:H$27),((B63-(H$18:H$27))<hs_tb)*(G$18:G$27)*EXP(-hs_k1*(B63-(H$18:H$27))),0)) -> 0 | AM63: =SUM(IF(B63>=(H$18:H$27),((B63-(H$18:H$27))=hs_tb)*(G$18:G$27)*EXP(-hs_k1*(B63-(H$18:H$27))),0)) -> 0 | AN63: =SUM(IF(B63>=(H$18:H$27),((B63-(H$18:H$27))>hs_tb)*(G$18:G$27)*tb_prefactor*EXP(-hs_k2*(B63-(H$18:H$27)-hs_tb)),0)) -> 6.366570841e-216 | AO63: 0.002583535917 | AR63: 0 | AS63: 0 | AU63: =SUM(IF(B63=(H$18:H$27),(G$18:G$27)),0) -> 0 | AV63: 0.501090413 | AW63: 0
B64: 0.55 | C64: 48.45584674 | D64: 22.63689323 | P64: =SUM(IF(B64>=(H$18:H$27),(G$18:G$27)*EXP(-sfo_k*(B64-(H$18:H$27))),0)) -> 48.45584674 | Q64: 22.63689323 | W64: 1.290910713e-237 | X64: =SUM(IF(B64>=(H$18:H$27),g*(G$18:G$27)*EXP(-dfop_k1*(B64-(H$18:H$27))),0)) -> 0 | Y64: =SUM(IF(B64>=(H$18:H$27),(1-g)*(G$18:G$27)*EXP(-dfop_k2*(B64-(H$18:H$27))),0)) -> 1.290910713e-237 | Z64: 0.002583535917 | AA64: 0 | AB64: 0.002583535917 | AD64: =SUM(IF(B64>=(H$18:H$27),(G$18:G$27)*POWER(((B64-(H$18:H$27)))/fomc_b + 1,-fomc_a),0)) ->  | AF64: =SUM(IF(B64>=(H$18:H$27),(G$18:G$27)*(LN((B65-(H$18:H$27))/fomc_b + 1) - LN((B64-(H$18:H$27))/fomc_b + 1)),0)) ->  | AG64: =SUM(IF(B64>=(H$18:H$27),(G$18:G$27)*(POWER((B65-(H$18:H$27))/fomc_b + 1,(-fomc_a+1)) - POWER((B64-(H$18:H$27))/fomc_b + 1,(-fomc_a+1))),0)) ->  | AK64: 1.290910713e-237 | AL64: =SUM(IF(B64>=(H$18:H$27),((B64-(H$18:H$27))<hs_tb)*(G$18:G$27)*EXP(-hs_k1*(B64-(H$18:H$27))),0)) -> 0 | AM64: =SUM(IF(B64>=(H$18:H$27),((B64-(H$18:H$27))=hs_tb)*(G$18:G$27)*EXP(-hs_k1*(B64-(H$18:H$27))),0)) -> 0 | AN64: =SUM(IF(B64>=(H$18:H$27),((B64-(H$18:H$27))>hs_tb)*(G$18:G$27)*tb_prefactor*EXP(-hs_k2*(B64-(H$18:H$27)-hs_tb)),0)) -> 1.290910713e-237 | AO64: 0.002583535917 | AR64: 0 | AS64: 0 | AU64: =SUM(IF(B64=(H$18:H$27),(G$18:G$27)),0) -> 0 | AV64: 0.4960130293 | AW64: 0
B65: 0.6 | C65: 47.96485965 | D65: 22.53591378 | P65: =SUM(IF(B65>=(H$18:H$27),(G$18:G$27)*EXP(-sfo_k*(B65-(H$18:H$27))),0)) -> 47.96485965 | Q65: 22.53591378 | W65: 2.617500864e-259 | X65: =SUM(IF(B65>=(H$18:H$27),g*(G$18:G$27)*EXP(-dfop_k1*(B65-(H$18:H$27))),0)) -> 0 | Y65: =SUM(IF(B65>=(H$18:H$27),(1-g)*(G$18:G$27)*EXP(-dfop_k2*(B65-(H$18:H$27))),0)) -> 2.617500864e-259 | Z65: 0.002583535917 | AA65: 0 | AB65: 0.002583535917 | AD65: =SUM(IF(B65>=(H$18:H$27),(G$18:G$27)*POWER(((B65-(H$18:H$27)))/fomc_b + 1,-fomc_a),0)) ->  | AF65: =SUM(IF(B65>=(H$18:H$27),(G$18:G$27)*(LN((B66-(H$18:H$27))/fomc_b + 1) - LN((B65-(H$18:H$27))/fomc_b + 1)),0)) ->  | AG65: =SUM(IF(B65>=(H$18:H$27),(G$18:G$27)*(POWER((B66-(H$18:H$27))/fomc_b + 1,(-fomc_a+1)) - POWER((B65-(H$18:H$27))/fomc_b + 1,(-fomc_a+1))),0)) ->  | AK65: 2.617500864e-259 | AL65: =SUM(IF(B65>=(H$18:H$27),((B65-(H$18:H$27))<hs_tb)*(G$18:G$27)*EXP(-hs_k1*(B65-(H$18:H$27))),0)) -> 0 | AM65: =SUM(IF(B65>=(H$18:H$27),((B65-(H$18:H$27))=hs_tb)*(G$18:G$27)*EXP(-hs_k1*(B65-(H$18:H$27))),0)) -> 0 | AN65: =SUM(IF(B65>=(H$18:H$27),((B65-(H$18:H$27))>hs_tb)*(G$18:G$27)*tb_prefactor*EXP(-hs_k2*(B65-(H$18:H$27)-hs_tb)),0)) -> 2.617500864e-259 | AO65: 0.002583535917 | AR65: 0 | AS65: 0 | AU65: =SUM(IF(B65=(H$18:H$27),(G$18:G$27)),0) -> 0 | AV65: 0.4909870931 | AW65: 0
B66: 0.65 | C66: 47.47884756 | D66: 22.43595751 | P66: =SUM(IF(B66>=(H$18:H$27),(G$18:G$27)*EXP(-sfo_k*(B66-(H$18:H$27))),0)) -> 47.47884756 | Q66: 22.43595751 | W66: 5.307346749e-281 | X66: =SUM(IF(B66>=(H$18:H$27),g*(G$18:G$27)*EXP(-dfop_k1*(B66-(H$18:H$27))),0)) -> 0 | Y66: =SUM(IF(B66>=(H$18:H$27),(1-g)*(G$18:G$27)*EXP(-dfop_k2*(B66-(H$18:H$27))),0)) -> 5.307346749e-281 | Z66: 0.002583535917 | AA66: 0 | AB66: 0.002583535917 | AD66: =SUM(IF(B66>=(H$18:H$27),(G$18:G$27)*POWER(((B66-(H$18:H$27)))/fomc_b + 1,-fomc_a),0)) ->  | AF66: =SUM(IF(B66>=(H$18:H$27),(G$18:G$27)*(LN((B67-(H$18:H$27))/fomc_b + 1) - LN((B66-(H$18:H$27))/fomc_b + 1)),0)) ->  | AG66: =SUM(IF(B66>=(H$18:H$27),(G$18:G$27)*(POWER((B67-(H$18:H$27))/fomc_b + 1,(-fomc_a+1)) - POWER((B66-(H$18:H$27))/fomc_b + 1,(-fomc_a+1))),0)) ->  | AK66: 5.307346749e-281 | AL66: =SUM(IF(B66>=(H$18:H$27),((B66-(H$18:H$27))<hs_tb)*(G$18:G$27)*EXP(-hs_k1*(B66-(H$18:H$27))),0)) -> 0 | AM66: =SUM(IF(B66>=(H$18:H$27),((B66-(H$18:H$27))=hs_tb)*(G$18:G$27)*EXP(-hs_k1*(B66-(H$18:H$27))),0)) -> 0 | AN66: =SUM(IF(B66>=(H$18:H$27),((B66-(H$18:H$27))>hs_tb)*(G$18:G$27)*tb_prefactor*EXP(-hs_k2*(B66-(H$18:H$27)-hs_tb)),0)) -> 5.307346749e-281 | AO66: 0.002583535917 | AR66: 0 | AS66: 0 | AU66: =SUM(IF(B66=(H$18:H$27),(G$18:G$27)),0) -> 0 | AV66: 0.486012083 | AW66: 0
B67: 0.7 | C67: 46.99776008 | D67: 22.33701408 | P67: =SUM(IF(B67>=(H$18:H$27),(G$18:G$27)*EXP(-sfo_k*(B67-(H$18:H$27))),0)) -> 46.99776008 | Q67: 22.33701408 | W67: 1.076138308e-302 | X67: =SUM(IF(B67>=(H$18:H$27),g*(G$18:G$27)*EXP(-dfop_k1*(B67-(H$18:H$27))),0)) -> 0 | Y67: =SUM(IF(B67>=(H$18:H$27),(1-g)*(G$18:G$27)*EXP(-dfop_k2*(B67-(H$18:H$27))),0)) -> 1.076138308e-302 | Z67: 0.002583535917 | AA67: 0 | AB67: 0.002583535917 | AD67: =SUM(IF(B67>=(H$18:H$27),(G$18:G$27)*POWER(((B67-(H$18:H$27)))/fomc_b + 1,-fomc_a),0)) ->  | AF67: =SUM(IF(B67>=(H$18:H$27),(G$18:G$27)*(LN((B68-(H$18:H$27))/fomc_b + 1) - LN((B67-(H$18:H$27))/fomc_b + 1)),0)) ->  | AG67: =SUM(IF(B67>=(H$18:H$27),(G$18:G$27)*(POWER((B68-(H$18:H$27))/fomc_b + 1,(-fomc_a+1)) - POWER((B67-(H$18:H$27))/fomc_b + 1,(-fomc_a+1))),0)) ->  | AK67: 1.076138308e-302 | AL67: =SUM(IF(B67>=(H$18:H$27),((B67-(H$18:H$27))<hs_tb)*(G$18:G$27)*EXP(-hs_k1*(B67-(H$18:H$27))),0)) -> 0 | AM67: =SUM(IF(B67>=(H$18:H$27),((B67-(H$18:H$27))=hs_tb)*(G$18:G$27)*EXP(-hs_k1*(B67-(H$18:H$27))),0)) -> 0 | AN67: =SUM(IF(B67>=(H$18:H$27),((B67-(H$18:H$27))>hs_tb)*(G$18:G$27)*tb_prefactor*EXP(-hs_k2*(B67-(H$18:H$27)-hs_tb)),0)) -> 1.076138308e-302 | AO67: 0.002583535917 | AR67: 0 | AS67: 0 | AU67: =SUM(IF(B67=(H$18:H$27),(G$18:G$27)),0) -> 0 | AV67: 0.4810874831 | AW67: 0
B68: 0.75 | C68: 46.5215473 | D68: 22.2390732 | P68: =SUM(IF(B68>=(H$18:H$27),(G$18:G$27)*EXP(-sfo_k*(B68-(H$18:H$27))),0)) -> 46.5215473 | Q68: 22.2390732 | W68: 0 | X68: =SUM(IF(B68>=(H$18:H$27),g*(G$18:G$27)*EXP(-dfop_k1*(B68-(H$18:H$27))),0)) -> 0 | Y68: =SUM(IF(B68>=(H$18:H$27),(1-g)*(G$18:G$27)*EXP(-dfop_k2*(B68-(H$18:H$27))),0)) -> 0 | Z68: 0.002583535917 | AA68: 0 | AB68: 0.002583535917 | AD68: =SUM(IF(B68>=(H$18:H$27),(G$18:G$27)*POWER(((B68-(H$18:H$27)))/fomc_b + 1,-fomc_a),0)) ->  | AF68: =SUM(IF(B68>=(H$18:H$27),(G$18:G$27)*(LN((B69-(H$18:H$27))/fomc_b + 1) - LN((B68-(H$18:H$27))/fomc_b + 1)),0)) ->  | AG68: =SUM(IF(B68>=(H$18:H$27),(G$18:G$27)*(POWER((B69-(H$18:H$27))/fomc_b + 1,(-fomc_a+1)) - POWER((B68-(H$18:H$27))/fomc_b + 1,(-fomc_a+1))),0)) ->  | AK68: 0 | AL68: =SUM(IF(B68>=(H$18:H$27),((B68-(H$18:H$27))<hs_tb)*(G$18:G$27)*EXP(-hs_k1*(B68-(H$18:H$27))),0)) -> 0 | AM68: =SUM(IF(B68>=(H$18:H$27),((B68-(H$18:H$27))=hs_tb)*(G$18:G$27)*EXP(-hs_k1*(B68-(H$18:H$27))),0)) -> 0 | AN68: =SUM(IF(B68>=(H$18:H$27),((B68-(H$18:H$27))>hs_tb)*(G$18:G$27)*tb_prefactor*EXP(-hs_k2*(B68-(H$18:H$27)-hs_tb)),0)) -> 0 | AO68: 0.002583535917 | AR68: 0 | AS68: 0 | AU68: =SUM(IF(B68=(H$18:H$27),(G$18:G$27)),0) -> 0 | AV68: 0.4762127825 | AW68: 0
B69: 0.8 | C69: 46.05015982 | D69: 22.14212473 | P69: =SUM(IF(B69>=(H$18:H$27),(G$18:G$27)*EXP(-sfo_k*(B69-(H$18:H$27))),0)) -> 46.05015982 | Q69: 22.14212473 | W69: 0 | X69: =SUM(IF(B69>=(H$18:H$27),g*(G$18:G$27)*EXP(-dfop_k1*(B69-(H$18:H$27))),0)) -> 0 | Y69: =SUM(IF(B69>=(H$18:H$27),(1-g)*(G$18:G$27)*EXP(-dfop_k2*(B69-(H$18:H$27))),0)) -> 0 | Z69: 0.002583535917 | AA69: 0 | AB69: 0.002583535917 | AD69: =SUM(IF(B69>=(H$18:H$27),(G$18:G$27)*POWER(((B69-(H$18:H$27)))/fomc_b + 1,-fomc_a),0)) ->  | AF69: =SUM(IF(B69>=(H$18:H$27),(G$18:G$27)*(LN((B70-(H$18:H$27))/fomc_b + 1) - LN((B69-(H$18:H$27))/fomc_b + 1)),0)) ->  | AG69: =SUM(IF(B69>=(H$18:H$27),(G$18:G$27)*(POWER((B70-(H$18:H$27))/fomc_b + 1,(-fomc_a+1)) - POWER((B69-(H$18:H$27))/fomc_b + 1,(-fomc_a+1))),0)) ->  | AK69: 0 | AL69: =SUM(IF(B69>=(H$18:H$27),((B69-(H$18:H$27))<hs_tb)*(G$18:G$27)*EXP(-hs_k1*(B69-(H$18:H$27))),0)) -> 0 | AM69: =SUM(IF(B69>=(H$18:H$27),((B69-(H$18:H$27))=hs_tb)*(G$18:G$27)*EXP(-hs_k1*(B69-(H$18:H$27))),0)) -> 0 | AN69: =SUM(IF(B69>=(H$18:H$27),((B69-(H$18:H$27))>hs_tb)*(G$18:G$27)*tb_prefactor*EXP(-hs_k2*(B69-(H$18:H$27)-hs_tb)),0)) -> 0 | AO69: 0.002583535917 | AR69: 0 | AS69: 0 | AU69: =SUM(IF(B69=(H$18:H$27),(G$18:G$27)),0) -> 0 | AV69: 0.4713874756 | AW69: 0
B70: 0.85 | C70: 45.58354876 | D70: 22.0461586 | P70: =SUM(IF(B70>=(H$18:H$27),(G$18:G$27)*EXP(-sfo_k*(B70-(H$18:H$27))),0)) -> 45.58354876 | Q70: 22.0461586 | W70: 0 | X70: =SUM(IF(B70>=(H$18:H$27),g*(G$18:G$27)*EXP(-dfop_k1*(B70-(H$18:H$27))),0)) -> 0 | Y70: =SUM(IF(B70>=(H$18:H$27),(1-g)*(G$18:G$27)*EXP(-dfop_k2*(B70-(H$18:H$27))),0)) -> 0 | Z70: 0.002583535917 | AA70: 0 | AB70: 0.002583535917 | AD70: =SUM(IF(B70>=(H$18:H$27),(G$18:G$27)*POWER(((B70-(H$18:H$27)))/fomc_b + 1,-fomc_a),0)) ->  | AF70: =SUM(IF(B70>=(H$18:H$27),(G$18:G$27)*(LN((B71-(H$18:H$27))/fomc_b + 1) - LN((B70-(H$18:H$27))/fomc_b + 1)),0)) ->  | AG70: =SUM(IF(B70>=(H$18:H$27),(G$18:G$27)*(POWER((B71-(H$18:H$27))/fomc_b + 1,(-fomc_a+1)) - POWER((B70-(H$18:H$27))/fomc_b + 1,(-fomc_a+1))),0)) ->  | AK70: 0 | AL70: =SUM(IF(B70>=(H$18:H$27),((B70-(H$18:H$27))<hs_tb)*(G$18:G$27)*EXP(-hs_k1*(B70-(H$18:H$27))),0)) -> 0 | AM70: =SUM(IF(B70>=(H$18:H$27),((B70-(H$18:H$27))=hs_tb)*(G$18:G$27)*EXP(-hs_k1*(B70-(H$18:H$27))),0)) -> 0 | AN70: =SUM(IF(B70>=(H$18:H$27),((B70-(H$18:H$27))>hs_tb)*(G$18:G$27)*tb_prefactor*EXP(-hs_k2*(B70-(H$18:H$27)-hs_tb)),0)) -> 0 | AO70: 0.002583535917 | AR70: 0 | AS70: 0 | AU70: =SUM(IF(B70=(H$18:H$27),(G$18:G$27)),0) -> 0 | AV70: 0.466611062 | AW70: 0
B71: 0.9 | C71: 45.12166571 | D71: 21.95116487 | P71: =SUM(IF(B71>=(H$18:H$27),(G$18:G$27)*EXP(-sfo_k*(B71-(H$18:H$27))),0)) -> 45.12166571 | Q71: 21.95116487 | W71: 0 | X71: =SUM(IF(B71>=(H$18:H$27),g*(G$18:G$27)*EXP(-dfop_k1*(B71-(H$18:H$27))),0)) -> 0 | Y71: =SUM(IF(B71>=(H$18:H$27),(1-g)*(G$18:G$27)*EXP(-dfop_k2*(B71-(H$18:H$27))),0)) -> 0 | Z71: 0.002583535917 | AA71: 0 | AB71: 0.002583535917 | AD71: =SUM(IF(B71>=(H$18:H$27),(G$18:G$27)*POWER(((B71-(H$18:H$27)))/fomc_b + 1,-fomc_a),0)) ->  | AF71: =SUM(IF(B71>=(H$18:H$27),(G$18:G$27)*(LN((B72-(H$18:H$27))/fomc_b + 1) - LN((B71-(H$18:H$27))/fomc_b + 1)),0)) ->  | AG71: =SUM(IF(B71>=(H$18:H$27),(G$18:G$27)*(POWER((B72-(H$18:H$27))/fomc_b + 1,(-fomc_a+1)) - POWER((B71-(H$18:H$27))/fomc_b + 1,(-fomc_a+1))),0)) ->  | AK71: 0 | AL71: =SUM(IF(B71>=(H$18:H$27),((B71-(H$18:H$27))<hs_tb)*(G$18:G$27)*EXP(-hs_k1*(B71-(H$18:H$27))),0)) -> 0 | AM71: =SUM(IF(B71>=(H$18:H$27),((B71-(H$18:H$27))=hs_tb)*(G$18:G$27)*EXP(-hs_k1*(B71-(H$18:H$27))),0)) -> 0 | AN71: =SUM(IF(B71>=(H$18:H$27),((B71-(H$18:H$27))>hs_tb)*(G$18:G$27)*tb_prefactor*EXP(-hs_k2*(B71-(H$18:H$27)-hs_tb)),0)) -> 0 | AO71: 0.002583535917 | AR71: 0 | AS71: 0 | AU71: =SUM(IF(B71=(H$18:H$27),(G$18:G$27)),0) -> 0 | AV71: 0.4618830462 | AW71: 0
B72: 0.95 | C72: 44.66446278 | D72: 21.85713367 | P72: =SUM(IF(B72>=(H$18:H$27),(G$18:G$27)*EXP(-sfo_k*(B72-(H$18:H$27))),0)) -> 44.66446278 | Q72: 21.85713367 | W72: 0 | X72: =SUM(IF(B72>=(H$18:H$27),g*(G$18:G$27)*EXP(-dfop_k1*(B72-(H$18:H$27))),0)) -> 0 | Y72: =SUM(IF(B72>=(H$18:H$27),(1-g)*(G$18:G$27)*EXP(-dfop_k2*(B72-(H$18:H$27))),0)) -> 0 | Z72: 0.002583535917 | AA72: 0 | AB72: 0.002583535917 | AD72: =SUM(IF(B72>=(H$18:H$27),(G$18:G$27)*POWER(((B72-(H$18:H$27)))/fomc_b + 1,-fomc_a),0)) ->  | AF72: =SUM(IF(B72>=(H$18:H$27),(G$18:G$27)*(LN((B73-(H$18:H$27))/fomc_b + 1) - LN((B72-(H$18:H$27))/fomc_b + 1)),0)) ->  | AG72: =SUM(IF(B72>=(H$18:H$27),(G$18:G$27)*(POWER((B73-(H$18:H$27))/fomc_b + 1,(-fomc_a+1)) - POWER((B72-(H$18:H$27))/fomc_b + 1,(-fomc_a+1))),0)) ->  | AK72: 0 | AL72: =SUM(IF(B72>=(H$18:H$27),((B72-(H$18:H$27))<hs_tb)*(G$18:G$27)*EXP(-hs_k1*(B72-(H$18:H$27))),0)) -> 0 | AM72: =SUM(IF(B72>=(H$18:H$27),((B72-(H$18:H$27))=hs_tb)*(G$18:G$27)*EXP(-hs_k1*(B72-(H$18:H$27))),0)) -> 0 | AN72: =SUM(IF(B72>=(H$18:H$27),((B72-(H$18:H$27))>hs_tb)*(G$18:G$27)*tb_prefactor*EXP(-hs_k2*(B72-(H$18:H$27)-hs_tb)),0)) -> 0 | AO72: 0.002583535917 | AR72: 0 | AS72: 0 | AU72: =SUM(IF(B72=(H$18:H$27),(G$18:G$27)),0) -> 0 | AV72: 0.4572029378 | AW72: 0
B73: 1 | C73: 44.21189252 | D73: 21.76405527 | P73: =SUM(IF(B73>=(H$18:H$27),(G$18:G$27)*EXP(-sfo_k*(B73-(H$18:H$27))),0)) -> 44.21189252 | Q73: 21.76405527 | W73: 0 | X73: =SUM(IF(B73>=(H$18:H$27),g*(G$18:G$27)*EXP(-dfop_k1*(B73-(H$18:H$27))),0)) -> 0 | Y73: =SUM(IF(B73>=(H$18:H$27),(1-g)*(G$18:G$27)*EXP(-dfop_k2*(B73-(H$18:H$27))),0)) -> 0 | Z73: 0.002583535917 | AA73: 0 | AB73: 0.002583535917 | AD73: =SUM(IF(B73>=(H$18:H$27),(G$18:G$27)*POWER(((B73-(H$18:H$27)))/fomc_b + 1,-fomc_a),0)) ->  | AF73: =SUM(IF(B73>=(H$18:H$27),(G$18:G$27)*(LN((B74-(H$18:H$27))/fomc_b + 1) - LN((B73-(H$18:H$27))/fomc_b + 1)),0)) ->  | AG73: =SUM(IF(B73>=(H$18:H$27),(G$18:G$27)*(POWER((B74-(H$18:H$27))/fomc_b + 1,(-fomc_a+1)) - POWER((B73-(H$18:H$27))/fomc_b + 1,(-fomc_a+1))),0)) ->  | AK73: 0 | AL73: =SUM(IF(B73>=(H$18:H$27),((B73-(H$18:H$27))<hs_tb)*(G$18:G$27)*EXP(-hs_k1*(B73-(H$18:H$27))),0)) -> 0 | AM73: =SUM(IF(B73>=(H$18:H$27),((B73-(H$18:H$27))=hs_tb)*(G$18:G$27)*EXP(-hs_k1*(B73-(H$18:H$27))),0)) -> 0 | AN73: =SUM(IF(B73>=(H$18:H$27),((B73-(H$18:H$27))>hs_tb)*(G$18:G$27)*tb_prefactor*EXP(-hs_k2*(B73-(H$18:H$27)-hs_tb)),0)) -> 0 | AO73: 0.002583535917 | AR73: 0 | AS73: 0 | AU73: =SUM(IF(B73=(H$18:H$27),(G$18:G$27)),0) -> 0 | AV73: 0.4525702515 | AW73: 0
B74: 1.05 | C74: 43.76390802 | D74: 21.67191999 | P74: =SUM(IF(B74>=(H$18:H$27),(G$18:G$27)*EXP(-sfo_k*(B74-(H$18:H$27))),0)) -> 43.76390802 | Q74: 21.67191999 | W74: 0 | X74: =SUM(IF(B74>=(H$18:H$27),g*(G$18:G$27)*EXP(-dfop_k1*(B74-(H$18:H$27))),0)) -> 0 | Y74: =SUM(IF(B74>=(H$18:H$27),(1-g)*(G$18:G$27)*EXP(-dfop_k2*(B74-(H$18:H$27))),0)) -> 0 | Z74: 0.002583535917 | AA74: 0 | AB74: 0.002583535917 | AD74: =SUM(IF(B74>=(H$18:H$27),(G$18:G$27)*POWER(((B74-(H$18:H$27)))/fomc_b + 1,-fomc_a),0)) ->  | AF74: =SUM(IF(B74>=(H$18:H$27),(G$18:G$27)*(LN((B75-(H$18:H$27))/fomc_b + 1) - LN((B74-(H$18:H$27))/fomc_b + 1)),0)) ->  | AG74: =SUM(IF(B74>=(H$18:H$27),(G$18:G$27)*(POWER((B75-(H$18:H$27))/fomc_b + 1,(-fomc_a+1)) - POWER((B74-(H$18:H$27))/fomc_b + 1,(-fomc_a+1))),0)) ->  | AK74: 0 | AL74: =SUM(IF(B74>=(H$18:H$27),((B74-(H$18:H$27))<hs_tb)*(G$18:G$27)*EXP(-hs_k1*(B74-(H$18:H$27))),0)) -> 0 | AM74: =SUM(IF(B74>=(H$18:H$27),((B74-(H$18:H$27))=hs_tb)*(G$18:G$27)*EXP(-hs_k1*(B74-(H$18:H$27))),0)) -> 0 | AN74: =SUM(IF(B74>=(H$18:H$27),((B74-(H$18:H$27))>hs_tb)*(G$18:G$27)*tb_prefactor*EXP(-hs_k2*(B74-(H$18:H$27)-hs_tb)),0)) -> 0 | AO74: 0.002583535917 | AR74: 0 | AS74: 0 | AU74: =SUM(IF(B74=(H$18:H$27),(G$18:G$27)),0) -> 0 | AV74: 0.4479845066 | AW74: 0
B75: 1.1 | C75: 43.32046279 | D75: 21.58071829 | P75: =SUM(IF(B75>=(H$18:H$27),(G$18:G$27)*EXP(-sfo_k*(B75-(H$18:H$27))),0)) -> 43.32046279 | Q75: 21.58071829 | W75: 0 | X75: =SUM(IF(B75>=(H$18:H$27),g*(G$18:G$27)*EXP(-dfop_k1*(B75-(H$18:H$27))),0)) -> 0 | Y75: =SUM(IF(B75>=(H$18:H$27),(1-g)*(G$18:G$27)*EXP(-dfop_k2*(B75-(H$18:H$27))),0)) -> 0 | Z75: 0.002583535917 | AA75: 0 | AB75: 0.002583535917 | AD75: =SUM(IF(B75>=(H$18:H$27),(G$18:G$27)*POWER(((B75-(H$18:H$27)))/fomc_b + 1,-fomc_a),0)) ->  | AF75: =SUM(IF(B75>=(H$18:H$27),(G$18:G$27)*(LN((B76-(H$18:H$27))/fomc_b + 1) - LN((B75-(H$18:H$27))/fomc_b + 1)),0)) ->  | AG75: =SUM(IF(B75>=(H$18:H$27),(G$18:G$27)*(POWER((B76-(H$18:H$27))/fomc_b + 1,(-fomc_a+1)) - POWER((B75-(H$18:H$27))/fomc_b + 1,(-fomc_a+1))),0)) ->  | AK75: 0 | AL75: =SUM(IF(B75>=(H$18:H$27),((B75-(H$18:H$27))<hs_tb)*(G$18:G$27)*EXP(-hs_k1*(B75-(H$18:H$27))),0)) -> 0 | AM75: =SUM(IF(B75>=(H$18:H$27),((B75-(H$18:H$27))=hs_tb)*(G$18:G$27)*EXP(-hs_k1*(B75-(H$18:H$27))),0)) -> 0 | AN75: =SUM(IF(B75>=(H$18:H$27),((B75-(H$18:H$27))>hs_tb)*(G$18:G$27)*tb_prefactor*EXP(-hs_k2*(B75-(H$18:H$27)-hs_tb)),0)) -> 0 | AO75: 0.002583535917 | AR75: 0 | AS75: 0 | AU75: =SUM(IF(B75=(H$18:H$27),(G$18:G$27)),0) -> 0 | AV75: 0.4434452275 | AW75: 0
B76: 1.15 | C76: 42.88151085 | D76: 21.49044071 | P76: =SUM(IF(B76>=(H$18:H$27),(G$18:G$27)*EXP(-sfo_k*(B76-(H$18:H$27))),0)) -> 42.88151085 | Q76: 21.49044071 | W76: 0 | X76: =SUM(IF(B76>=(H$18:H$27),g*(G$18:G$27)*EXP(-dfop_k1*(B76-(H$18:H$27))),0)) -> 0 | Y76: =SUM(IF(B76>=(H$18:H$27),(1-g)*(G$18:G$27)*EXP(-dfop_k2*(B76-(H$18:H$27))),0)) -> 0 | Z76: 0.002583535917 | AA76: 0 | AB76: 0.002583535917 | AD76: =SUM(IF(B76>=(H$18:H$27),(G$18:G$27)*POWER(((B76-(H$18:H$27)))/fomc_b + 1,-fomc_a),0)) ->  | AF76: =SUM(IF(B76>=(H$18:H$27),(G$18:G$27)*(LN((B77-(H$18:H$27))/fomc_b + 1) - LN((B76-(H$18:H$27))/fomc_b + 1)),0)) ->  | AG76: =SUM(IF(B76>=(H$18:H$27),(G$18:G$27)*(POWER((B77-(H$18:H$27))/fomc_b + 1,(-fomc_a+1)) - POWER((B76-(H$18:H$27))/fomc_b + 1,(-fomc_a+1))),0)) ->  | AK76: 0 | AL76: =SUM(IF(B76>=(H$18:H$27),((B76-(H$18:H$27))<hs_tb)*(G$18:G$27)*EXP(-hs_k1*(B76-(H$18:H$27))),0)) -> 0 | AM76: =SUM(IF(B76>=(H$18:H$27),((B76-(H$18:H$27))=hs_tb)*(G$18:G$27)*EXP(-hs_k1*(B76-(H$18:H$27))),0)) -> 0 | AN76: =SUM(IF(B76>=(H$18:H$27),((B76-(H$18:H$27))>hs_tb)*(G$18:G$27)*tb_prefactor*EXP(-hs_k2*(B76-(H$18:H$27)-hs_tb)),0)) -> 0 | AO76: 0.002583535917 | AR76: 0 | AS76: 0 | AU76: =SUM(IF(B76=(H$18:H$27),(G$18:G$27)),0) -> 0 | AV76: 0.4389519434 | AW76: 0
B77: 1.2 | C77: 42.44700666 | D77: 21.40107789 | P77: =SUM(IF(B77>=(H$18:H$27),(G$18:G$27)*EXP(-sfo_k*(B77-(H$18:H$27))),0)) -> 42.44700666 | Q77: 21.40107789 | W77: 0 | X77: =SUM(IF(B77>=(H$18:H$27),g*(G$18:G$27)*EXP(-dfop_k1*(B77-(H$18:H$27))),0)) -> 0 | Y77: =SUM(IF(B77>=(H$18:H$27),(1-g)*(G$18:G$27)*EXP(-dfop_k2*(B77-(H$18:H$27))),0)) -> 0 | Z77: 0.002583535917 | AA77: 0 | AB77: 0.002583535917 | AD77: =SUM(IF(B77>=(H$18:H$27),(G$18:G$27)*POWER(((B77-(H$18:H$27)))/fomc_b + 1,-fomc_a),0)) ->  | AF77: =SUM(IF(B77>=(H$18:H$27),(G$18:G$27)*(LN((B78-(H$18:H$27))/fomc_b + 1) - LN((B77-(H$18:H$27))/fomc_b + 1)),0)) ->  | AG77: =SUM(IF(B77>=(H$18:H$27),(G$18:G$27)*(POWER((B78-(H$18:H$27))/fomc_b + 1,(-fomc_a+1)) - POWER((B77-(H$18:H$27))/fomc_b + 1,(-fomc_a+1))),0)) ->  | AK77: 0 | AL77: =SUM(IF(B77>=(H$18:H$27),((B77-(H$18:H$27))<hs_tb)*(G$18:G$27)*EXP(-hs_k1*(B77-(H$18:H$27))),0)) -> 0 | AM77: =SUM(IF(B77>=(H$18:H$27),((B77-(H$18:H$27))=hs_tb)*(G$18:G$27)*EXP(-hs_k1*(B77-(H$18:H$27))),0)) -> 0 | AN77: =SUM(IF(B77>=(H$18:H$27),((B77-(H$18:H$27))>hs_tb)*(G$18:G$27)*tb_prefactor*EXP(-hs_k2*(B77-(H$18:H$27)-hs_tb)),0)) -> 0 | AO77: 0.002583535917 | AR77: 0 | AS77: 0 | AU77: =SUM(IF(B77=(H$18:H$27),(G$18:G$27)),0) -> 0 | AV77: 0.4345041884 | AW77: 0
B78: 1.25 | C78: 42.01690516 | D78: 21.31262054 | P78: =SUM(IF(B78>=(H$18:H$27),(G$18:G$27)*EXP(-sfo_k*(B78-(H$18:H$27))),0)) -> 42.01690516 | Q78: 21.31262054 | W78: 0 | X78: =SUM(IF(B78>=(H$18:H$27),g*(G$18:G$27)*EXP(-dfop_k1*(B78-(H$18:H$27))),0)) -> 0 | Y78: =SUM(IF(B78>=(H$18:H$27),(1-g)*(G$18:G$27)*EXP(-dfop_k2*(B78-(H$18:H$27))),0)) -> 0 | Z78: 0.002583535917 | AA78: 0 | AB78: 0.002583535917 | AD78: =SUM(IF(B78>=(H$18:H$27),(G$18:G$27)*POWER(((B78-(H$18:H$27)))/fomc_b + 1,-fomc_a),0)) ->  | AF78: =SUM(IF(B78>=(H$18:H$27),(G$18:G$27)*(LN((B79-(H$18:H$27))/fomc_b + 1) - LN((B78-(H$18:H$27))/fomc_b + 1)),0)) ->  | AG78: =SUM(IF(B78>=(H$18:H$27),(G$18:G$27)*(POWER((B79-(H$18:H$27))/fomc_b + 1,(-fomc_a+1)) - POWER((B78-(H$18:H$27))/fomc_b + 1,(-fomc_a+1))),0)) ->  | AK78: 0 | AL78: =SUM(IF(B78>=(H$18:H$27),((B78-(H$18:H$27))<hs_tb)*(G$18:G$27)*EXP(-hs_k1*(B78-(H$18:H$27))),0)) -> 0 | AM78: =SUM(IF(B78>=(H$18:H$27),((B78-(H$18:H$27))=hs_tb)*(G$18:G$27)*EXP(-hs_k1*(B78-(H$18:H$27))),0)) -> 0 | AN78: =SUM(IF(B78>=(H$18:H$27),((B78-(H$18:H$27))>hs_tb)*(G$18:G$27)*tb_prefactor*EXP(-hs_k2*(B78-(H$18:H$27)-hs_tb)),0)) -> 0 | AO78: 0.002583535917 | AR78: 0 | AS78: 0 | AU78: =SUM(IF(B78=(H$18:H$27),(G$18:G$27)),0) -> 0 | AV78: 0.4301015009 | AW78: 0
B79: 1.3 | C79: 41.59116173 | D79: 21.22505951 | P79: =SUM(IF(B79>=(H$18:H$27),(G$18:G$27)*EXP(-sfo_k*(B79-(H$18:H$27))),0)) -> 41.59116173 | Q79: 21.22505951 | W79: 0 | X79: =SUM(IF(B79>=(H$18:H$27),g*(G$18:G$27)*EXP(-dfop_k1*(B79-(H$18:H$27))),0)) -> 0 | Y79: =SUM(IF(B79>=(H$18:H$27),(1-g)*(G$18:G$27)*EXP(-dfop_k2*(B79-(H$18:H$27))),0)) -> 0 | Z79: 0.002583535917 | AA79: 0 | AB79: 0.002583535917 | AD79: =SUM(IF(B79>=(H$18:H$27),(G$18:G$27)*POWER(((B79-(H$18:H$27)))/fomc_b + 1,-fomc_a),0)) ->  | AF79: =SUM(IF(B79>=(H$18:H$27),(G$18:G$27)*(LN((B80-(H$18:H$27))/fomc_b + 1) - LN((B79-(H$18:H$27))/fomc_b + 1)),0)) ->  | AG79: =SUM(IF(B79>=(H$18:H$27),(G$18:G$27)*(POWER((B80-(H$18:H$27))/fomc_b + 1,(-fomc_a+1)) - POWER((B79-(H$18:H$27))/fomc_b + 1,(-fomc_a+1))),0)) ->  | AK79: 0 | AL79: =SUM(IF(B79>=(H$18:H$27),((B79-(H$18:H$27))<hs_tb)*(G$18:G$27)*EXP(-hs_k1*(B79-(H$18:H$27))),0)) -> 0 | AM79: =SUM(IF(B79>=(H$18:H$27),((B79-(H$18:H$27))=hs_tb)*(G$18:G$27)*EXP(-hs_k1*(B79-(H$18:H$27))),0)) -> 0 | AN79: =SUM(IF(B79>=(H$18:H$27),((B79-(H$18:H$27))>hs_tb)*(G$18:G$27)*tb_prefactor*EXP(-hs_k2*(B79-(H$18:H$27)-hs_tb)),0)) -> 0 | AO79: 0.002583535917 | AR79: 0 | AS79: 0 | AU79: =SUM(IF(B79=(H$18:H$27),(G$18:G$27)),0) -> 0 | AV79: 0.4257434244 | AW79: 0
B80: 1.35 | C80: 41.16973223 | D80: 21.1383857 | P80: =SUM(IF(B80>=(H$18:H$27),(G$18:G$27)*EXP(-sfo_k*(B80-(H$18:H$27))),0)) -> 41.16973223 | Q80: 21.1383857 | W80: 0 | X80: =SUM(IF(B80>=(H$18:H$27),g*(G$18:G$27)*EXP(-dfop_k1*(B80-(H$18:H$27))),0)) -> 0 | Y80: =SUM(IF(B80>=(H$18:H$27),(1-g)*(G$18:G$27)*EXP(-dfop_k2*(B80-(H$18:H$27))),0)) -> 0 | Z80: 0.002583535917 | AA80: 0 | AB80: 0.002583535917 | AD80: =SUM(IF(B80>=(H$18:H$27),(G$18:G$27)*POWER(((B80-(H$18:H$27)))/fomc_b + 1,-fomc_a),0)) ->  | AF80: =SUM(IF(B80>=(H$18:H$27),(G$18:G$27)*(LN((B81-(H$18:H$27))/fomc_b + 1) - LN((B80-(H$18:H$27))/fomc_b + 1)),0)) ->  | AG80: =SUM(IF(B80>=(H$18:H$27),(G$18:G$27)*(POWER((B81-(H$18:H$27))/fomc_b + 1,(-fomc_a+1)) - POWER((B80-(H$18:H$27))/fomc_b + 1,(-fomc_a+1))),0)) ->  | AK80: 0 | AL80: =SUM(IF(B80>=(H$18:H$27),((B80-(H$18:H$27))<hs_tb)*(G$18:G$27)*EXP(-hs_k1*(B80-(H$18:H$27))),0)) -> 0 | AM80: =SUM(IF(B80>=(H$18:H$27),((B80-(H$18:H$27))=hs_tb)*(G$18:G$27)*EXP(-hs_k1*(B80-(H$18:H$27))),0)) -> 0 | AN80: =SUM(IF(B80>=(H$18:H$27),((B80-(H$18:H$27))>hs_tb)*(G$18:G$27)*tb_prefactor*EXP(-hs_k2*(B80-(H$18:H$27)-hs_tb)),0)) -> 0 | AO80: 0.002583535917 | AR80: 0 | AS80: 0 | AU80: =SUM(IF(B80=(H$18:H$27),(G$18:G$27)),0) -> 0 | AV80: 0.4214295069 | AW80: 0
B81: 1.4 | C81: 40.75257293 | D81: 21.05259013 | P81: =SUM(IF(B81>=(H$18:H$27),(G$18:G$27)*EXP(-sfo_k*(B81-(H$18:H$27))),0)) -> 40.75257293 | Q81: 21.05259013 | W81: 0 | X81: =SUM(IF(B81>=(H$18:H$27),g*(G$18:G$27)*EXP(-dfop_k1*(B81-(H$18:H$27))),0)) -> 0 | Y81: =SUM(IF(B81>=(H$18:H$27),(1-g)*(G$18:G$27)*EXP(-dfop_k2*(B81-(H$18:H$27))),0)) -> 0 | Z81: 0.002583535917 | AA81: 0 | AB81: 0.002583535917 | AD81: =SUM(IF(B81>=(H$18:H$27),(G$18:G$27)*POWER(((B81-(H$18:H$27)))/fomc_b + 1,-fomc_a),0)) ->  | AF81: =SUM(IF(B81>=(H$18:H$27),(G$18:G$27)*(LN((B82-(H$18:H$27))/fomc_b + 1) - LN((B81-(H$18:H$27))/fomc_b + 1)),0)) ->  | AG81: =SUM(IF(B81>=(H$18:H$27),(G$18:G$27)*(POWER((B82-(H$18:H$27))/fomc_b + 1,(-fomc_a+1)) - POWER((B81-(H$18:H$27))/fomc_b + 1,(-fomc_a+1))),0)) ->  | AK81: 0 | AL81: =SUM(IF(B81>=(H$18:H$27),((B81-(H$18:H$27))<hs_tb)*(G$18:G$27)*EXP(-hs_k1*(B81-(H$18:H$27))),0)) -> 0 | AM81: =SUM(IF(B81>=(H$18:H$27),((B81-(H$18:H$27))=hs_tb)*(G$18:G$27)*EXP(-hs_k1*(B81-(H$18:H$27))),0)) -> 0 | AN81: =SUM(IF(B81>=(H$18:H$27),((B81-(H$18:H$27))>hs_tb)*(G$18:G$27)*tb_prefactor*EXP(-hs_k2*(B81-(H$18:H$27)-hs_tb)),0)) -> 0 | AO81: 0.002583535917 | AR81: 0 | AS81: 0 | AU81: =SUM(IF(B81=(H$18:H$27),(G$18:G$27)),0) -> 0 | AV81: 0.4171593009 | AW81: 0
B82: 1.45 | C82: 40.33964056 | D82: 20.9676639 | P82: =SUM(IF(B82>=(H$18:H$27),(G$18:G$27)*EXP(-sfo_k*(B82-(H$18:H$27))),0)) -> 40.33964056 | Q82: 20.9676639 | W82: 0 | X82: =SUM(IF(B82>=(H$18:H$27),g*(G$18:G$27)*EXP(-dfop_k1*(B82-(H$18:H$27))),0)) -> 0 | Y82: =SUM(IF(B82>=(H$18:H$27),(1-g)*(G$18:G$27)*EXP(-dfop_k2*(B82-(H$18:H$27))),0)) -> 0 | Z82: 0.002583535917 | AA82: 0 | AB82: 0.002583535917 | AD82: =SUM(IF(B82>=(H$18:H$27),(G$18:G$27)*POWER(((B82-(H$18:H$27)))/fomc_b + 1,-fomc_a),0)) ->  | AF82: =SUM(IF(B82>=(H$18:H$27),(G$18:G$27)*(LN((B83-(H$18:H$27))/fomc_b + 1) - LN((B82-(H$18:H$27))/fomc_b + 1)),0)) ->  | AG82: =SUM(IF(B82>=(H$18:H$27),(G$18:G$27)*(POWER((B83-(H$18:H$27))/fomc_b + 1,(-fomc_a+1)) - POWER((B82-(H$18:H$27))/fomc_b + 1,(-fomc_a+1))),0)) ->  | AK82: 0 | AL82: =SUM(IF(B82>=(H$18:H$27),((B82-(H$18:H$27))<hs_tb)*(G$18:G$27)*EXP(-hs_k1*(B82-(H$18:H$27))),0)) -> 0 | AM82: =SUM(IF(B82>=(H$18:H$27),((B82-(H$18:H$27))=hs_tb)*(G$18:G$27)*EXP(-hs_k1*(B82-(H$18:H$27))),0)) -> 0 | AN82: =SUM(IF(B82>=(H$18:H$27),((B82-(H$18:H$27))>hs_tb)*(G$18:G$27)*tb_prefactor*EXP(-hs_k2*(B82-(H$18:H$27)-hs_tb)),0)) -> 0 | AO82: 0.002583535917 | AR82: 0 | AS82: 0 | AU82: =SUM(IF(B82=(H$18:H$27),(G$18:G$27)),0) -> 0 | AV82: 0.4129323635 | AW82: 0
B83: 1.5 | C83: 39.93089231 | D83: 20.88359819 | P83: =SUM(IF(B83>=(H$18:H$27),(G$18:G$27)*EXP(-sfo_k*(B83-(H$18:H$27))),0)) -> 39.93089231 | Q83: 20.88359819 | W83: 0 | X83: =SUM(IF(B83>=(H$18:H$27),g*(G$18:G$27)*EXP(-dfop_k1*(B83-(H$18:H$27))),0)) -> 0 | Y83: =SUM(IF(B83>=(H$18:H$27),(1-g)*(G$18:G$27)*EXP(-dfop_k2*(B83-(H$18:H$27))),0)) -> 0 | Z83: 0.002583535917 | AA83: 0 | AB83: 0.002583535917 | AD83: =SUM(IF(B83>=(H$18:H$27),(G$18:G$27)*POWER(((B83-(H$18:H$27)))/fomc_b + 1,-fomc_a),0)) ->  | AF83: =SUM(IF(B83>=(H$18:H$27),(G$18:G$27)*(LN((B84-(H$18:H$27))/fomc_b + 1) - LN((B83-(H$18:H$27))/fomc_b + 1)),0)) ->  | AG83: =SUM(IF(B83>=(H$18:H$27),(G$18:G$27)*(POWER((B84-(H$18:H$27))/fomc_b + 1,(-fomc_a+1)) - POWER((B83-(H$18:H$27))/fomc_b + 1,(-fomc_a+1))),0)) ->  | AK83: 0 | AL83: =SUM(IF(B83>=(H$18:H$27),((B83-(H$18:H$27))<hs_tb)*(G$18:G$27)*EXP(-hs_k1*(B83-(H$18:H$27))),0)) -> 0 | AM83: =SUM(IF(B83>=(H$18:H$27),((B83-(H$18:H$27))=hs_tb)*(G$18:G$27)*EXP(-hs_k1*(B83-(H$18:H$27))),0)) -> 0 | AN83: =SUM(IF(B83>=(H$18:H$27),((B83-(H$18:H$27))>hs_tb)*(G$18:G$27)*tb_prefactor*EXP(-hs_k2*(B83-(H$18:H$27)-hs_tb)),0)) -> 0 | AO83: 0.002583535917 | AR83: 0 | AS83: 0 | AU83: =SUM(IF(B83=(H$18:H$27),(G$18:G$27)),0) -> 0 | AV83: 0.4087482562 | AW83: 0
B84: 1.55 | C84: 39.52628576 | D84: 20.8003843 | P84: =SUM(IF(B84>=(H$18:H$27),(G$18:G$27)*EXP(-sfo_k*(B84-(H$18:H$27))),0)) -> 39.52628576 | Q84: 20.8003843 | W84: 0 | X84: =SUM(IF(B84>=(H$18:H$27),g*(G$18:G$27)*EXP(-dfop_k1*(B84-(H$18:H$27))),0)) -> 0 | Y84: =SUM(IF(B84>=(H$18:H$27),(1-g)*(G$18:G$27)*EXP(-dfop_k2*(B84-(H$18:H$27))),0)) -> 0 | Z84: 0.002583535917 | AA84: 0 | AB84: 0.002583535917 | AD84: =SUM(IF(B84>=(H$18:H$27),(G$18:G$27)*POWER(((B84-(H$18:H$27)))/fomc_b + 1,-fomc_a),0)) ->  | AF84: =SUM(IF(B84>=(H$18:H$27),(G$18:G$27)*(LN((B85-(H$18:H$27))/fomc_b + 1) - LN((B84-(H$18:H$27))/fomc_b + 1)),0)) ->  | AG84: =SUM(IF(B84>=(H$18:H$27),(G$18:G$27)*(POWER((B85-(H$18:H$27))/fomc_b + 1,(-fomc_a+1)) - POWER((B84-(H$18:H$27))/fomc_b + 1,(-fomc_a+1))),0)) ->  | AK84: 0 | AL84: =SUM(IF(B84>=(H$18:H$27),((B84-(H$18:H$27))<hs_tb)*(G$18:G$27)*EXP(-hs_k1*(B84-(H$18:H$27))),0)) -> 0 | AM84: =SUM(IF(B84>=(H$18:H$27),((B84-(H$18:H$27))=hs_tb)*(G$18:G$27)*EXP(-hs_k1*(B84-(H$18:H$27))),0)) -> 0 | AN84: =SUM(IF(B84>=(H$18:H$27),((B84-(H$18:H$27))>hs_tb)*(G$18:G$27)*tb_prefactor*EXP(-hs_k2*(B84-(H$18:H$27)-hs_tb)),0)) -> 0 | AO84: 0.002583535917 | AR84: 0 | AS84: 0 | AU84: =SUM(IF(B84=(H$18:H$27),(G$18:G$27)),0) -> 0 | AV84: 0.4046065451 | AW84: 0
B85: 1.6 | C85: 39.12577896 | D85: 20.71801358 | P85: =SUM(IF(B85>=(H$18:H$27),(G$18:G$27)*EXP(-sfo_k*(B85-(H$18:H$27))),0)) -> 39.12577896 | Q85: 20.71801358 | W85: 0 | X85: =SUM(IF(B85>=(H$18:H$27),g*(G$18:G$27)*EXP(-dfop_k1*(B85-(H$18:H$27))),0)) -> 0 | Y85: =SUM(IF(B85>=(H$18:H$27),(1-g)*(G$18:G$27)*EXP(-dfop_k2*(B85-(H$18:H$27))),0)) -> 0 | Z85: 0.002583535917 | AA85: 0 | AB85: 0.002583535917 | AD85: =SUM(IF(B85>=(H$18:H$27),(G$18:G$27)*POWER(((B85-(H$18:H$27)))/fomc_b + 1,-fomc_a),0)) ->  | AF85: =SUM(IF(B85>=(H$18:H$27),(G$18:G$27)*(LN((B86-(H$18:H$27))/fomc_b + 1) - LN((B85-(H$18:H$27))/fomc_b + 1)),0)) ->  | AG85: =SUM(IF(B85>=(H$18:H$27),(G$18:G$27)*(POWER((B86-(H$18:H$27))/fomc_b + 1,(-fomc_a+1)) - POWER((B85-(H$18:H$27))/fomc_b + 1,(-fomc_a+1))),0)) ->  | AK85: 0 | AL85: =SUM(IF(B85>=(H$18:H$27),((B85-(H$18:H$27))<hs_tb)*(G$18:G$27)*EXP(-hs_k1*(B85-(H$18:H$27))),0)) -> 0 | AM85: =SUM(IF(B85>=(H$18:H$27),((B85-(H$18:H$27))=hs_tb)*(G$18:G$27)*EXP(-hs_k1*(B85-(H$18:H$27))),0)) -> 0 | AN85: =SUM(IF(B85>=(H$18:H$27),((B85-(H$18:H$27))>hs_tb)*(G$18:G$27)*tb_prefactor*EXP(-hs_k2*(B85-(H$18:H$27)-hs_tb)),0)) -> 0 | AO85: 0.002583535917 | AR85: 0 | AS85: 0 | AU85: =SUM(IF(B85=(H$18:H$27),(G$18:G$27)),0) -> 0 | AV85: 0.4005068006 | AW85: 0
B86: 1.65 | C86: 38.72933036 | D86: 20.63647751 | P86: =SUM(IF(B86>=(H$18:H$27),(G$18:G$27)*EXP(-sfo_k*(B86-(H$18:H$27))),0)) -> 38.72933036 | Q86: 20.63647751 | W86: 0 | X86: =SUM(IF(B86>=(H$18:H$27),g*(G$18:G$27)*EXP(-dfop_k1*(B86-(H$18:H$27))),0)) -> 0 | Y86: =SUM(IF(B86>=(H$18:H$27),(1-g)*(G$18:G$27)*EXP(-dfop_k2*(B86-(H$18:H$27))),0)) -> 0 | Z86: 0.002583535917 | AA86: 0 | AB86: 0.002583535917 | AD86: =SUM(IF(B86>=(H$18:H$27),(G$18:G$27)*POWER(((B86-(H$18:H$27)))/fomc_b + 1,-fomc_a),0)) ->  | AF86: =SUM(IF(B86>=(H$18:H$27),(G$18:G$27)*(LN((B87-(H$18:H$27))/fomc_b + 1) - LN((B86-(H$18:H$27))/fomc_b + 1)),0)) ->  | AG86: =SUM(IF(B86>=(H$18:H$27),(G$18:G$27)*(POWER((B87-(H$18:H$27))/fomc_b + 1,(-fomc_a+1)) - POWER((B86-(H$18:H$27))/fomc_b + 1,(-fomc_a+1))),0)) ->  | AK86: 0 | AL86: =SUM(IF(B86>=(H$18:H$27),((B86-(H$18:H$27))<hs_tb)*(G$18:G$27)*EXP(-hs_k1*(B86-(H$18:H$27))),0)) -> 0 | AM86: =SUM(IF(B86>=(H$18:H$27),((B86-(H$18:H$27))=hs_tb)*(G$18:G$27)*EXP(-hs_k1*(B86-(H$18:H$27))),0)) -> 0 | AN86: =SUM(IF(B86>=(H$18:H$27),((B86-(H$18:H$27))>hs_tb)*(G$18:G$27)*tb_prefactor*EXP(-hs_k2*(B86-(H$18:H$27)-hs_tb)),0)) -> 0 | AO86: 0.002583535917 | AR86: 0 | AS86: 0 | AU86: =SUM(IF(B86=(H$18:H$27),(G$18:G$27)),0) -> 0 | AV86: 0.3964485974 | AW86: 0
B87: 1.7 | C87: 38.33689885 | D87: 20.55576761 | P87: =SUM(IF(B87>=(H$18:H$27),(G$18:G$27)*EXP(-sfo_k*(B87-(H$18:H$27))),0)) -> 38.33689885 | Q87: 20.55576761 | W87: 0 | X87: =SUM(IF(B87>=(H$18:H$27),g*(G$18:G$27)*EXP(-dfop_k1*(B87-(H$18:H$27))),0)) -> 0 | Y87: =SUM(IF(B87>=(H$18:H$27),(1-g)*(G$18:G$27)*EXP(-dfop_k2*(B87-(H$18:H$27))),0)) -> 0 | Z87: 0.002583535917 | AA87: 0 | AB87: 0.002583535917 | AD87: =SUM(IF(B87>=(H$18:H$27),(G$18:G$27)*POWER(((B87-(H$18:H$27)))/fomc_b + 1,-fomc_a),0)) ->  | AF87: =SUM(IF(B87>=(H$18:H$27),(G$18:G$27)*(LN((B88-(H$18:H$27))/fomc_b + 1) - LN((B87-(H$18:H$27))/fomc_b + 1)),0)) ->  | AG87: =SUM(IF(B87>=(H$18:H$27),(G$18:G$27)*(POWER((B88-(H$18:H$27))/fomc_b + 1,(-fomc_a+1)) - POWER((B87-(H$18:H$27))/fomc_b + 1,(-fomc_a+1))),0)) ->  | AK87: 0 | AL87: =SUM(IF(B87>=(H$18:H$27),((B87-(H$18:H$27))<hs_tb)*(G$18:G$27)*EXP(-hs_k1*(B87-(H$18:H$27))),0)) -> 0 | AM87: =SUM(IF(B87>=(H$18:H$27),((B87-(H$18:H$27))=hs_tb)*(G$18:G$27)*EXP(-hs_k1*(B87-(H$18:H$27))),0)) -> 0 | AN87: =SUM(IF(B87>=(H$18:H$27),((B87-(H$18:H$27))>hs_tb)*(G$18:G$27)*tb_prefactor*EXP(-hs_k2*(B87-(H$18:H$27)-hs_tb)),0)) -> 0 | AO87: 0.002583535917 | AR87: 0 | AS87: 0 | AU87: =SUM(IF(B87=(H$18:H$27),(G$18:G$27)),0) -> 0 | AV87: 0.3924315147 | AW87: 0
B88: 1.75 | C88: 37.94844371 | D88: 20.47587551 | P88: =SUM(IF(B88>=(H$18:H$27),(G$18:G$27)*EXP(-sfo_k*(B88-(H$18:H$27))),0)) -> 37.94844371 | Q88: 20.47587551 | W88: 0 | X88: =SUM(IF(B88>=(H$18:H$27),g*(G$18:G$27)*EXP(-dfop_k1*(B88-(H$18:H$27))),0)) -> 0 | Y88: =SUM(IF(B88>=(H$18:H$27),(1-g)*(G$18:G$27)*EXP(-dfop_k2*(B88-(H$18:H$27))),0)) -> 0 | Z88: 0.002583535917 | AA88: 0 | AB88: 0.002583535917 | AD88: =SUM(IF(B88>=(H$18:H$27),(G$18:G$27)*POWER(((B88-(H$18:H$27)))/fomc_b + 1,-fomc_a),0)) ->  | AF88: =SUM(IF(B88>=(H$18:H$27),(G$18:G$27)*(LN((B89-(H$18:H$27))/fomc_b + 1) - LN((B88-(H$18:H$27))/fomc_b + 1)),0)) ->  | AG88: =SUM(IF(B88>=(H$18:H$27),(G$18:G$27)*(POWER((B89-(H$18:H$27))/fomc_b + 1,(-fomc_a+1)) - POWER((B88-(H$18:H$27))/fomc_b + 1,(-fomc_a+1))),0)) ->  | AK88: 0 | AL88: =SUM(IF(B88>=(H$18:H$27),((B88-(H$18:H$27))<hs_tb)*(G$18:G$27)*EXP(-hs_k1*(B88-(H$18:H$27))),0)) -> 0 | AM88: =SUM(IF(B88>=(H$18:H$27),((B88-(H$18:H$27))=hs_tb)*(G$18:G$27)*EXP(-hs_k1*(B88-(H$18:H$27))),0)) -> 0 | AN88: =SUM(IF(B88>=(H$18:H$27),((B88-(H$18:H$27))>hs_tb)*(G$18:G$27)*tb_prefactor*EXP(-hs_k2*(B88-(H$18:H$27)-hs_tb)),0)) -> 0 | AO88: 0.002583535917 | AR88: 0 | AS88: 0 | AU88: =SUM(IF(B88=(H$18:H$27),(G$18:G$27)),0) -> 0 | AV88: 0.3884551358 | AW88: 0
B89: 1.8 | C89: 37.56392466 | D89: 20.39679294 | P89: =SUM(IF(B89>=(H$18:H$27),(G$18:G$27)*EXP(-sfo_k*(B89-(H$18:H$27))),0)) -> 37.56392466 | Q89: 20.39679294 | W89: 0 | X89: =SUM(IF(B89>=(H$18:H$27),g*(G$18:G$27)*EXP(-dfop_k1*(B89-(H$18:H$27))),0)) -> 0 | Y89: =SUM(IF(B89>=(H$18:H$27),(1-g)*(G$18:G$27)*EXP(-dfop_k2*(B89-(H$18:H$27))),0)) -> 0 | Z89: 0.002583535917 | AA89: 0 | AB89: 0.002583535917 | AD89: =SUM(IF(B89>=(H$18:H$27),(G$18:G$27)*POWER(((B89-(H$18:H$27)))/fomc_b + 1,-fomc_a),0)) ->  | AF89: =SUM(IF(B89>=(H$18:H$27),(G$18:G$27)*(LN((B90-(H$18:H$27))/fomc_b + 1) - LN((B89-(H$18:H$27))/fomc_b + 1)),0)) ->  | AG89: =SUM(IF(B89>=(H$18:H$27),(G$18:G$27)*(POWER((B90-(H$18:H$27))/fomc_b + 1,(-fomc_a+1)) - POWER((B89-(H$18:H$27))/fomc_b + 1,(-fomc_a+1))),0)) ->  | AK89: 0 | AL89: =SUM(IF(B89>=(H$18:H$27),((B89-(H$18:H$27))<hs_tb)*(G$18:G$27)*EXP(-hs_k1*(B89-(H$18:H$27))),0)) -> 0 | AM89: =SUM(IF(B89>=(H$18:H$27),((B89-(H$18:H$27))=hs_tb)*(G$18:G$27)*EXP(-hs_k1*(B89-(H$18:H$27))),0)) -> 0 | AN89: =SUM(IF(B89>=(H$18:H$27),((B89-(H$18:H$27))>hs_tb)*(G$18:G$27)*tb_prefactor*EXP(-hs_k2*(B89-(H$18:H$27)-hs_tb)),0)) -> 0 | AO89: 0.002583535917 | AR89: 0 | AS89: 0 | AU89: =SUM(IF(B89=(H$18:H$27),(G$18:G$27)),0) -> 0 | AV89: 0.3845190482 | AW89: 0
B90: 1.85 | C90: 37.18330182 | D90: 20.31851168 | P90: =SUM(IF(B90>=(H$18:H$27),(G$18:G$27)*EXP(-sfo_k*(B90-(H$18:H$27))),0)) -> 37.18330182 | Q90: 20.31851168 | W90: 0 | X90: =SUM(IF(B90>=(H$18:H$27),g*(G$18:G$27)*EXP(-dfop_k1*(B90-(H$18:H$27))),0)) -> 0 | Y90: =SUM(IF(B90>=(H$18:H$27),(1-g)*(G$18:G$27)*EXP(-dfop_k2*(B90-(H$18:H$27))),0)) -> 0 | Z90: 0.002583535917 | AA90: 0 | AB90: 0.002583535917 | AD90: =SUM(IF(B90>=(H$18:H$27),(G$18:G$27)*POWER(((B90-(H$18:H$27)))/fomc_b + 1,-fomc_a),0)) ->  | AF90: =SUM(IF(B90>=(H$18:H$27),(G$18:G$27)*(LN((B91-(H$18:H$27))/fomc_b + 1) - LN((B90-(H$18:H$27))/fomc_b + 1)),0)) ->  | AG90: =SUM(IF(B90>=(H$18:H$27),(G$18:G$27)*(POWER((B91-(H$18:H$27))/fomc_b + 1,(-fomc_a+1)) - POWER((B90-(H$18:H$27))/fomc_b + 1,(-fomc_a+1))),0)) ->  | AK90: 0 | AL90: =SUM(IF(B90>=(H$18:H$27),((B90-(H$18:H$27))<hs_tb)*(G$18:G$27)*EXP(-hs_k1*(B90-(H$18:H$27))),0)) -> 0 | AM90: =SUM(IF(B90>=(H$18:H$27),((B90-(H$18:H$27))=hs_tb)*(G$18:G$27)*EXP(-hs_k1*(B90-(H$18:H$27))),0)) -> 0 | AN90: =SUM(IF(B90>=(H$18:H$27),((B90-(H$18:H$27))>hs_tb)*(G$18:G$27)*tb_prefactor*EXP(-hs_k2*(B90-(H$18:H$27)-hs_tb)),0)) -> 0 | AO90: 0.002583535917 | AR90: 0 | AS90: 0 | AU90: =SUM(IF(B90=(H$18:H$27),(G$18:G$27)),0) -> 0 | AV90: 0.3806228436 | AW90: 0
B91: 1.9 | C91: 36.8065357 | D91: 20.24102362 | P91: =SUM(IF(B91>=(H$18:H$27),(G$18:G$27)*EXP(-sfo_k*(B91-(H$18:H$27))),0)) -> 36.8065357 | Q91: 20.24102362 | W91: 0 | X91: =SUM(IF(B91>=(H$18:H$27),g*(G$18:G$27)*EXP(-dfop_k1*(B91-(H$18:H$27))),0)) -> 0 | Y91: =SUM(IF(B91>=(H$18:H$27),(1-g)*(G$18:G$27)*EXP(-dfop_k2*(B91-(H$18:H$27))),0)) -> 0 | Z91: 0.002583535917 | AA91: 0 | AB91: 0.002583535917 | AD91: =SUM(IF(B91>=(H$18:H$27),(G$18:G$27)*POWER(((B91-(H$18:H$27)))/fomc_b + 1,-fomc_a),0)) ->  | AF91: =SUM(IF(B91>=(H$18:H$27),(G$18:G$27)*(LN((B92-(H$18:H$27))/fomc_b + 1) - LN((B91-(H$18:H$27))/fomc_b + 1)),0)) ->  | AG91: =SUM(IF(B91>=(H$18:H$27),(G$18:G$27)*(POWER((B92-(H$18:H$27))/fomc_b + 1,(-fomc_a+1)) - POWER((B91-(H$18:H$27))/fomc_b + 1,(-fomc_a+1))),0)) ->  | AK91: 0 | AL91: =SUM(IF(B91>=(H$18:H$27),((B91-(H$18:H$27))<hs_tb)*(G$18:G$27)*EXP(-hs_k1*(B91-(H$18:H$27))),0)) -> 0 | AM91: =SUM(IF(B91>=(H$18:H$27),((B91-(H$18:H$27))=hs_tb)*(G$18:G$27)*EXP(-hs_k1*(B91-(H$18:H$27))),0)) -> 0 | AN91: =SUM(IF(B91>=(H$18:H$27),((B91-(H$18:H$27))>hs_tb)*(G$18:G$27)*tb_prefactor*EXP(-hs_k2*(B91-(H$18:H$27)-hs_tb)),0)) -> 0 | AO91: 0.002583535917 | AR91: 0 | AS91: 0 | AU91: =SUM(IF(B91=(H$18:H$27),(G$18:G$27)),0) -> 0 | AV91: 0.376766118 | AW91: 0
B92: 1.95 | C92: 36.43358723 | D92: 20.16432073 | P92: =SUM(IF(B92>=(H$18:H$27),(G$18:G$27)*EXP(-sfo_k*(B92-(H$18:H$27))),0)) -> 36.43358723 | Q92: 20.16432073 | W92: 0 | X92: =SUM(IF(B92>=(H$18:H$27),g*(G$18:G$27)*EXP(-dfop_k1*(B92-(H$18:H$27))),0)) -> 0 | Y92: =SUM(IF(B92>=(H$18:H$27),(1-g)*(G$18:G$27)*EXP(-dfop_k2*(B92-(H$18:H$27))),0)) -> 0 | Z92: 0.002583535917 | AA92: 0 | AB92: 0.002583535917 | AD92: =SUM(IF(B92>=(H$18:H$27),(G$18:G$27)*POWER(((B92-(H$18:H$27)))/fomc_b + 1,-fomc_a),0)) ->  | AF92: =SUM(IF(B92>=(H$18:H$27),(G$18:G$27)*(LN((B93-(H$18:H$27))/fomc_b + 1) - LN((B92-(H$18:H$27))/fomc_b + 1)),0)) ->  | AG92: =SUM(IF(B92>=(H$18:H$27),(G$18:G$27)*(POWER((B93-(H$18:H$27))/fomc_b + 1,(-fomc_a+1)) - POWER((B92-(H$18:H$27))/fomc_b + 1,(-fomc_a+1))),0)) ->  | AK92: 0 | AL92: =SUM(IF(B92>=(H$18:H$27),((B92-(H$18:H$27))<hs_tb)*(G$18:G$27)*EXP(-hs_k1*(B92-(H$18:H$27))),0)) -> 0 | AM92: =SUM(IF(B92>=(H$18:H$27),((B92-(H$18:H$27))=hs_tb)*(G$18:G$27)*EXP(-hs_k1*(B92-(H$18:H$27))),0)) -> 0 | AN92: =SUM(IF(B92>=(H$18:H$27),((B92-(H$18:H$27))>hs_tb)*(G$18:G$27)*tb_prefactor*EXP(-hs_k2*(B92-(H$18:H$27)-hs_tb)),0)) -> 0 | AO92: 0.002583535917 | AR92: 0 | AS92: 0 | AU92: =SUM(IF(B92=(H$18:H$27),(G$18:G$27)),0) -> 0 | AV92: 0.3729484714 | AW92: 0
B93: 2 | C93: 36.06441772 | D93: 20.08839503 | P93: =SUM(IF(B93>=(H$18:H$27),(G$18:G$27)*EXP(-sfo_k*(B93-(H$18:H$27))),0)) -> 36.06441772 | Q93: 20.08839503 | W93: 0 | X93: =SUM(IF(B93>=(H$18:H$27),g*(G$18:G$27)*EXP(-dfop_k1*(B93-(H$18:H$27))),0)) -> 0 | Y93: =SUM(IF(B93>=(H$18:H$27),(1-g)*(G$18:G$27)*EXP(-dfop_k2*(B93-(H$18:H$27))),0)) -> 0 | Z93: 0.002583535917 | AA93: 0 | AB93: 0.002583535917 | AD93: =SUM(IF(B93>=(H$18:H$27),(G$18:G$27)*POWER(((B93-(H$18:H$27)))/fomc_b + 1,-fomc_a),0)) ->  | AF93: =SUM(IF(B93>=(H$18:H$27),(G$18:G$27)*(LN((B94-(H$18:H$27))/fomc_b + 1) - LN((B93-(H$18:H$27))/fomc_b + 1)),0)) ->  | AG93: =SUM(IF(B93>=(H$18:H$27),(G$18:G$27)*(POWER((B94-(H$18:H$27))/fomc_b + 1,(-fomc_a+1)) - POWER((B93-(H$18:H$27))/fomc_b + 1,(-fomc_a+1))),0)) ->  | AK93: 0 | AL93: =SUM(IF(B93>=(H$18:H$27),((B93-(H$18:H$27))<hs_tb)*(G$18:G$27)*EXP(-hs_k1*(B93-(H$18:H$27))),0)) -> 0 | AM93: =SUM(IF(B93>=(H$18:H$27),((B93-(H$18:H$27))=hs_tb)*(G$18:G$27)*EXP(-hs_k1*(B93-(H$18:H$27))),0)) -> 0 | AN93: =SUM(IF(B93>=(H$18:H$27),((B93-(H$18:H$27))>hs_tb)*(G$18:G$27)*tb_prefactor*EXP(-hs_k2*(B93-(H$18:H$27)-hs_tb)),0)) -> 0 | AO93: 0.002583535917 | AR93: 0 | AS93: 0 | AU93: =SUM(IF(B93=(H$18:H$27),(G$18:G$27)),0) -> 0 | AV93: 0.3691695077 | AW93: 0
B94: 2.05 | C94: 35.69898889 | D94: 20.01323867 | P94: =SUM(IF(B94>=(H$18:H$27),(G$18:G$27)*EXP(-sfo_k*(B94-(H$18:H$27))),0)) -> 35.69898889 | Q94: 20.01323867 | W94: 0 | X94: =SUM(IF(B94>=(H$18:H$27),g*(G$18:G$27)*EXP(-dfop_k1*(B94-(H$18:H$27))),0)) -> 0 | Y94: =SUM(IF(B94>=(H$18:H$27),(1-g)*(G$18:G$27)*EXP(-dfop_k2*(B94-(H$18:H$27))),0)) -> 0 | Z94: 0.002583535917 | AA94: 0 | AB94: 0.002583535917 | AD94: =SUM(IF(B94>=(H$18:H$27),(G$18:G$27)*POWER(((B94-(H$18:H$27)))/fomc_b + 1,-fomc_a),0)) ->  | AF94: =SUM(IF(B94>=(H$18:H$27),(G$18:G$27)*(LN((B95-(H$18:H$27))/fomc_b + 1) - LN((B94-(H$18:H$27))/fomc_b + 1)),0)) ->  | AG94: =SUM(IF(B94>=(H$18:H$27),(G$18:G$27)*(POWER((B95-(H$18:H$27))/fomc_b + 1,(-fomc_a+1)) - POWER((B94-(H$18:H$27))/fomc_b + 1,(-fomc_a+1))),0)) ->  | AK94: 0 | AL94: =SUM(IF(B94>=(H$18:H$27),((B94-(H$18:H$27))<hs_tb)*(G$18:G$27)*EXP(-hs_k1*(B94-(H$18:H$27))),0)) -> 0 | AM94: =SUM(IF(B94>=(H$18:H$27),((B94-(H$18:H$27))=hs_tb)*(G$18:G$27)*EXP(-hs_k1*(B94-(H$18:H$27))),0)) -> 0 | AN94: =SUM(IF(B94>=(H$18:H$27),((B94-(H$18:H$27))>hs_tb)*(G$18:G$27)*tb_prefactor*EXP(-hs_k2*(B94-(H$18:H$27)-hs_tb)),0)) -> 0 | AO94: 0.002583535917 | AR94: 0 | AS94: 0 | AU94: =SUM(IF(B94=(H$18:H$27),(G$18:G$27)),0) -> 0 | AV94: 0.365428835 | AW94: 0
B95: 2.1 | C95: 35.33726282 | D95: 19.93884384 | P95: =SUM(IF(B95>=(H$18:H$27),(G$18:G$27)*EXP(-sfo_k*(B95-(H$18:H$27))),0)) -> 35.33726282 | Q95: 19.93884384 | W95: 0 | X95: =SUM(IF(B95>=(H$18:H$27),g*(G$18:G$27)*EXP(-dfop_k1*(B95-(H$18:H$27))),0)) -> 0 | Y95: =SUM(IF(B95>=(H$18:H$27),(1-g)*(G$18:G$27)*EXP(-dfop_k2*(B95-(H$18:H$27))),0)) -> 0 | Z95: 0.002583535917 | AA95: 0 | AB95: 0.002583535917 | AD95: =SUM(IF(B95>=(H$18:H$27),(G$18:G$27)*POWER(((B95-(H$18:H$27)))/fomc_b + 1,-fomc_a),0)) ->  | AF95: =SUM(IF(B95>=(H$18:H$27),(G$18:G$27)*(LN((B96-(H$18:H$27))/fomc_b + 1) - LN((B95-(H$18:H$27))/fomc_b + 1)),0)) ->  | AG95: =SUM(IF(B95>=(H$18:H$27),(G$18:G$27)*(POWER((B96-(H$18:H$27))/fomc_b + 1,(-fomc_a+1)) - POWER((B95-(H$18:H$27))/fomc_b + 1,(-fomc_a+1))),0)) ->  | AK95: 0 | AL95: =SUM(IF(B95>=(H$18:H$27),((B95-(H$18:H$27))<hs_tb)*(G$18:G$27)*EXP(-hs_k1*(B95-(H$18:H$27))),0)) -> 0 | AM95: =SUM(IF(B95>=(H$18:H$27),((B95-(H$18:H$27))=hs_tb)*(G$18:G$27)*EXP(-hs_k1*(B95-(H$18:H$27))),0)) -> 0 | AN95: =SUM(IF(B95>=(H$18:H$27),((B95-(H$18:H$27))>hs_tb)*(G$18:G$27)*tb_prefactor*EXP(-hs_k2*(B95-(H$18:H$27)-hs_tb)),0)) -> 0 | AO95: 0.002583535917 | AR95: 0 | AS95: 0 | AU95: =SUM(IF(B95=(H$18:H$27),(G$18:G$27)),0) -> 0 | AV95: 0.3617260653 | AW95: 0
B96: 2.15 | C96: 34.97920201 | D96: 19.86520283 | P96: =SUM(IF(B96>=(H$18:H$27),(G$18:G$27)*EXP(-sfo_k*(B96-(H$18:H$27))),0)) -> 34.97920201 | Q96: 19.86520283 | W96: 0 | X96: =SUM(IF(B96>=(H$18:H$27),g*(G$18:G$27)*EXP(-dfop_k1*(B96-(H$18:H$27))),0)) -> 0 | Y96: =SUM(IF(B96>=(H$18:H$27),(1-g)*(G$18:G$27)*EXP(-dfop_k2*(B96-(H$18:H$27))),0)) -> 0 | Z96: 0.002583535917 | AA96: 0 | AB96: 0.002583535917 | AD96: =SUM(IF(B96>=(H$18:H$27),(G$18:G$27)*POWER(((B96-(H$18:H$27)))/fomc_b + 1,-fomc_a),0)) ->  | AF96: =SUM(IF(B96>=(H$18:H$27),(G$18:G$27)*(LN((B97-(H$18:H$27))/fomc_b + 1) - LN((B96-(H$18:H$27))/fomc_b + 1)),0)) ->  | AG96: =SUM(IF(B96>=(H$18:H$27),(G$18:G$27)*(POWER((B97-(H$18:H$27))/fomc_b + 1,(-fomc_a+1)) - POWER((B96-(H$18:H$27))/fomc_b + 1,(-fomc_a+1))),0)) ->  | AK96: 0 | AL96: =SUM(IF(B96>=(H$18:H$27),((B96-(H$18:H$27))<hs_tb)*(G$18:G$27)*EXP(-hs_k1*(B96-(H$18:H$27))),0)) -> 0 | AM96: =SUM(IF(B96>=(H$18:H$27),((B96-(H$18:H$27))=hs_tb)*(G$18:G$27)*EXP(-hs_k1*(B96-(H$18:H$27))),0)) -> 0 | AN96: =SUM(IF(B96>=(H$18:H$27),((B96-(H$18:H$27))>hs_tb)*(G$18:G$27)*tb_prefactor*EXP(-hs_k2*(B96-(H$18:H$27)-hs_tb)),0)) -> 0 | AO96: 0.002583535917 | AR96: 0 | AS96: 0 | AU96: =SUM(IF(B96=(H$18:H$27),(G$18:G$27)),0) -> 0 | AV96: 0.3580608145 | AW96: 0
B97: 2.2 | C97: 34.62476931 | D97: 19.79230801 | P97: =SUM(IF(B97>=(H$18:H$27),(G$18:G$27)*EXP(-sfo_k*(B97-(H$18:H$27))),0)) -> 34.62476931 | Q97: 19.79230801 | W97: 0 | X97: =SUM(IF(B97>=(H$18:H$27),g*(G$18:G$27)*EXP(-dfop_k1*(B97-(H$18:H$27))),0)) -> 0 | Y97: =SUM(IF(B97>=(H$18:H$27),(1-g)*(G$18:G$27)*EXP(-dfop_k2*(B97-(H$18:H$27))),0)) -> 0 | Z97: 0.002583535917 | AA97: 0 | AB97: 0.002583535917 | AD97: =SUM(IF(B97>=(H$18:H$27),(G$18:G$27)*POWER(((B97-(H$18:H$27)))/fomc_b + 1,-fomc_a),0)) ->  | AF97: =SUM(IF(B97>=(H$18:H$27),(G$18:G$27)*(LN((B98-(H$18:H$27))/fomc_b + 1) - LN((B97-(H$18:H$27))/fomc_b + 1)),0)) ->  | AG97: =SUM(IF(B97>=(H$18:H$27),(G$18:G$27)*(POWER((B98-(H$18:H$27))/fomc_b + 1,(-fomc_a+1)) - POWER((B97-(H$18:H$27))/fomc_b + 1,(-fomc_a+1))),0)) ->  | AK97: 0 | AL97: =SUM(IF(B97>=(H$18:H$27),((B97-(H$18:H$27))<hs_tb)*(G$18:G$27)*EXP(-hs_k1*(B97-(H$18:H$27))),0)) -> 0 | AM97: =SUM(IF(B97>=(H$18:H$27),((B97-(H$18:H$27))=hs_tb)*(G$18:G$27)*EXP(-hs_k1*(B97-(H$18:H$27))),0)) -> 0 | AN97: =SUM(IF(B97>=(H$18:H$27),((B97-(H$18:H$27))>hs_tb)*(G$18:G$27)*tb_prefactor*EXP(-hs_k2*(B97-(H$18:H$27)-hs_tb)),0)) -> 0 | AO97: 0.002583535917 | AR97: 0 | AS97: 0 | AU97: =SUM(IF(B97=(H$18:H$27),(G$18:G$27)),0) -> 0 | AV97: 0.3544327025 | AW97: 0
B98: 2.25 | C98: 34.27392795 | D98: 19.7201518 | P98: =SUM(IF(B98>=(H$18:H$27),(G$18:G$27)*EXP(-sfo_k*(B98-(H$18:H$27))),0)) -> 34.27392795 | Q98: 19.7201518 | W98: 0 | X98: =SUM(IF(B98>=(H$18:H$27),g*(G$18:G$27)*EXP(-dfop_k1*(B98-(H$18:H$27))),0)) -> 0 | Y98: =SUM(IF(B98>=(H$18:H$27),(1-g)*(G$18:G$27)*EXP(-dfop_k2*(B98-(H$18:H$27))),0)) -> 0 | Z98: 0.002583535917 | AA98: 0 | AB98: 0.002583535917 | AD98: =SUM(IF(B98>=(H$18:H$27),(G$18:G$27)*POWER(((B98-(H$18:H$27)))/fomc_b + 1,-fomc_a),0)) ->  | AF98: =SUM(IF(B98>=(H$18:H$27),(G$18:G$27)*(LN((B99-(H$18:H$27))/fomc_b + 1) - LN((B98-(H$18:H$27))/fomc_b + 1)),0)) ->  | AG98: =SUM(IF(B98>=(H$18:H$27),(G$18:G$27)*(POWER((B99-(H$18:H$27))/fomc_b + 1,(-fomc_a+1)) - POWER((B98-(H$18:H$27))/fomc_b + 1,(-fomc_a+1))),0)) ->  | AK98: 0 | AL98: =SUM(IF(B98>=(H$18:H$27),((B98-(H$18:H$27))<hs_tb)*(G$18:G$27)*EXP(-hs_k1*(B98-(H$18:H$27))),0)) -> 0 | AM98: =SUM(IF(B98>=(H$18:H$27),((B98-(H$18:H$27))=hs_tb)*(G$18:G$27)*EXP(-hs_k1*(B98-(H$18:H$27))),0)) -> 0 | AN98: =SUM(IF(B98>=(H$18:H$27),((B98-(H$18:H$27))>hs_tb)*(G$18:G$27)*tb_prefactor*EXP(-hs_k2*(B98-(H$18:H$27)-hs_tb)),0)) -> 0 | AO98: 0.002583535917 | AR98: 0 | AS98: 0 | AU98: =SUM(IF(B98=(H$18:H$27),(G$18:G$27)),0) -> 0 | AV98: 0.350841353 | AW98: 0
B99: 2.3 | C99: 33.92664156 | D99: 19.64872672 | P99: =SUM(IF(B99>=(H$18:H$27),(G$18:G$27)*EXP(-sfo_k*(B99-(H$18:H$27))),0)) -> 33.92664156 | Q99: 19.64872672 | W99: 0 | X99: =SUM(IF(B99>=(H$18:H$27),g*(G$18:G$27)*EXP(-dfop_k1*(B99-(H$18:H$27))),0)) -> 0 | Y99: =SUM(IF(B99>=(H$18:H$27),(1-g)*(G$18:G$27)*EXP(-dfop_k2*(B99-(H$18:H$27))),0)) -> 0 | Z99: 0.002583535917 | AA99: 0 | AB99: 0.002583535917 | AD99: =SUM(IF(B99>=(H$18:H$27),(G$18:G$27)*POWER(((B99-(H$18:H$27)))/fomc_b + 1,-fomc_a),0)) ->  | AF99: =SUM(IF(B99>=(H$18:H$27),(G$18:G$27)*(LN((B100-(H$18:H$27))/fomc_b + 1) - LN((B99-(H$18:H$27))/fomc_b + 1)),0)) ->  | AG99: =SUM(IF(B99>=(H$18:H$27),(G$18:G$27)*(POWER((B100-(H$18:H$27))/fomc_b + 1,(-fomc_a+1)) - POWER((B99-(H$18:H$27))/fomc_b + 1,(-fomc_a+1))),0)) ->  | AK99: 0 | AL99: =SUM(IF(B99>=(H$18:H$27),((B99-(H$18:H$27))<hs_tb)*(G$18:G$27)*EXP(-hs_k1*(B99-(H$18:H$27))),0)) -> 0 | AM99: =SUM(IF(B99>=(H$18:H$27),((B99-(H$18:H$27))=hs_tb)*(G$18:G$27)*EXP(-hs_k1*(B99-(H$18:H$27))),0)) -> 0 | AN99: =SUM(IF(B99>=(H$18:H$27),((B99-(H$18:H$27))>hs_tb)*(G$18:G$27)*tb_prefactor*EXP(-hs_k2*(B99-(H$18:H$27)-hs_tb)),0)) -> 0 | AO99: 0.002583535917 | AR99: 0 | AS99: 0 | AU99: =SUM(IF(B99=(H$18:H$27),(G$18:G$27)),0) -> 0 | AV99: 0.3472863934 | AW99: 0
B100: 2.35 | C100: 33.5828741 | D100: 19.57802537 | P100: =SUM(IF(B100>=(H$18:H$27),(G$18:G$27)*EXP(-sfo_k*(B100-(H$18:H$27))),0)) -> 33.5828741 | Q100: 19.57802537 | W100: 0 | X100: =SUM(IF(B100>=(H$18:H$27),g*(G$18:G$27)*EXP(-dfop_k1*(B100-(H$18:H$27))),0)) -> 0 | Y100: =SUM(IF(B100>=(H$18:H$27),(1-g)*(G$18:G$27)*EXP(-dfop_k2*(B100-(H$18:H$27))),0)) -> 0 | Z100: 0.002583535917 | AA100: 0 | AB100: 0.002583535917 | AD100: =SUM(IF(B100>=(H$18:H$27),(G$18:G$27)*POWER(((B100-(H$18:H$27)))/fomc_b + 1,-fomc_a),0)) ->  | AF100: =SUM(IF(B100>=(H$18:H$27),(G$18:G$27)*(LN((B101-(H$18:H$27))/fomc_b + 1) - LN((B100-(H$18:H$27))/fomc_b + 1)),0)) ->  | AG100: =SUM(IF(B100>=(H$18:H$27),(G$18:G$27)*(POWER((B101-(H$18:H$27))/fomc_b + 1,(-fomc_a+1)) - POWER((B100-(H$18:H$27))/fomc_b + 1,(-fomc_a+1))),0)) ->  | AK100: 0 | AL100: =SUM(IF(B100>=(H$18:H$27),((B100-(H$18:H$27))<hs_tb)*(G$18:G$27)*EXP(-hs_k1*(B100-(H$18:H$27))),0)) -> 0 | AM100: =SUM(IF(B100>=(H$18:H$27),((B100-(H$18:H$27))=hs_tb)*(G$18:G$27)*EXP(-hs_k1*(B100-(H$18:H$27))),0)) -> 0 | AN100: =SUM(IF(B100>=(H$18:H$27),((B100-(H$18:H$27))>hs_tb)*(G$18:G$27)*tb_prefactor*EXP(-hs_k2*(B100-(H$18:H$27)-hs_tb)),0)) -> 0 | AO100: 0.002583535917 | AR100: 0 | AS100: 0 | AU100: =SUM(IF(B100=(H$18:H$27),(G$18:G$27)),0) -> 0 | AV100: 0.3437674551 | AW100: 0
B101: 2.4 | C101: 33.24258993 | D101: 19.50804042 | P101: =SUM(IF(B101>=(H$18:H$27),(G$18:G$27)*EXP(-sfo_k*(B101-(H$18:H$27))),0)) -> 33.24258993 | Q101: 19.50804042 | W101: 0 | X101: =SUM(IF(B101>=(H$18:H$27),g*(G$18:G$27)*EXP(-dfop_k1*(B101-(H$18:H$27))),0)) -> 0 | Y101: =SUM(IF(B101>=(H$18:H$27),(1-g)*(G$18:G$27)*EXP(-dfop_k2*(B101-(H$18:H$27))),0)) -> 0 | Z101: 0.002583535917 | AA101: 0 | AB101: 0.002583535917 | AD101: =SUM(IF(B101>=(H$18:H$27),(G$18:G$27)*POWER(((B101-(H$18:H$27)))/fomc_b + 1,-fomc_a),0)) ->  | AF101: =SUM(IF(B101>=(H$18:H$27),(G$18:G$27)*(LN((B102-(H$18:H$27))/fomc_b + 1) - LN((B101-(H$18:H$27))/fomc_b + 1)),0)) ->  | AG101: =SUM(IF(B101>=(H$18:H$27),(G$18:G$27)*(POWER((B102-(H$18:H$27))/fomc_b + 1,(-fomc_a+1)) - POWER((B101-(H$18:H$27))/fomc_b + 1,(-fomc_a+1))),0)) ->  | AK101: 0 | AL101: =SUM(IF(B101>=(H$18:H$27),((B101-(H$18:H$27))<hs_tb)*(G$18:G$27)*EXP(-hs_k1*(B101-(H$18:H$27))),0)) -> 0 | AM101: =SUM(IF(B101>=(H$18:H$27),((B101-(H$18:H$27))=hs_tb)*(G$18:G$27)*EXP(-hs_k1*(B101-(H$18:H$27))),0)) -> 0 | AN101: =SUM(IF(B101>=(H$18:H$27),((B101-(H$18:H$27))>hs_tb)*(G$18:G$27)*tb_prefactor*EXP(-hs_k2*(B101-(H$18:H$27)-hs_tb)),0)) -> 0 | AO101: 0.002583535917 | AR101: 0 | AS101: 0 | AU101: =SUM(IF(B101=(H$18:H$27),(G$18:G$27)),0) -> 0 | AV101: 0.340284173 | AW101: 0
B102: 2.45 | C102: 32.90575375 | D102: 19.4387646 | P102: =SUM(IF(B102>=(H$18:H$27),(G$18:G$27)*EXP(-sfo_k*(B102-(H$18:H$27))),0)) -> 32.90575375 | Q102: 19.4387646 | W102: 0 | X102: =SUM(IF(B102>=(H$18:H$27),g*(G$18:G$27)*EXP(-dfop_k1*(B102-(H$18:H$27))),0)) -> 0 | Y102: =SUM(IF(B102>=(H$18:H$27),(1-g)*(G$18:G$27)*EXP(-dfop_k2*(B102-(H$18:H$27))),0)) -> 0 | Z102: 0.002583535917 | AA102: 0 | AB102: 0.002583535917 | AD102: =SUM(IF(B102>=(H$18:H$27),(G$18:G$27)*POWER(((B102-(H$18:H$27)))/fomc_b + 1,-fomc_a),0)) ->  | AF102: =SUM(IF(B102>=(H$18:H$27),(G$18:G$27)*(LN((B103-(H$18:H$27))/fomc_b + 1) - LN((B102-(H$18:H$27))/fomc_b + 1)),0)) ->  | AG102: =SUM(IF(B102>=(H$18:H$27),(G$18:G$27)*(POWER((B103-(H$18:H$27))/fomc_b + 1,(-fomc_a+1)) - POWER((B102-(H$18:H$27))/fomc_b + 1,(-fomc_a+1))),0)) ->  | AK102: 0 | AL102: =SUM(IF(B102>=(H$18:H$27),((B102-(H$18:H$27))<hs_tb)*(G$18:G$27)*EXP(-hs_k1*(B102-(H$18:H$27))),0)) -> 0 | AM102: =SUM(IF(B102>=(H$18:H$27),((B102-(H$18:H$27))=hs_tb)*(G$18:G$27)*EXP(-hs_k1*(B102-(H$18:H$27))),0)) -> 0 | AN102: =SUM(IF(B102>=(H$18:H$27),((B102-(H$18:H$27))>hs_tb)*(G$18:G$27)*tb_prefactor*EXP(-hs_k2*(B102-(H$18:H$27)-hs_tb)),0)) -> 0 | AO102: 0.002583535917 | AR102: 0 | AS102: 0 | AU102: =SUM(IF(B102=(H$18:H$27),(G$18:G$27)),0) -> 0 | AV102: 0.3368361858 | AW102: 0
B103: 2.5 | C103: 32.57233061 | D103: 19.37019073 | P103: =SUM(IF(B103>=(H$18:H$27),(G$18:G$27)*EXP(-sfo_k*(B103-(H$18:H$27))),0)) -> 32.57233061 | Q103: 19.37019073 | W103: 0 | X103: =SUM(IF(B103>=(H$18:H$27),g*(G$18:G$27)*EXP(-dfop_k1*(B103-(H$18:H$27))),0)) -> 0 | Y103: =SUM(IF(B103>=(H$18:H$27),(1-g)*(G$18:G$27)*EXP(-dfop_k2*(B103-(H$18:H$27))),0)) -> 0 | Z103: 0.002583535917 | AA103: 0 | AB103: 0.002583535917 | AD103: =SUM(IF(B103>=(H$18:H$27),(G$18:G$27)*POWER(((B103-(H$18:H$27)))/fomc_b + 1,-fomc_a),0)) ->  | AF103: =SUM(IF(B103>=(H$18:H$27),(G$18:G$27)*(LN((B104-(H$18:H$27))/fomc_b + 1) - LN((B103-(H$18:H$27))/fomc_b + 1)),0)) ->  | AG103: =SUM(IF(B103>=(H$18:H$27),(G$18:G$27)*(POWER((B104-(H$18:H$27))/fomc_b + 1,(-fomc_a+1)) - POWER((B103-(H$18:H$27))/fomc_b + 1,(-fomc_a+1))),0)) ->  | AK103: 0 | AL103: =SUM(IF(B103>=(H$18:H$27),((B103-(H$18:H$27))<hs_tb)*(G$18:G$27)*EXP(-hs_k1*(B103-(H$18:H$27))),0)) -> 0 | AM103: =SUM(IF(B103>=(H$18:H$27),((B103-(H$18:H$27))=hs_tb)*(G$18:G$27)*EXP(-hs_k1*(B103-(H$18:H$27))),0)) -> 0 | AN103: =SUM(IF(B103>=(H$18:H$27),((B103-(H$18:H$27))>hs_tb)*(G$18:G$27)*tb_prefactor*EXP(-hs_k2*(B103-(H$18:H$27)-hs_tb)),0)) -> 0 | AO103: 0.002583535917 | AR103: 0 | AS103: 0 | AU103: =SUM(IF(B103=(H$18:H$27),(G$18:G$27)),0) -> 0 | AV103: 0.333423136 | AW103: 0
B104: 2.55 | C104: 32.24228594 | D104: 19.30231169 | P104: =SUM(IF(B104>=(H$18:H$27),(G$18:G$27)*EXP(-sfo_k*(B104-(H$18:H$27))),0)) -> 32.24228594 | Q104: 19.30231169 | W104: 0 | X104: =SUM(IF(B104>=(H$18:H$27),g*(G$18:G$27)*EXP(-dfop_k1*(B104-(H$18:H$27))),0)) -> 0 | Y104: =SUM(IF(B104>=(H$18:H$27),(1-g)*(G$18:G$27)*EXP(-dfop_k2*(B104-(H$18:H$27))),0)) -> 0 | Z104: 0.002583535917 | AA104: 0 | AB104: 0.002583535917 | AD104: =SUM(IF(B104>=(H$18:H$27),(G$18:G$27)*POWER(((B104-(H$18:H$27)))/fomc_b + 1,-fomc_a),0)) ->  | AF104: =SUM(IF(B104>=(H$18:H$27),(G$18:G$27)*(LN((B105-(H$18:H$27))/fomc_b + 1) - LN((B104-(H$18:H$27))/fomc_b + 1)),0)) ->  | AG104: =SUM(IF(B104>=(H$18:H$27),(G$18:G$27)*(POWER((B105-(H$18:H$27))/fomc_b + 1,(-fomc_a+1)) - POWER((B104-(H$18:H$27))/fomc_b + 1,(-fomc_a+1))),0)) ->  | AK104: 0 | AL104: =SUM(IF(B104>=(H$18:H$27),((B104-(H$18:H$27))<hs_tb)*(G$18:G$27)*EXP(-hs_k1*(B104-(H$18:H$27))),0)) -> 0 | AM104: =SUM(IF(B104>=(H$18:H$27),((B104-(H$18:H$27))=hs_tb)*(G$18:G$27)*EXP(-hs_k1*(B104-(H$18:H$27))),0)) -> 0 | AN104: =SUM(IF(B104>=(H$18:H$27),((B104-(H$18:H$27))>hs_tb)*(G$18:G$27)*tb_prefactor*EXP(-hs_k2*(B104-(H$18:H$27)-hs_tb)),0)) -> 0 | AO104: 0.002583535917 | AR104: 0 | AS104: 0 | AU104: =SUM(IF(B104=(H$18:H$27),(G$18:G$27)),0) -> 0 | AV104: 0.3300446695 | AW104: 0
B105: 2.6 | C105: 31.9155855 | D105: 19.23512045 | P105: =SUM(IF(B105>=(H$18:H$27),(G$18:G$27)*EXP(-sfo_k*(B105-(H$18:H$27))),0)) -> 31.9155855 | Q105: 19.23512045 | W105: 0 | X105: =SUM(IF(B105>=(H$18:H$27),g*(G$18:G$27)*EXP(-dfop_k1*(B105-(H$18:H$27))),0)) -> 0 | Y105: =SUM(IF(B105>=(H$18:H$27),(1-g)*(G$18:G$27)*EXP(-dfop_k2*(B105-(H$18:H$27))),0)) -> 0 | Z105: 0.002583535917 | AA105: 0 | AB105: 0.002583535917 | AD105: =SUM(IF(B105>=(H$18:H$27),(G$18:G$27)*POWER(((B105-(H$18:H$27)))/fomc_b + 1,-fomc_a),0)) ->  | AF105: =SUM(IF(B105>=(H$18:H$27),(G$18:G$27)*(LN((B106-(H$18:H$27))/fomc_b + 1) - LN((B105-(H$18:H$27))/fomc_b + 1)),0)) ->  | AG105: =SUM(IF(B105>=(H$18:H$27),(G$18:G$27)*(POWER((B106-(H$18:H$27))/fomc_b + 1,(-fomc_a+1)) - POWER((B105-(H$18:H$27))/fomc_b + 1,(-fomc_a+1))),0)) ->  | AK105: 0 | AL105: =SUM(IF(B105>=(H$18:H$27),((B105-(H$18:H$27))<hs_tb)*(G$18:G$27)*EXP(-hs_k1*(B105-(H$18:H$27))),0)) -> 0 | AM105: =SUM(IF(B105>=(H$18:H$27),((B105-(H$18:H$27))=hs_tb)*(G$18:G$27)*EXP(-hs_k1*(B105-(H$18:H$27))),0)) -> 0 | AN105: =SUM(IF(B105>=(H$18:H$27),((B105-(H$18:H$27))>hs_tb)*(G$18:G$27)*tb_prefactor*EXP(-hs_k2*(B105-(H$18:H$27)-hs_tb)),0)) -> 0 | AO105: 0.002583535917 | AR105: 0 | AS105: 0 | AU105: =SUM(IF(B105=(H$18:H$27),(G$18:G$27)),0) -> 0 | AV105: 0.3267004358 | AW105: 0
B106: 2.65 | C106: 31.59219542 | D106: 19.16861004 | P106: =SUM(IF(B106>=(H$18:H$27),(G$18:G$27)*EXP(-sfo_k*(B106-(H$18:H$27))),0)) -> 31.59219542 | Q106: 19.16861004 | W106: 0 | X106: =SUM(IF(B106>=(H$18:H$27),g*(G$18:G$27)*EXP(-dfop_k1*(B106-(H$18:H$27))),0)) -> 0 | Y106: =SUM(IF(B106>=(H$18:H$27),(1-g)*(G$18:G$27)*EXP(-dfop_k2*(B106-(H$18:H$27))),0)) -> 0 | Z106: 0.002583535917 | AA106: 0 | AB106: 0.002583535917 | AD106: =SUM(IF(B106>=(H$18:H$27),(G$18:G$27)*POWER(((B106-(H$18:H$27)))/fomc_b + 1,-fomc_a),0)) ->  | AF106: =SUM(IF(B106>=(H$18:H$27),(G$18:G$27)*(LN((B107-(H$18:H$27))/fomc_b + 1) - LN((B106-(H$18:H$27))/fomc_b + 1)),0)) ->  | AG106: =SUM(IF(B106>=(H$18:H$27),(G$18:G$27)*(POWER((B107-(H$18:H$27))/fomc_b + 1,(-fomc_a+1)) - POWER((B106-(H$18:H$27))/fomc_b + 1,(-fomc_a+1))),0)) ->  | AK106: 0 | AL106: =SUM(IF(B106>=(H$18:H$27),((B106-(H$18:H$27))<hs_tb)*(G$18:G$27)*EXP(-hs_k1*(B106-(H$18:H$27))),0)) -> 0 | AM106: =SUM(IF(B106>=(H$18:H$27),((B106-(H$18:H$27))=hs_tb)*(G$18:G$27)*EXP(-hs_k1*(B106-(H$18:H$27))),0)) -> 0 | AN106: =SUM(IF(B106>=(H$18:H$27),((B106-(H$18:H$27))>hs_tb)*(G$18:G$27)*tb_prefactor*EXP(-hs_k2*(B106-(H$18:H$27)-hs_tb)),0)) -> 0 | AO106: 0.002583535917 | AR106: 0 | AS106: 0 | AU106: =SUM(IF(B106=(H$18:H$27),(G$18:G$27)),0) -> 0 | AV106: 0.3233900882 | AW106: 0
B107: 2.7 | C107: 31.27208213 | D107: 19.10277355 | P107: =SUM(IF(B107>=(H$18:H$27),(G$18:G$27)*EXP(-sfo_k*(B107-(H$18:H$27))),0)) -> 31.27208213 | Q107: 19.10277355 | W107: 0 | X107: =SUM(IF(B107>=(H$18:H$27),g*(G$18:G$27)*EXP(-dfop_k1*(B107-(H$18:H$27))),0)) -> 0 | Y107: =SUM(IF(B107>=(H$18:H$27),(1-g)*(G$18:G$27)*EXP(-dfop_k2*(B107-(H$18:H$27))),0)) -> 0 | Z107: 0.002583535917 | AA107: 0 | AB107: 0.002583535917 | AD107: =SUM(IF(B107>=(H$18:H$27),(G$18:G$27)*POWER(((B107-(H$18:H$27)))/fomc_b + 1,-fomc_a),0)) ->  | AF107: =SUM(IF(B107>=(H$18:H$27),(G$18:G$27)*(LN((B108-(H$18:H$27))/fomc_b + 1) - LN((B107-(H$18:H$27))/fomc_b + 1)),0)) ->  | AG107: =SUM(IF(B107>=(H$18:H$27),(G$18:G$27)*(POWER((B108-(H$18:H$27))/fomc_b + 1,(-fomc_a+1)) - POWER((B107-(H$18:H$27))/fomc_b + 1,(-fomc_a+1))),0)) ->  | AK107: 0 | AL107: =SUM(IF(B107>=(H$18:H$27),((B107-(H$18:H$27))<hs_tb)*(G$18:G$27)*EXP(-hs_k1*(B107-(H$18:H$27))),0)) -> 0 | AM107: =SUM(IF(B107>=(H$18:H$27),((B107-(H$18:H$27))=hs_tb)*(G$18:G$27)*EXP(-hs_k1*(B107-(H$18:H$27))),0)) -> 0 | AN107: =SUM(IF(B107>=(H$18:H$27),((B107-(H$18:H$27))>hs_tb)*(G$18:G$27)*tb_prefactor*EXP(-hs_k2*(B107-(H$18:H$27)-hs_tb)),0)) -> 0 | AO107: 0.002583535917 | AR107: 0 | AS107: 0 | AU107: =SUM(IF(B107=(H$18:H$27),(G$18:G$27)),0) -> 0 | AV107: 0.3201132832 | AW107: 0
B108: 2.75 | C108: 30.95521245 | D108: 19.03760417 | P108: =SUM(IF(B108>=(H$18:H$27),(G$18:G$27)*EXP(-sfo_k*(B108-(H$18:H$27))),0)) -> 30.95521245 | Q108: 19.03760417 | W108: 0 | X108: =SUM(IF(B108>=(H$18:H$27),g*(G$18:G$27)*EXP(-dfop_k1*(B108-(H$18:H$27))),0)) -> 0 | Y108: =SUM(IF(B108>=(H$18:H$27),(1-g)*(G$18:G$27)*EXP(-dfop_k2*(B108-(H$18:H$27))),0)) -> 0 | Z108: 0.002583535917 | AA108: 0 | AB108: 0.002583535917 | AD108: =SUM(IF(B108>=(H$18:H$27),(G$18:G$27)*POWER(((B108-(H$18:H$27)))/fomc_b + 1,-fomc_a),0)) ->  | AF108: =SUM(IF(B108>=(H$18:H$27),(G$18:G$27)*(LN((B109-(H$18:H$27))/fomc_b + 1) - LN((B108-(H$18:H$27))/fomc_b + 1)),0)) ->  | AG108: =SUM(IF(B108>=(H$18:H$27),(G$18:G$27)*(POWER((B109-(H$18:H$27))/fomc_b + 1,(-fomc_a+1)) - POWER((B108-(H$18:H$27))/fomc_b + 1,(-fomc_a+1))),0)) ->  | AK108: 0 | AL108: =SUM(IF(B108>=(H$18:H$27),((B108-(H$18:H$27))<hs_tb)*(G$18:G$27)*EXP(-hs_k1*(B108-(H$18:H$27))),0)) -> 0 | AM108: =SUM(IF(B108>=(H$18:H$27),((B108-(H$18:H$27))=hs_tb)*(G$18:G$27)*EXP(-hs_k1*(B108-(H$18:H$27))),0)) -> 0 | AN108: =SUM(IF(B108>=(H$18:H$27),((B108-(H$18:H$27))>hs_tb)*(G$18:G$27)*tb_prefactor*EXP(-hs_k2*(B108-(H$18:H$27)-hs_tb)),0)) -> 0 | AO108: 0.002583535917 | AR108: 0 | AS108: 0 | AU108: =SUM(IF(B108=(H$18:H$27),(G$18:G$27)),0) -> 0 | AV108: 0.3168696811 | AW108: 0
B109: 2.8 | C109: 30.64155351 | D109: 18.97309512 | P109: =SUM(IF(B109>=(H$18:H$27),(G$18:G$27)*EXP(-sfo_k*(B109-(H$18:H$27))),0)) -> 30.64155351 | Q109: 18.97309512 | W109: 0 | X109: =SUM(IF(B109>=(H$18:H$27),g*(G$18:G$27)*EXP(-dfop_k1*(B109-(H$18:H$27))),0)) -> 0 | Y109: =SUM(IF(B109>=(H$18:H$27),(1-g)*(G$18:G$27)*EXP(-dfop_k2*(B109-(H$18:H$27))),0)) -> 0 | Z109: 0.002583535917 | AA109: 0 | AB109: 0.002583535917 | AD109: =SUM(IF(B109>=(H$18:H$27),(G$18:G$27)*POWER(((B109-(H$18:H$27)))/fomc_b + 1,-fomc_a),0)) ->  | AF109: =SUM(IF(B109>=(H$18:H$27),(G$18:G$27)*(LN((B110-(H$18:H$27))/fomc_b + 1) - LN((B109-(H$18:H$27))/fomc_b + 1)),0)) ->  | AG109: =SUM(IF(B109>=(H$18:H$27),(G$18:G$27)*(POWER((B110-(H$18:H$27))/fomc_b + 1,(-fomc_a+1)) - POWER((B109-(H$18:H$27))/fomc_b + 1,(-fomc_a+1))),0)) ->  | AK109: 0 | AL109: =SUM(IF(B109>=(H$18:H$27),((B109-(H$18:H$27))<hs_tb)*(G$18:G$27)*EXP(-hs_k1*(B109-(H$18:H$27))),0)) -> 0 | AM109: =SUM(IF(B109>=(H$18:H$27),((B109-(H$18:H$27))=hs_tb)*(G$18:G$27)*EXP(-hs_k1*(B109-(H$18:H$27))),0)) -> 0 | AN109: =SUM(IF(B109>=(H$18:H$27),((B109-(H$18:H$27))>hs_tb)*(G$18:G$27)*tb_prefactor*EXP(-hs_k2*(B109-(H$18:H$27)-hs_tb)),0)) -> 0 | AO109: 0.002583535917 | AR109: 0 | AS109: 0 | AU109: =SUM(IF(B109=(H$18:H$27),(G$18:G$27)),0) -> 0 | AV109: 0.3136589452 | AW109: 0
B110: 2.85 | C110: 30.33107276 | D110: 18.90923973 | P110: =SUM(IF(B110>=(H$18:H$27),(G$18:G$27)*EXP(-sfo_k*(B110-(H$18:H$27))),0)) -> 30.33107276 | Q110: 18.90923973 | W110: 0 | X110: =SUM(IF(B110>=(H$18:H$27),g*(G$18:G$27)*EXP(-dfop_k1*(B110-(H$18:H$27))),0)) -> 0 | Y110: =SUM(IF(B110>=(H$18:H$27),(1-g)*(G$18:G$27)*EXP(-dfop_k2*(B110-(H$18:H$27))),0)) -> 0 | Z110: 0.002583535917 | AA110: 0 | AB110: 0.002583535917 | AD110: =SUM(IF(B110>=(H$18:H$27),(G$18:G$27)*POWER(((B110-(H$18:H$27)))/fomc_b + 1,-fomc_a),0)) ->  | AF110: =SUM(IF(B110>=(H$18:H$27),(G$18:G$27)*(LN((B111-(H$18:H$27))/fomc_b + 1) - LN((B110-(H$18:H$27))/fomc_b + 1)),0)) ->  | AG110: =SUM(IF(B110>=(H$18:H$27),(G$18:G$27)*(POWER((B111-(H$18:H$27))/fomc_b + 1,(-fomc_a+1)) - POWER((B110-(H$18:H$27))/fomc_b + 1,(-fomc_a+1))),0)) ->  | AK110: 0 | AL110: =SUM(IF(B110>=(H$18:H$27),((B110-(H$18:H$27))<hs_tb)*(G$18:G$27)*EXP(-hs_k1*(B110-(H$18:H$27))),0)) -> 0 | AM110: =SUM(IF(B110>=(H$18:H$27),((B110-(H$18:H$27))=hs_tb)*(G$18:G$27)*EXP(-hs_k1*(B110-(H$18:H$27))),0)) -> 0 | AN110: =SUM(IF(B110>=(H$18:H$27),((B110-(H$18:H$27))>hs_tb)*(G$18:G$27)*tb_prefactor*EXP(-hs_k2*(B110-(H$18:H$27)-hs_tb)),0)) -> 0 | AO110: 0.002583535917 | AR110: 0 | AS110: 0 | AU110: =SUM(IF(B110=(H$18:H$27),(G$18:G$27)),0) -> 0 | AV110: 0.3104807427 | AW110: 0
B111: 2.9 | C111: 30.02373802 | D111: 18.84603136 | P111: =SUM(IF(B111>=(H$18:H$27),(G$18:G$27)*EXP(-sfo_k*(B111-(H$18:H$27))),0)) -> 30.02373802 | Q111: 18.84603136 | W111: 0 | X111: =SUM(IF(B111>=(H$18:H$27),g*(G$18:G$27)*EXP(-dfop_k1*(B111-(H$18:H$27))),0)) -> 0 | Y111: =SUM(IF(B111>=(H$18:H$27),(1-g)*(G$18:G$27)*EXP(-dfop_k2*(B111-(H$18:H$27))),0)) -> 0 | Z111: 0.002583535917 | AA111: 0 | AB111: 0.002583535917 | AD111: =SUM(IF(B111>=(H$18:H$27),(G$18:G$27)*POWER(((B111-(H$18:H$27)))/fomc_b + 1,-fomc_a),0)) ->  | AF111: =SUM(IF(B111>=(H$18:H$27),(G$18:G$27)*(LN((B112-(H$18:H$27))/fomc_b + 1) - LN((B111-(H$18:H$27))/fomc_b + 1)),0)) ->  | AG111: =SUM(IF(B111>=(H$18:H$27),(G$18:G$27)*(POWER((B112-(H$18:H$27))/fomc_b + 1,(-fomc_a+1)) - POWER((B111-(H$18:H$27))/fomc_b + 1,(-fomc_a+1))),0)) ->  | AK111: 0 | AL111: =SUM(IF(B111>=(H$18:H$27),((B111-(H$18:H$27))<hs_tb)*(G$18:G$27)*EXP(-hs_k1*(B111-(H$18:H$27))),0)) -> 0 | AM111: =SUM(IF(B111>=(H$18:H$27),((B111-(H$18:H$27))=hs_tb)*(G$18:G$27)*EXP(-hs_k1*(B111-(H$18:H$27))),0)) -> 0 | AN111: =SUM(IF(B111>=(H$18:H$27),((B111-(H$18:H$27))>hs_tb)*(G$18:G$27)*tb_prefactor*EXP(-hs_k2*(B111-(H$18:H$27)-hs_tb)),0)) -> 0 | AO111: 0.002583535917 | AR111: 0 | AS111: 0 | AU111: =SUM(IF(B111=(H$18:H$27),(G$18:G$27)),0) -> 0 | AV111: 0.3073347439 | AW111: 0
B112: 2.95 | C112: 29.7195174 | D112: 18.78346346 | P112: =SUM(IF(B112>=(H$18:H$27),(G$18:G$27)*EXP(-sfo_k*(B112-(H$18:H$27))),0)) -> 29.7195174 | Q112: 18.78346346 | W112: 0 | X112: =SUM(IF(B112>=(H$18:H$27),g*(G$18:G$27)*EXP(-dfop_k1*(B112-(H$18:H$27))),0)) -> 0 | Y112: =SUM(IF(B112>=(H$18:H$27),(1-g)*(G$18:G$27)*EXP(-dfop_k2*(B112-(H$18:H$27))),0)) -> 0 | Z112: 0.002583535917 | AA112: 0 | AB112: 0.002583535917 | AD112: =SUM(IF(B112>=(H$18:H$27),(G$18:G$27)*POWER(((B112-(H$18:H$27)))/fomc_b + 1,-fomc_a),0)) ->  | AF112: =SUM(IF(B112>=(H$18:H$27),(G$18:G$27)*(LN((B113-(H$18:H$27))/fomc_b + 1) - LN((B112-(H$18:H$27))/fomc_b + 1)),0)) ->  | AG112: =SUM(IF(B112>=(H$18:H$27),(G$18:G$27)*(POWER((B113-(H$18:H$27))/fomc_b + 1,(-fomc_a+1)) - POWER((B112-(H$18:H$27))/fomc_b + 1,(-fomc_a+1))),0)) ->  | AK112: 0 | AL112: =SUM(IF(B112>=(H$18:H$27),((B112-(H$18:H$27))<hs_tb)*(G$18:G$27)*EXP(-hs_k1*(B112-(H$18:H$27))),0)) -> 0 | AM112: =SUM(IF(B112>=(H$18:H$27),((B112-(H$18:H$27))=hs_tb)*(G$18:G$27)*EXP(-hs_k1*(B112-(H$18:H$27))),0)) -> 0 | AN112: =SUM(IF(B112>=(H$18:H$27),((B112-(H$18:H$27))>hs_tb)*(G$18:G$27)*tb_prefactor*EXP(-hs_k2*(B112-(H$18:H$27)-hs_tb)),0)) -> 0 | AO112: 0.002583535917 | AR112: 0 | AS112: 0 | AU112: =SUM(IF(B112=(H$18:H$27),(G$18:G$27)),0) -> 0 | AV112: 0.3042206224 | AW112: 0
B113: 3 | C113: 29.41837934 | D113: 18.72152953 | P113: =SUM(IF(B113>=(H$18:H$27),(G$18:G$27)*EXP(-sfo_k*(B113-(H$18:H$27))),0)) -> 29.41837934 | Q113: 18.72152953 | W113: 0 | X113: =SUM(IF(B113>=(H$18:H$27),g*(G$18:G$27)*EXP(-dfop_k1*(B113-(H$18:H$27))),0)) -> 0 | Y113: =SUM(IF(B113>=(H$18:H$27),(1-g)*(G$18:G$27)*EXP(-dfop_k2*(B113-(H$18:H$27))),0)) -> 0 | Z113: 0.002583535917 | AA113: 0 | AB113: 0.002583535917 | AD113: =SUM(IF(B113>=(H$18:H$27),(G$18:G$27)*POWER(((B113-(H$18:H$27)))/fomc_b + 1,-fomc_a),0)) ->  | AF113: =SUM(IF(B113>=(H$18:H$27),(G$18:G$27)*(LN((B114-(H$18:H$27))/fomc_b + 1) - LN((B113-(H$18:H$27))/fomc_b + 1)),0)) ->  | AG113: =SUM(IF(B113>=(H$18:H$27),(G$18:G$27)*(POWER((B114-(H$18:H$27))/fomc_b + 1,(-fomc_a+1)) - POWER((B113-(H$18:H$27))/fomc_b + 1,(-fomc_a+1))),0)) ->  | AK113: 0 | AL113: =SUM(IF(B113>=(H$18:H$27),((B113-(H$18:H$27))<hs_tb)*(G$18:G$27)*EXP(-hs_k1*(B113-(H$18:H$27))),0)) -> 0 | AM113: =SUM(IF(B113>=(H$18:H$27),((B113-(H$18:H$27))=hs_tb)*(G$18:G$27)*EXP(-hs_k1*(B113-(H$18:H$27))),0)) -> 0 | AN113: =SUM(IF(B113>=(H$18:H$27),((B113-(H$18:H$27))>hs_tb)*(G$18:G$27)*tb_prefactor*EXP(-hs_k2*(B113-(H$18:H$27)-hs_tb)),0)) -> 0 | AO113: 0.002583535917 | AR113: 0 | AS113: 0 | AU113: =SUM(IF(B113=(H$18:H$27),(G$18:G$27)),0) -> 0 | AV113: 0.3011380553 | AW113: 0
B114: 3.05 | C114: 29.12029262 | D114: 18.66022317 | P114: =SUM(IF(B114>=(H$18:H$27),(G$18:G$27)*EXP(-sfo_k*(B114-(H$18:H$27))),0)) -> 29.12029262 | Q114: 18.66022317 | W114: 0 | X114: =SUM(IF(B114>=(H$18:H$27),g*(G$18:G$27)*EXP(-dfop_k1*(B114-(H$18:H$27))),0)) -> 0 | Y114: =SUM(IF(B114>=(H$18:H$27),(1-g)*(G$18:G$27)*EXP(-dfop_k2*(B114-(H$18:H$27))),0)) -> 0 | Z114: 0.002583535917 | AA114: 0 | AB114: 0.002583535917 | AD114: =SUM(IF(B114>=(H$18:H$27),(G$18:G$27)*POWER(((B114-(H$18:H$27)))/fomc_b + 1,-fomc_a),0)) ->  | AF114: =SUM(IF(B114>=(H$18:H$27),(G$18:G$27)*(LN((B115-(H$18:H$27))/fomc_b + 1) - LN((B114-(H$18:H$27))/fomc_b + 1)),0)) ->  | AG114: =SUM(IF(B114>=(H$18:H$27),(G$18:G$27)*(POWER((B115-(H$18:H$27))/fomc_b + 1,(-fomc_a+1)) - POWER((B114-(H$18:H$27))/fomc_b + 1,(-fomc_a+1))),0)) ->  | AK114: 0 | AL114: =SUM(IF(B114>=(H$18:H$27),((B114-(H$18:H$27))<hs_tb)*(G$18:G$27)*EXP(-hs_k1*(B114-(H$18:H$27))),0)) -> 0 | AM114: =SUM(IF(B114>=(H$18:H$27),((B114-(H$18:H$27))=hs_tb)*(G$18:G$27)*EXP(-hs_k1*(B114-(H$18:H$27))),0)) -> 0 | AN114: =SUM(IF(B114>=(H$18:H$27),((B114-(H$18:H$27))>hs_tb)*(G$18:G$27)*tb_prefactor*EXP(-hs_k2*(B114-(H$18:H$27)-hs_tb)),0)) -> 0 | AO114: 0.002583535917 | AR114: 0 | AS114: 0 | AU114: =SUM(IF(B114=(H$18:H$27),(G$18:G$27)),0) -> 0 | AV114: 0.2980867228 | AW114: 0
B115: 3.1 | C115: 28.82522631 | D115: 18.599538 | P115: =SUM(IF(B115>=(H$18:H$27),(G$18:G$27)*EXP(-sfo_k*(B115-(H$18:H$27))),0)) -> 28.82522631 | Q115: 18.599538 | W115: 0 | X115: =SUM(IF(B115>=(H$18:H$27),g*(G$18:G$27)*EXP(-dfop_k1*(B115-(H$18:H$27))),0)) -> 0 | Y115: =SUM(IF(B115>=(H$18:H$27),(1-g)*(G$18:G$27)*EXP(-dfop_k2*(B115-(H$18:H$27))),0)) -> 0 | Z115: 0.002583535917 | AA115: 0 | AB115: 0.002583535917 | AD115: =SUM(IF(B115>=(H$18:H$27),(G$18:G$27)*POWER(((B115-(H$18:H$27)))/fomc_b + 1,-fomc_a),0)) ->  | AF115: =SUM(IF(B115>=(H$18:H$27),(G$18:G$27)*(LN((B116-(H$18:H$27))/fomc_b + 1) - LN((B115-(H$18:H$27))/fomc_b + 1)),0)) ->  | AG115: =SUM(IF(B115>=(H$18:H$27),(G$18:G$27)*(POWER((B116-(H$18:H$27))/fomc_b + 1,(-fomc_a+1)) - POWER((B115-(H$18:H$27))/fomc_b + 1,(-fomc_a+1))),0)) ->  | AK115: 0 | AL115: =SUM(IF(B115>=(H$18:H$27),((B115-(H$18:H$27))<hs_tb)*(G$18:G$27)*EXP(-hs_k1*(B115-(H$18:H$27))),0)) -> 0 | AM115: =SUM(IF(B115>=(H$18:H$27),((B115-(H$18:H$27))=hs_tb)*(G$18:G$27)*EXP(-hs_k1*(B115-(H$18:H$27))),0)) -> 0 | AN115: =SUM(IF(B115>=(H$18:H$27),((B115-(H$18:H$27))>hs_tb)*(G$18:G$27)*tb_prefactor*EXP(-hs_k2*(B115-(H$18:H$27)-hs_tb)),0)) -> 0 | AO115: 0.002583535917 | AR115: 0 | AS115: 0 | AU115: =SUM(IF(B115=(H$18:H$27),(G$18:G$27)),0) -> 0 | AV115: 0.2950663085 | AW115: 0
B116: 3.15 | C116: 28.53314981 | D116: 18.53946773 | P116: =SUM(IF(B116>=(H$18:H$27),(G$18:G$27)*EXP(-sfo_k*(B116-(H$18:H$27))),0)) -> 28.53314981 | Q116: 18.53946773 | W116: 0 | X116: =SUM(IF(B116>=(H$18:H$27),g*(G$18:G$27)*EXP(-dfop_k1*(B116-(H$18:H$27))),0)) -> 0 | Y116: =SUM(IF(B116>=(H$18:H$27),(1-g)*(G$18:G$27)*EXP(-dfop_k2*(B116-(H$18:H$27))),0)) -> 0 | Z116: 0.002583535917 | AA116: 0 | AB116: 0.002583535917 | AD116: =SUM(IF(B116>=(H$18:H$27),(G$18:G$27)*POWER(((B116-(H$18:H$27)))/fomc_b + 1,-fomc_a),0)) ->  | AF116: =SUM(IF(B116>=(H$18:H$27),(G$18:G$27)*(LN((B117-(H$18:H$27))/fomc_b + 1) - LN((B116-(H$18:H$27))/fomc_b + 1)),0)) ->  | AG116: =SUM(IF(B116>=(H$18:H$27),(G$18:G$27)*(POWER((B117-(H$18:H$27))/fomc_b + 1,(-fomc_a+1)) - POWER((B116-(H$18:H$27))/fomc_b + 1,(-fomc_a+1))),0)) ->  | AK116: 0 | AL116: =SUM(IF(B116>=(H$18:H$27),((B116-(H$18:H$27))<hs_tb)*(G$18:G$27)*EXP(-hs_k1*(B116-(H$18:H$27))),0)) -> 0 | AM116: =SUM(IF(B116>=(H$18:H$27),((B116-(H$18:H$27))=hs_tb)*(G$18:G$27)*EXP(-hs_k1*(B116-(H$18:H$27))),0)) -> 0 | AN116: =SUM(IF(B116>=(H$18:H$27),((B116-(H$18:H$27))>hs_tb)*(G$18:G$27)*tb_prefactor*EXP(-hs_k2*(B116-(H$18:H$27)-hs_tb)),0)) -> 0 | AO116: 0.002583535917 | AR116: 0 | AS116: 0 | AU116: =SUM(IF(B116=(H$18:H$27),(G$18:G$27)),0) -> 0 | AV116: 0.2920764991 | AW116: 0
B117: 3.2 | C117: =INDIRECT(ADDRESS(ROW($A117),VLOOKUP(CalcType,$J$25:$L$28,2,FALSE))) -> 28.24403283 | D117: =INDIRECT(ADDRESS(ROW($A117),VLOOKUP(CalcType,$J$25:$L$28,3,FALSE))) -> 18.48000614 | P117: =SUM(IF(B117>=(H$18:H$27),(G$18:G$27)*EXP(-sfo_k*(B117-(H$18:H$27))),0)) -> 28.24403283 | Q117: =SUM(OFFSET(P117,0,0,n_TWA_steps,1))*sfo_intfac/int_TWA -> 18.48000614 | W117: 0 | X117: =SUM(IF(B117>=(H$18:H$27),g*(G$18:G$27)*EXP(-dfop_k1*(B117-(H$18:H$27))),0)) -> 0 | Y117: =SUM(IF(B117>=(H$18:H$27),(1-g)*(G$18:G$27)*EXP(-dfop_k2*(B117-(H$18:H$27))),0)) -> 0 | Z117: =SUM(AA117:AB117) -> 0.002583535917 | AA117: =SUM(OFFSET(X117,0,0,n_TWA_steps,1))*dfop_intfac1/int_TWA -> 0 | AB117: =SUM(OFFSET(Y117,0,0,n_TWA_steps,1))*dfop_intfac2/int_TWA -> 0.002583535917 | AD117: =SUM(IF(B117>=(H$18:H$27),(G$18:G$27)*POWER(((B117-(H$18:H$27)))/fomc_b + 1,-fomc_a),0)) ->  | AE117: =SUM(OFFSET(AE117,0,IF(fomc_a=1,1,2),n_TWA_steps,1))*fomc_intfac/int_TWA ->  | AF117: =SUM(IF(B117>=(H$18:H$27),(G$18:G$27)*(LN((B118-(H$18:H$27))/fomc_b + 1) - LN((B117-(H$18:H$27))/fomc_b + 1)),0)) ->  | AG117: =SUM(IF(B117>=(H$18:H$27),(G$18:G$27)*(POWER((B118-(H$18:H$27))/fomc_b + 1,(-fomc_a+1)) - POWER((B117-(H$18:H$27))/fomc_b + 1,(-fomc_a+1))),0)) ->  | AK117: =SUM(AL117:AN117) -> 0 | AL117: =SUM(IF(B117>=(H$18:H$27),((B117-(H$18:H$27))<hs_tb)*(G$18:G$27)*EXP(-hs_k1*(B117-(H$18:H$27))),0)) -> 0 | AM117: =SUM(IF(B117>=(H$18:H$27),((B117-(H$18:H$27))=hs_tb)*(G$18:G$27)*EXP(-hs_k1*(B117-(H$18:H$27))),0)) -> 0 | AN117: =SUM(IF(B117>=(H$18:H$27),((B117-(H$18:H$27))>hs_tb)*(G$18:G$27)*tb_prefactor*EXP(-hs_k2*(B117-(H$18:H$27)-hs_tb)),0)) -> 0 | AO117: =(SUM(OFFSET(AL117,0,0,n_TWA_steps,1))*hs_intfac1 + SUM(OFFSET(AM117,0,0,n_TWA_steps,1))*hs_intfac2+ SUM(OFFSET(AN117,0,0,n_TWA_steps,1))*hs_intfac2)/int_TWA -> 0.002583535917 | AR117: 0 | AS117: =(AR117+AR118)*dt/2 -> 0 | AT117: =SUM(OFFSET(AS117,0,0,n_TWA_steps_met,1))/int_TWA ->  | AU117: =SUM(IF(B117=(H$18:H$27),(G$18:G$27)),0) -> 0 | AV117: 0.2891169843 | AW117: 0
B118: =ROUND(B117+1/K$19,2) -> 3.25 | C118: 27.95784537 | D118: 18.42114705 | F118: =IF($F$7="NOT USED","",AT118) ->  | P118: =SUM(IF(B118>=(H$18:H$27),(G$18:G$27)*EXP(-sfo_k*(B118-(H$18:H$27))),0)) -> 27.95784537 | Q118: 18.42114705 | W118: =SUM(X118:Y118) -> 0 | X118: =SUM(IF(B118>=(H$18:H$27),g*(G$18:G$27)*EXP(-dfop_k1*(B118-(H$18:H$27))),0)) -> 0 | Y118: =SUM(IF(B118>=(H$18:H$27),(1-g)*(G$18:G$27)*EXP(-dfop_k2*(B118-(H$18:H$27))),0)) -> 0 | Z118: 0.002583535917 | AA118: 0 | AB118: 0.002583535917 | AD118: =SUM(IF(B118>=(H$18:H$27),(G$18:G$27)*POWER(((B118-(H$18:H$27)))/fomc_b + 1,-fomc_a),0)) ->  | AF118: =SUM(IF(B118>=(H$18:H$27),(G$18:G$27)*(LN((B119-(H$18:H$27))/fomc_b + 1) - LN((B118-(H$18:H$27))/fomc_b + 1)),0)) ->  | AG118: =SUM(IF(B118>=(H$18:H$27),(G$18:G$27)*(POWER((B119-(H$18:H$27))/fomc_b + 1,(-fomc_a+1)) - POWER((B118-(H$18:H$27))/fomc_b + 1,(-fomc_a+1))),0)) ->  | AK118: 0 | AL118: =SUM(IF(B118>=(H$18:H$27),((B118-(H$18:H$27))<hs_tb)*(G$18:G$27)*EXP(-hs_k1*(B118-(H$18:H$27))),0)) -> 0 | AM118: =SUM(IF(B118>=(H$18:H$27),((B118-(H$18:H$27))=hs_tb)*(G$18:G$27)*EXP(-hs_k1*(B118-(H$18:H$27))),0)) -> 0 | AN118: =SUM(IF(B118>=(H$18:H$27),((B118-(H$18:H$27))>hs_tb)*(G$18:G$27)*tb_prefactor*EXP(-hs_k2*(B118-(H$18:H$27)-hs_tb)),0)) -> 0 | AO118: 0.002583535917 | AR118: =AR117*EXP(-$AS$14*dt)+AW118 -> 0 | AS118: 0 | AU118: =SUM(IF(B118=(H$18:H$27),(G$18:G$27)),0) -> 0 | AV118: =INDIRECT(ADDRESS(ROW($A117),VLOOKUP(CalcType,$J$25:$L$28,2,FALSE)))-INDIRECT(ADDRESS(ROW($A118),VLOOKUP(CalcType,$J$25:$L$28,2,FALSE)))+AU118 -> 0.2861874574 | AW118: =AV118*$AS$18*$AS$19*IF($AS$21,1,0) -> 0
B119: 3.3 | C119: 27.67455776 | D119: 18.36288436 | E119: =IF($F$7="NOT USED","",AR119) ->  | P119: =SUM(IF(B119>=(H$18:H$27),(G$18:G$27)*EXP(-sfo_k*(B119-(H$18:H$27))),0)) -> 27.67455776 | Q119: 18.36288436 | W119: 0 | X119: =SUM(IF(B119>=(H$18:H$27),g*(G$18:G$27)*EXP(-dfop_k1*(B119-(H$18:H$27))),0)) -> 0 | Y119: =SUM(IF(B119>=(H$18:H$27),(1-g)*(G$18:G$27)*EXP(-dfop_k2*(B119-(H$18:H$27))),0)) -> 0 | Z119: 0.002583535917 | AA119: 0 | AB119: 0.002583535917 | AD119: =SUM(IF(B119>=(H$18:H$27),(G$18:G$27)*POWER(((B119-(H$18:H$27)))/fomc_b + 1,-fomc_a),0)) ->  | AF119: =SUM(IF(B119>=(H$18:H$27),(G$18:G$27)*(LN((B120-(H$18:H$27))/fomc_b + 1) - LN((B119-(H$18:H$27))/fomc_b + 1)),0)) ->  | AG119: =SUM(IF(B119>=(H$18:H$27),(G$18:G$27)*(POWER((B120-(H$18:H$27))/fomc_b + 1,(-fomc_a+1)) - POWER((B119-(H$18:H$27))/fomc_b + 1,(-fomc_a+1))),0)) ->  | AK119: 0 | AL119: =SUM(IF(B119>=(H$18:H$27),((B119-(H$18:H$27))<hs_tb)*(G$18:G$27)*EXP(-hs_k1*(B119-(H$18:H$27))),0)) -> 0 | AM119: =SUM(IF(B119>=(H$18:H$27),((B119-(H$18:H$27))=hs_tb)*(G$18:G$27)*EXP(-hs_k1*(B119-(H$18:H$27))),0)) -> 0 | AN119: =SUM(IF(B119>=(H$18:H$27),((B119-(H$18:H$27))>hs_tb)*(G$18:G$27)*tb_prefactor*EXP(-hs_k2*(B119-(H$18:H$27)-hs_tb)),0)) -> 0 | AO119: 0.002583535917 | AR119: 0 | AS119: 0 | AU119: =SUM(IF(B119=(H$18:H$27),(G$18:G$27)),0) -> 0 | AV119: 0.2832876144 | AW119: 0
B120: 3.35 | C120: 27.3941406 | D120: 18.30521203 | P120: =SUM(IF(B120>=(H$18:H$27),(G$18:G$27)*EXP(-sfo_k*(B120-(H$18:H$27))),0)) -> 27.3941406 | Q120: 18.30521203 | W120: 0 | X120: =SUM(IF(B120>=(H$18:H$27),g*(G$18:G$27)*EXP(-dfop_k1*(B120-(H$18:H$27))),0)) -> 0 | Y120: =SUM(IF(B120>=(H$18:H$27),(1-g)*(G$18:G$27)*EXP(-dfop_k2*(B120-(H$18:H$27))),0)) -> 0 | Z120: 0.002583535917 | AA120: 0 | AB120: 0.002583535917 | AD120: =SUM(IF(B120>=(H$18:H$27),(G$18:G$27)*POWER(((B120-(H$18:H$27)))/fomc_b + 1,-fomc_a),0)) ->  | AF120: =SUM(IF(B120>=(H$18:H$27),(G$18:G$27)*(LN((B121-(H$18:H$27))/fomc_b + 1) - LN((B120-(H$18:H$27))/fomc_b + 1)),0)) ->  | AG120: =SUM(IF(B120>=(H$18:H$27),(G$18:G$27)*(POWER((B121-(H$18:H$27))/fomc_b + 1,(-fomc_a+1)) - POWER((B120-(H$18:H$27))/fomc_b + 1,(-fomc_a+1))),0)) ->  | AK120: 0 | AL120: =SUM(IF(B120>=(H$18:H$27),((B120-(H$18:H$27))<hs_tb)*(G$18:G$27)*EXP(-hs_k1*(B120-(H$18:H$27))),0)) -> 0 | AM120: =SUM(IF(B120>=(H$18:H$27),((B120-(H$18:H$27))=hs_tb)*(G$18:G$27)*EXP(-hs_k1*(B120-(H$18:H$27))),0)) -> 0 | AN120: =SUM(IF(B120>=(H$18:H$27),((B120-(H$18:H$27))>hs_tb)*(G$18:G$27)*tb_prefactor*EXP(-hs_k2*(B120-(H$18:H$27)-hs_tb)),0)) -> 0 | AO120: 0.002583535917 | AR120: 0 | AS120: 0 | AU120: =SUM(IF(B120=(H$18:H$27),(G$18:G$27)),0) -> 0 | AV120: 0.2804171546 | AW120: 0
B121: 3.4 | C121: 27.11656482 | D121: 18.24812407 | P121: =SUM(IF(B121>=(H$18:H$27),(G$18:G$27)*EXP(-sfo_k*(B121-(H$18:H$27))),0)) -> 27.11656482 | Q121: 18.24812407 | W121: 0 | X121: =SUM(IF(B121>=(H$18:H$27),g*(G$18:G$27)*EXP(-dfop_k1*(B121-(H$18:H$27))),0)) -> 0 | Y121: =SUM(IF(B121>=(H$18:H$27),(1-g)*(G$18:G$27)*EXP(-dfop_k2*(B121-(H$18:H$27))),0)) -> 0 | Z121: 0.002583535917 | AA121: 0 | AB121: 0.002583535917 | AD121: =SUM(IF(B121>=(H$18:H$27),(G$18:G$27)*POWER(((B121-(H$18:H$27)))/fomc_b + 1,-fomc_a),0)) ->  | AF121: =SUM(IF(B121>=(H$18:H$27),(G$18:G$27)*(LN((B122-(H$18:H$27))/fomc_b + 1) - LN((B121-(H$18:H$27))/fomc_b + 1)),0)) ->  | AG121: =SUM(IF(B121>=(H$18:H$27),(G$18:G$27)*(POWER((B122-(H$18:H$27))/fomc_b + 1,(-fomc_a+1)) - POWER((B121-(H$18:H$27))/fomc_b + 1,(-fomc_a+1))),0)) ->  | AK121: 0 | AL121: =SUM(IF(B121>=(H$18:H$27),((B121-(H$18:H$27))<hs_tb)*(G$18:G$27)*EXP(-hs_k1*(B121-(H$18:H$27))),0)) -> 0 | AM121: =SUM(IF(B121>=(H$18:H$27),((B121-(H$18:H$27))=hs_tb)*(G$18:G$27)*EXP(-hs_k1*(B121-(H$18:H$27))),0)) -> 0 | AN121: =SUM(IF(B121>=(H$18:H$27),((B121-(H$18:H$27))>hs_tb)*(G$18:G$27)*tb_prefactor*EXP(-hs_k2*(B121-(H$18:H$27)-hs_tb)),0)) -> 0 | AO121: 0.002583535917 | AR121: 0 | AS121: 0 | AU121: =SUM(IF(B121=(H$18:H$27),(G$18:G$27)),0) -> 0 | AV121: 0.2775757802 | AW121: 0
B122: 3.45 | C122: 26.84180162 | D122: 18.19161457 | P122: =SUM(IF(B122>=(H$18:H$27),(G$18:G$27)*EXP(-sfo_k*(B122-(H$18:H$27))),0)) -> 26.84180162 | Q122: 18.19161457 | W122: 0 | X122: =SUM(IF(B122>=(H$18:H$27),g*(G$18:G$27)*EXP(-dfop_k1*(B122-(H$18:H$27))),0)) -> 0 | Y122: =SUM(IF(B122>=(H$18:H$27),(1-g)*(G$18:G$27)*EXP(-dfop_k2*(B122-(H$18:H$27))),0)) -> 0 | Z122: 0.002583535917 | AA122: 0 | AB122: 0.002583535917 | AD122: =SUM(IF(B122>=(H$18:H$27),(G$18:G$27)*POWER(((B122-(H$18:H$27)))/fomc_b + 1,-fomc_a),0)) ->  | AF122: =SUM(IF(B122>=(H$18:H$27),(G$18:G$27)*(LN((B123-(H$18:H$27))/fomc_b + 1) - LN((B122-(H$18:H$27))/fomc_b + 1)),0)) ->  | AG122: =SUM(IF(B122>=(H$18:H$27),(G$18:G$27)*(POWER((B123-(H$18:H$27))/fomc_b + 1,(-fomc_a+1)) - POWER((B122-(H$18:H$27))/fomc_b + 1,(-fomc_a+1))),0)) ->  | AK122: 0 | AL122: =SUM(IF(B122>=(H$18:H$27),((B122-(H$18:H$27))<hs_tb)*(G$18:G$27)*EXP(-hs_k1*(B122-(H$18:H$27))),0)) -> 0 | AM122: =SUM(IF(B122>=(H$18:H$27),((B122-(H$18:H$27))=hs_tb)*(G$18:G$27)*EXP(-hs_k1*(B122-(H$18:H$27))),0)) -> 0 | AN122: =SUM(IF(B122>=(H$18:H$27),((B122-(H$18:H$27))>hs_tb)*(G$18:G$27)*tb_prefactor*EXP(-hs_k2*(B122-(H$18:H$27)-hs_tb)),0)) -> 0 | AO122: 0.002583535917 | AR122: 0 | AS122: 0 | AU122: =SUM(IF(B122=(H$18:H$27),(G$18:G$27)),0) -> 0 | AV122: 0.2747631964 | AW122: 0
B123: 3.5 | C123: 26.56982251 | D123: 18.13567766 | P123: =SUM(IF(B123>=(H$18:H$27),(G$18:G$27)*EXP(-sfo_k*(B123-(H$18:H$27))),0)) -> 26.56982251 | Q123: 18.13567766 | W123: 0 | X123: =SUM(IF(B123>=(H$18:H$27),g*(G$18:G$27)*EXP(-dfop_k1*(B123-(H$18:H$27))),0)) -> 0 | Y123: =SUM(IF(B123>=(H$18:H$27),(1-g)*(G$18:G$27)*EXP(-dfop_k2*(B123-(H$18:H$27))),0)) -> 0 | Z123: 0.002583535917 | AA123: 0 | AB123: 0.002583535917 | AD123: =SUM(IF(B123>=(H$18:H$27),(G$18:G$27)*POWER(((B123-(H$18:H$27)))/fomc_b + 1,-fomc_a),0)) ->  | AF123: =SUM(IF(B123>=(H$18:H$27),(G$18:G$27)*(LN((B124-(H$18:H$27))/fomc_b + 1) - LN((B123-(H$18:H$27))/fomc_b + 1)),0)) ->  | AG123: =SUM(IF(B123>=(H$18:H$27),(G$18:G$27)*(POWER((B124-(H$18:H$27))/fomc_b + 1,(-fomc_a+1)) - POWER((B123-(H$18:H$27))/fomc_b + 1,(-fomc_a+1))),0)) ->  | AK123: 0 | AL123: =SUM(IF(B123>=(H$18:H$27),((B123-(H$18:H$27))<hs_tb)*(G$18:G$27)*EXP(-hs_k1*(B123-(H$18:H$27))),0)) -> 0 | AM123: =SUM(IF(B123>=(H$18:H$27),((B123-(H$18:H$27))=hs_tb)*(G$18:G$27)*EXP(-hs_k1*(B123-(H$18:H$27))),0)) -> 0 | AN123: =SUM(IF(B123>=(H$18:H$27),((B123-(H$18:H$27))>hs_tb)*(G$18:G$27)*tb_prefactor*EXP(-hs_k2*(B123-(H$18:H$27)-hs_tb)),0)) -> 0 | AO123: 0.002583535917 | AR123: 0 | AS123: 0 | AU123: =SUM(IF(B123=(H$18:H$27),(G$18:G$27)),0) -> 0 | AV123: 0.2719791117 | AW123: 0
B124: 3.55 | C124: 26.30059928 | D124: 18.08030754 | P124: =SUM(IF(B124>=(H$18:H$27),(G$18:G$27)*EXP(-sfo_k*(B124-(H$18:H$27))),0)) -> 26.30059928 | Q124: 18.08030754 | W124: 0 | X124: =SUM(IF(B124>=(H$18:H$27),g*(G$18:G$27)*EXP(-dfop_k1*(B124-(H$18:H$27))),0)) -> 0 | Y124: =SUM(IF(B124>=(H$18:H$27),(1-g)*(G$18:G$27)*EXP(-dfop_k2*(B124-(H$18:H$27))),0)) -> 0 | Z124: 0.002583535917 | AA124: 0 | AB124: 0.002583535917 | AD124: =SUM(IF(B124>=(H$18:H$27),(G$18:G$27)*POWER(((B124-(H$18:H$27)))/fomc_b + 1,-fomc_a),0)) ->  | AF124: =SUM(IF(B124>=(H$18:H$27),(G$18:G$27)*(LN((B125-(H$18:H$27))/fomc_b + 1) - LN((B124-(H$18:H$27))/fomc_b + 1)),0)) ->  | AG124: =SUM(IF(B124>=(H$18:H$27),(G$18:G$27)*(POWER((B125-(H$18:H$27))/fomc_b + 1,(-fomc_a+1)) - POWER((B124-(H$18:H$27))/fomc_b + 1,(-fomc_a+1))),0)) ->  | AK124: 0 | AL124: =SUM(IF(B124>=(H$18:H$27),((B124-(H$18:H$27))<hs_tb)*(G$18:G$27)*EXP(-hs_k1*(B124-(H$18:H$27))),0)) -> 0 | AM124: =SUM(IF(B124>=(H$18:H$27),((B124-(H$18:H$27))=hs_tb)*(G$18:G$27)*EXP(-hs_k1*(B124-(H$18:H$27))),0)) -> 0 | AN124: =SUM(IF(B124>=(H$18:H$27),((B124-(H$18:H$27))>hs_tb)*(G$18:G$27)*tb_prefactor*EXP(-hs_k2*(B124-(H$18:H$27)-hs_tb)),0)) -> 0 | AO124: 0.002583535917 | AR124: 0 | AS124: 0 | AU124: =SUM(IF(B124=(H$18:H$27),(G$18:G$27)),0) -> 0 | AV124: 0.2692232372 | AW124: 0
B125: 3.6 | C125: 26.03410399 | D125: 18.02549846 | P125: =SUM(IF(B125>=(H$18:H$27),(G$18:G$27)*EXP(-sfo_k*(B125-(H$18:H$27))),0)) -> 26.03410399 | Q125: 18.02549846 | W125: 0 | X125: =SUM(IF(B125>=(H$18:H$27),g*(G$18:G$27)*EXP(-dfop_k1*(B125-(H$18:H$27))),0)) -> 0 | Y125: =SUM(IF(B125>=(H$18:H$27),(1-g)*(G$18:G$27)*EXP(-dfop_k2*(B125-(H$18:H$27))),0)) -> 0 | Z125: 0.002583535917 | AA125: 0 | AB125: 0.002583535917 | AD125: =SUM(IF(B125>=(H$18:H$27),(G$18:G$27)*POWER(((B125-(H$18:H$27)))/fomc_b + 1,-fomc_a),0)) ->  | AF125: =SUM(IF(B125>=(H$18:H$27),(G$18:G$27)*(LN((B126-(H$18:H$27))/fomc_b + 1) - LN((B125-(H$18:H$27))/fomc_b + 1)),0)) ->  | AG125: =SUM(IF(B125>=(H$18:H$27),(G$18:G$27)*(POWER((B126-(H$18:H$27))/fomc_b + 1,(-fomc_a+1)) - POWER((B125-(H$18:H$27))/fomc_b + 1,(-fomc_a+1))),0)) ->  | AK125: 0 | AL125: =SUM(IF(B125>=(H$18:H$27),((B125-(H$18:H$27))<hs_tb)*(G$18:G$27)*EXP(-hs_k1*(B125-(H$18:H$27))),0)) -> 0 | AM125: =SUM(IF(B125>=(H$18:H$27),((B125-(H$18:H$27))=hs_tb)*(G$18:G$27)*EXP(-hs_k1*(B125-(H$18:H$27))),0)) -> 0 | AN125: =SUM(IF(B125>=(H$18:H$27),((B125-(H$18:H$27))>hs_tb)*(G$18:G$27)*tb_prefactor*EXP(-hs_k2*(B125-(H$18:H$27)-hs_tb)),0)) -> 0 | AO125: 0.002583535917 | AR125: 0 | AS125: 0 | AU125: =SUM(IF(B125=(H$18:H$27),(G$18:G$27)),0) -> 0 | AV125: 0.266495287 | AW125: 0
B126: 3.65 | C126: 25.77030901 | D126: 17.97124475 | P126: =SUM(IF(B126>=(H$18:H$27),(G$18:G$27)*EXP(-sfo_k*(B126-(H$18:H$27))),0)) -> 25.77030901 | Q126: 17.97124475 | W126: 0 | X126: =SUM(IF(B126>=(H$18:H$27),g*(G$18:G$27)*EXP(-dfop_k1*(B126-(H$18:H$27))),0)) -> 0 | Y126: =SUM(IF(B126>=(H$18:H$27),(1-g)*(G$18:G$27)*EXP(-dfop_k2*(B126-(H$18:H$27))),0)) -> 0 | Z126: 0.002583535917 | AA126: 0 | AB126: 0.002583535917 | AD126: =SUM(IF(B126>=(H$18:H$27),(G$18:G$27)*POWER(((B126-(H$18:H$27)))/fomc_b + 1,-fomc_a),0)) ->  | AF126: =SUM(IF(B126>=(H$18:H$27),(G$18:G$27)*(LN((B127-(H$18:H$27))/fomc_b + 1) - LN((B126-(H$18:H$27))/fomc_b + 1)),0)) ->  | AG126: =SUM(IF(B126>=(H$18:H$27),(G$18:G$27)*(POWER((B127-(H$18:H$27))/fomc_b + 1,(-fomc_a+1)) - POWER((B126-(H$18:H$27))/fomc_b + 1,(-fomc_a+1))),0)) ->  | AK126: 0 | AL126: =SUM(IF(B126>=(H$18:H$27),((B126-(H$18:H$27))<hs_tb)*(G$18:G$27)*EXP(-hs_k1*(B126-(H$18:H$27))),0)) -> 0 | AM126: =SUM(IF(B126>=(H$18:H$27),((B126-(H$18:H$27))=hs_tb)*(G$18:G$27)*EXP(-hs_k1*(B126-(H$18:H$27))),0)) -> 0 | AN126: =SUM(IF(B126>=(H$18:H$27),((B126-(H$18:H$27))>hs_tb)*(G$18:G$27)*tb_prefactor*EXP(-hs_k2*(B126-(H$18:H$27)-hs_tb)),0)) -> 0 | AO126: 0.002583535917 | AR126: 0 | AS126: 0 | AU126: =SUM(IF(B126=(H$18:H$27),(G$18:G$27)),0) -> 0 | AV126: 0.2637949783 | AW126: 0
B127: 3.7 | C127: 25.50918698 | D127: 17.91754077 | P127: =SUM(IF(B127>=(H$18:H$27),(G$18:G$27)*EXP(-sfo_k*(B127-(H$18:H$27))),0)) -> 25.50918698 | Q127: 17.91754077 | W127: 0 | X127: =SUM(IF(B127>=(H$18:H$27),g*(G$18:G$27)*EXP(-dfop_k1*(B127-(H$18:H$27))),0)) -> 0 | Y127: =SUM(IF(B127>=(H$18:H$27),(1-g)*(G$18:G$27)*EXP(-dfop_k2*(B127-(H$18:H$27))),0)) -> 0 | Z127: 0.002583535917 | AA127: 0 | AB127: 0.002583535917 | AD127: =SUM(IF(B127>=(H$18:H$27),(G$18:G$27)*POWER(((B127-(H$18:H$27)))/fomc_b + 1,-fomc_a),0)) ->  | AF127: =SUM(IF(B127>=(H$18:H$27),(G$18:G$27)*(LN((B128-(H$18:H$27))/fomc_b + 1) - LN((B127-(H$18:H$27))/fomc_b + 1)),0)) ->  | AG127: =SUM(IF(B127>=(H$18:H$27),(G$18:G$27)*(POWER((B128-(H$18:H$27))/fomc_b + 1,(-fomc_a+1)) - POWER((B127-(H$18:H$27))/fomc_b + 1,(-fomc_a+1))),0)) ->  | AK127: 0 | AL127: =SUM(IF(B127>=(H$18:H$27),((B127-(H$18:H$27))<hs_tb)*(G$18:G$27)*EXP(-hs_k1*(B127-(H$18:H$27))),0)) -> 0 | AM127: =SUM(IF(B127>=(H$18:H$27),((B127-(H$18:H$27))=hs_tb)*(G$18:G$27)*EXP(-hs_k1*(B127-(H$18:H$27))),0)) -> 0 | AN127: =SUM(IF(B127>=(H$18:H$27),((B127-(H$18:H$27))>hs_tb)*(G$18:G$27)*tb_prefactor*EXP(-hs_k2*(B127-(H$18:H$27)-hs_tb)),0)) -> 0 | AO127: 0.002583535917 | AR127: 0 | AS127: 0 | AU127: =SUM(IF(B127=(H$18:H$27),(G$18:G$27)),0) -> 0 | AV127: 0.2611220309 | AW127: 0
B128: 3.75 | C128: 25.25071081 | D128: 17.86438096 | P128: =SUM(IF(B128>=(H$18:H$27),(G$18:G$27)*EXP(-sfo_k*(B128-(H$18:H$27))),0)) -> 25.25071081 | Q128: 17.86438096 | W128: 0 | X128: =SUM(IF(B128>=(H$18:H$27),g*(G$18:G$27)*EXP(-dfop_k1*(B128-(H$18:H$27))),0)) -> 0 | Y128: =SUM(IF(B128>=(H$18:H$27),(1-g)*(G$18:G$27)*EXP(-dfop_k2*(B128-(H$18:H$27))),0)) -> 0 | Z128: 0.002583535917 | AA128: 0 | AB128: 0.002583535917 | AD128: =SUM(IF(B128>=(H$18:H$27),(G$18:G$27)*POWER(((B128-(H$18:H$27)))/fomc_b + 1,-fomc_a),0)) ->  | AF128: =SUM(IF(B128>=(H$18:H$27),(G$18:G$27)*(LN((B129-(H$18:H$27))/fomc_b + 1) - LN((B128-(H$18:H$27))/fomc_b + 1)),0)) ->  | AG128: =SUM(IF(B128>=(H$18:H$27),(G$18:G$27)*(POWER((B129-(H$18:H$27))/fomc_b + 1,(-fomc_a+1)) - POWER((B128-(H$18:H$27))/fomc_b + 1,(-fomc_a+1))),0)) ->  | AK128: 0 | AL128: =SUM(IF(B128>=(H$18:H$27),((B128-(H$18:H$27))<hs_tb)*(G$18:G$27)*EXP(-hs_k1*(B128-(H$18:H$27))),0)) -> 0 | AM128: =SUM(IF(B128>=(H$18:H$27),((B128-(H$18:H$27))=hs_tb)*(G$18:G$27)*EXP(-hs_k1*(B128-(H$18:H$27))),0)) -> 0 | AN128: =SUM(IF(B128>=(H$18:H$27),((B128-(H$18:H$27))>hs_tb)*(G$18:G$27)*tb_prefactor*EXP(-hs_k2*(B128-(H$18:H$27)-hs_tb)),0)) -> 0 | AO128: 0.002583535917 | AR128: 0 | AS128: 0 | AU128: =SUM(IF(B128=(H$18:H$27),(G$18:G$27)),0) -> 0 | AV128: 0.2584761676 | AW128: 0
B129: 3.8 | C129: 24.9948537 | D129: 17.8117598 | P129: =SUM(IF(B129>=(H$18:H$27),(G$18:G$27)*EXP(-sfo_k*(B129-(H$18:H$27))),0)) -> 24.9948537 | Q129: 17.8117598 | W129: 0 | X129: =SUM(IF(B129>=(H$18:H$27),g*(G$18:G$27)*EXP(-dfop_k1*(B129-(H$18:H$27))),0)) -> 0 | Y129: =SUM(IF(B129>=(H$18:H$27),(1-g)*(G$18:G$27)*EXP(-dfop_k2*(B129-(H$18:H$27))),0)) -> 0 | Z129: 0.002583535917 | AA129: 0 | AB129: 0.002583535917 | AD129: =SUM(IF(B129>=(H$18:H$27),(G$18:G$27)*POWER(((B129-(H$18:H$27)))/fomc_b + 1,-fomc_a),0)) ->  | AF129: =SUM(IF(B129>=(H$18:H$27),(G$18:G$27)*(LN((B130-(H$18:H$27))/fomc_b + 1) - LN((B129-(H$18:H$27))/fomc_b + 1)),0)) ->  | AG129: =SUM(IF(B129>=(H$18:H$27),(G$18:G$27)*(POWER((B130-(H$18:H$27))/fomc_b + 1,(-fomc_a+1)) - POWER((B129-(H$18:H$27))/fomc_b + 1,(-fomc_a+1))),0)) ->  | AK129: 0 | AL129: =SUM(IF(B129>=(H$18:H$27),((B129-(H$18:H$27))<hs_tb)*(G$18:G$27)*EXP(-hs_k1*(B129-(H$18:H$27))),0)) -> 0 | AM129: =SUM(IF(B129>=(H$18:H$27),((B129-(H$18:H$27))=hs_tb)*(G$18:G$27)*EXP(-hs_k1*(B129-(H$18:H$27))),0)) -> 0 | AN129: =SUM(IF(B129>=(H$18:H$27),((B129-(H$18:H$27))>hs_tb)*(G$18:G$27)*tb_prefactor*EXP(-hs_k2*(B129-(H$18:H$27)-hs_tb)),0)) -> 0 | AO129: 0.002583535917 | AR129: 0 | AS129: 0 | AU129: =SUM(IF(B129=(H$18:H$27),(G$18:G$27)),0) -> 0 | AV129: 0.2558571139 | AW129: 0
B130: 3.85 | C130: 24.7415891 | D130: 17.75967183 | P130: =SUM(IF(B130>=(H$18:H$27),(G$18:G$27)*EXP(-sfo_k*(B130-(H$18:H$27))),0)) -> 24.7415891 | Q130: 17.75967183 | W130: 0 | X130: =SUM(IF(B130>=(H$18:H$27),g*(G$18:G$27)*EXP(-dfop_k1*(B130-(H$18:H$27))),0)) -> 0 | Y130: =SUM(IF(B130>=(H$18:H$27),(1-g)*(G$18:G$27)*EXP(-dfop_k2*(B130-(H$18:H$27))),0)) -> 0 | Z130: 0.002583535917 | AA130: 0 | AB130: 0.002583535917 | AD130: =SUM(IF(B130>=(H$18:H$27),(G$18:G$27)*POWER(((B130-(H$18:H$27)))/fomc_b + 1,-fomc_a),0)) ->  | AF130: =SUM(IF(B130>=(H$18:H$27),(G$18:G$27)*(LN((B131-(H$18:H$27))/fomc_b + 1) - LN((B130-(H$18:H$27))/fomc_b + 1)),0)) ->  | AG130: =SUM(IF(B130>=(H$18:H$27),(G$18:G$27)*(POWER((B131-(H$18:H$27))/fomc_b + 1,(-fomc_a+1)) - POWER((B130-(H$18:H$27))/fomc_b + 1,(-fomc_a+1))),0)) ->  | AK130: 0 | AL130: =SUM(IF(B130>=(H$18:H$27),((B130-(H$18:H$27))<hs_tb)*(G$18:G$27)*EXP(-hs_k1*(B130-(H$18:H$27))),0)) -> 0 | AM130: =SUM(IF(B130>=(H$18:H$27),((B130-(H$18:H$27))=hs_tb)*(G$18:G$27)*EXP(-hs_k1*(B130-(H$18:H$27))),0)) -> 0 | AN130: =SUM(IF(B130>=(H$18:H$27),((B130-(H$18:H$27))>hs_tb)*(G$18:G$27)*tb_prefactor*EXP(-hs_k2*(B130-(H$18:H$27)-hs_tb)),0)) -> 0 | AO130: 0.002583535917 | AR130: 0 | AS130: 0 | AU130: =SUM(IF(B130=(H$18:H$27),(G$18:G$27)),0) -> 0 | AV130: 0.2532645983 | AW130: 0
B131: 3.9 | C131: 24.49089075 | D131: 17.70811165 | P131: =SUM(IF(B131>=(H$18:H$27),(G$18:G$27)*EXP(-sfo_k*(B131-(H$18:H$27))),0)) -> 24.49089075 | Q131: 17.70811165 | W131: 0 | X131: =SUM(IF(B131>=(H$18:H$27),g*(G$18:G$27)*EXP(-dfop_k1*(B131-(H$18:H$27))),0)) -> 0 | Y131: =SUM(IF(B131>=(H$18:H$27),(1-g)*(G$18:G$27)*EXP(-dfop_k2*(B131-(H$18:H$27))),0)) -> 0 | Z131: 0.002583535917 | AA131: 0 | AB131: 0.002583535917 | AD131: =SUM(IF(B131>=(H$18:H$27),(G$18:G$27)*POWER(((B131-(H$18:H$27)))/fomc_b + 1,-fomc_a),0)) ->  | AF131: =SUM(IF(B131>=(H$18:H$27),(G$18:G$27)*(LN((B132-(H$18:H$27))/fomc_b + 1) - LN((B131-(H$18:H$27))/fomc_b + 1)),0)) ->  | AG131: =SUM(IF(B131>=(H$18:H$27),(G$18:G$27)*(POWER((B132-(H$18:H$27))/fomc_b + 1,(-fomc_a+1)) - POWER((B131-(H$18:H$27))/fomc_b + 1,(-fomc_a+1))),0)) ->  | AK131: 0 | AL131: =SUM(IF(B131>=(H$18:H$27),((B131-(H$18:H$27))<hs_tb)*(G$18:G$27)*EXP(-hs_k1*(B131-(H$18:H$27))),0)) -> 0 | AM131: =SUM(IF(B131>=(H$18:H$27),((B131-(H$18:H$27))=hs_tb)*(G$18:G$27)*EXP(-hs_k1*(B131-(H$18:H$27))),0)) -> 0 | AN131: =SUM(IF(B131>=(H$18:H$27),((B131-(H$18:H$27))>hs_tb)*(G$18:G$27)*tb_prefactor*EXP(-hs_k2*(B131-(H$18:H$27)-hs_tb)),0)) -> 0 | AO131: 0.002583535917 | AR131: 0 | AS131: 0 | AU131: =SUM(IF(B131=(H$18:H$27),(G$18:G$27)),0) -> 0 | AV131: 0.2506983518 | AW131: 0
B132: 3.95 | C132: 24.24273264 | D132: 17.65707391 | P132: =SUM(IF(B132>=(H$18:H$27),(G$18:G$27)*EXP(-sfo_k*(B132-(H$18:H$27))),0)) -> 24.24273264 | Q132: 17.65707391 | W132: 0 | X132: =SUM(IF(B132>=(H$18:H$27),g*(G$18:G$27)*EXP(-dfop_k1*(B132-(H$18:H$27))),0)) -> 0 | Y132: =SUM(IF(B132>=(H$18:H$27),(1-g)*(G$18:G$27)*EXP(-dfop_k2*(B132-(H$18:H$27))),0)) -> 0 | Z132: 0.002583535917 | AA132: 0 | AB132: 0.002583535917 | AD132: =SUM(IF(B132>=(H$18:H$27),(G$18:G$27)*POWER(((B132-(H$18:H$27)))/fomc_b + 1,-fomc_a),0)) ->  | AF132: =SUM(IF(B132>=(H$18:H$27),(G$18:G$27)*(LN((B133-(H$18:H$27))/fomc_b + 1) - LN((B132-(H$18:H$27))/fomc_b + 1)),0)) ->  | AG132: =SUM(IF(B132>=(H$18:H$27),(G$18:G$27)*(POWER((B133-(H$18:H$27))/fomc_b + 1,(-fomc_a+1)) - POWER((B132-(H$18:H$27))/fomc_b + 1,(-fomc_a+1))),0)) ->  | AK132: 0 | AL132: =SUM(IF(B132>=(H$18:H$27),((B132-(H$18:H$27))<hs_tb)*(G$18:G$27)*EXP(-hs_k1*(B132-(H$18:H$27))),0)) -> 0 | AM132: =SUM(IF(B132>=(H$18:H$27),((B132-(H$18:H$27))=hs_tb)*(G$18:G$27)*EXP(-hs_k1*(B132-(H$18:H$27))),0)) -> 0 | AN132: =SUM(IF(B132>=(H$18:H$27),((B132-(H$18:H$27))>hs_tb)*(G$18:G$27)*tb_prefactor*EXP(-hs_k2*(B132-(H$18:H$27)-hs_tb)),0)) -> 0 | AO132: 0.002583535917 | AR132: 0 | AS132: 0 | AU132: =SUM(IF(B132=(H$18:H$27),(G$18:G$27)),0) -> 0 | AV132: 0.2481581082 | AW132: 0
B133: 4 | C133: 23.99708904 | D133: 17.60655332 | P133: =SUM(IF(B133>=(H$18:H$27),(G$18:G$27)*EXP(-sfo_k*(B133-(H$18:H$27))),0)) -> 23.99708904 | Q133: 17.60655332 | W133: 0 | X133: =SUM(IF(B133>=(H$18:H$27),g*(G$18:G$27)*EXP(-dfop_k1*(B133-(H$18:H$27))),0)) -> 0 | Y133: =SUM(IF(B133>=(H$18:H$27),(1-g)*(G$18:G$27)*EXP(-dfop_k2*(B133-(H$18:H$27))),0)) -> 0 | Z133: 0.002583535917 | AA133: 0 | AB133: 0.002583535917 | AD133: =SUM(IF(B133>=(H$18:H$27),(G$18:G$27)*POWER(((B133-(H$18:H$27)))/fomc_b + 1,-fomc_a),0)) ->  | AF133: =SUM(IF(B133>=(H$18:H$27),(G$18:G$27)*(LN((B134-(H$18:H$27))/fomc_b + 1) - LN((B133-(H$18:H$27))/fomc_b + 1)),0)) ->  | AG133: =SUM(IF(B133>=(H$18:H$27),(G$18:G$27)*(POWER((B134-(H$18:H$27))/fomc_b + 1,(-fomc_a+1)) - POWER((B133-(H$18:H$27))/fomc_b + 1,(-fomc_a+1))),0)) ->  | AK133: 0 | AL133: =SUM(IF(B133>=(H$18:H$27),((B133-(H$18:H$27))<hs_tb)*(G$18:G$27)*EXP(-hs_k1*(B133-(H$18:H$27))),0)) -> 0 | AM133: =SUM(IF(B133>=(H$18:H$27),((B133-(H$18:H$27))=hs_tb)*(G$18:G$27)*EXP(-hs_k1*(B133-(H$18:H$27))),0)) -> 0 | AN133: =SUM(IF(B133>=(H$18:H$27),((B133-(H$18:H$27))>hs_tb)*(G$18:G$27)*tb_prefactor*EXP(-hs_k2*(B133-(H$18:H$27)-hs_tb)),0)) -> 0 | AO133: 0.002583535917 | AR133: 0 | AS133: 0 | AU133: =SUM(IF(B133=(H$18:H$27),(G$18:G$27)),0) -> 0 | AV133: 0.245643604 | AW133: 0
B134: 4.05 | C134: 23.75393446 | D134: 17.55654464 | P134: =SUM(IF(B134>=(H$18:H$27),(G$18:G$27)*EXP(-sfo_k*(B134-(H$18:H$27))),0)) -> 23.75393446 | Q134: 17.55654464 | W134: 0 | X134: =SUM(IF(B134>=(H$18:H$27),g*(G$18:G$27)*EXP(-dfop_k1*(B134-(H$18:H$27))),0)) -> 0 | Y134: =SUM(IF(B134>=(H$18:H$27),(1-g)*(G$18:G$27)*EXP(-dfop_k2*(B134-(H$18:H$27))),0)) -> 0 | Z134: 0.002583535917 | AA134: 0 | AB134: 0.002583535917 | AD134: =SUM(IF(B134>=(H$18:H$27),(G$18:G$27)*POWER(((B134-(H$18:H$27)))/fomc_b + 1,-fomc_a),0)) ->  | AF134: =SUM(IF(B134>=(H$18:H$27),(G$18:G$27)*(LN((B135-(H$18:H$27))/fomc_b + 1) - LN((B134-(H$18:H$27))/fomc_b + 1)),0)) ->  | AG134: =SUM(IF(B134>=(H$18:H$27),(G$18:G$27)*(POWER((B135-(H$18:H$27))/fomc_b + 1,(-fomc_a+1)) - POWER((B134-(H$18:H$27))/fomc_b + 1,(-fomc_a+1))),0)) ->  | AK134: 0 | AL134: =SUM(IF(B134>=(H$18:H$27),((B134-(H$18:H$27))<hs_tb)*(G$18:G$27)*EXP(-hs_k1*(B134-(H$18:H$27))),0)) -> 0 | AM134: =SUM(IF(B134>=(H$18:H$27),((B134-(H$18:H$27))=hs_tb)*(G$18:G$27)*EXP(-hs_k1*(B134-(H$18:H$27))),0)) -> 0 | AN134: =SUM(IF(B134>=(H$18:H$27),((B134-(H$18:H$27))>hs_tb)*(G$18:G$27)*tb_prefactor*EXP(-hs_k2*(B134-(H$18:H$27)-hs_tb)),0)) -> 0 | AO134: 0.002583535917 | AR134: 0 | AS134: 0 | AU134: =SUM(IF(B134=(H$18:H$27),(G$18:G$27)),0) -> 0 | AV134: 0.2431545785 | AW134: 0
B135: 4.1 | C135: 23.51324368 | D135: 17.50704269 | P135: =SUM(IF(B135>=(H$18:H$27),(G$18:G$27)*EXP(-sfo_k*(B135-(H$18:H$27))),0)) -> 23.51324368 | Q135: 17.50704269 | W135: 0 | X135: =SUM(IF(B135>=(H$18:H$27),g*(G$18:G$27)*EXP(-dfop_k1*(B135-(H$18:H$27))),0)) -> 0 | Y135: =SUM(IF(B135>=(H$18:H$27),(1-g)*(G$18:G$27)*EXP(-dfop_k2*(B135-(H$18:H$27))),0)) -> 0 | Z135: 0.002583535917 | AA135: 0 | AB135: 0.002583535917 | AD135: =SUM(IF(B135>=(H$18:H$27),(G$18:G$27)*POWER(((B135-(H$18:H$27)))/fomc_b + 1,-fomc_a),0)) ->  | AF135: =SUM(IF(B135>=(H$18:H$27),(G$18:G$27)*(LN((B136-(H$18:H$27))/fomc_b + 1) - LN((B135-(H$18:H$27))/fomc_b + 1)),0)) ->  | AG135: =SUM(IF(B135>=(H$18:H$27),(G$18:G$27)*(POWER((B136-(H$18:H$27))/fomc_b + 1,(-fomc_a+1)) - POWER((B135-(H$18:H$27))/fomc_b + 1,(-fomc_a+1))),0)) ->  | AK135: 0 | AL135: =SUM(IF(B135>=(H$18:H$27),((B135-(H$18:H$27))<hs_tb)*(G$18:G$27)*EXP(-hs_k1*(B135-(H$18:H$27))),0)) -> 0 | AM135: =SUM(IF(B135>=(H$18:H$27),((B135-(H$18:H$27))=hs_tb)*(G$18:G$27)*EXP(-hs_k1*(B135-(H$18:H$27))),0)) -> 0 | AN135: =SUM(IF(B135>=(H$18:H$27),((B135-(H$18:H$27))>hs_tb)*(G$18:G$27)*tb_prefactor*EXP(-hs_k2*(B135-(H$18:H$27)-hs_tb)),0)) -> 0 | AO135: 0.002583535917 | AR135: 0 | AS135: 0 | AU135: =SUM(IF(B135=(H$18:H$27),(G$18:G$27)),0) -> 0 | AV135: 0.2406907734 | AW135: 0
B136: 4.15 | C136: 23.27499175 | D136: 17.45804232 | P136: =SUM(IF(B136>=(H$18:H$27),(G$18:G$27)*EXP(-sfo_k*(B136-(H$18:H$27))),0)) -> 23.27499175 | Q136: 17.45804232 | W136: 0 | X136: =SUM(IF(B136>=(H$18:H$27),g*(G$18:G$27)*EXP(-dfop_k1*(B136-(H$18:H$27))),0)) -> 0 | Y136: =SUM(IF(B136>=(H$18:H$27),(1-g)*(G$18:G$27)*EXP(-dfop_k2*(B136-(H$18:H$27))),0)) -> 0 | Z136: 0.002583535917 | AA136: 0 | AB136: 0.002583535917 | AD136: =SUM(IF(B136>=(H$18:H$27),(G$18:G$27)*POWER(((B136-(H$18:H$27)))/fomc_b + 1,-fomc_a),0)) ->  | AF136: =SUM(IF(B136>=(H$18:H$27),(G$18:G$27)*(LN((B137-(H$18:H$27))/fomc_b + 1) - LN((B136-(H$18:H$27))/fomc_b + 1)),0)) ->  | AG136: =SUM(IF(B136>=(H$18:H$27),(G$18:G$27)*(POWER((B137-(H$18:H$27))/fomc_b + 1,(-fomc_a+1)) - POWER((B136-(H$18:H$27))/fomc_b + 1,(-fomc_a+1))),0)) ->  | AK136: 0 | AL136: =SUM(IF(B136>=(H$18:H$27),((B136-(H$18:H$27))<hs_tb)*(G$18:G$27)*EXP(-hs_k1*(B136-(H$18:H$27))),0)) -> 0 | AM136: =SUM(IF(B136>=(H$18:H$27),((B136-(H$18:H$27))=hs_tb)*(G$18:G$27)*EXP(-hs_k1*(B136-(H$18:H$27))),0)) -> 0 | AN136: =SUM(IF(B136>=(H$18:H$27),((B136-(H$18:H$27))>hs_tb)*(G$18:G$27)*tb_prefactor*EXP(-hs_k2*(B136-(H$18:H$27)-hs_tb)),0)) -> 0 | AO136: 0.002583535917 | AR136: 0 | AS136: 0 | AU136: =SUM(IF(B136=(H$18:H$27),(G$18:G$27)),0) -> 0 | AV136: 0.2382519333 | AW136: 0
B137: 4.2 | C137: 23.03915395 | D137: 17.40953845 | P137: =SUM(IF(B137>=(H$18:H$27),(G$18:G$27)*EXP(-sfo_k*(B137-(H$18:H$27))),0)) -> 23.03915395 | Q137: 17.40953845 | W137: 0 | X137: =SUM(IF(B137>=(H$18:H$27),g*(G$18:G$27)*EXP(-dfop_k1*(B137-(H$18:H$27))),0)) -> 0 | Y137: =SUM(IF(B137>=(H$18:H$27),(1-g)*(G$18:G$27)*EXP(-dfop_k2*(B137-(H$18:H$27))),0)) -> 0 | Z137: 0.002583535917 | AA137: 0 | AB137: 0.002583535917 | AD137: =SUM(IF(B137>=(H$18:H$27),(G$18:G$27)*POWER(((B137-(H$18:H$27)))/fomc_b + 1,-fomc_a),0)) ->  | AF137: =SUM(IF(B137>=(H$18:H$27),(G$18:G$27)*(LN((B138-(H$18:H$27))/fomc_b + 1) - LN((B137-(H$18:H$27))/fomc_b + 1)),0)) ->  | AG137: =SUM(IF(B137>=(H$18:H$27),(G$18:G$27)*(POWER((B138-(H$18:H$27))/fomc_b + 1,(-fomc_a+1)) - POWER((B137-(H$18:H$27))/fomc_b + 1,(-fomc_a+1))),0)) ->  | AK137: 0 | AL137: =SUM(IF(B137>=(H$18:H$27),((B137-(H$18:H$27))<hs_tb)*(G$18:G$27)*EXP(-hs_k1*(B137-(H$18:H$27))),0)) -> 0 | AM137: =SUM(IF(B137>=(H$18:H$27),((B137-(H$18:H$27))=hs_tb)*(G$18:G$27)*EXP(-hs_k1*(B137-(H$18:H$27))),0)) -> 0 | AN137: =SUM(IF(B137>=(H$18:H$27),((B137-(H$18:H$27))>hs_tb)*(G$18:G$27)*tb_prefactor*EXP(-hs_k2*(B137-(H$18:H$27)-hs_tb)),0)) -> 0 | AO137: 0.002583535917 | AR137: 0 | AS137: 0 | AU137: =SUM(IF(B137=(H$18:H$27),(G$18:G$27)),0) -> 0 | AV137: 0.2358378051 | AW137: 0
B138: 4.25 | C138: 22.80570581 | D138: 17.36152606 | P138: =SUM(IF(B138>=(H$18:H$27),(G$18:G$27)*EXP(-sfo_k*(B138-(H$18:H$27))),0)) -> 22.80570581 | Q138: 17.36152606 | W138: 0 | X138: =SUM(IF(B138>=(H$18:H$27),g*(G$18:G$27)*EXP(-dfop_k1*(B138-(H$18:H$27))),0)) -> 0 | Y138: =SUM(IF(B138>=(H$18:H$27),(1-g)*(G$18:G$27)*EXP(-dfop_k2*(B138-(H$18:H$27))),0)) -> 0 | Z138: 0.002583535917 | AA138: 0 | AB138: 0.002583535917 | AD138: =SUM(IF(B138>=(H$18:H$27),(G$18:G$27)*POWER(((B138-(H$18:H$27)))/fomc_b + 1,-fomc_a),0)) ->  | AF138: =SUM(IF(B138>=(H$18:H$27),(G$18:G$27)*(LN((B139-(H$18:H$27))/fomc_b + 1) - LN((B138-(H$18:H$27))/fomc_b + 1)),0)) ->  | AG138: =SUM(IF(B138>=(H$18:H$27),(G$18:G$27)*(POWER((B139-(H$18:H$27))/fomc_b + 1,(-fomc_a+1)) - POWER((B138-(H$18:H$27))/fomc_b + 1,(-fomc_a+1))),0)) ->  | AK138: 0 | AL138: =SUM(IF(B138>=(H$18:H$27),((B138-(H$18:H$27))<hs_tb)*(G$18:G$27)*EXP(-hs_k1*(B138-(H$18:H$27))),0)) -> 0 | AM138: =SUM(IF(B138>=(H$18:H$27),((B138-(H$18:H$27))=hs_tb)*(G$18:G$27)*EXP(-hs_k1*(B138-(H$18:H$27))),0)) -> 0 | AN138: =SUM(IF(B138>=(H$18:H$27),((B138-(H$18:H$27))>hs_tb)*(G$18:G$27)*tb_prefactor*EXP(-hs_k2*(B138-(H$18:H$27)-hs_tb)),0)) -> 0 | AO138: 0.002583535917 | AR138: 0 | AS138: 0 | AU138: =SUM(IF(B138=(H$18:H$27),(G$18:G$27)),0) -> 0 | AV138: 0.2334481386 | AW138: 0
B139: 4.3 | C139: 22.57462312 | D139: 17.31400016 | P139: =SUM(IF(B139>=(H$18:H$27),(G$18:G$27)*EXP(-sfo_k*(B139-(H$18:H$27))),0)) -> 22.57462312 | Q139: 17.31400016 | W139: 0 | X139: =SUM(IF(B139>=(H$18:H$27),g*(G$18:G$27)*EXP(-dfop_k1*(B139-(H$18:H$27))),0)) -> 0 | Y139: =SUM(IF(B139>=(H$18:H$27),(1-g)*(G$18:G$27)*EXP(-dfop_k2*(B139-(H$18:H$27))),0)) -> 0 | Z139: 0.002583535917 | AA139: 0 | AB139: 0.002583535917 | AD139: =SUM(IF(B139>=(H$18:H$27),(G$18:G$27)*POWER(((B139-(H$18:H$27)))/fomc_b + 1,-fomc_a),0)) ->  | AF139: =SUM(IF(B139>=(H$18:H$27),(G$18:G$27)*(LN((B140-(H$18:H$27))/fomc_b + 1) - LN((B139-(H$18:H$27))/fomc_b + 1)),0)) ->  | AG139: =SUM(IF(B139>=(H$18:H$27),(G$18:G$27)*(POWER((B140-(H$18:H$27))/fomc_b + 1,(-fomc_a+1)) - POWER((B139-(H$18:H$27))/fomc_b + 1,(-fomc_a+1))),0)) ->  | AK139: 0 | AL139: =SUM(IF(B139>=(H$18:H$27),((B139-(H$18:H$27))<hs_tb)*(G$18:G$27)*EXP(-hs_k1*(B139-(H$18:H$27))),0)) -> 0 | AM139: =SUM(IF(B139>=(H$18:H$27),((B139-(H$18:H$27))=hs_tb)*(G$18:G$27)*EXP(-hs_k1*(B139-(H$18:H$27))),0)) -> 0 | AN139: =SUM(IF(B139>=(H$18:H$27),((B139-(H$18:H$27))>hs_tb)*(G$18:G$27)*tb_prefactor*EXP(-hs_k2*(B139-(H$18:H$27)-hs_tb)),0)) -> 0 | AO139: 0.002583535917 | AR139: 0 | AS139: 0 | AU139: =SUM(IF(B139=(H$18:H$27),(G$18:G$27)),0) -> 0 | AV139: 0.2310826857 | AW139: 0
B140: 4.35 | C140: 22.34588192 | D140: 17.26695582 | P140: =SUM(IF(B140>=(H$18:H$27),(G$18:G$27)*EXP(-sfo_k*(B140-(H$18:H$27))),0)) -> 22.34588192 | Q140: 17.26695582 | W140: 0 | X140: =SUM(IF(B140>=(H$18:H$27),g*(G$18:G$27)*EXP(-dfop_k1*(B140-(H$18:H$27))),0)) -> 0 | Y140: =SUM(IF(B140>=(H$18:H$27),(1-g)*(G$18:G$27)*EXP(-dfop_k2*(B140-(H$18:H$27))),0)) -> 0 | Z140: 0.002583535917 | AA140: 0 | AB140: 0.002583535917 | AD140: =SUM(IF(B140>=(H$18:H$27),(G$18:G$27)*POWER(((B140-(H$18:H$27)))/fomc_b + 1,-fomc_a),0)) ->  | AF140: =SUM(IF(B140>=(H$18:H$27),(G$18:G$27)*(LN((B141-(H$18:H$27))/fomc_b + 1) - LN((B140-(H$18:H$27))/fomc_b + 1)),0)) ->  | AG140: =SUM(IF(B140>=(H$18:H$27),(G$18:G$27)*(POWER((B141-(H$18:H$27))/fomc_b + 1,(-fomc_a+1)) - POWER((B140-(H$18:H$27))/fomc_b + 1,(-fomc_a+1))),0)) ->  | AK140: 0 | AL140: =SUM(IF(B140>=(H$18:H$27),((B140-(H$18:H$27))<hs_tb)*(G$18:G$27)*EXP(-hs_k1*(B140-(H$18:H$27))),0)) -> 0 | AM140: =SUM(IF(B140>=(H$18:H$27),((B140-(H$18:H$27))=hs_tb)*(G$18:G$27)*EXP(-hs_k1*(B140-(H$18:H$27))),0)) -> 0 | AN140: =SUM(IF(B140>=(H$18:H$27),((B140-(H$18:H$27))>hs_tb)*(G$18:G$27)*tb_prefactor*EXP(-hs_k2*(B140-(H$18:H$27)-hs_tb)),0)) -> 0 | AO140: 0.002583535917 | AR140: 0 | AS140: 0 | AU140: =SUM(IF(B140=(H$18:H$27),(G$18:G$27)),0) -> 0 | AV140: 0.2287412011 | AW140: 0
B141: 4.4 | C141: 22.11945848 | D141: 17.22038817 | P141: =SUM(IF(B141>=(H$18:H$27),(G$18:G$27)*EXP(-sfo_k*(B141-(H$18:H$27))),0)) -> 22.11945848 | Q141: 17.22038817 | W141: 0 | X141: =SUM(IF(B141>=(H$18:H$27),g*(G$18:G$27)*EXP(-dfop_k1*(B141-(H$18:H$27))),0)) -> 0 | Y141: =SUM(IF(B141>=(H$18:H$27),(1-g)*(G$18:G$27)*EXP(-dfop_k2*(B141-(H$18:H$27))),0)) -> 0 | Z141: 0.002583535917 | AA141: 0 | AB141: 0.002583535917 | AD141: =SUM(IF(B141>=(H$18:H$27),(G$18:G$27)*POWER(((B141-(H$18:H$27)))/fomc_b + 1,-fomc_a),0)) ->  | AF141: =SUM(IF(B141>=(H$18:H$27),(G$18:G$27)*(LN((B142-(H$18:H$27))/fomc_b + 1) - LN((B141-(H$18:H$27))/fomc_b + 1)),0)) ->  | AG141: =SUM(IF(B141>=(H$18:H$27),(G$18:G$27)*(POWER((B142-(H$18:H$27))/fomc_b + 1,(-fomc_a+1)) - POWER((B141-(H$18:H$27))/fomc_b + 1,(-fomc_a+1))),0)) ->  | AK141: 0 | AL141: =SUM(IF(B141>=(H$18:H$27),((B141-(H$18:H$27))<hs_tb)*(G$18:G$27)*EXP(-hs_k1*(B141-(H$18:H$27))),0)) -> 0 | AM141: =SUM(IF(B141>=(H$18:H$27),((B141-(H$18:H$27))=hs_tb)*(G$18:G$27)*EXP(-hs_k1*(B141-(H$18:H$27))),0)) -> 0 | AN141: =SUM(IF(B141>=(H$18:H$27),((B141-(H$18:H$27))>hs_tb)*(G$18:G$27)*tb_prefactor*EXP(-hs_k2*(B141-(H$18:H$27)-hs_tb)),0)) -> 0 | AO141: 0.002583535917 | AR141: 0 | AS141: 0 | AU141: =SUM(IF(B141=(H$18:H$27),(G$18:G$27)),0) -> 0 | AV141: 0.2264234421 | AW141: 0
B142: 4.45 | C142: 21.89532931 | D142: 17.17429238 | P142: =SUM(IF(B142>=(H$18:H$27),(G$18:G$27)*EXP(-sfo_k*(B142-(H$18:H$27))),0)) -> 21.89532931 | Q142: 17.17429238 | W142: 0 | X142: =SUM(IF(B142>=(H$18:H$27),g*(G$18:G$27)*EXP(-dfop_k1*(B142-(H$18:H$27))),0)) -> 0 | Y142: =SUM(IF(B142>=(H$18:H$27),(1-g)*(G$18:G$27)*EXP(-dfop_k2*(B142-(H$18:H$27))),0)) -> 0 | Z142: 0.002583535917 | AA142: 0 | AB142: 0.002583535917 | AD142: =SUM(IF(B142>=(H$18:H$27),(G$18:G$27)*POWER(((B142-(H$18:H$27)))/fomc_b + 1,-fomc_a),0)) ->  | AF142: =SUM(IF(B142>=(H$18:H$27),(G$18:G$27)*(LN((B143-(H$18:H$27))/fomc_b + 1) - LN((B142-(H$18:H$27))/fomc_b + 1)),0)) ->  | AG142: =SUM(IF(B142>=(H$18:H$27),(G$18:G$27)*(POWER((B143-(H$18:H$27))/fomc_b + 1,(-fomc_a+1)) - POWER((B142-(H$18:H$27))/fomc_b + 1,(-fomc_a+1))),0)) ->  | AK142: 0 | AL142: =SUM(IF(B142>=(H$18:H$27),((B142-(H$18:H$27))<hs_tb)*(G$18:G$27)*EXP(-hs_k1*(B142-(H$18:H$27))),0)) -> 0 | AM142: =SUM(IF(B142>=(H$18:H$27),((B142-(H$18:H$27))=hs_tb)*(G$18:G$27)*EXP(-hs_k1*(B142-(H$18:H$27))),0)) -> 0 | AN142: =SUM(IF(B142>=(H$18:H$27),((B142-(H$18:H$27))>hs_tb)*(G$18:G$27)*tb_prefactor*EXP(-hs_k2*(B142-(H$18:H$27)-hs_tb)),0)) -> 0 | AO142: 0.002583535917 | AR142: 0 | AS142: 0 | AU142: =SUM(IF(B142=(H$18:H$27),(G$18:G$27)),0) -> 0 | AV142: 0.2241291681 | AW142: 0
B143: 4.5 | C143: 21.67347117 | D143: 17.12866365 | P143: =SUM(IF(B143>=(H$18:H$27),(G$18:G$27)*EXP(-sfo_k*(B143-(H$18:H$27))),0)) -> 21.67347117 | Q143: 17.12866365 | W143: 0 | X143: =SUM(IF(B143>=(H$18:H$27),g*(G$18:G$27)*EXP(-dfop_k1*(B143-(H$18:H$27))),0)) -> 0 | Y143: =SUM(IF(B143>=(H$18:H$27),(1-g)*(G$18:G$27)*EXP(-dfop_k2*(B143-(H$18:H$27))),0)) -> 0 | Z143: 0.002583535917 | AA143: 0 | AB143: 0.002583535917 | AD143: =SUM(IF(B143>=(H$18:H$27),(G$18:G$27)*POWER(((B143-(H$18:H$27)))/fomc_b + 1,-fomc_a),0)) ->  | AF143: =SUM(IF(B143>=(H$18:H$27),(G$18:G$27)*(LN((B144-(H$18:H$27))/fomc_b + 1) - LN((B143-(H$18:H$27))/fomc_b + 1)),0)) ->  | AG143: =SUM(IF(B143>=(H$18:H$27),(G$18:G$27)*(POWER((B144-(H$18:H$27))/fomc_b + 1,(-fomc_a+1)) - POWER((B143-(H$18:H$27))/fomc_b + 1,(-fomc_a+1))),0)) ->  | AK143: 0 | AL143: =SUM(IF(B143>=(H$18:H$27),((B143-(H$18:H$27))<hs_tb)*(G$18:G$27)*EXP(-hs_k1*(B143-(H$18:H$27))),0)) -> 0 | AM143: =SUM(IF(B143>=(H$18:H$27),((B143-(H$18:H$27))=hs_tb)*(G$18:G$27)*EXP(-hs_k1*(B143-(H$18:H$27))),0)) -> 0 | AN143: =SUM(IF(B143>=(H$18:H$27),((B143-(H$18:H$27))>hs_tb)*(G$18:G$27)*tb_prefactor*EXP(-hs_k2*(B143-(H$18:H$27)-hs_tb)),0)) -> 0 | AO143: 0.002583535917 | AR143: 0 | AS143: 0 | AU143: =SUM(IF(B143=(H$18:H$27),(G$18:G$27)),0) -> 0 | AV143: 0.2218581413 | AW143: 0
B144: 4.55 | C144: 21.45386104 | D144: 17.08349727 | P144: =SUM(IF(B144>=(H$18:H$27),(G$18:G$27)*EXP(-sfo_k*(B144-(H$18:H$27))),0)) -> 21.45386104 | Q144: 17.08349727 | W144: 0 | X144: =SUM(IF(B144>=(H$18:H$27),g*(G$18:G$27)*EXP(-dfop_k1*(B144-(H$18:H$27))),0)) -> 0 | Y144: =SUM(IF(B144>=(H$18:H$27),(1-g)*(G$18:G$27)*EXP(-dfop_k2*(B144-(H$18:H$27))),0)) -> 0 | Z144: 0.002583535917 | AA144: 0 | AB144: 0.002583535917 | AD144: =SUM(IF(B144>=(H$18:H$27),(G$18:G$27)*POWER(((B144-(H$18:H$27)))/fomc_b + 1,-fomc_a),0)) ->  | AF144: =SUM(IF(B144>=(H$18:H$27),(G$18:G$27)*(LN((B145-(H$18:H$27))/fomc_b + 1) - LN((B144-(H$18:H$27))/fomc_b + 1)),0)) ->  | AG144: =SUM(IF(B144>=(H$18:H$27),(G$18:G$27)*(POWER((B145-(H$18:H$27))/fomc_b + 1,(-fomc_a+1)) - POWER((B144-(H$18:H$27))/fomc_b + 1,(-fomc_a+1))),0)) ->  | AK144: 0 | AL144: =SUM(IF(B144>=(H$18:H$27),((B144-(H$18:H$27))<hs_tb)*(G$18:G$27)*EXP(-hs_k1*(B144-(H$18:H$27))),0)) -> 0 | AM144: =SUM(IF(B144>=(H$18:H$27),((B144-(H$18:H$27))=hs_tb)*(G$18:G$27)*EXP(-hs_k1*(B144-(H$18:H$27))),0)) -> 0 | AN144: =SUM(IF(B144>=(H$18:H$27),((B144-(H$18:H$27))>hs_tb)*(G$18:G$27)*tb_prefactor*EXP(-hs_k2*(B144-(H$18:H$27)-hs_tb)),0)) -> 0 | AO144: 0.002583535917 | AR144: 0 | AS144: 0 | AU144: =SUM(IF(B144=(H$18:H$27),(G$18:G$27)),0) -> 0 | AV144: 0.219610126 | AW144: 0
B145: 4.6 | C145: 21.23647615 | D145: 17.03878855 | P145: =SUM(IF(B145>=(H$18:H$27),(G$18:G$27)*EXP(-sfo_k*(B145-(H$18:H$27))),0)) -> 21.23647615 | Q145: 17.03878855 | W145: 0 | X145: =SUM(IF(B145>=(H$18:H$27),g*(G$18:G$27)*EXP(-dfop_k1*(B145-(H$18:H$27))),0)) -> 0 | Y145: =SUM(IF(B145>=(H$18:H$27),(1-g)*(G$18:G$27)*EXP(-dfop_k2*(B145-(H$18:H$27))),0)) -> 0 | Z145: 0.002583535917 | AA145: 0 | AB145: 0.002583535917 | AD145: =SUM(IF(B145>=(H$18:H$27),(G$18:G$27)*POWER(((B145-(H$18:H$27)))/fomc_b + 1,-fomc_a),0)) ->  | AF145: =SUM(IF(B145>=(H$18:H$27),(G$18:G$27)*(LN((B146-(H$18:H$27))/fomc_b + 1) - LN((B145-(H$18:H$27))/fomc_b + 1)),0)) ->  | AG145: =SUM(IF(B145>=(H$18:H$27),(G$18:G$27)*(POWER((B146-(H$18:H$27))/fomc_b + 1,(-fomc_a+1)) - POWER((B145-(H$18:H$27))/fomc_b + 1,(-fomc_a+1))),0)) ->  | AK145: 0 | AL145: =SUM(IF(B145>=(H$18:H$27),((B145-(H$18:H$27))<hs_tb)*(G$18:G$27)*EXP(-hs_k1*(B145-(H$18:H$27))),0)) -> 0 | AM145: =SUM(IF(B145>=(H$18:H$27),((B145-(H$18:H$27))=hs_tb)*(G$18:G$27)*EXP(-hs_k1*(B145-(H$18:H$27))),0)) -> 0 | AN145: =SUM(IF(B145>=(H$18:H$27),((B145-(H$18:H$27))>hs_tb)*(G$18:G$27)*tb_prefactor*EXP(-hs_k2*(B145-(H$18:H$27)-hs_tb)),0)) -> 0 | AO145: 0.002583535917 | AR145: 0 | AS145: 0 | AU145: =SUM(IF(B145=(H$18:H$27),(G$18:G$27)),0) -> 0 | AV145: 0.2173848891 | AW145: 0
B146: 4.65 | C146: 21.02129395 | D146: 16.99453284 | P146: =SUM(IF(B146>=(H$18:H$27),(G$18:G$27)*EXP(-sfo_k*(B146-(H$18:H$27))),0)) -> 21.02129395 | Q146: 16.99453284 | W146: 0 | X146: =SUM(IF(B146>=(H$18:H$27),g*(G$18:G$27)*EXP(-dfop_k1*(B146-(H$18:H$27))),0)) -> 0 | Y146: =SUM(IF(B146>=(H$18:H$27),(1-g)*(G$18:G$27)*EXP(-dfop_k2*(B146-(H$18:H$27))),0)) -> 0 | Z146: 0.002583535917 | AA146: 0 | AB146: 0.002583535917 | AD146: =SUM(IF(B146>=(H$18:H$27),(G$18:G$27)*POWER(((B146-(H$18:H$27)))/fomc_b + 1,-fomc_a),0)) ->  | AF146: =SUM(IF(B146>=(H$18:H$27),(G$18:G$27)*(LN((B147-(H$18:H$27))/fomc_b + 1) - LN((B146-(H$18:H$27))/fomc_b + 1)),0)) ->  | AG146: =SUM(IF(B146>=(H$18:H$27),(G$18:G$27)*(POWER((B147-(H$18:H$27))/fomc_b + 1,(-fomc_a+1)) - POWER((B146-(H$18:H$27))/fomc_b + 1,(-fomc_a+1))),0)) ->  | AK146: 0 | AL146: =SUM(IF(B146>=(H$18:H$27),((B146-(H$18:H$27))<hs_tb)*(G$18:G$27)*EXP(-hs_k1*(B146-(H$18:H$27))),0)) -> 0 | AM146: =SUM(IF(B146>=(H$18:H$27),((B146-(H$18:H$27))=hs_tb)*(G$18:G$27)*EXP(-hs_k1*(B146-(H$18:H$27))),0)) -> 0 | AN146: =SUM(IF(B146>=(H$18:H$27),((B146-(H$18:H$27))>hs_tb)*(G$18:G$27)*tb_prefactor*EXP(-hs_k2*(B146-(H$18:H$27)-hs_tb)),0)) -> 0 | AO146: 0.002583535917 | AR146: 0 | AS146: 0 | AU146: =SUM(IF(B146=(H$18:H$27),(G$18:G$27)),0) -> 0 | AV146: 0.2151821998 | AW146: 0
B147: 4.7 | C147: 20.80829212 | D147: 16.95072556 | P147: =SUM(IF(B147>=(H$18:H$27),(G$18:G$27)*EXP(-sfo_k*(B147-(H$18:H$27))),0)) -> 20.80829212 | Q147: 16.95072556 | W147: 0 | X147: =SUM(IF(B147>=(H$18:H$27),g*(G$18:G$27)*EXP(-dfop_k1*(B147-(H$18:H$27))),0)) -> 0 | Y147: =SUM(IF(B147>=(H$18:H$27),(1-g)*(G$18:G$27)*EXP(-dfop_k2*(B147-(H$18:H$27))),0)) -> 0 | Z147: 0.002583535917 | AA147: 0 | AB147: 0.002583535917 | AD147: =SUM(IF(B147>=(H$18:H$27),(G$18:G$27)*POWER(((B147-(H$18:H$27)))/fomc_b + 1,-fomc_a),0)) ->  | AF147: =SUM(IF(B147>=(H$18:H$27),(G$18:G$27)*(LN((B148-(H$18:H$27))/fomc_b + 1) - LN((B147-(H$18:H$27))/fomc_b + 1)),0)) ->  | AG147: =SUM(IF(B147>=(H$18:H$27),(G$18:G$27)*(POWER((B148-(H$18:H$27))/fomc_b + 1,(-fomc_a+1)) - POWER((B147-(H$18:H$27))/fomc_b + 1,(-fomc_a+1))),0)) ->  | AK147: 0 | AL147: =SUM(IF(B147>=(H$18:H$27),((B147-(H$18:H$27))<hs_tb)*(G$18:G$27)*EXP(-hs_k1*(B147-(H$18:H$27))),0)) -> 0 | AM147: =SUM(IF(B147>=(H$18:H$27),((B147-(H$18:H$27))=hs_tb)*(G$18:G$27)*EXP(-hs_k1*(B147-(H$18:H$27))),0)) -> 0 | AN147: =SUM(IF(B147>=(H$18:H$27),((B147-(H$18:H$27))>hs_tb)*(G$18:G$27)*tb_prefactor*EXP(-hs_k2*(B147-(H$18:H$27)-hs_tb)),0)) -> 0 | AO147: 0.002583535917 | AR147: 0 | AS147: 0 | AU147: =SUM(IF(B147=(H$18:H$27),(G$18:G$27)),0) -> 0 | AV147: 0.2130018296 | AW147: 0
B148: 4.75 | C148: 20.59744857 | D148: 16.90736217 | P148: =SUM(IF(B148>=(H$18:H$27),(G$18:G$27)*EXP(-sfo_k*(B148-(H$18:H$27))),0)) -> 20.59744857 | Q148: 16.90736217 | W148: 0 | X148: =SUM(IF(B148>=(H$18:H$27),g*(G$18:G$27)*EXP(-dfop_k1*(B148-(H$18:H$27))),0)) -> 0 | Y148: =SUM(IF(B148>=(H$18:H$27),(1-g)*(G$18:G$27)*EXP(-dfop_k2*(B148-(H$18:H$27))),0)) -> 0 | Z148: 0.002583535917 | AA148: 0 | AB148: 0.002583535917 | AD148: =SUM(IF(B148>=(H$18:H$27),(G$18:G$27)*POWER(((B148-(H$18:H$27)))/fomc_b + 1,-fomc_a),0)) ->  | AF148: =SUM(IF(B148>=(H$18:H$27),(G$18:G$27)*(LN((B149-(H$18:H$27))/fomc_b + 1) - LN((B148-(H$18:H$27))/fomc_b + 1)),0)) ->  | AG148: =SUM(IF(B148>=(H$18:H$27),(G$18:G$27)*(POWER((B149-(H$18:H$27))/fomc_b + 1,(-fomc_a+1)) - POWER((B148-(H$18:H$27))/fomc_b + 1,(-fomc_a+1))),0)) ->  | AK148: 0 | AL148: =SUM(IF(B148>=(H$18:H$27),((B148-(H$18:H$27))<hs_tb)*(G$18:G$27)*EXP(-hs_k1*(B148-(H$18:H$27))),0)) -> 0 | AM148: =SUM(IF(B148>=(H$18:H$27),((B148-(H$18:H$27))=hs_tb)*(G$18:G$27)*EXP(-hs_k1*(B148-(H$18:H$27))),0)) -> 0 | AN148: =SUM(IF(B148>=(H$18:H$27),((B148-(H$18:H$27))>hs_tb)*(G$18:G$27)*tb_prefactor*EXP(-hs_k2*(B148-(H$18:H$27)-hs_tb)),0)) -> 0 | AO148: 0.002583535917 | AR148: 0 | AS148: 0 | AU148: =SUM(IF(B148=(H$18:H$27),(G$18:G$27)),0) -> 0 | AV148: 0.2108435524 | AW148: 0
B149: 4.8 | C149: 20.38874143 | D149: 16.86443816 | P149: =SUM(IF(B149>=(H$18:H$27),(G$18:G$27)*EXP(-sfo_k*(B149-(H$18:H$27))),0)) -> 20.38874143 | Q149: 16.86443816 | W149: 0 | X149: =SUM(IF(B149>=(H$18:H$27),g*(G$18:G$27)*EXP(-dfop_k1*(B149-(H$18:H$27))),0)) -> 0 | Y149: =SUM(IF(B149>=(H$18:H$27),(1-g)*(G$18:G$27)*EXP(-dfop_k2*(B149-(H$18:H$27))),0)) -> 0 | Z149: 0.002583535917 | AA149: 0 | AB149: 0.002583535917 | AD149: =SUM(IF(B149>=(H$18:H$27),(G$18:G$27)*POWER(((B149-(H$18:H$27)))/fomc_b + 1,-fomc_a),0)) ->  | AF149: =SUM(IF(B149>=(H$18:H$27),(G$18:G$27)*(LN((B150-(H$18:H$27))/fomc_b + 1) - LN((B149-(H$18:H$27))/fomc_b + 1)),0)) ->  | AG149: =SUM(IF(B149>=(H$18:H$27),(G$18:G$27)*(POWER((B150-(H$18:H$27))/fomc_b + 1,(-fomc_a+1)) - POWER((B149-(H$18:H$27))/fomc_b + 1,(-fomc_a+1))),0)) ->  | AK149: 0 | AL149: =SUM(IF(B149>=(H$18:H$27),((B149-(H$18:H$27))<hs_tb)*(G$18:G$27)*EXP(-hs_k1*(B149-(H$18:H$27))),0)) -> 0 | AM149: =SUM(IF(B149>=(H$18:H$27),((B149-(H$18:H$27))=hs_tb)*(G$18:G$27)*EXP(-hs_k1*(B149-(H$18:H$27))),0)) -> 0 | AN149: =SUM(IF(B149>=(H$18:H$27),((B149-(H$18:H$27))>hs_tb)*(G$18:G$27)*tb_prefactor*EXP(-hs_k2*(B149-(H$18:H$27)-hs_tb)),0)) -> 0 | AO149: 0.002583535917 | AR149: 0 | AS149: 0 | AU149: =SUM(IF(B149=(H$18:H$27),(G$18:G$27)),0) -> 0 | AV149: 0.2087071443 | AW149: 0
B150: 4.85 | C150: 20.18214904 | D150: 16.82194909 | P150: =SUM(IF(B150>=(H$18:H$27),(G$18:G$27)*EXP(-sfo_k*(B150-(H$18:H$27))),0)) -> 20.18214904 | Q150: 16.82194909 | W150: 0 | X150: =SUM(IF(B150>=(H$18:H$27),g*(G$18:G$27)*EXP(-dfop_k1*(B150-(H$18:H$27))),0)) -> 0 | Y150: =SUM(IF(B150>=(H$18:H$27),(1-g)*(G$18:G$27)*EXP(-dfop_k2*(B150-(H$18:H$27))),0)) -> 0 | Z150: 0.002583535917 | AA150: 0 | AB150: 0.002583535917 | AD150: =SUM(IF(B150>=(H$18:H$27),(G$18:G$27)*POWER(((B150-(H$18:H$27)))/fomc_b + 1,-fomc_a),0)) ->  | AF150: =SUM(IF(B150>=(H$18:H$27),(G$18:G$27)*(LN((B151-(H$18:H$27))/fomc_b + 1) - LN((B150-(H$18:H$27))/fomc_b + 1)),0)) ->  | AG150: =SUM(IF(B150>=(H$18:H$27),(G$18:G$27)*(POWER((B151-(H$18:H$27))/fomc_b + 1,(-fomc_a+1)) - POWER((B150-(H$18:H$27))/fomc_b + 1,(-fomc_a+1))),0)) ->  | AK150: 0 | AL150: =SUM(IF(B150>=(H$18:H$27),((B150-(H$18:H$27))<hs_tb)*(G$18:G$27)*EXP(-hs_k1*(B150-(H$18:H$27))),0)) -> 0 | AM150: =SUM(IF(B150>=(H$18:H$27),((B150-(H$18:H$27))=hs_tb)*(G$18:G$27)*EXP(-hs_k1*(B150-(H$18:H$27))),0)) -> 0 | AN150: =SUM(IF(B150>=(H$18:H$27),((B150-(H$18:H$27))>hs_tb)*(G$18:G$27)*tb_prefactor*EXP(-hs_k2*(B150-(H$18:H$27)-hs_tb)),0)) -> 0 | AO150: 0.002583535917 | AR150: 0 | AS150: 0 | AU150: =SUM(IF(B150=(H$18:H$27),(G$18:G$27)),0) -> 0 | AV150: 0.2065923838 | AW150: 0
B151: 4.9 | C151: 19.97764999 | D151: 16.77989055 | P151: =SUM(IF(B151>=(H$18:H$27),(G$18:G$27)*EXP(-sfo_k*(B151-(H$18:H$27))),0)) -> 19.97764999 | Q151: 16.77989055 | W151: 0 | X151: =SUM(IF(B151>=(H$18:H$27),g*(G$18:G$27)*EXP(-dfop_k1*(B151-(H$18:H$27))),0)) -> 0 | Y151: =SUM(IF(B151>=(H$18:H$27),(1-g)*(G$18:G$27)*EXP(-dfop_k2*(B151-(H$18:H$27))),0)) -> 0 | Z151: 0.002583535917 | AA151: 0 | AB151: 0.002583535917 | AD151: =SUM(IF(B151>=(H$18:H$27),(G$18:G$27)*POWER(((B151-(H$18:H$27)))/fomc_b + 1,-fomc_a),0)) ->  | AF151: =SUM(IF(B151>=(H$18:H$27),(G$18:G$27)*(LN((B152-(H$18:H$27))/fomc_b + 1) - LN((B151-(H$18:H$27))/fomc_b + 1)),0)) ->  | AG151: =SUM(IF(B151>=(H$18:H$27),(G$18:G$27)*(POWER((B152-(H$18:H$27))/fomc_b + 1,(-fomc_a+1)) - POWER((B151-(H$18:H$27))/fomc_b + 1,(-fomc_a+1))),0)) ->  | AK151: 0 | AL151: =SUM(IF(B151>=(H$18:H$27),((B151-(H$18:H$27))<hs_tb)*(G$18:G$27)*EXP(-hs_k1*(B151-(H$18:H$27))),0)) -> 0 | AM151: =SUM(IF(B151>=(H$18:H$27),((B151-(H$18:H$27))=hs_tb)*(G$18:G$27)*EXP(-hs_k1*(B151-(H$18:H$27))),0)) -> 0 | AN151: =SUM(IF(B151>=(H$18:H$27),((B151-(H$18:H$27))>hs_tb)*(G$18:G$27)*tb_prefactor*EXP(-hs_k2*(B151-(H$18:H$27)-hs_tb)),0)) -> 0 | AO151: 0.002583535917 | AR151: 0 | AS151: 0 | AU151: =SUM(IF(B151=(H$18:H$27),(G$18:G$27)),0) -> 0 | AV151: 0.2044990514 | AW151: 0
B152: 4.95 | C152: 19.77522306 | D152: 16.73825817 | P152: =SUM(IF(B152>=(H$18:H$27),(G$18:G$27)*EXP(-sfo_k*(B152-(H$18:H$27))),0)) -> 19.77522306 | Q152: 16.73825817 | W152: 0 | X152: =SUM(IF(B152>=(H$18:H$27),g*(G$18:G$27)*EXP(-dfop_k1*(B152-(H$18:H$27))),0)) -> 0 | Y152: =SUM(IF(B152>=(H$18:H$27),(1-g)*(G$18:G$27)*EXP(-dfop_k2*(B152-(H$18:H$27))),0)) -> 0 | Z152: 0.002583535917 | AA152: 0 | AB152: 0.002583535917 | AD152: =SUM(IF(B152>=(H$18:H$27),(G$18:G$27)*POWER(((B152-(H$18:H$27)))/fomc_b + 1,-fomc_a),0)) ->  | AF152: =SUM(IF(B152>=(H$18:H$27),(G$18:G$27)*(LN((B153-(H$18:H$27))/fomc_b + 1) - LN((B152-(H$18:H$27))/fomc_b + 1)),0)) ->  | AG152: =SUM(IF(B152>=(H$18:H$27),(G$18:G$27)*(POWER((B153-(H$18:H$27))/fomc_b + 1,(-fomc_a+1)) - POWER((B152-(H$18:H$27))/fomc_b + 1,(-fomc_a+1))),0)) ->  | AK152: 0 | AL152: =SUM(IF(B152>=(H$18:H$27),((B152-(H$18:H$27))<hs_tb)*(G$18:G$27)*EXP(-hs_k1*(B152-(H$18:H$27))),0)) -> 0 | AM152: =SUM(IF(B152>=(H$18:H$27),((B152-(H$18:H$27))=hs_tb)*(G$18:G$27)*EXP(-hs_k1*(B152-(H$18:H$27))),0)) -> 0 | AN152: =SUM(IF(B152>=(H$18:H$27),((B152-(H$18:H$27))>hs_tb)*(G$18:G$27)*tb_prefactor*EXP(-hs_k2*(B152-(H$18:H$27)-hs_tb)),0)) -> 0 | AO152: 0.002583535917 | AR152: 0 | AS152: 0 | AU152: =SUM(IF(B152=(H$18:H$27),(G$18:G$27)),0) -> 0 | AV152: 0.20242693 | AW152: 0
B153: 5 | C153: 19.57484726 | D153: 16.69704764 | P153: =SUM(IF(B153>=(H$18:H$27),(G$18:G$27)*EXP(-sfo_k*(B153-(H$18:H$27))),0)) -> 19.57484726 | Q153: 16.69704764 | W153: 0 | X153: =SUM(IF(B153>=(H$18:H$27),g*(G$18:G$27)*EXP(-dfop_k1*(B153-(H$18:H$27))),0)) -> 0 | Y153: =SUM(IF(B153>=(H$18:H$27),(1-g)*(G$18:G$27)*EXP(-dfop_k2*(B153-(H$18:H$27))),0)) -> 0 | Z153: 0.002583535917 | AA153: 0 | AB153: 0.002583535917 | AD153: =SUM(IF(B153>=(H$18:H$27),(G$18:G$27)*POWER(((B153-(H$18:H$27)))/fomc_b + 1,-fomc_a),0)) ->  | AF153: =SUM(IF(B153>=(H$18:H$27),(G$18:G$27)*(LN((B154-(H$18:H$27))/fomc_b + 1) - LN((B153-(H$18:H$27))/fomc_b + 1)),0)) ->  | AG153: =SUM(IF(B153>=(H$18:H$27),(G$18:G$27)*(POWER((B154-(H$18:H$27))/fomc_b + 1,(-fomc_a+1)) - POWER((B153-(H$18:H$27))/fomc_b + 1,(-fomc_a+1))),0)) ->  | AK153: 0 | AL153: =SUM(IF(B153>=(H$18:H$27),((B153-(H$18:H$27))<hs_tb)*(G$18:G$27)*EXP(-hs_k1*(B153-(H$18:H$27))),0)) -> 0 | AM153: =SUM(IF(B153>=(H$18:H$27),((B153-(H$18:H$27))=hs_tb)*(G$18:G$27)*EXP(-hs_k1*(B153-(H$18:H$27))),0)) -> 0 | AN153: =SUM(IF(B153>=(H$18:H$27),((B153-(H$18:H$27))>hs_tb)*(G$18:G$27)*tb_prefactor*EXP(-hs_k2*(B153-(H$18:H$27)-hs_tb)),0)) -> 0 | AO153: 0.002583535917 | AR153: 0 | AS153: 0 | AU153: =SUM(IF(B153=(H$18:H$27),(G$18:G$27)),0) -> 0 | AV153: 0.2003758048 | AW153: 0
B154: 5.05 | C154: 19.37650179 | D154: 16.65625468 | P154: =SUM(IF(B154>=(H$18:H$27),(G$18:G$27)*EXP(-sfo_k*(B154-(H$18:H$27))),0)) -> 19.37650179 | Q154: 16.65625468 | W154: 0 | X154: =SUM(IF(B154>=(H$18:H$27),g*(G$18:G$27)*EXP(-dfop_k1*(B154-(H$18:H$27))),0)) -> 0 | Y154: =SUM(IF(B154>=(H$18:H$27),(1-g)*(G$18:G$27)*EXP(-dfop_k2*(B154-(H$18:H$27))),0)) -> 0 | Z154: 0.002583535917 | AA154: 0 | AB154: 0.002583535917 | AD154: =SUM(IF(B154>=(H$18:H$27),(G$18:G$27)*POWER(((B154-(H$18:H$27)))/fomc_b + 1,-fomc_a),0)) ->  | AF154: =SUM(IF(B154>=(H$18:H$27),(G$18:G$27)*(LN((B155-(H$18:H$27))/fomc_b + 1) - LN((B154-(H$18:H$27))/fomc_b + 1)),0)) ->  | AG154: =SUM(IF(B154>=(H$18:H$27),(G$18:G$27)*(POWER((B155-(H$18:H$27))/fomc_b + 1,(-fomc_a+1)) - POWER((B154-(H$18:H$27))/fomc_b + 1,(-fomc_a+1))),0)) ->  | AK154: 0 | AL154: =SUM(IF(B154>=(H$18:H$27),((B154-(H$18:H$27))<hs_tb)*(G$18:G$27)*EXP(-hs_k1*(B154-(H$18:H$27))),0)) -> 0 | AM154: =SUM(IF(B154>=(H$18:H$27),((B154-(H$18:H$27))=hs_tb)*(G$18:G$27)*EXP(-hs_k1*(B154-(H$18:H$27))),0)) -> 0 | AN154: =SUM(IF(B154>=(H$18:H$27),((B154-(H$18:H$27))>hs_tb)*(G$18:G$27)*tb_prefactor*EXP(-hs_k2*(B154-(H$18:H$27)-hs_tb)),0)) -> 0 | AO154: 0.002583535917 | AR154: 0 | AS154: 0 | AU154: =SUM(IF(B154=(H$18:H$27),(G$18:G$27)),0) -> 0 | AV154: 0.1983454629 | AW154: 0
B155: 5.1 | C155: 19.1801661 | D155: 16.61587506 | P155: =SUM(IF(B155>=(H$18:H$27),(G$18:G$27)*EXP(-sfo_k*(B155-(H$18:H$27))),0)) -> 19.1801661 | Q155: 16.61587506 | W155: 0 | X155: =SUM(IF(B155>=(H$18:H$27),g*(G$18:G$27)*EXP(-dfop_k1*(B155-(H$18:H$27))),0)) -> 0 | Y155: =SUM(IF(B155>=(H$18:H$27),(1-g)*(G$18:G$27)*EXP(-dfop_k2*(B155-(H$18:H$27))),0)) -> 0 | Z155: 0.002583535917 | AA155: 0 | AB155: 0.002583535917 | AD155: =SUM(IF(B155>=(H$18:H$27),(G$18:G$27)*POWER(((B155-(H$18:H$27)))/fomc_b + 1,-fomc_a),0)) ->  | AF155: =SUM(IF(B155>=(H$18:H$27),(G$18:G$27)*(LN((B156-(H$18:H$27))/fomc_b + 1) - LN((B155-(H$18:H$27))/fomc_b + 1)),0)) ->  | AG155: =SUM(IF(B155>=(H$18:H$27),(G$18:G$27)*(POWER((B156-(H$18:H$27))/fomc_b + 1,(-fomc_a+1)) - POWER((B155-(H$18:H$27))/fomc_b + 1,(-fomc_a+1))),0)) ->  | AK155: 0 | AL155: =SUM(IF(B155>=(H$18:H$27),((B155-(H$18:H$27))<hs_tb)*(G$18:G$27)*EXP(-hs_k1*(B155-(H$18:H$27))),0)) -> 0 | AM155: =SUM(IF(B155>=(H$18:H$27),((B155-(H$18:H$27))=hs_tb)*(G$18:G$27)*EXP(-hs_k1*(B155-(H$18:H$27))),0)) -> 0 | AN155: =SUM(IF(B155>=(H$18:H$27),((B155-(H$18:H$27))>hs_tb)*(G$18:G$27)*tb_prefactor*EXP(-hs_k2*(B155-(H$18:H$27)-hs_tb)),0)) -> 0 | AO155: 0.002583535917 | AR155: 0 | AS155: 0 | AU155: =SUM(IF(B155=(H$18:H$27),(G$18:G$27)),0) -> 0 | AV155: 0.1963356938 | AW155: 0
B156: 5.15 | C156: 18.98581981 | D156: 16.5759046 | P156: =SUM(IF(B156>=(H$18:H$27),(G$18:G$27)*EXP(-sfo_k*(B156-(H$18:H$27))),0)) -> 18.98581981 | Q156: 16.5759046 | W156: 0 | X156: =SUM(IF(B156>=(H$18:H$27),g*(G$18:G$27)*EXP(-dfop_k1*(B156-(H$18:H$27))),0)) -> 0 | Y156: =SUM(IF(B156>=(H$18:H$27),(1-g)*(G$18:G$27)*EXP(-dfop_k2*(B156-(H$18:H$27))),0)) -> 0 | Z156: 0.002583535917 | AA156: 0 | AB156: 0.002583535917 | AD156: =SUM(IF(B156>=(H$18:H$27),(G$18:G$27)*POWER(((B156-(H$18:H$27)))/fomc_b + 1,-fomc_a),0)) ->  | AF156: =SUM(IF(B156>=(H$18:H$27),(G$18:G$27)*(LN((B157-(H$18:H$27))/fomc_b + 1) - LN((B156-(H$18:H$27))/fomc_b + 1)),0)) ->  | AG156: =SUM(IF(B156>=(H$18:H$27),(G$18:G$27)*(POWER((B157-(H$18:H$27))/fomc_b + 1,(-fomc_a+1)) - POWER((B156-(H$18:H$27))/fomc_b + 1,(-fomc_a+1))),0)) ->  | AK156: 0 | AL156: =SUM(IF(B156>=(H$18:H$27),((B156-(H$18:H$27))<hs_tb)*(G$18:G$27)*EXP(-hs_k1*(B156-(H$18:H$27))),0)) -> 0 | AM156: =SUM(IF(B156>=(H$18:H$27),((B156-(H$18:H$27))=hs_tb)*(G$18:G$27)*EXP(-hs_k1*(B156-(H$18:H$27))),0)) -> 0 | AN156: =SUM(IF(B156>=(H$18:H$27),((B156-(H$18:H$27))>hs_tb)*(G$18:G$27)*tb_prefactor*EXP(-hs_k2*(B156-(H$18:H$27)-hs_tb)),0)) -> 0 | AO156: 0.002583535917 | AR156: 0 | AS156: 0 | AU156: =SUM(IF(B156=(H$18:H$27),(G$18:G$27)),0) -> 0 | AV156: 0.1943462891 | AW156: 0
B157: 5.2 | C157: 18.79344277 | D157: 16.53633914 | P157: =SUM(IF(B157>=(H$18:H$27),(G$18:G$27)*EXP(-sfo_k*(B157-(H$18:H$27))),0)) -> 18.79344277 | Q157: 16.53633914 | W157: 0 | X157: =SUM(IF(B157>=(H$18:H$27),g*(G$18:G$27)*EXP(-dfop_k1*(B157-(H$18:H$27))),0)) -> 0 | Y157: =SUM(IF(B157>=(H$18:H$27),(1-g)*(G$18:G$27)*EXP(-dfop_k2*(B157-(H$18:H$27))),0)) -> 0 | Z157: 0.002583535917 | AA157: 0 | AB157: 0.002583535917 | AD157: =SUM(IF(B157>=(H$18:H$27),(G$18:G$27)*POWER(((B157-(H$18:H$27)))/fomc_b + 1,-fomc_a),0)) ->  | AF157: =SUM(IF(B157>=(H$18:H$27),(G$18:G$27)*(LN((B158-(H$18:H$27))/fomc_b + 1) - LN((B157-(H$18:H$27))/fomc_b + 1)),0)) ->  | AG157: =SUM(IF(B157>=(H$18:H$27),(G$18:G$27)*(POWER((B158-(H$18:H$27))/fomc_b + 1,(-fomc_a+1)) - POWER((B157-(H$18:H$27))/fomc_b + 1,(-fomc_a+1))),0)) ->  | AK157: 0 | AL157: =SUM(IF(B157>=(H$18:H$27),((B157-(H$18:H$27))<hs_tb)*(G$18:G$27)*EXP(-hs_k1*(B157-(H$18:H$27))),0)) -> 0 | AM157: =SUM(IF(B157>=(H$18:H$27),((B157-(H$18:H$27))=hs_tb)*(G$18:G$27)*EXP(-hs_k1*(B157-(H$18:H$27))),0)) -> 0 | AN157: =SUM(IF(B157>=(H$18:H$27),((B157-(H$18:H$27))>hs_tb)*(G$18:G$27)*tb_prefactor*EXP(-hs_k2*(B157-(H$18:H$27)-hs_tb)),0)) -> 0 | AO157: 0.002583535917 | AR157: 0 | AS157: 0 | AU157: =SUM(IF(B157=(H$18:H$27),(G$18:G$27)),0) -> 0 | AV157: 0.1923770423 | AW157: 0
B158: 5.25 | C158: 18.60301502 | D158: 16.49717459 | P158: =SUM(IF(B158>=(H$18:H$27),(G$18:G$27)*EXP(-sfo_k*(B158-(H$18:H$27))),0)) -> 18.60301502 | Q158: 16.49717459 | W158: 0 | X158: =SUM(IF(B158>=(H$18:H$27),g*(G$18:G$27)*EXP(-dfop_k1*(B158-(H$18:H$27))),0)) -> 0 | Y158: =SUM(IF(B158>=(H$18:H$27),(1-g)*(G$18:G$27)*EXP(-dfop_k2*(B158-(H$18:H$27))),0)) -> 0 | Z158: 0.002583535917 | AA158: 0 | AB158: 0.002583535917 | AD158: =SUM(IF(B158>=(H$18:H$27),(G$18:G$27)*POWER(((B158-(H$18:H$27)))/fomc_b + 1,-fomc_a),0)) ->  | AF158: =SUM(IF(B158>=(H$18:H$27),(G$18:G$27)*(LN((B159-(H$18:H$27))/fomc_b + 1) - LN((B158-(H$18:H$27))/fomc_b + 1)),0)) ->  | AG158: =SUM(IF(B158>=(H$18:H$27),(G$18:G$27)*(POWER((B159-(H$18:H$27))/fomc_b + 1,(-fomc_a+1)) - POWER((B158-(H$18:H$27))/fomc_b + 1,(-fomc_a+1))),0)) ->  | AK158: 0 | AL158: =SUM(IF(B158>=(H$18:H$27),((B158-(H$18:H$27))<hs_tb)*(G$18:G$27)*EXP(-hs_k1*(B158-(H$18:H$27))),0)) -> 0 | AM158: =SUM(IF(B158>=(H$18:H$27),((B158-(H$18:H$27))=hs_tb)*(G$18:G$27)*EXP(-hs_k1*(B158-(H$18:H$27))),0)) -> 0 | AN158: =SUM(IF(B158>=(H$18:H$27),((B158-(H$18:H$27))>hs_tb)*(G$18:G$27)*tb_prefactor*EXP(-hs_k2*(B158-(H$18:H$27)-hs_tb)),0)) -> 0 | AO158: 0.002583535917 | AR158: 0 | AS158: 0 | AU158: =SUM(IF(B158=(H$18:H$27),(G$18:G$27)),0) -> 0 | AV158: 0.1904277493 | AW158: 0
B159: 5.3 | C159: 18.41451681 | D159: 16.45840687 | P159: =SUM(IF(B159>=(H$18:H$27),(G$18:G$27)*EXP(-sfo_k*(B159-(H$18:H$27))),0)) -> 18.41451681 | Q159: 16.45840687 | W159: 0 | X159: =SUM(IF(B159>=(H$18:H$27),g*(G$18:G$27)*EXP(-dfop_k1*(B159-(H$18:H$27))),0)) -> 0 | Y159: =SUM(IF(B159>=(H$18:H$27),(1-g)*(G$18:G$27)*EXP(-dfop_k2*(B159-(H$18:H$27))),0)) -> 0 | Z159: 0.002583535917 | AA159: 0 | AB159: 0.002583535917 | AD159: =SUM(IF(B159>=(H$18:H$27),(G$18:G$27)*POWER(((B159-(H$18:H$27)))/fomc_b + 1,-fomc_a),0)) ->  | AF159: =SUM(IF(B159>=(H$18:H$27),(G$18:G$27)*(LN((B160-(H$18:H$27))/fomc_b + 1) - LN((B159-(H$18:H$27))/fomc_b + 1)),0)) ->  | AG159: =SUM(IF(B159>=(H$18:H$27),(G$18:G$27)*(POWER((B160-(H$18:H$27))/fomc_b + 1,(-fomc_a+1)) - POWER((B159-(H$18:H$27))/fomc_b + 1,(-fomc_a+1))),0)) ->  | AK159: 0 | AL159: =SUM(IF(B159>=(H$18:H$27),((B159-(H$18:H$27))<hs_tb)*(G$18:G$27)*EXP(-hs_k1*(B159-(H$18:H$27))),0)) -> 0 | AM159: =SUM(IF(B159>=(H$18:H$27),((B159-(H$18:H$27))=hs_tb)*(G$18:G$27)*EXP(-hs_k1*(B159-(H$18:H$27))),0)) -> 0 | AN159: =SUM(IF(B159>=(H$18:H$27),((B159-(H$18:H$27))>hs_tb)*(G$18:G$27)*tb_prefactor*EXP(-hs_k2*(B159-(H$18:H$27)-hs_tb)),0)) -> 0 | AO159: 0.002583535917 | AR159: 0 | AS159: 0 | AU159: =SUM(IF(B159=(H$18:H$27),(G$18:G$27)),0) -> 0 | AV159: 0.1884982078 | AW159: 0
B160: 5.35 | C160: 18.22792859 | D160: 16.42003198 | P160: =SUM(IF(B160>=(H$18:H$27),(G$18:G$27)*EXP(-sfo_k*(B160-(H$18:H$27))),0)) -> 18.22792859 | Q160: 16.42003198 | W160: 0 | X160: =SUM(IF(B160>=(H$18:H$27),g*(G$18:G$27)*EXP(-dfop_k1*(B160-(H$18:H$27))),0)) -> 0 | Y160: =SUM(IF(B160>=(H$18:H$27),(1-g)*(G$18:G$27)*EXP(-dfop_k2*(B160-(H$18:H$27))),0)) -> 0 | Z160: 0.002583535917 | AA160: 0 | AB160: 0.002583535917 | AD160: =SUM(IF(B160>=(H$18:H$27),(G$18:G$27)*POWER(((B160-(H$18:H$27)))/fomc_b + 1,-fomc_a),0)) ->  | AF160: =SUM(IF(B160>=(H$18:H$27),(G$18:G$27)*(LN((B161-(H$18:H$27))/fomc_b + 1) - LN((B160-(H$18:H$27))/fomc_b + 1)),0)) ->  | AG160: =SUM(IF(B160>=(H$18:H$27),(G$18:G$27)*(POWER((B161-(H$18:H$27))/fomc_b + 1,(-fomc_a+1)) - POWER((B160-(H$18:H$27))/fomc_b + 1,(-fomc_a+1))),0)) ->  | AK160: 0 | AL160: =SUM(IF(B160>=(H$18:H$27),((B160-(H$18:H$27))<hs_tb)*(G$18:G$27)*EXP(-hs_k1*(B160-(H$18:H$27))),0)) -> 0 | AM160: =SUM(IF(B160>=(H$18:H$27),((B160-(H$18:H$27))=hs_tb)*(G$18:G$27)*EXP(-hs_k1*(B160-(H$18:H$27))),0)) -> 0 | AN160: =SUM(IF(B160>=(H$18:H$27),((B160-(H$18:H$27))>hs_tb)*(G$18:G$27)*tb_prefactor*EXP(-hs_k2*(B160-(H$18:H$27)-hs_tb)),0)) -> 0 | AO160: 0.002583535917 | AR160: 0 | AS160: 0 | AU160: =SUM(IF(B160=(H$18:H$27),(G$18:G$27)),0) -> 0 | AV160: 0.1865882177 | AW160: 0
B161: 5.4 | C161: 18.04323101 | D161: 16.38204593 | P161: =SUM(IF(B161>=(H$18:H$27),(G$18:G$27)*EXP(-sfo_k*(B161-(H$18:H$27))),0)) -> 18.04323101 | Q161: 16.38204593 | W161: 0 | X161: =SUM(IF(B161>=(H$18:H$27),g*(G$18:G$27)*EXP(-dfop_k1*(B161-(H$18:H$27))),0)) -> 0 | Y161: =SUM(IF(B161>=(H$18:H$27),(1-g)*(G$18:G$27)*EXP(-dfop_k2*(B161-(H$18:H$27))),0)) -> 0 | Z161: 0.002583535917 | AA161: 0 | AB161: 0.002583535917 | AD161: =SUM(IF(B161>=(H$18:H$27),(G$18:G$27)*POWER(((B161-(H$18:H$27)))/fomc_b + 1,-fomc_a),0)) ->  | AF161: =SUM(IF(B161>=(H$18:H$27),(G$18:G$27)*(LN((B162-(H$18:H$27))/fomc_b + 1) - LN((B161-(H$18:H$27))/fomc_b + 1)),0)) ->  | AG161: =SUM(IF(B161>=(H$18:H$27),(G$18:G$27)*(POWER((B162-(H$18:H$27))/fomc_b + 1,(-fomc_a+1)) - POWER((B161-(H$18:H$27))/fomc_b + 1,(-fomc_a+1))),0)) ->  | AK161: 0 | AL161: =SUM(IF(B161>=(H$18:H$27),((B161-(H$18:H$27))<hs_tb)*(G$18:G$27)*EXP(-hs_k1*(B161-(H$18:H$27))),0)) -> 0 | AM161: =SUM(IF(B161>=(H$18:H$27),((B161-(H$18:H$27))=hs_tb)*(G$18:G$27)*EXP(-hs_k1*(B161-(H$18:H$27))),0)) -> 0 | AN161: =SUM(IF(B161>=(H$18:H$27),((B161-(H$18:H$27))>hs_tb)*(G$18:G$27)*tb_prefactor*EXP(-hs_k2*(B161-(H$18:H$27)-hs_tb)),0)) -> 0 | AO161: 0.002583535917 | AR161: 0 | AS161: 0 | AU161: =SUM(IF(B161=(H$18:H$27),(G$18:G$27)),0) -> 0 | AV161: 0.1846975809 | AW161: 0
B162: 5.45 | C162: 17.86040491 | D162: 16.34444478 | P162: =SUM(IF(B162>=(H$18:H$27),(G$18:G$27)*EXP(-sfo_k*(B162-(H$18:H$27))),0)) -> 17.86040491 | Q162: 16.34444478 | W162: 0 | X162: =SUM(IF(B162>=(H$18:H$27),g*(G$18:G$27)*EXP(-dfop_k1*(B162-(H$18:H$27))),0)) -> 0 | Y162: =SUM(IF(B162>=(H$18:H$27),(1-g)*(G$18:G$27)*EXP(-dfop_k2*(B162-(H$18:H$27))),0)) -> 0 | Z162: 0.002583535917 | AA162: 0 | AB162: 0.002583535917 | AD162: =SUM(IF(B162>=(H$18:H$27),(G$18:G$27)*POWER(((B162-(H$18:H$27)))/fomc_b + 1,-fomc_a),0)) ->  | AF162: =SUM(IF(B162>=(H$18:H$27),(G$18:G$27)*(LN((B163-(H$18:H$27))/fomc_b + 1) - LN((B162-(H$18:H$27))/fomc_b + 1)),0)) ->  | AG162: =SUM(IF(B162>=(H$18:H$27),(G$18:G$27)*(POWER((B163-(H$18:H$27))/fomc_b + 1,(-fomc_a+1)) - POWER((B162-(H$18:H$27))/fomc_b + 1,(-fomc_a+1))),0)) ->  | AK162: 0 | AL162: =SUM(IF(B162>=(H$18:H$27),((B162-(H$18:H$27))<hs_tb)*(G$18:G$27)*EXP(-hs_k1*(B162-(H$18:H$27))),0)) -> 0 | AM162: =SUM(IF(B162>=(H$18:H$27),((B162-(H$18:H$27))=hs_tb)*(G$18:G$27)*EXP(-hs_k1*(B162-(H$18:H$27))),0)) -> 0 | AN162: =SUM(IF(B162>=(H$18:H$27),((B162-(H$18:H$27))>hs_tb)*(G$18:G$27)*tb_prefactor*EXP(-hs_k2*(B162-(H$18:H$27)-hs_tb)),0)) -> 0 | AO162: 0.002583535917 | AR162: 0 | AS162: 0 | AU162: =SUM(IF(B162=(H$18:H$27),(G$18:G$27)),0) -> 0 | AV162: 0.1828261013 | AW162: 0
B163: 5.5 | C163: 17.67943133 | D163: 16.30722463 | P163: =SUM(IF(B163>=(H$18:H$27),(G$18:G$27)*EXP(-sfo_k*(B163-(H$18:H$27))),0)) -> 17.67943133 | Q163: 16.30722463 | W163: 0 | X163: =SUM(IF(B163>=(H$18:H$27),g*(G$18:G$27)*EXP(-dfop_k1*(B163-(H$18:H$27))),0)) -> 0 | Y163: =SUM(IF(B163>=(H$18:H$27),(1-g)*(G$18:G$27)*EXP(-dfop_k2*(B163-(H$18:H$27))),0)) -> 0 | Z163: 0.002583535917 | AA163: 0 | AB163: 0.002583535917 | AD163: =SUM(IF(B163>=(H$18:H$27),(G$18:G$27)*POWER(((B163-(H$18:H$27)))/fomc_b + 1,-fomc_a),0)) ->  | AF163: =SUM(IF(B163>=(H$18:H$27),(G$18:G$27)*(LN((B164-(H$18:H$27))/fomc_b + 1) - LN((B163-(H$18:H$27))/fomc_b + 1)),0)) ->  | AG163: =SUM(IF(B163>=(H$18:H$27),(G$18:G$27)*(POWER((B164-(H$18:H$27))/fomc_b + 1,(-fomc_a+1)) - POWER((B163-(H$18:H$27))/fomc_b + 1,(-fomc_a+1))),0)) ->  | AK163: 0 | AL163: =SUM(IF(B163>=(H$18:H$27),((B163-(H$18:H$27))<hs_tb)*(G$18:G$27)*EXP(-hs_k1*(B163-(H$18:H$27))),0)) -> 0 | AM163: =SUM(IF(B163>=(H$18:H$27),((B163-(H$18:H$27))=hs_tb)*(G$18:G$27)*EXP(-hs_k1*(B163-(H$18:H$27))),0)) -> 0 | AN163: =SUM(IF(B163>=(H$18:H$27),((B163-(H$18:H$27))>hs_tb)*(G$18:G$27)*tb_prefactor*EXP(-hs_k2*(B163-(H$18:H$27)-hs_tb)),0)) -> 0 | AO163: 0.002583535917 | AR163: 0 | AS163: 0 | AU163: =SUM(IF(B163=(H$18:H$27),(G$18:G$27)),0) -> 0 | AV163: 0.1809735848 | AW163: 0
B164: 5.55 | C164: 17.50029149 | D164: 16.27038162 | P164: =SUM(IF(B164>=(H$18:H$27),(G$18:G$27)*EXP(-sfo_k*(B164-(H$18:H$27))),0)) -> 17.50029149 | Q164: 16.27038162 | W164: 0 | X164: =SUM(IF(B164>=(H$18:H$27),g*(G$18:G$27)*EXP(-dfop_k1*(B164-(H$18:H$27))),0)) -> 0 | Y164: =SUM(IF(B164>=(H$18:H$27),(1-g)*(G$18:G$27)*EXP(-dfop_k2*(B164-(H$18:H$27))),0)) -> 0 | Z164: 0.002583535917 | AA164: 0 | AB164: 0.002583535917 | AD164: =SUM(IF(B164>=(H$18:H$27),(G$18:G$27)*POWER(((B164-(H$18:H$27)))/fomc_b + 1,-fomc_a),0)) ->  | AF164: =SUM(IF(B164>=(H$18:H$27),(G$18:G$27)*(LN((B165-(H$18:H$27))/fomc_b + 1) - LN((B164-(H$18:H$27))/fomc_b + 1)),0)) ->  | AG164: =SUM(IF(B164>=(H$18:H$27),(G$18:G$27)*(POWER((B165-(H$18:H$27))/fomc_b + 1,(-fomc_a+1)) - POWER((B164-(H$18:H$27))/fomc_b + 1,(-fomc_a+1))),0)) ->  | AK164: 0 | AL164: =SUM(IF(B164>=(H$18:H$27),((B164-(H$18:H$27))<hs_tb)*(G$18:G$27)*EXP(-hs_k1*(B164-(H$18:H$27))),0)) -> 0 | AM164: =SUM(IF(B164>=(H$18:H$27),((B164-(H$18:H$27))=hs_tb)*(G$18:G$27)*EXP(-hs_k1*(B164-(H$18:H$27))),0)) -> 0 | AN164: =SUM(IF(B164>=(H$18:H$27),((B164-(H$18:H$27))>hs_tb)*(G$18:G$27)*tb_prefactor*EXP(-hs_k2*(B164-(H$18:H$27)-hs_tb)),0)) -> 0 | AO164: 0.002583535917 | AR164: 0 | AS164: 0 | AU164: =SUM(IF(B164=(H$18:H$27),(G$18:G$27)),0) -> 0 | AV164: 0.1791398392 | AW164: 0
B165: 5.6 | C165: 17.32296681 | D165: 16.23391193 | P165: =SUM(IF(B165>=(H$18:H$27),(G$18:G$27)*EXP(-sfo_k*(B165-(H$18:H$27))),0)) -> 17.32296681 | Q165: 16.23391193 | W165: 0 | X165: =SUM(IF(B165>=(H$18:H$27),g*(G$18:G$27)*EXP(-dfop_k1*(B165-(H$18:H$27))),0)) -> 0 | Y165: =SUM(IF(B165>=(H$18:H$27),(1-g)*(G$18:G$27)*EXP(-dfop_k2*(B165-(H$18:H$27))),0)) -> 0 | Z165: 0.002583535917 | AA165: 0 | AB165: 0.002583535917 | AD165: =SUM(IF(B165>=(H$18:H$27),(G$18:G$27)*POWER(((B165-(H$18:H$27)))/fomc_b + 1,-fomc_a),0)) ->  | AF165: =SUM(IF(B165>=(H$18:H$27),(G$18:G$27)*(LN((B166-(H$18:H$27))/fomc_b + 1) - LN((B165-(H$18:H$27))/fomc_b + 1)),0)) ->  | AG165: =SUM(IF(B165>=(H$18:H$27),(G$18:G$27)*(POWER((B166-(H$18:H$27))/fomc_b + 1,(-fomc_a+1)) - POWER((B165-(H$18:H$27))/fomc_b + 1,(-fomc_a+1))),0)) ->  | AK165: 0 | AL165: =SUM(IF(B165>=(H$18:H$27),((B165-(H$18:H$27))<hs_tb)*(G$18:G$27)*EXP(-hs_k1*(B165-(H$18:H$27))),0)) -> 0 | AM165: =SUM(IF(B165>=(H$18:H$27),((B165-(H$18:H$27))=hs_tb)*(G$18:G$27)*EXP(-hs_k1*(B165-(H$18:H$27))),0)) -> 0 | AN165: =SUM(IF(B165>=(H$18:H$27),((B165-(H$18:H$27))>hs_tb)*(G$18:G$27)*tb_prefactor*EXP(-hs_k2*(B165-(H$18:H$27)-hs_tb)),0)) -> 0 | AO165: 0.002583535917 | AR165: 0 | AS165: 0 | AU165: =SUM(IF(B165=(H$18:H$27),(G$18:G$27)),0) -> 0 | AV165: 0.1773246744 | AW165: 0
B166: 5.65 | C166: 17.14743891 | D166: 16.19781177 | P166: =SUM(IF(B166>=(H$18:H$27),(G$18:G$27)*EXP(-sfo_k*(B166-(H$18:H$27))),0)) -> 17.14743891 | Q166: 16.19781177 | W166: 0 | X166: =SUM(IF(B166>=(H$18:H$27),g*(G$18:G$27)*EXP(-dfop_k1*(B166-(H$18:H$27))),0)) -> 0 | Y166: =SUM(IF(B166>=(H$18:H$27),(1-g)*(G$18:G$27)*EXP(-dfop_k2*(B166-(H$18:H$27))),0)) -> 0 | Z166: 0.002583535917 | AA166: 0 | AB166: 0.002583535917 | AD166: =SUM(IF(B166>=(H$18:H$27),(G$18:G$27)*POWER(((B166-(H$18:H$27)))/fomc_b + 1,-fomc_a),0)) ->  | AF166: =SUM(IF(B166>=(H$18:H$27),(G$18:G$27)*(LN((B167-(H$18:H$27))/fomc_b + 1) - LN((B166-(H$18:H$27))/fomc_b + 1)),0)) ->  | AG166: =SUM(IF(B166>=(H$18:H$27),(G$18:G$27)*(POWER((B167-(H$18:H$27))/fomc_b + 1,(-fomc_a+1)) - POWER((B166-(H$18:H$27))/fomc_b + 1,(-fomc_a+1))),0)) ->  | AK166: 0 | AL166: =SUM(IF(B166>=(H$18:H$27),((B166-(H$18:H$27))<hs_tb)*(G$18:G$27)*EXP(-hs_k1*(B166-(H$18:H$27))),0)) -> 0 | AM166: =SUM(IF(B166>=(H$18:H$27),((B166-(H$18:H$27))=hs_tb)*(G$18:G$27)*EXP(-hs_k1*(B166-(H$18:H$27))),0)) -> 0 | AN166: =SUM(IF(B166>=(H$18:H$27),((B166-(H$18:H$27))>hs_tb)*(G$18:G$27)*tb_prefactor*EXP(-hs_k2*(B166-(H$18:H$27)-hs_tb)),0)) -> 0 | AO166: 0.002583535917 | AR166: 0 | AS166: 0 | AU166: =SUM(IF(B166=(H$18:H$27),(G$18:G$27)),0) -> 0 | AV166: 0.175527902 | AW166: 0
B167: 5.7 | C167: 16.97368958 | D167: 16.1620774 | P167: =SUM(IF(B167>=(H$18:H$27),(G$18:G$27)*EXP(-sfo_k*(B167-(H$18:H$27))),0)) -> 16.97368958 | Q167: 16.1620774 | W167: 0 | X167: =SUM(IF(B167>=(H$18:H$27),g*(G$18:G$27)*EXP(-dfop_k1*(B167-(H$18:H$27))),0)) -> 0 | Y167: =SUM(IF(B167>=(H$18:H$27),(1-g)*(G$18:G$27)*EXP(-dfop_k2*(B167-(H$18:H$27))),0)) -> 0 | Z167: 0.002583535917 | AA167: 0 | AB167: 0.002583535917 | AD167: =SUM(IF(B167>=(H$18:H$27),(G$18:G$27)*POWER(((B167-(H$18:H$27)))/fomc_b + 1,-fomc_a),0)) ->  | AF167: =SUM(IF(B167>=(H$18:H$27),(G$18:G$27)*(LN((B168-(H$18:H$27))/fomc_b + 1) - LN((B167-(H$18:H$27))/fomc_b + 1)),0)) ->  | AG167: =SUM(IF(B167>=(H$18:H$27),(G$18:G$27)*(POWER((B168-(H$18:H$27))/fomc_b + 1,(-fomc_a+1)) - POWER((B167-(H$18:H$27))/fomc_b + 1,(-fomc_a+1))),0)) ->  | AK167: 0 | AL167: =SUM(IF(B167>=(H$18:H$27),((B167-(H$18:H$27))<hs_tb)*(G$18:G$27)*EXP(-hs_k1*(B167-(H$18:H$27))),0)) -> 0 | AM167: =SUM(IF(B167>=(H$18:H$27),((B167-(H$18:H$27))=hs_tb)*(G$18:G$27)*EXP(-hs_k1*(B167-(H$18:H$27))),0)) -> 0 | AN167: =SUM(IF(B167>=(H$18:H$27),((B167-(H$18:H$27))>hs_tb)*(G$18:G$27)*tb_prefactor*EXP(-hs_k2*(B167-(H$18:H$27)-hs_tb)),0)) -> 0 | AO167: 0.002583535917 | AR167: 0 | AS167: 0 | AU167: =SUM(IF(B167=(H$18:H$27),(G$18:G$27)),0) -> 0 | AV167: 0.1737493358 | AW167: 0
B168: 5.75 | C168: 16.80170079 | D168: 16.12670512 | P168: =SUM(IF(B168>=(H$18:H$27),(G$18:G$27)*EXP(-sfo_k*(B168-(H$18:H$27))),0)) -> 16.80170079 | Q168: 16.12670512 | W168: 0 | X168: =SUM(IF(B168>=(H$18:H$27),g*(G$18:G$27)*EXP(-dfop_k1*(B168-(H$18:H$27))),0)) -> 0 | Y168: =SUM(IF(B168>=(H$18:H$27),(1-g)*(G$18:G$27)*EXP(-dfop_k2*(B168-(H$18:H$27))),0)) -> 0 | Z168: 0.002583535917 | AA168: 0 | AB168: 0.002583535917 | AD168: =SUM(IF(B168>=(H$18:H$27),(G$18:G$27)*POWER(((B168-(H$18:H$27)))/fomc_b + 1,-fomc_a),0)) ->  | AF168: =SUM(IF(B168>=(H$18:H$27),(G$18:G$27)*(LN((B169-(H$18:H$27))/fomc_b + 1) - LN((B168-(H$18:H$27))/fomc_b + 1)),0)) ->  | AG168: =SUM(IF(B168>=(H$18:H$27),(G$18:G$27)*(POWER((B169-(H$18:H$27))/fomc_b + 1,(-fomc_a+1)) - POWER((B168-(H$18:H$27))/fomc_b + 1,(-fomc_a+1))),0)) ->  | AK168: 0 | AL168: =SUM(IF(B168>=(H$18:H$27),((B168-(H$18:H$27))<hs_tb)*(G$18:G$27)*EXP(-hs_k1*(B168-(H$18:H$27))),0)) -> 0 | AM168: =SUM(IF(B168>=(H$18:H$27),((B168-(H$18:H$27))=hs_tb)*(G$18:G$27)*EXP(-hs_k1*(B168-(H$18:H$27))),0)) -> 0 | AN168: =SUM(IF(B168>=(H$18:H$27),((B168-(H$18:H$27))>hs_tb)*(G$18:G$27)*tb_prefactor*EXP(-hs_k2*(B168-(H$18:H$27)-hs_tb)),0)) -> 0 | AO168: 0.002583535917 | AR168: 0 | AS168: 0 | AU168: =SUM(IF(B168=(H$18:H$27),(G$18:G$27)),0) -> 0 | AV168: 0.1719887911 | AW168: 0
B169: 5.8 | C169: 16.6314547 | D169: 16.09169125 | P169: =SUM(IF(B169>=(H$18:H$27),(G$18:G$27)*EXP(-sfo_k*(B169-(H$18:H$27))),0)) -> 16.6314547 | Q169: 16.09169125 | W169: 0 | X169: =SUM(IF(B169>=(H$18:H$27),g*(G$18:G$27)*EXP(-dfop_k1*(B169-(H$18:H$27))),0)) -> 0 | Y169: =SUM(IF(B169>=(H$18:H$27),(1-g)*(G$18:G$27)*EXP(-dfop_k2*(B169-(H$18:H$27))),0)) -> 0 | Z169: 0.002583535917 | AA169: 0 | AB169: 0.002583535917 | AD169: =SUM(IF(B169>=(H$18:H$27),(G$18:G$27)*POWER(((B169-(H$18:H$27)))/fomc_b + 1,-fomc_a),0)) ->  | AF169: =SUM(IF(B169>=(H$18:H$27),(G$18:G$27)*(LN((B170-(H$18:H$27))/fomc_b + 1) - LN((B169-(H$18:H$27))/fomc_b + 1)),0)) ->  | AG169: =SUM(IF(B169>=(H$18:H$27),(G$18:G$27)*(POWER((B170-(H$18:H$27))/fomc_b + 1,(-fomc_a+1)) - POWER((B169-(H$18:H$27))/fomc_b + 1,(-fomc_a+1))),0)) ->  | AK169: 0 | AL169: =SUM(IF(B169>=(H$18:H$27),((B169-(H$18:H$27))<hs_tb)*(G$18:G$27)*EXP(-hs_k1*(B169-(H$18:H$27))),0)) -> 0 | AM169: =SUM(IF(B169>=(H$18:H$27),((B169-(H$18:H$27))=hs_tb)*(G$18:G$27)*EXP(-hs_k1*(B169-(H$18:H$27))),0)) -> 0 | AN169: =SUM(IF(B169>=(H$18:H$27),((B169-(H$18:H$27))>hs_tb)*(G$18:G$27)*tb_prefactor*EXP(-hs_k2*(B169-(H$18:H$27)-hs_tb)),0)) -> 0 | AO169: 0.002583535917 | AR169: 0 | AS169: 0 | AU169: =SUM(IF(B169=(H$18:H$27),(G$18:G$27)),0) -> 0 | AV169: 0.1702460855 | AW169: 0
B170: 5.85 | C170: 16.46293366 | D170: 16.05703217 | P170: =SUM(IF(B170>=(H$18:H$27),(G$18:G$27)*EXP(-sfo_k*(B170-(H$18:H$27))),0)) -> 16.46293366 | Q170: 16.05703217 | W170: 0 | X170: =SUM(IF(B170>=(H$18:H$27),g*(G$18:G$27)*EXP(-dfop_k1*(B170-(H$18:H$27))),0)) -> 0 | Y170: =SUM(IF(B170>=(H$18:H$27),(1-g)*(G$18:G$27)*EXP(-dfop_k2*(B170-(H$18:H$27))),0)) -> 0 | Z170: 0.002583535917 | AA170: 0 | AB170: 0.002583535917 | AD170: =SUM(IF(B170>=(H$18:H$27),(G$18:G$27)*POWER(((B170-(H$18:H$27)))/fomc_b + 1,-fomc_a),0)) ->  | AF170: =SUM(IF(B170>=(H$18:H$27),(G$18:G$27)*(LN((B171-(H$18:H$27))/fomc_b + 1) - LN((B170-(H$18:H$27))/fomc_b + 1)),0)) ->  | AG170: =SUM(IF(B170>=(H$18:H$27),(G$18:G$27)*(POWER((B171-(H$18:H$27))/fomc_b + 1,(-fomc_a+1)) - POWER((B170-(H$18:H$27))/fomc_b + 1,(-fomc_a+1))),0)) ->  | AK170: 0 | AL170: =SUM(IF(B170>=(H$18:H$27),((B170-(H$18:H$27))<hs_tb)*(G$18:G$27)*EXP(-hs_k1*(B170-(H$18:H$27))),0)) -> 0 | AM170: =SUM(IF(B170>=(H$18:H$27),((B170-(H$18:H$27))=hs_tb)*(G$18:G$27)*EXP(-hs_k1*(B170-(H$18:H$27))),0)) -> 0 | AN170: =SUM(IF(B170>=(H$18:H$27),((B170-(H$18:H$27))>hs_tb)*(G$18:G$27)*tb_prefactor*EXP(-hs_k2*(B170-(H$18:H$27)-hs_tb)),0)) -> 0 | AO170: 0.002583535917 | AR170: 0 | AS170: 0 | AU170: =SUM(IF(B170=(H$18:H$27),(G$18:G$27)),0) -> 0 | AV170: 0.1685210381 | AW170: 0
B171: 5.9 | C171: 16.29612019 | D171: 16.02272428 | P171: =SUM(IF(B171>=(H$18:H$27),(G$18:G$27)*EXP(-sfo_k*(B171-(H$18:H$27))),0)) -> 16.29612019 | Q171: 16.02272428 | W171: 0 | X171: =SUM(IF(B171>=(H$18:H$27),g*(G$18:G$27)*EXP(-dfop_k1*(B171-(H$18:H$27))),0)) -> 0 | Y171: =SUM(IF(B171>=(H$18:H$27),(1-g)*(G$18:G$27)*EXP(-dfop_k2*(B171-(H$18:H$27))),0)) -> 0 | Z171: 0.002583535917 | AA171: 0 | AB171: 0.002583535917 | AD171: =SUM(IF(B171>=(H$18:H$27),(G$18:G$27)*POWER(((B171-(H$18:H$27)))/fomc_b + 1,-fomc_a),0)) ->  | AF171: =SUM(IF(B171>=(H$18:H$27),(G$18:G$27)*(LN((B172-(H$18:H$27))/fomc_b + 1) - LN((B171-(H$18:H$27))/fomc_b + 1)),0)) ->  | AG171: =SUM(IF(B171>=(H$18:H$27),(G$18:G$27)*(POWER((B172-(H$18:H$27))/fomc_b + 1,(-fomc_a+1)) - POWER((B171-(H$18:H$27))/fomc_b + 1,(-fomc_a+1))),0)) ->  | AK171: 0 | AL171: =SUM(IF(B171>=(H$18:H$27),((B171-(H$18:H$27))<hs_tb)*(G$18:G$27)*EXP(-hs_k1*(B171-(H$18:H$27))),0)) -> 0 | AM171: =SUM(IF(B171>=(H$18:H$27),((B171-(H$18:H$27))=hs_tb)*(G$18:G$27)*EXP(-hs_k1*(B171-(H$18:H$27))),0)) -> 0 | AN171: =SUM(IF(B171>=(H$18:H$27),((B171-(H$18:H$27))>hs_tb)*(G$18:G$27)*tb_prefactor*EXP(-hs_k2*(B171-(H$18:H$27)-hs_tb)),0)) -> 0 | AO171: 0.002583535917 | AR171: 0 | AS171: 0 | AU171: =SUM(IF(B171=(H$18:H$27),(G$18:G$27)),0) -> 0 | AV171: 0.1668134701 | AW171: 0
B172: 5.95 | C172: 16.13099699 | D172: 15.98876402 | P172: =SUM(IF(B172>=(H$18:H$27),(G$18:G$27)*EXP(-sfo_k*(B172-(H$18:H$27))),0)) -> 16.13099699 | Q172: 15.98876402 | W172: 0 | X172: =SUM(IF(B172>=(H$18:H$27),g*(G$18:G$27)*EXP(-dfop_k1*(B172-(H$18:H$27))),0)) -> 0 | Y172: =SUM(IF(B172>=(H$18:H$27),(1-g)*(G$18:G$27)*EXP(-dfop_k2*(B172-(H$18:H$27))),0)) -> 0 | Z172: 0.002583535917 | AA172: 0 | AB172: 0.002583535917 | AD172: =SUM(IF(B172>=(H$18:H$27),(G$18:G$27)*POWER(((B172-(H$18:H$27)))/fomc_b + 1,-fomc_a),0)) ->  | AF172: =SUM(IF(B172>=(H$18:H$27),(G$18:G$27)*(LN((B173-(H$18:H$27))/fomc_b + 1) - LN((B172-(H$18:H$27))/fomc_b + 1)),0)) ->  | AG172: =SUM(IF(B172>=(H$18:H$27),(G$18:G$27)*(POWER((B173-(H$18:H$27))/fomc_b + 1,(-fomc_a+1)) - POWER((B172-(H$18:H$27))/fomc_b + 1,(-fomc_a+1))),0)) ->  | AK172: 0 | AL172: =SUM(IF(B172>=(H$18:H$27),((B172-(H$18:H$27))<hs_tb)*(G$18:G$27)*EXP(-hs_k1*(B172-(H$18:H$27))),0)) -> 0 | AM172: =SUM(IF(B172>=(H$18:H$27),((B172-(H$18:H$27))=hs_tb)*(G$18:G$27)*EXP(-hs_k1*(B172-(H$18:H$27))),0)) -> 0 | AN172: =SUM(IF(B172>=(H$18:H$27),((B172-(H$18:H$27))>hs_tb)*(G$18:G$27)*tb_prefactor*EXP(-hs_k2*(B172-(H$18:H$27)-hs_tb)),0)) -> 0 | AO172: 0.002583535917 | AR172: 0 | AS172: 0 | AU172: =SUM(IF(B172=(H$18:H$27),(G$18:G$27)),0) -> 0 | AV172: 0.1651232043 | AW172: 0
B173: 6 | C173: 15.96754692 | D173: 15.95514786 | P173: =SUM(IF(B173>=(H$18:H$27),(G$18:G$27)*EXP(-sfo_k*(B173-(H$18:H$27))),0)) -> 15.96754692 | Q173: 15.95514786 | W173: 0 | X173: =SUM(IF(B173>=(H$18:H$27),g*(G$18:G$27)*EXP(-dfop_k1*(B173-(H$18:H$27))),0)) -> 0 | Y173: =SUM(IF(B173>=(H$18:H$27),(1-g)*(G$18:G$27)*EXP(-dfop_k2*(B173-(H$18:H$27))),0)) -> 0 | Z173: 0.002583535917 | AA173: 0 | AB173: 0.002583535917 | AD173: =SUM(IF(B173>=(H$18:H$27),(G$18:G$27)*POWER(((B173-(H$18:H$27)))/fomc_b + 1,-fomc_a),0)) ->  | AF173: =SUM(IF(B173>=(H$18:H$27),(G$18:G$27)*(LN((B174-(H$18:H$27))/fomc_b + 1) - LN((B173-(H$18:H$27))/fomc_b + 1)),0)) ->  | AG173: =SUM(IF(B173>=(H$18:H$27),(G$18:G$27)*(POWER((B174-(H$18:H$27))/fomc_b + 1,(-fomc_a+1)) - POWER((B173-(H$18:H$27))/fomc_b + 1,(-fomc_a+1))),0)) ->  | AK173: 0 | AL173: =SUM(IF(B173>=(H$18:H$27),((B173-(H$18:H$27))<hs_tb)*(G$18:G$27)*EXP(-hs_k1*(B173-(H$18:H$27))),0)) -> 0 | AM173: =SUM(IF(B173>=(H$18:H$27),((B173-(H$18:H$27))=hs_tb)*(G$18:G$27)*EXP(-hs_k1*(B173-(H$18:H$27))),0)) -> 0 | AN173: =SUM(IF(B173>=(H$18:H$27),((B173-(H$18:H$27))>hs_tb)*(G$18:G$27)*tb_prefactor*EXP(-hs_k2*(B173-(H$18:H$27)-hs_tb)),0)) -> 0 | AO173: 0.002583535917 | AR173: 0 | AS173: 0 | AU173: =SUM(IF(B173=(H$18:H$27),(G$18:G$27)),0) -> 0 | AV173: 0.1634500654 | AW173: 0
B174: 6.05 | C174: 15.80575304 | D174: 15.92187233 | P174: =SUM(IF(B174>=(H$18:H$27),(G$18:G$27)*EXP(-sfo_k*(B174-(H$18:H$27))),0)) -> 15.80575304 | Q174: 15.92187233 | W174: 0 | X174: =SUM(IF(B174>=(H$18:H$27),g*(G$18:G$27)*EXP(-dfop_k1*(B174-(H$18:H$27))),0)) -> 0 | Y174: =SUM(IF(B174>=(H$18:H$27),(1-g)*(G$18:G$27)*EXP(-dfop_k2*(B174-(H$18:H$27))),0)) -> 0 | Z174: 0.002583535917 | AA174: 0 | AB174: 0.002583535917 | AD174: =SUM(IF(B174>=(H$18:H$27),(G$18:G$27)*POWER(((B174-(H$18:H$27)))/fomc_b + 1,-fomc_a),0)) ->  | AF174: =SUM(IF(B174>=(H$18:H$27),(G$18:G$27)*(LN((B175-(H$18:H$27))/fomc_b + 1) - LN((B174-(H$18:H$27))/fomc_b + 1)),0)) ->  | AG174: =SUM(IF(B174>=(H$18:H$27),(G$18:G$27)*(POWER((B175-(H$18:H$27))/fomc_b + 1,(-fomc_a+1)) - POWER((B174-(H$18:H$27))/fomc_b + 1,(-fomc_a+1))),0)) ->  | AK174: 0 | AL174: =SUM(IF(B174>=(H$18:H$27),((B174-(H$18:H$27))<hs_tb)*(G$18:G$27)*EXP(-hs_k1*(B174-(H$18:H$27))),0)) -> 0 | AM174: =SUM(IF(B174>=(H$18:H$27),((B174-(H$18:H$27))=hs_tb)*(G$18:G$27)*EXP(-hs_k1*(B174-(H$18:H$27))),0)) -> 0 | AN174: =SUM(IF(B174>=(H$18:H$27),((B174-(H$18:H$27))>hs_tb)*(G$18:G$27)*tb_prefactor*EXP(-hs_k2*(B174-(H$18:H$27)-hs_tb)),0)) -> 0 | AO174: 0.002583535917 | AR174: 0 | AS174: 0 | AU174: =SUM(IF(B174=(H$18:H$27),(G$18:G$27)),0) -> 0 | AV174: 0.1617938799 | AW174: 0
B175: 6.1 | C175: 15.64559857 | D175: 15.88893396 | P175: =SUM(IF(B175>=(H$18:H$27),(G$18:G$27)*EXP(-sfo_k*(B175-(H$18:H$27))),0)) -> 15.64559857 | Q175: 15.88893396 | W175: 0 | X175: =SUM(IF(B175>=(H$18:H$27),g*(G$18:G$27)*EXP(-dfop_k1*(B175-(H$18:H$27))),0)) -> 0 | Y175: =SUM(IF(B175>=(H$18:H$27),(1-g)*(G$18:G$27)*EXP(-dfop_k2*(B175-(H$18:H$27))),0)) -> 0 | Z175: 0.002583535917 | AA175: 0 | AB175: 0.002583535917 | AD175: =SUM(IF(B175>=(H$18:H$27),(G$18:G$27)*POWER(((B175-(H$18:H$27)))/fomc_b + 1,-fomc_a),0)) ->  | AF175: =SUM(IF(B175>=(H$18:H$27),(G$18:G$27)*(LN((B176-(H$18:H$27))/fomc_b + 1) - LN((B175-(H$18:H$27))/fomc_b + 1)),0)) ->  | AG175: =SUM(IF(B175>=(H$18:H$27),(G$18:G$27)*(POWER((B176-(H$18:H$27))/fomc_b + 1,(-fomc_a+1)) - POWER((B175-(H$18:H$27))/fomc_b + 1,(-fomc_a+1))),0)) ->  | AK175: 0 | AL175: =SUM(IF(B175>=(H$18:H$27),((B175-(H$18:H$27))<hs_tb)*(G$18:G$27)*EXP(-hs_k1*(B175-(H$18:H$27))),0)) -> 0 | AM175: =SUM(IF(B175>=(H$18:H$27),((B175-(H$18:H$27))=hs_tb)*(G$18:G$27)*EXP(-hs_k1*(B175-(H$18:H$27))),0)) -> 0 | AN175: =SUM(IF(B175>=(H$18:H$27),((B175-(H$18:H$27))>hs_tb)*(G$18:G$27)*tb_prefactor*EXP(-hs_k2*(B175-(H$18:H$27)-hs_tb)),0)) -> 0 | AO175: 0.002583535917 | AR175: 0 | AS175: 0 | AU175: =SUM(IF(B175=(H$18:H$27),(G$18:G$27)),0) -> 0 | AV175: 0.1601544759 | AW175: 0
B176: 6.15 | C176: 15.48706688 | D176: 15.85632935 | P176: =SUM(IF(B176>=(H$18:H$27),(G$18:G$27)*EXP(-sfo_k*(B176-(H$18:H$27))),0)) -> 15.48706688 | Q176: 15.85632935 | W176: 0 | X176: =SUM(IF(B176>=(H$18:H$27),g*(G$18:G$27)*EXP(-dfop_k1*(B176-(H$18:H$27))),0)) -> 0 | Y176: =SUM(IF(B176>=(H$18:H$27),(1-g)*(G$18:G$27)*EXP(-dfop_k2*(B176-(H$18:H$27))),0)) -> 0 | Z176: 0.002583535917 | AA176: 0 | AB176: 0.002583535917 | AD176: =SUM(IF(B176>=(H$18:H$27),(G$18:G$27)*POWER(((B176-(H$18:H$27)))/fomc_b + 1,-fomc_a),0)) ->  | AF176: =SUM(IF(B176>=(H$18:H$27),(G$18:G$27)*(LN((B177-(H$18:H$27))/fomc_b + 1) - LN((B176-(H$18:H$27))/fomc_b + 1)),0)) ->  | AG176: =SUM(IF(B176>=(H$18:H$27),(G$18:G$27)*(POWER((B177-(H$18:H$27))/fomc_b + 1,(-fomc_a+1)) - POWER((B176-(H$18:H$27))/fomc_b + 1,(-fomc_a+1))),0)) ->  | AK176: 0 | AL176: =SUM(IF(B176>=(H$18:H$27),((B176-(H$18:H$27))<hs_tb)*(G$18:G$27)*EXP(-hs_k1*(B176-(H$18:H$27))),0)) -> 0 | AM176: =SUM(IF(B176>=(H$18:H$27),((B176-(H$18:H$27))=hs_tb)*(G$18:G$27)*EXP(-hs_k1*(B176-(H$18:H$27))),0)) -> 0 | AN176: =SUM(IF(B176>=(H$18:H$27),((B176-(H$18:H$27))>hs_tb)*(G$18:G$27)*tb_prefactor*EXP(-hs_k2*(B176-(H$18:H$27)-hs_tb)),0)) -> 0 | AO176: 0.002583535917 | AR176: 0 | AS176: 0 | AU176: =SUM(IF(B176=(H$18:H$27),(G$18:G$27)),0) -> 0 | AV176: 0.1585316835 | AW176: 0
B177: 6.2 | C177: 15.33014155 | D177: 15.82405512 | P177: =SUM(IF(B177>=(H$18:H$27),(G$18:G$27)*EXP(-sfo_k*(B177-(H$18:H$27))),0)) -> 15.33014155 | Q177: 15.82405512 | W177: 0 | X177: =SUM(IF(B177>=(H$18:H$27),g*(G$18:G$27)*EXP(-dfop_k1*(B177-(H$18:H$27))),0)) -> 0 | Y177: =SUM(IF(B177>=(H$18:H$27),(1-g)*(G$18:G$27)*EXP(-dfop_k2*(B177-(H$18:H$27))),0)) -> 0 | Z177: 0.002583535917 | AA177: 0 | AB177: 0.002583535917 | AD177: =SUM(IF(B177>=(H$18:H$27),(G$18:G$27)*POWER(((B177-(H$18:H$27)))/fomc_b + 1,-fomc_a),0)) ->  | AF177: =SUM(IF(B177>=(H$18:H$27),(G$18:G$27)*(LN((B178-(H$18:H$27))/fomc_b + 1) - LN((B177-(H$18:H$27))/fomc_b + 1)),0)) ->  | AG177: =SUM(IF(B177>=(H$18:H$27),(G$18:G$27)*(POWER((B178-(H$18:H$27))/fomc_b + 1,(-fomc_a+1)) - POWER((B177-(H$18:H$27))/fomc_b + 1,(-fomc_a+1))),0)) ->  | AK177: 0 | AL177: =SUM(IF(B177>=(H$18:H$27),((B177-(H$18:H$27))<hs_tb)*(G$18:G$27)*EXP(-hs_k1*(B177-(H$18:H$27))),0)) -> 0 | AM177: =SUM(IF(B177>=(H$18:H$27),((B177-(H$18:H$27))=hs_tb)*(G$18:G$27)*EXP(-hs_k1*(B177-(H$18:H$27))),0)) -> 0 | AN177: =SUM(IF(B177>=(H$18:H$27),((B177-(H$18:H$27))>hs_tb)*(G$18:G$27)*tb_prefactor*EXP(-hs_k2*(B177-(H$18:H$27)-hs_tb)),0)) -> 0 | AO177: 0.002583535917 | AR177: 0 | AS177: 0 | AU177: =SUM(IF(B177=(H$18:H$27),(G$18:G$27)),0) -> 0 | AV177: 0.1569253343 | AW177: 0
B178: 6.25 | C178: 15.17480629 | D178: 15.7921079 | P178: =SUM(IF(B178>=(H$18:H$27),(G$18:G$27)*EXP(-sfo_k*(B178-(H$18:H$27))),0)) -> 15.17480629 | Q178: 15.7921079 | W178: 0 | X178: =SUM(IF(B178>=(H$18:H$27),g*(G$18:G$27)*EXP(-dfop_k1*(B178-(H$18:H$27))),0)) -> 0 | Y178: =SUM(IF(B178>=(H$18:H$27),(1-g)*(G$18:G$27)*EXP(-dfop_k2*(B178-(H$18:H$27))),0)) -> 0 | Z178: 0.002583535917 | AA178: 0 | AB178: 0.002583535917 | AD178: =SUM(IF(B178>=(H$18:H$27),(G$18:G$27)*POWER(((B178-(H$18:H$27)))/fomc_b + 1,-fomc_a),0)) ->  | AF178: =SUM(IF(B178>=(H$18:H$27),(G$18:G$27)*(LN((B179-(H$18:H$27))/fomc_b + 1) - LN((B178-(H$18:H$27))/fomc_b + 1)),0)) ->  | AG178: =SUM(IF(B178>=(H$18:H$27),(G$18:G$27)*(POWER((B179-(H$18:H$27))/fomc_b + 1,(-fomc_a+1)) - POWER((B178-(H$18:H$27))/fomc_b + 1,(-fomc_a+1))),0)) ->  | AK178: 0 | AL178: =SUM(IF(B178>=(H$18:H$27),((B178-(H$18:H$27))<hs_tb)*(G$18:G$27)*EXP(-hs_k1*(B178-(H$18:H$27))),0)) -> 0 | AM178: =SUM(IF(B178>=(H$18:H$27),((B178-(H$18:H$27))=hs_tb)*(G$18:G$27)*EXP(-hs_k1*(B178-(H$18:H$27))),0)) -> 0 | AN178: =SUM(IF(B178>=(H$18:H$27),((B178-(H$18:H$27))>hs_tb)*(G$18:G$27)*tb_prefactor*EXP(-hs_k2*(B178-(H$18:H$27)-hs_tb)),0)) -> 0 | AO178: 0.002583535917 | AR178: 0 | AS178: 0 | AU178: =SUM(IF(B178=(H$18:H$27),(G$18:G$27)),0) -> 0 | AV178: 0.1553352617 | AW178: 0
B179: 6.3 | C179: 15.02104499 | D179: 15.7604844 | P179: =SUM(IF(B179>=(H$18:H$27),(G$18:G$27)*EXP(-sfo_k*(B179-(H$18:H$27))),0)) -> 15.02104499 | Q179: 15.7604844 | W179: 0 | X179: =SUM(IF(B179>=(H$18:H$27),g*(G$18:G$27)*EXP(-dfop_k1*(B179-(H$18:H$27))),0)) -> 0 | Y179: =SUM(IF(B179>=(H$18:H$27),(1-g)*(G$18:G$27)*EXP(-dfop_k2*(B179-(H$18:H$27))),0)) -> 0 | Z179: 0.002583535917 | AA179: 0 | AB179: 0.002583535917 | AD179: =SUM(IF(B179>=(H$18:H$27),(G$18:G$27)*POWER(((B179-(H$18:H$27)))/fomc_b + 1,-fomc_a),0)) ->  | AF179: =SUM(IF(B179>=(H$18:H$27),(G$18:G$27)*(LN((B180-(H$18:H$27))/fomc_b + 1) - LN((B179-(H$18:H$27))/fomc_b + 1)),0)) ->  | AG179: =SUM(IF(B179>=(H$18:H$27),(G$18:G$27)*(POWER((B180-(H$18:H$27))/fomc_b + 1,(-fomc_a+1)) - POWER((B179-(H$18:H$27))/fomc_b + 1,(-fomc_a+1))),0)) ->  | AK179: 0 | AL179: =SUM(IF(B179>=(H$18:H$27),((B179-(H$18:H$27))<hs_tb)*(G$18:G$27)*EXP(-hs_k1*(B179-(H$18:H$27))),0)) -> 0 | AM179: =SUM(IF(B179>=(H$18:H$27),((B179-(H$18:H$27))=hs_tb)*(G$18:G$27)*EXP(-hs_k1*(B179-(H$18:H$27))),0)) -> 0 | AN179: =SUM(IF(B179>=(H$18:H$27),((B179-(H$18:H$27))>hs_tb)*(G$18:G$27)*tb_prefactor*EXP(-hs_k2*(B179-(H$18:H$27)-hs_tb)),0)) -> 0 | AO179: 0.002583535917 | AR179: 0 | AS179: 0 | AU179: =SUM(IF(B179=(H$18:H$27),(G$18:G$27)),0) -> 0 | AV179: 0.1537613008 | AW179: 0
B180: 6.35 | C180: 14.8688417 | D180: 15.72918133 | P180: =SUM(IF(B180>=(H$18:H$27),(G$18:G$27)*EXP(-sfo_k*(B180-(H$18:H$27))),0)) -> 14.8688417 | Q180: 15.72918133 | W180: 0 | X180: =SUM(IF(B180>=(H$18:H$27),g*(G$18:G$27)*EXP(-dfop_k1*(B180-(H$18:H$27))),0)) -> 0 | Y180: =SUM(IF(B180>=(H$18:H$27),(1-g)*(G$18:G$27)*EXP(-dfop_k2*(B180-(H$18:H$27))),0)) -> 0 | Z180: 0.002583535917 | AA180: 0 | AB180: 0.002583535917 | AD180: =SUM(IF(B180>=(H$18:H$27),(G$18:G$27)*POWER(((B180-(H$18:H$27)))/fomc_b + 1,-fomc_a),0)) ->  | AF180: =SUM(IF(B180>=(H$18:H$27),(G$18:G$27)*(LN((B181-(H$18:H$27))/fomc_b + 1) - LN((B180-(H$18:H$27))/fomc_b + 1)),0)) ->  | AG180: =SUM(IF(B180>=(H$18:H$27),(G$18:G$27)*(POWER((B181-(H$18:H$27))/fomc_b + 1,(-fomc_a+1)) - POWER((B180-(H$18:H$27))/fomc_b + 1,(-fomc_a+1))),0)) ->  | AK180: 0 | AL180: =SUM(IF(B180>=(H$18:H$27),((B180-(H$18:H$27))<hs_tb)*(G$18:G$27)*EXP(-hs_k1*(B180-(H$18:H$27))),0)) -> 0 | AM180: =SUM(IF(B180>=(H$18:H$27),((B180-(H$18:H$27))=hs_tb)*(G$18:G$27)*EXP(-hs_k1*(B180-(H$18:H$27))),0)) -> 0 | AN180: =SUM(IF(B180>=(H$18:H$27),((B180-(H$18:H$27))>hs_tb)*(G$18:G$27)*tb_prefactor*EXP(-hs_k2*(B180-(H$18:H$27)-hs_tb)),0)) -> 0 | AO180: 0.002583535917 | AR180: 0 | AS180: 0 | AU180: =SUM(IF(B180=(H$18:H$27),(G$18:G$27)),0) -> 0 | AV180: 0.1522032883 | AW180: 0
B181: 6.4 | C181: =INDIRECT(ADDRESS(ROW($A181),VLOOKUP(CalcType,$J$25:$L$28,2,FALSE))) -> 14.71818063 | D181: =INDIRECT(ADDRESS(ROW($A181),VLOOKUP(CalcType,$J$25:$L$28,3,FALSE))) -> 15.69819544 | P181: =SUM(IF(B181>=(H$18:H$27),(G$18:G$27)*EXP(-sfo_k*(B181-(H$18:H$27))),0)) -> 14.71818063 | Q181: =SUM(OFFSET(P181,0,0,n_TWA_steps,1))*sfo_intfac/int_TWA -> 15.69819544 | W181: 0 | X181: =SUM(IF(B181>=(H$18:H$27),g*(G$18:G$27)*EXP(-dfop_k1*(B181-(H$18:H$27))),0)) -> 0 | Y181: =SUM(IF(B181>=(H$18:H$27),(1-g)*(G$18:G$27)*EXP(-dfop_k2*(B181-(H$18:H$27))),0)) -> 0 | Z181: =SUM(AA181:AB181) -> 0.002583535917 | AA181: =SUM(OFFSET(X181,0,0,n_TWA_steps,1))*dfop_intfac1/int_TWA -> 0 | AB181: =SUM(OFFSET(Y181,0,0,n_TWA_steps,1))*dfop_intfac2/int_TWA -> 0.002583535917 | AD181: =SUM(IF(B181>=(H$18:H$27),(G$18:G$27)*POWER(((B181-(H$18:H$27)))/fomc_b + 1,-fomc_a),0)) ->  | AE181: =SUM(OFFSET(AE181,0,IF(fomc_a=1,1,2),n_TWA_steps,1))*fomc_intfac/int_TWA ->  | AF181: =SUM(IF(B181>=(H$18:H$27),(G$18:G$27)*(LN((B182-(H$18:H$27))/fomc_b + 1) - LN((B181-(H$18:H$27))/fomc_b + 1)),0)) ->  | AG181: =SUM(IF(B181>=(H$18:H$27),(G$18:G$27)*(POWER((B182-(H$18:H$27))/fomc_b + 1,(-fomc_a+1)) - POWER((B181-(H$18:H$27))/fomc_b + 1,(-fomc_a+1))),0)) ->  | AK181: =SUM(AL181:AN181) -> 0 | AL181: =SUM(IF(B181>=(H$18:H$27),((B181-(H$18:H$27))<hs_tb)*(G$18:G$27)*EXP(-hs_k1*(B181-(H$18:H$27))),0)) -> 0 | AM181: =SUM(IF(B181>=(H$18:H$27),((B181-(H$18:H$27))=hs_tb)*(G$18:G$27)*EXP(-hs_k1*(B181-(H$18:H$27))),0)) -> 0 | AN181: =SUM(IF(B181>=(H$18:H$27),((B181-(H$18:H$27))>hs_tb)*(G$18:G$27)*tb_prefactor*EXP(-hs_k2*(B181-(H$18:H$27)-hs_tb)),0)) -> 0 | AO181: =(SUM(OFFSET(AL181,0,0,n_TWA_steps,1))*hs_intfac1 + SUM(OFFSET(AM181,0,0,n_TWA_steps,1))*hs_intfac2+ SUM(OFFSET(AN181,0,0,n_TWA_steps,1))*hs_intfac2)/int_TWA -> 0.002583535917 | AR181: 0 | AS181: =(AR181+AR182)*dt/2 -> 0 | AT181: =SUM(OFFSET(AS181,0,0,n_TWA_steps_met,1))/int_TWA ->  | AU181: =SUM(IF(B181=(H$18:H$27),(G$18:G$27)),0) -> 0 | AV181: 0.1506610627 | AW181: 0
B182: =ROUND(B181+1/K$19,2) -> 6.45 | C182: 14.56904617 | D182: 15.66752352 | F182: =IF($F$7="NOT USED","",AT182) ->  | P182: =SUM(IF(B182>=(H$18:H$27),(G$18:G$27)*EXP(-sfo_k*(B182-(H$18:H$27))),0)) -> 14.56904617 | Q182: 15.66752352 | W182: =SUM(X182:Y182) -> 0 | X182: =SUM(IF(B182>=(H$18:H$27),g*(G$18:G$27)*EXP(-dfop_k1*(B182-(H$18:H$27))),0)) -> 0 | Y182: =SUM(IF(B182>=(H$18:H$27),(1-g)*(G$18:G$27)*EXP(-dfop_k2*(B182-(H$18:H$27))),0)) -> 0 | Z182: 0.002583535917 | AA182: 0 | AB182: 0.002583535917 | AD182: =SUM(IF(B182>=(H$18:H$27),(G$18:G$27)*POWER(((B182-(H$18:H$27)))/fomc_b + 1,-fomc_a),0)) ->  | AF182: =SUM(IF(B182>=(H$18:H$27),(G$18:G$27)*(LN((B183-(H$18:H$27))/fomc_b + 1) - LN((B182-(H$18:H$27))/fomc_b + 1)),0)) ->  | AG182: =SUM(IF(B182>=(H$18:H$27),(G$18:G$27)*(POWER((B183-(H$18:H$27))/fomc_b + 1,(-fomc_a+1)) - POWER((B182-(H$18:H$27))/fomc_b + 1,(-fomc_a+1))),0)) ->  | AK182: 0 | AL182: =SUM(IF(B182>=(H$18:H$27),((B182-(H$18:H$27))<hs_tb)*(G$18:G$27)*EXP(-hs_k1*(B182-(H$18:H$27))),0)) -> 0 | AM182: =SUM(IF(B182>=(H$18:H$27),((B182-(H$18:H$27))=hs_tb)*(G$18:G$27)*EXP(-hs_k1*(B182-(H$18:H$27))),0)) -> 0 | AN182: =SUM(IF(B182>=(H$18:H$27),((B182-(H$18:H$27))>hs_tb)*(G$18:G$27)*tb_prefactor*EXP(-hs_k2*(B182-(H$18:H$27)-hs_tb)),0)) -> 0 | AO182: 0.002583535917 | AR182: =AR181*EXP(-$AS$14*dt)+AW182 -> 0 | AS182: 0 | AU182: =SUM(IF(B182=(H$18:H$27),(G$18:G$27)),0) -> 0 | AV182: =INDIRECT(ADDRESS(ROW($A181),VLOOKUP(CalcType,$J$25:$L$28,2,FALSE)))-INDIRECT(ADDRESS(ROW($A182),VLOOKUP(CalcType,$J$25:$L$28,2,FALSE)))+AU182 -> 0.1491344639 | AW182: =AV182*$AS$18*$AS$19*IF($AS$21,1,0) -> 0
B183: 6.5 | C183: 14.42142284 | D183: 15.63716239 | E183: =IF($F$7="NOT USED","",AR183) ->  | P183: =SUM(IF(B183>=(H$18:H$27),(G$18:G$27)*EXP(-sfo_k*(B183-(H$18:H$27))),0)) -> 14.42142284 | Q183: 15.63716239 | W183: 0 | X183: =SUM(IF(B183>=(H$18:H$27),g*(G$18:G$27)*EXP(-dfop_k1*(B183-(H$18:H$27))),0)) -> 0 | Y183: =SUM(IF(B183>=(H$18:H$27),(1-g)*(G$18:G$27)*EXP(-dfop_k2*(B183-(H$18:H$27))),0)) -> 0 | Z183: 0.002583535917 | AA183: 0 | AB183: 0.002583535917 | AD183: =SUM(IF(B183>=(H$18:H$27),(G$18:G$27)*POWER(((B183-(H$18:H$27)))/fomc_b + 1,-fomc_a),0)) ->  | AF183: =SUM(IF(B183>=(H$18:H$27),(G$18:G$27)*(LN((B184-(H$18:H$27))/fomc_b + 1) - LN((B183-(H$18:H$27))/fomc_b + 1)),0)) ->  | AG183: =SUM(IF(B183>=(H$18:H$27),(G$18:G$27)*(POWER((B184-(H$18:H$27))/fomc_b + 1,(-fomc_a+1)) - POWER((B183-(H$18:H$27))/fomc_b + 1,(-fomc_a+1))),0)) ->  | AK183: 0 | AL183: =SUM(IF(B183>=(H$18:H$27),((B183-(H$18:H$27))<hs_tb)*(G$18:G$27)*EXP(-hs_k1*(B183-(H$18:H$27))),0)) -> 0 | AM183: =SUM(IF(B183>=(H$18:H$27),((B183-(H$18:H$27))=hs_tb)*(G$18:G$27)*EXP(-hs_k1*(B183-(H$18:H$27))),0)) -> 0 | AN183: =SUM(IF(B183>=(H$18:H$27),((B183-(H$18:H$27))>hs_tb)*(G$18:G$27)*tb_prefactor*EXP(-hs_k2*(B183-(H$18:H$27)-hs_tb)),0)) -> 0 | AO183: 0.002583535917 | AR183: 0 | AS183: 0 | AU183: =SUM(IF(B183=(H$18:H$27),(G$18:G$27)),0) -> 0 | AV183: 0.1476233336 | AW183: 0
B184: 6.55 | C184: 14.27529532 | D184: 15.60710889 | P184: =SUM(IF(B184>=(H$18:H$27),(G$18:G$27)*EXP(-sfo_k*(B184-(H$18:H$27))),0)) -> 14.27529532 | Q184: 15.60710889 | W184: 0 | X184: =SUM(IF(B184>=(H$18:H$27),g*(G$18:G$27)*EXP(-dfop_k1*(B184-(H$18:H$27))),0)) -> 0 | Y184: =SUM(IF(B184>=(H$18:H$27),(1-g)*(G$18:G$27)*EXP(-dfop_k2*(B184-(H$18:H$27))),0)) -> 0 | Z184: 0.002583535917 | AA184: 0 | AB184: 0.002583535917 | AD184: =SUM(IF(B184>=(H$18:H$27),(G$18:G$27)*POWER(((B184-(H$18:H$27)))/fomc_b + 1,-fomc_a),0)) ->  | AF184: =SUM(IF(B184>=(H$18:H$27),(G$18:G$27)*(LN((B185-(H$18:H$27))/fomc_b + 1) - LN((B184-(H$18:H$27))/fomc_b + 1)),0)) ->  | AG184: =SUM(IF(B184>=(H$18:H$27),(G$18:G$27)*(POWER((B185-(H$18:H$27))/fomc_b + 1,(-fomc_a+1)) - POWER((B184-(H$18:H$27))/fomc_b + 1,(-fomc_a+1))),0)) ->  | AK184: 0 | AL184: =SUM(IF(B184>=(H$18:H$27),((B184-(H$18:H$27))<hs_tb)*(G$18:G$27)*EXP(-hs_k1*(B184-(H$18:H$27))),0)) -> 0 | AM184: =SUM(IF(B184>=(H$18:H$27),((B184-(H$18:H$27))=hs_tb)*(G$18:G$27)*EXP(-hs_k1*(B184-(H$18:H$27))),0)) -> 0 | AN184: =SUM(IF(B184>=(H$18:H$27),((B184-(H$18:H$27))>hs_tb)*(G$18:G$27)*tb_prefactor*EXP(-hs_k2*(B184-(H$18:H$27)-hs_tb)),0)) -> 0 | AO184: 0.002583535917 | AR184: 0 | AS184: 0 | AU184: =SUM(IF(B184=(H$18:H$27),(G$18:G$27)),0) -> 0 | AV184: 0.1461275151 | AW184: 0
B185: 6.6 | C185: 14.13064847 | D185: 15.57735992 | P185: =SUM(IF(B185>=(H$18:H$27),(G$18:G$27)*EXP(-sfo_k*(B185-(H$18:H$27))),0)) -> 14.13064847 | Q185: 15.57735992 | W185: 0 | X185: =SUM(IF(B185>=(H$18:H$27),g*(G$18:G$27)*EXP(-dfop_k1*(B185-(H$18:H$27))),0)) -> 0 | Y185: =SUM(IF(B185>=(H$18:H$27),(1-g)*(G$18:G$27)*EXP(-dfop_k2*(B185-(H$18:H$27))),0)) -> 0 | Z185: 0.002583535917 | AA185: 0 | AB185: 0.002583535917 | AD185: =SUM(IF(B185>=(H$18:H$27),(G$18:G$27)*POWER(((B185-(H$18:H$27)))/fomc_b + 1,-fomc_a),0)) ->  | AF185: =SUM(IF(B185>=(H$18:H$27),(G$18:G$27)*(LN((B186-(H$18:H$27))/fomc_b + 1) - LN((B185-(H$18:H$27))/fomc_b + 1)),0)) ->  | AG185: =SUM(IF(B185>=(H$18:H$27),(G$18:G$27)*(POWER((B186-(H$18:H$27))/fomc_b + 1,(-fomc_a+1)) - POWER((B185-(H$18:H$27))/fomc_b + 1,(-fomc_a+1))),0)) ->  | AK185: 0 | AL185: =SUM(IF(B185>=(H$18:H$27),((B185-(H$18:H$27))<hs_tb)*(G$18:G$27)*EXP(-hs_k1*(B185-(H$18:H$27))),0)) -> 0 | AM185: =SUM(IF(B185>=(H$18:H$27),((B185-(H$18:H$27))=hs_tb)*(G$18:G$27)*EXP(-hs_k1*(B185-(H$18:H$27))),0)) -> 0 | AN185: =SUM(IF(B185>=(H$18:H$27),((B185-(H$18:H$27))>hs_tb)*(G$18:G$27)*tb_prefactor*EXP(-hs_k2*(B185-(H$18:H$27)-hs_tb)),0)) -> 0 | AO185: 0.002583535917 | AR185: 0 | AS185: 0 | AU185: =SUM(IF(B185=(H$18:H$27),(G$18:G$27)),0) -> 0 | AV185: 0.1446468533 | AW185: 0
B186: 6.65 | C186: 13.98746727 | D186: 15.54791239 | P186: =SUM(IF(B186>=(H$18:H$27),(G$18:G$27)*EXP(-sfo_k*(B186-(H$18:H$27))),0)) -> 13.98746727 | Q186: 15.54791239 | W186: 0 | X186: =SUM(IF(B186>=(H$18:H$27),g*(G$18:G$27)*EXP(-dfop_k1*(B186-(H$18:H$27))),0)) -> 0 | Y186: =SUM(IF(B186>=(H$18:H$27),(1-g)*(G$18:G$27)*EXP(-dfop_k2*(B186-(H$18:H$27))),0)) -> 0 | Z186: 0.002583535917 | AA186: 0 | AB186: 0.002583535917 | AD186: =SUM(IF(B186>=(H$18:H$27),(G$18:G$27)*POWER(((B186-(H$18:H$27)))/fomc_b + 1,-fomc_a),0)) ->  | AF186: =SUM(IF(B186>=(H$18:H$27),(G$18:G$27)*(LN((B187-(H$18:H$27))/fomc_b + 1) - LN((B186-(H$18:H$27))/fomc_b + 1)),0)) ->  | AG186: =SUM(IF(B186>=(H$18:H$27),(G$18:G$27)*(POWER((B187-(H$18:H$27))/fomc_b + 1,(-fomc_a+1)) - POWER((B186-(H$18:H$27))/fomc_b + 1,(-fomc_a+1))),0)) ->  | AK186: 0 | AL186: =SUM(IF(B186>=(H$18:H$27),((B186-(H$18:H$27))<hs_tb)*(G$18:G$27)*EXP(-hs_k1*(B186-(H$18:H$27))),0)) -> 0 | AM186: =SUM(IF(B186>=(H$18:H$27),((B186-(H$18:H$27))=hs_tb)*(G$18:G$27)*EXP(-hs_k1*(B186-(H$18:H$27))),0)) -> 0 | AN186: =SUM(IF(B186>=(H$18:H$27),((B186-(H$18:H$27))>hs_tb)*(G$18:G$27)*tb_prefactor*EXP(-hs_k2*(B186-(H$18:H$27)-hs_tb)),0)) -> 0 | AO186: 0.002583535917 | AR186: 0 | AS186: 0 | AU186: =SUM(IF(B186=(H$18:H$27),(G$18:G$27)),0) -> 0 | AV186: 0.1431811945 | AW186: 0
B187: 6.7 | C187: 13.84573689 | D187: 15.51876324 | P187: =SUM(IF(B187>=(H$18:H$27),(G$18:G$27)*EXP(-sfo_k*(B187-(H$18:H$27))),0)) -> 13.84573689 | Q187: 15.51876324 | W187: 0 | X187: =SUM(IF(B187>=(H$18:H$27),g*(G$18:G$27)*EXP(-dfop_k1*(B187-(H$18:H$27))),0)) -> 0 | Y187: =SUM(IF(B187>=(H$18:H$27),(1-g)*(G$18:G$27)*EXP(-dfop_k2*(B187-(H$18:H$27))),0)) -> 0 | Z187: 0.002583535917 | AA187: 0 | AB187: 0.002583535917 | AD187: =SUM(IF(B187>=(H$18:H$27),(G$18:G$27)*POWER(((B187-(H$18:H$27)))/fomc_b + 1,-fomc_a),0)) ->  | AF187: =SUM(IF(B187>=(H$18:H$27),(G$18:G$27)*(LN((B188-(H$18:H$27))/fomc_b + 1) - LN((B187-(H$18:H$27))/fomc_b + 1)),0)) ->  | AG187: =SUM(IF(B187>=(H$18:H$27),(G$18:G$27)*(POWER((B188-(H$18:H$27))/fomc_b + 1,(-fomc_a+1)) - POWER((B187-(H$18:H$27))/fomc_b + 1,(-fomc_a+1))),0)) ->  | AK187: 0 | AL187: =SUM(IF(B187>=(H$18:H$27),((B187-(H$18:H$27))<hs_tb)*(G$18:G$27)*EXP(-hs_k1*(B187-(H$18:H$27))),0)) -> 0 | AM187: =SUM(IF(B187>=(H$18:H$27),((B187-(H$18:H$27))=hs_tb)*(G$18:G$27)*EXP(-hs_k1*(B187-(H$18:H$27))),0)) -> 0 | AN187: =SUM(IF(B187>=(H$18:H$27),((B187-(H$18:H$27))>hs_tb)*(G$18:G$27)*tb_prefactor*EXP(-hs_k2*(B187-(H$18:H$27)-hs_tb)),0)) -> 0 | AO187: 0.002583535917 | AR187: 0 | AS187: 0 | AU187: =SUM(IF(B187=(H$18:H$27),(G$18:G$27)),0) -> 0 | AV187: 0.1417303867 | AW187: 0
B188: 6.75 | C188: 13.70544261 | D188: 15.48990945 | P188: =SUM(IF(B188>=(H$18:H$27),(G$18:G$27)*EXP(-sfo_k*(B188-(H$18:H$27))),0)) -> 13.70544261 | Q188: 15.48990945 | W188: 0 | X188: =SUM(IF(B188>=(H$18:H$27),g*(G$18:G$27)*EXP(-dfop_k1*(B188-(H$18:H$27))),0)) -> 0 | Y188: =SUM(IF(B188>=(H$18:H$27),(1-g)*(G$18:G$27)*EXP(-dfop_k2*(B188-(H$18:H$27))),0)) -> 0 | Z188: 0.002583535917 | AA188: 0 | AB188: 0.002583535917 | AD188: =SUM(IF(B188>=(H$18:H$27),(G$18:G$27)*POWER(((B188-(H$18:H$27)))/fomc_b + 1,-fomc_a),0)) ->  | AF188: =SUM(IF(B188>=(H$18:H$27),(G$18:G$27)*(LN((B189-(H$18:H$27))/fomc_b + 1) - LN((B188-(H$18:H$27))/fomc_b + 1)),0)) ->  | AG188: =SUM(IF(B188>=(H$18:H$27),(G$18:G$27)*(POWER((B189-(H$18:H$27))/fomc_b + 1,(-fomc_a+1)) - POWER((B188-(H$18:H$27))/fomc_b + 1,(-fomc_a+1))),0)) ->  | AK188: 0 | AL188: =SUM(IF(B188>=(H$18:H$27),((B188-(H$18:H$27))<hs_tb)*(G$18:G$27)*EXP(-hs_k1*(B188-(H$18:H$27))),0)) -> 0 | AM188: =SUM(IF(B188>=(H$18:H$27),((B188-(H$18:H$27))=hs_tb)*(G$18:G$27)*EXP(-hs_k1*(B188-(H$18:H$27))),0)) -> 0 | AN188: =SUM(IF(B188>=(H$18:H$27),((B188-(H$18:H$27))>hs_tb)*(G$18:G$27)*tb_prefactor*EXP(-hs_k2*(B188-(H$18:H$27)-hs_tb)),0)) -> 0 | AO188: 0.002583535917 | AR188: 0 | AS188: 0 | AU188: =SUM(IF(B188=(H$18:H$27),(G$18:G$27)),0) -> 0 | AV188: 0.1402942795 | AW188: 0
B189: 6.8 | C189: 13.56656988 | D189: 15.46134802 | P189: =SUM(IF(B189>=(H$18:H$27),(G$18:G$27)*EXP(-sfo_k*(B189-(H$18:H$27))),0)) -> 13.56656988 | Q189: 15.46134802 | W189: 0 | X189: =SUM(IF(B189>=(H$18:H$27),g*(G$18:G$27)*EXP(-dfop_k1*(B189-(H$18:H$27))),0)) -> 0 | Y189: =SUM(IF(B189>=(H$18:H$27),(1-g)*(G$18:G$27)*EXP(-dfop_k2*(B189-(H$18:H$27))),0)) -> 0 | Z189: 0.002583535917 | AA189: 0 | AB189: 0.002583535917 | AD189: =SUM(IF(B189>=(H$18:H$27),(G$18:G$27)*POWER(((B189-(H$18:H$27)))/fomc_b + 1,-fomc_a),0)) ->  | AF189: =SUM(IF(B189>=(H$18:H$27),(G$18:G$27)*(LN((B190-(H$18:H$27))/fomc_b + 1) - LN((B189-(H$18:H$27))/fomc_b + 1)),0)) ->  | AG189: =SUM(IF(B189>=(H$18:H$27),(G$18:G$27)*(POWER((B190-(H$18:H$27))/fomc_b + 1,(-fomc_a+1)) - POWER((B189-(H$18:H$27))/fomc_b + 1,(-fomc_a+1))),0)) ->  | AK189: 0 | AL189: =SUM(IF(B189>=(H$18:H$27),((B189-(H$18:H$27))<hs_tb)*(G$18:G$27)*EXP(-hs_k1*(B189-(H$18:H$27))),0)) -> 0 | AM189: =SUM(IF(B189>=(H$18:H$27),((B189-(H$18:H$27))=hs_tb)*(G$18:G$27)*EXP(-hs_k1*(B189-(H$18:H$27))),0)) -> 0 | AN189: =SUM(IF(B189>=(H$18:H$27),((B189-(H$18:H$27))>hs_tb)*(G$18:G$27)*tb_prefactor*EXP(-hs_k2*(B189-(H$18:H$27)-hs_tb)),0)) -> 0 | AO189: 0.002583535917 | AR189: 0 | AS189: 0 | AU189: =SUM(IF(B189=(H$18:H$27),(G$18:G$27)),0) -> 0 | AV189: 0.1388727239 | AW189: 0
B190: 6.85 | C190: 13.42910431 | D190: 15.433076 | P190: =SUM(IF(B190>=(H$18:H$27),(G$18:G$27)*EXP(-sfo_k*(B190-(H$18:H$27))),0)) -> 13.42910431 | Q190: 15.433076 | W190: 0 | X190: =SUM(IF(B190>=(H$18:H$27),g*(G$18:G$27)*EXP(-dfop_k1*(B190-(H$18:H$27))),0)) -> 0 | Y190: =SUM(IF(B190>=(H$18:H$27),(1-g)*(G$18:G$27)*EXP(-dfop_k2*(B190-(H$18:H$27))),0)) -> 0 | Z190: 0.002583535917 | AA190: 0 | AB190: 0.002583535917 | AD190: =SUM(IF(B190>=(H$18:H$27),(G$18:G$27)*POWER(((B190-(H$18:H$27)))/fomc_b + 1,-fomc_a),0)) ->  | AF190: =SUM(IF(B190>=(H$18:H$27),(G$18:G$27)*(LN((B191-(H$18:H$27))/fomc_b + 1) - LN((B190-(H$18:H$27))/fomc_b + 1)),0)) ->  | AG190: =SUM(IF(B190>=(H$18:H$27),(G$18:G$27)*(POWER((B191-(H$18:H$27))/fomc_b + 1,(-fomc_a+1)) - POWER((B190-(H$18:H$27))/fomc_b + 1,(-fomc_a+1))),0)) ->  | AK190: 0 | AL190: =SUM(IF(B190>=(H$18:H$27),((B190-(H$18:H$27))<hs_tb)*(G$18:G$27)*EXP(-hs_k1*(B190-(H$18:H$27))),0)) -> 0 | AM190: =SUM(IF(B190>=(H$18:H$27),((B190-(H$18:H$27))=hs_tb)*(G$18:G$27)*EXP(-hs_k1*(B190-(H$18:H$27))),0)) -> 0 | AN190: =SUM(IF(B190>=(H$18:H$27),((B190-(H$18:H$27))>hs_tb)*(G$18:G$27)*tb_prefactor*EXP(-hs_k2*(B190-(H$18:H$27)-hs_tb)),0)) -> 0 | AO190: 0.002583535917 | AR190: 0 | AS190: 0 | AU190: =SUM(IF(B190=(H$18:H$27),(G$18:G$27)),0) -> 0 | AV190: 0.1374655725 | AW190: 0
B191: 6.9 | C191: 13.29303163 | D191: 15.40509045 | P191: =SUM(IF(B191>=(H$18:H$27),(G$18:G$27)*EXP(-sfo_k*(B191-(H$18:H$27))),0)) -> 13.29303163 | Q191: 15.40509045 | W191: 0 | X191: =SUM(IF(B191>=(H$18:H$27),g*(G$18:G$27)*EXP(-dfop_k1*(B191-(H$18:H$27))),0)) -> 0 | Y191: =SUM(IF(B191>=(H$18:H$27),(1-g)*(G$18:G$27)*EXP(-dfop_k2*(B191-(H$18:H$27))),0)) -> 0 | Z191: 0.002583535917 | AA191: 0 | AB191: 0.002583535917 | AD191: =SUM(IF(B191>=(H$18:H$27),(G$18:G$27)*POWER(((B191-(H$18:H$27)))/fomc_b + 1,-fomc_a),0)) ->  | AF191: =SUM(IF(B191>=(H$18:H$27),(G$18:G$27)*(LN((B192-(H$18:H$27))/fomc_b + 1) - LN((B191-(H$18:H$27))/fomc_b + 1)),0)) ->  | AG191: =SUM(IF(B191>=(H$18:H$27),(G$18:G$27)*(POWER((B192-(H$18:H$27))/fomc_b + 1,(-fomc_a+1)) - POWER((B191-(H$18:H$27))/fomc_b + 1,(-fomc_a+1))),0)) ->  | AK191: 0 | AL191: =SUM(IF(B191>=(H$18:H$27),((B191-(H$18:H$27))<hs_tb)*(G$18:G$27)*EXP(-hs_k1*(B191-(H$18:H$27))),0)) -> 0 | AM191: =SUM(IF(B191>=(H$18:H$27),((B191-(H$18:H$27))=hs_tb)*(G$18:G$27)*EXP(-hs_k1*(B191-(H$18:H$27))),0)) -> 0 | AN191: =SUM(IF(B191>=(H$18:H$27),((B191-(H$18:H$27))>hs_tb)*(G$18:G$27)*tb_prefactor*EXP(-hs_k2*(B191-(H$18:H$27)-hs_tb)),0)) -> 0 | AO191: 0.002583535917 | AR191: 0 | AS191: 0 | AU191: =SUM(IF(B191=(H$18:H$27),(G$18:G$27)),0) -> 0 | AV191: 0.1360726792 | AW191: 0
B192: 6.95 | C192: 13.15833773 | D192: 15.37738846 | P192: =SUM(IF(B192>=(H$18:H$27),(G$18:G$27)*EXP(-sfo_k*(B192-(H$18:H$27))),0)) -> 13.15833773 | Q192: 15.37738846 | W192: 0 | X192: =SUM(IF(B192>=(H$18:H$27),g*(G$18:G$27)*EXP(-dfop_k1*(B192-(H$18:H$27))),0)) -> 0 | Y192: =SUM(IF(B192>=(H$18:H$27),(1-g)*(G$18:G$27)*EXP(-dfop_k2*(B192-(H$18:H$27))),0)) -> 0 | Z192: 0.002583535917 | AA192: 0 | AB192: 0.002583535917 | AD192: =SUM(IF(B192>=(H$18:H$27),(G$18:G$27)*POWER(((B192-(H$18:H$27)))/fomc_b + 1,-fomc_a),0)) ->  | AF192: =SUM(IF(B192>=(H$18:H$27),(G$18:G$27)*(LN((B193-(H$18:H$27))/fomc_b + 1) - LN((B192-(H$18:H$27))/fomc_b + 1)),0)) ->  | AG192: =SUM(IF(B192>=(H$18:H$27),(G$18:G$27)*(POWER((B193-(H$18:H$27))/fomc_b + 1,(-fomc_a+1)) - POWER((B192-(H$18:H$27))/fomc_b + 1,(-fomc_a+1))),0)) ->  | AK192: 0 | AL192: =SUM(IF(B192>=(H$18:H$27),((B192-(H$18:H$27))<hs_tb)*(G$18:G$27)*EXP(-hs_k1*(B192-(H$18:H$27))),0)) -> 0 | AM192: =SUM(IF(B192>=(H$18:H$27),((B192-(H$18:H$27))=hs_tb)*(G$18:G$27)*EXP(-hs_k1*(B192-(H$18:H$27))),0)) -> 0 | AN192: =SUM(IF(B192>=(H$18:H$27),((B192-(H$18:H$27))>hs_tb)*(G$18:G$27)*tb_prefactor*EXP(-hs_k2*(B192-(H$18:H$27)-hs_tb)),0)) -> 0 | AO192: 0.002583535917 | AR192: 0 | AS192: 0 | AU192: =SUM(IF(B192=(H$18:H$27),(G$18:G$27)),0) -> 0 | AV192: 0.1346938997 | AW192: 0
B193: 7 | C193: 13.02500864 | D193: 15.34996718 | P193: =SUM(IF(B193>=(H$18:H$27),(G$18:G$27)*EXP(-sfo_k*(B193-(H$18:H$27))),0)) -> 13.02500864 | Q193: 15.34996718 | W193: 0 | X193: =SUM(IF(B193>=(H$18:H$27),g*(G$18:G$27)*EXP(-dfop_k1*(B193-(H$18:H$27))),0)) -> 0 | Y193: =SUM(IF(B193>=(H$18:H$27),(1-g)*(G$18:G$27)*EXP(-dfop_k2*(B193-(H$18:H$27))),0)) -> 0 | Z193: 0.002583535917 | AA193: 0 | AB193: 0.002583535917 | AD193: =SUM(IF(B193>=(H$18:H$27),(G$18:G$27)*POWER(((B193-(H$18:H$27)))/fomc_b + 1,-fomc_a),0)) ->  | AF193: =SUM(IF(B193>=(H$18:H$27),(G$18:G$27)*(LN((B194-(H$18:H$27))/fomc_b + 1) - LN((B193-(H$18:H$27))/fomc_b + 1)),0)) ->  | AG193: =SUM(IF(B193>=(H$18:H$27),(G$18:G$27)*(POWER((B194-(H$18:H$27))/fomc_b + 1,(-fomc_a+1)) - POWER((B193-(H$18:H$27))/fomc_b + 1,(-fomc_a+1))),0)) ->  | AK193: 0 | AL193: =SUM(IF(B193>=(H$18:H$27),((B193-(H$18:H$27))<hs_tb)*(G$18:G$27)*EXP(-hs_k1*(B193-(H$18:H$27))),0)) -> 0 | AM193: =SUM(IF(B193>=(H$18:H$27),((B193-(H$18:H$27))=hs_tb)*(G$18:G$27)*EXP(-hs_k1*(B193-(H$18:H$27))),0)) -> 0 | AN193: =SUM(IF(B193>=(H$18:H$27),((B193-(H$18:H$27))>hs_tb)*(G$18:G$27)*tb_prefactor*EXP(-hs_k2*(B193-(H$18:H$27)-hs_tb)),0)) -> 0 | AO193: 0.002583535917 | AR193: 0 | AS193: 0 | AU193: =SUM(IF(B193=(H$18:H$27),(G$18:G$27)),0) -> 0 | AV193: 0.1333290909 | AW193: 0
B194: 7.05 | C194: 12.89303053 | D194: 15.32282374 | P194: =SUM(IF(B194>=(H$18:H$27),(G$18:G$27)*EXP(-sfo_k*(B194-(H$18:H$27))),0)) -> 12.89303053 | Q194: 15.32282374 | W194: 0 | X194: =SUM(IF(B194>=(H$18:H$27),g*(G$18:G$27)*EXP(-dfop_k1*(B194-(H$18:H$27))),0)) -> 0 | Y194: =SUM(IF(B194>=(H$18:H$27),(1-g)*(G$18:G$27)*EXP(-dfop_k2*(B194-(H$18:H$27))),0)) -> 0 | Z194: 0.002583535917 | AA194: 0 | AB194: 0.002583535917 | AD194: =SUM(IF(B194>=(H$18:H$27),(G$18:G$27)*POWER(((B194-(H$18:H$27)))/fomc_b + 1,-fomc_a),0)) ->  | AF194: =SUM(IF(B194>=(H$18:H$27),(G$18:G$27)*(LN((B195-(H$18:H$27))/fomc_b + 1) - LN((B194-(H$18:H$27))/fomc_b + 1)),0)) ->  | AG194: =SUM(IF(B194>=(H$18:H$27),(G$18:G$27)*(POWER((B195-(H$18:H$27))/fomc_b + 1,(-fomc_a+1)) - POWER((B194-(H$18:H$27))/fomc_b + 1,(-fomc_a+1))),0)) ->  | AK194: 0 | AL194: =SUM(IF(B194>=(H$18:H$27),((B194-(H$18:H$27))<hs_tb)*(G$18:G$27)*EXP(-hs_k1*(B194-(H$18:H$27))),0)) -> 0 | AM194: =SUM(IF(B194>=(H$18:H$27),((B194-(H$18:H$27))=hs_tb)*(G$18:G$27)*EXP(-hs_k1*(B194-(H$18:H$27))),0)) -> 0 | AN194: =SUM(IF(B194>=(H$18:H$27),((B194-(H$18:H$27))>hs_tb)*(G$18:G$27)*tb_prefactor*EXP(-hs_k2*(B194-(H$18:H$27)-hs_tb)),0)) -> 0 | AO194: 0.002583535917 | AR194: 0 | AS194: 0 | AU194: =SUM(IF(B194=(H$18:H$27),(G$18:G$27)),0) -> 0 | AV194: 0.1319781112 | AW194: 0
B195: 7.1 | C195: 12.76238971 | D195: 15.29595534 | P195: =SUM(IF(B195>=(H$18:H$27),(G$18:G$27)*EXP(-sfo_k*(B195-(H$18:H$27))),0)) -> 12.76238971 | Q195: 15.29595534 | W195: 0 | X195: =SUM(IF(B195>=(H$18:H$27),g*(G$18:G$27)*EXP(-dfop_k1*(B195-(H$18:H$27))),0)) -> 0 | Y195: =SUM(IF(B195>=(H$18:H$27),(1-g)*(G$18:G$27)*EXP(-dfop_k2*(B195-(H$18:H$27))),0)) -> 0 | Z195: 0.002583535917 | AA195: 0 | AB195: 0.002583535917 | AD195: =SUM(IF(B195>=(H$18:H$27),(G$18:G$27)*POWER(((B195-(H$18:H$27)))/fomc_b + 1,-fomc_a),0)) ->  | AF195: =SUM(IF(B195>=(H$18:H$27),(G$18:G$27)*(LN((B196-(H$18:H$27))/fomc_b + 1) - LN((B195-(H$18:H$27))/fomc_b + 1)),0)) ->  | AG195: =SUM(IF(B195>=(H$18:H$27),(G$18:G$27)*(POWER((B196-(H$18:H$27))/fomc_b + 1,(-fomc_a+1)) - POWER((B195-(H$18:H$27))/fomc_b + 1,(-fomc_a+1))),0)) ->  | AK195: 0 | AL195: =SUM(IF(B195>=(H$18:H$27),((B195-(H$18:H$27))<hs_tb)*(G$18:G$27)*EXP(-hs_k1*(B195-(H$18:H$27))),0)) -> 0 | AM195: =SUM(IF(B195>=(H$18:H$27),((B195-(H$18:H$27))=hs_tb)*(G$18:G$27)*EXP(-hs_k1*(B195-(H$18:H$27))),0)) -> 0 | AN195: =SUM(IF(B195>=(H$18:H$27),((B195-(H$18:H$27))>hs_tb)*(G$18:G$27)*tb_prefactor*EXP(-hs_k2*(B195-(H$18:H$27)-hs_tb)),0)) -> 0 | AO195: 0.002583535917 | AR195: 0 | AS195: 0 | AU195: =SUM(IF(B195=(H$18:H$27),(G$18:G$27)),0) -> 0 | AV195: 0.1306408206 | AW195: 0
B196: 7.15 | C196: 12.63307263 | D196: 15.26935918 | P196: =SUM(IF(B196>=(H$18:H$27),(G$18:G$27)*EXP(-sfo_k*(B196-(H$18:H$27))),0)) -> 12.63307263 | Q196: 15.26935918 | W196: 0 | X196: =SUM(IF(B196>=(H$18:H$27),g*(G$18:G$27)*EXP(-dfop_k1*(B196-(H$18:H$27))),0)) -> 0 | Y196: =SUM(IF(B196>=(H$18:H$27),(1-g)*(G$18:G$27)*EXP(-dfop_k2*(B196-(H$18:H$27))),0)) -> 0 | Z196: 0.002583535917 | AA196: 0 | AB196: 0.002583535917 | AD196: =SUM(IF(B196>=(H$18:H$27),(G$18:G$27)*POWER(((B196-(H$18:H$27)))/fomc_b + 1,-fomc_a),0)) ->  | AF196: =SUM(IF(B196>=(H$18:H$27),(G$18:G$27)*(LN((B197-(H$18:H$27))/fomc_b + 1) - LN((B196-(H$18:H$27))/fomc_b + 1)),0)) ->  | AG196: =SUM(IF(B196>=(H$18:H$27),(G$18:G$27)*(POWER((B197-(H$18:H$27))/fomc_b + 1,(-fomc_a+1)) - POWER((B196-(H$18:H$27))/fomc_b + 1,(-fomc_a+1))),0)) ->  | AK196: 0 | AL196: =SUM(IF(B196>=(H$18:H$27),((B196-(H$18:H$27))<hs_tb)*(G$18:G$27)*EXP(-hs_k1*(B196-(H$18:H$27))),0)) -> 0 | AM196: =SUM(IF(B196>=(H$18:H$27),((B196-(H$18:H$27))=hs_tb)*(G$18:G$27)*EXP(-hs_k1*(B196-(H$18:H$27))),0)) -> 0 | AN196: =SUM(IF(B196>=(H$18:H$27),((B196-(H$18:H$27))>hs_tb)*(G$18:G$27)*tb_prefactor*EXP(-hs_k2*(B196-(H$18:H$27)-hs_tb)),0)) -> 0 | AO196: 0.002583535917 | AR196: 0 | AS196: 0 | AU196: =SUM(IF(B196=(H$18:H$27),(G$18:G$27)),0) -> 0 | AV196: 0.1293170803 | AW196: 0
B197: 7.2 | C197: 12.50506588 | D197: 15.24303252 | P197: =SUM(IF(B197>=(H$18:H$27),(G$18:G$27)*EXP(-sfo_k*(B197-(H$18:H$27))),0)) -> 12.50506588 | Q197: 15.24303252 | W197: 0 | X197: =SUM(IF(B197>=(H$18:H$27),g*(G$18:G$27)*EXP(-dfop_k1*(B197-(H$18:H$27))),0)) -> 0 | Y197: =SUM(IF(B197>=(H$18:H$27),(1-g)*(G$18:G$27)*EXP(-dfop_k2*(B197-(H$18:H$27))),0)) -> 0 | Z197: 0.002583535917 | AA197: 0 | AB197: 0.002583535917 | AD197: =SUM(IF(B197>=(H$18:H$27),(G$18:G$27)*POWER(((B197-(H$18:H$27)))/fomc_b + 1,-fomc_a),0)) ->  | AF197: =SUM(IF(B197>=(H$18:H$27),(G$18:G$27)*(LN((B198-(H$18:H$27))/fomc_b + 1) - LN((B197-(H$18:H$27))/fomc_b + 1)),0)) ->  | AG197: =SUM(IF(B197>=(H$18:H$27),(G$18:G$27)*(POWER((B198-(H$18:H$27))/fomc_b + 1,(-fomc_a+1)) - POWER((B197-(H$18:H$27))/fomc_b + 1,(-fomc_a+1))),0)) ->  | AK197: 0 | AL197: =SUM(IF(B197>=(H$18:H$27),((B197-(H$18:H$27))<hs_tb)*(G$18:G$27)*EXP(-hs_k1*(B197-(H$18:H$27))),0)) -> 0 | AM197: =SUM(IF(B197>=(H$18:H$27),((B197-(H$18:H$27))=hs_tb)*(G$18:G$27)*EXP(-hs_k1*(B197-(H$18:H$27))),0)) -> 0 | AN197: =SUM(IF(B197>=(H$18:H$27),((B197-(H$18:H$27))>hs_tb)*(G$18:G$27)*tb_prefactor*EXP(-hs_k2*(B197-(H$18:H$27)-hs_tb)),0)) -> 0 | AO197: 0.002583535917 | AR197: 0 | AS197: 0 | AU197: =SUM(IF(B197=(H$18:H$27),(G$18:G$27)),0) -> 0 | AV197: 0.128006753 | AW197: 0
B198: 7.25 | C198: 12.37835617 | D198: 15.21697262 | P198: =SUM(IF(B198>=(H$18:H$27),(G$18:G$27)*EXP(-sfo_k*(B198-(H$18:H$27))),0)) -> 12.37835617 | Q198: 15.21697262 | W198: 0 | X198: =SUM(IF(B198>=(H$18:H$27),g*(G$18:G$27)*EXP(-dfop_k1*(B198-(H$18:H$27))),0)) -> 0 | Y198: =SUM(IF(B198>=(H$18:H$27),(1-g)*(G$18:G$27)*EXP(-dfop_k2*(B198-(H$18:H$27))),0)) -> 0 | Z198: 0.002583535917 | AA198: 0 | AB198: 0.002583535917 | AD198: =SUM(IF(B198>=(H$18:H$27),(G$18:G$27)*POWER(((B198-(H$18:H$27)))/fomc_b + 1,-fomc_a),0)) ->  | AF198: =SUM(IF(B198>=(H$18:H$27),(G$18:G$27)*(LN((B199-(H$18:H$27))/fomc_b + 1) - LN((B198-(H$18:H$27))/fomc_b + 1)),0)) ->  | AG198: =SUM(IF(B198>=(H$18:H$27),(G$18:G$27)*(POWER((B199-(H$18:H$27))/fomc_b + 1,(-fomc_a+1)) - POWER((B198-(H$18:H$27))/fomc_b + 1,(-fomc_a+1))),0)) ->  | AK198: 0 | AL198: =SUM(IF(B198>=(H$18:H$27),((B198-(H$18:H$27))<hs_tb)*(G$18:G$27)*EXP(-hs_k1*(B198-(H$18:H$27))),0)) -> 0 | AM198: =SUM(IF(B198>=(H$18:H$27),((B198-(H$18:H$27))=hs_tb)*(G$18:G$27)*EXP(-hs_k1*(B198-(H$18:H$27))),0)) -> 0 | AN198: =SUM(IF(B198>=(H$18:H$27),((B198-(H$18:H$27))>hs_tb)*(G$18:G$27)*tb_prefactor*EXP(-hs_k2*(B198-(H$18:H$27)-hs_tb)),0)) -> 0 | AO198: 0.002583535917 | AR198: 0 | AS198: 0 | AU198: =SUM(IF(B198=(H$18:H$27),(G$18:G$27)),0) -> 0 | AV198: 0.1267097029 | AW198: 0
B199: 7.3 | C199: 12.25293038 | D199: 15.19117677 | P199: =SUM(IF(B199>=(H$18:H$27),(G$18:G$27)*EXP(-sfo_k*(B199-(H$18:H$27))),0)) -> 12.25293038 | Q199: 15.19117677 | W199: 0 | X199: =SUM(IF(B199>=(H$18:H$27),g*(G$18:G$27)*EXP(-dfop_k1*(B199-(H$18:H$27))),0)) -> 0 | Y199: =SUM(IF(B199>=(H$18:H$27),(1-g)*(G$18:G$27)*EXP(-dfop_k2*(B199-(H$18:H$27))),0)) -> 0 | Z199: 0.002583535917 | AA199: 0 | AB199: 0.002583535917 | AD199: =SUM(IF(B199>=(H$18:H$27),(G$18:G$27)*POWER(((B199-(H$18:H$27)))/fomc_b + 1,-fomc_a),0)) ->  | AF199: =SUM(IF(B199>=(H$18:H$27),(G$18:G$27)*(LN((B200-(H$18:H$27))/fomc_b + 1) - LN((B199-(H$18:H$27))/fomc_b + 1)),0)) ->  | AG199: =SUM(IF(B199>=(H$18:H$27),(G$18:G$27)*(POWER((B200-(H$18:H$27))/fomc_b + 1,(-fomc_a+1)) - POWER((B199-(H$18:H$27))/fomc_b + 1,(-fomc_a+1))),0)) ->  | AK199: 0 | AL199: =SUM(IF(B199>=(H$18:H$27),((B199-(H$18:H$27))<hs_tb)*(G$18:G$27)*EXP(-hs_k1*(B199-(H$18:H$27))),0)) -> 0 | AM199: =SUM(IF(B199>=(H$18:H$27),((B199-(H$18:H$27))=hs_tb)*(G$18:G$27)*EXP(-hs_k1*(B199-(H$18:H$27))),0)) -> 0 | AN199: =SUM(IF(B199>=(H$18:H$27),((B199-(H$18:H$27))>hs_tb)*(G$18:G$27)*tb_prefactor*EXP(-hs_k2*(B199-(H$18:H$27)-hs_tb)),0)) -> 0 | AO199: 0.002583535917 | AR199: 0 | AS199: 0 | AU199: =SUM(IF(B199=(H$18:H$27),(G$18:G$27)),0) -> 0 | AV199: 0.1254257953 | AW199: 0
B200: 7.35 | C200: 12.12877548 | D200: 15.1656423 | P200: =SUM(IF(B200>=(H$18:H$27),(G$18:G$27)*EXP(-sfo_k*(B200-(H$18:H$27))),0)) -> 12.12877548 | Q200: 15.1656423 | W200: 0 | X200: =SUM(IF(B200>=(H$18:H$27),g*(G$18:G$27)*EXP(-dfop_k1*(B200-(H$18:H$27))),0)) -> 0 | Y200: =SUM(IF(B200>=(H$18:H$27),(1-g)*(G$18:G$27)*EXP(-dfop_k2*(B200-(H$18:H$27))),0)) -> 0 | Z200: 0.002583535917 | AA200: 0 | AB200: 0.002583535917 | AD200: =SUM(IF(B200>=(H$18:H$27),(G$18:G$27)*POWER(((B200-(H$18:H$27)))/fomc_b + 1,-fomc_a),0)) ->  | AF200: =SUM(IF(B200>=(H$18:H$27),(G$18:G$27)*(LN((B201-(H$18:H$27))/fomc_b + 1) - LN((B200-(H$18:H$27))/fomc_b + 1)),0)) ->  | AG200: =SUM(IF(B200>=(H$18:H$27),(G$18:G$27)*(POWER((B201-(H$18:H$27))/fomc_b + 1,(-fomc_a+1)) - POWER((B200-(H$18:H$27))/fomc_b + 1,(-fomc_a+1))),0)) ->  | AK200: 0 | AL200: =SUM(IF(B200>=(H$18:H$27),((B200-(H$18:H$27))<hs_tb)*(G$18:G$27)*EXP(-hs_k1*(B200-(H$18:H$27))),0)) -> 0 | AM200: =SUM(IF(B200>=(H$18:H$27),((B200-(H$18:H$27))=hs_tb)*(G$18:G$27)*EXP(-hs_k1*(B200-(H$18:H$27))),0)) -> 0 | AN200: =SUM(IF(B200>=(H$18:H$27),((B200-(H$18:H$27))>hs_tb)*(G$18:G$27)*tb_prefactor*EXP(-hs_k2*(B200-(H$18:H$27)-hs_tb)),0)) -> 0 | AO200: 0.002583535917 | AR200: 0 | AS200: 0 | AU200: =SUM(IF(B200=(H$18:H$27),(G$18:G$27)),0) -> 0 | AV200: 0.1241548972 | AW200: 0
B201: 7.4 | C201: 12.0058786 | D201: 15.14036657 | P201: =SUM(IF(B201>=(H$18:H$27),(G$18:G$27)*EXP(-sfo_k*(B201-(H$18:H$27))),0)) -> 12.0058786 | Q201: 15.14036657 | W201: 0 | X201: =SUM(IF(B201>=(H$18:H$27),g*(G$18:G$27)*EXP(-dfop_k1*(B201-(H$18:H$27))),0)) -> 0 | Y201: =SUM(IF(B201>=(H$18:H$27),(1-g)*(G$18:G$27)*EXP(-dfop_k2*(B201-(H$18:H$27))),0)) -> 0 | Z201: 0.002583535917 | AA201: 0 | AB201: 0.002583535917 | AD201: =SUM(IF(B201>=(H$18:H$27),(G$18:G$27)*POWER(((B201-(H$18:H$27)))/fomc_b + 1,-fomc_a),0)) ->  | AF201: =SUM(IF(B201>=(H$18:H$27),(G$18:G$27)*(LN((B202-(H$18:H$27))/fomc_b + 1) - LN((B201-(H$18:H$27))/fomc_b + 1)),0)) ->  | AG201: =SUM(IF(B201>=(H$18:H$27),(G$18:G$27)*(POWER((B202-(H$18:H$27))/fomc_b + 1,(-fomc_a+1)) - POWER((B201-(H$18:H$27))/fomc_b + 1,(-fomc_a+1))),0)) ->  | AK201: 0 | AL201: =SUM(IF(B201>=(H$18:H$27),((B201-(H$18:H$27))<hs_tb)*(G$18:G$27)*EXP(-hs_k1*(B201-(H$18:H$27))),0)) -> 0 | AM201: =SUM(IF(B201>=(H$18:H$27),((B201-(H$18:H$27))=hs_tb)*(G$18:G$27)*EXP(-hs_k1*(B201-(H$18:H$27))),0)) -> 0 | AN201: =SUM(IF(B201>=(H$18:H$27),((B201-(H$18:H$27))>hs_tb)*(G$18:G$27)*tb_prefactor*EXP(-hs_k2*(B201-(H$18:H$27)-hs_tb)),0)) -> 0 | AO201: 0.002583535917 | AR201: 0 | AS201: 0 | AU201: =SUM(IF(B201=(H$18:H$27),(G$18:G$27)),0) -> 0 | AV201: 0.1228968766 | AW201: 0
B202: 7.45 | C202: 11.884227 | D202: 15.11534694 | P202: =SUM(IF(B202>=(H$18:H$27),(G$18:G$27)*EXP(-sfo_k*(B202-(H$18:H$27))),0)) -> 11.884227 | Q202: 15.11534694 | W202: 0 | X202: =SUM(IF(B202>=(H$18:H$27),g*(G$18:G$27)*EXP(-dfop_k1*(B202-(H$18:H$27))),0)) -> 0 | Y202: =SUM(IF(B202>=(H$18:H$27),(1-g)*(G$18:G$27)*EXP(-dfop_k2*(B202-(H$18:H$27))),0)) -> 0 | Z202: 0.002583535917 | AA202: 0 | AB202: 0.002583535917 | AD202: =SUM(IF(B202>=(H$18:H$27),(G$18:G$27)*POWER(((B202-(H$18:H$27)))/fomc_b + 1,-fomc_a),0)) ->  | AF202: =SUM(IF(B202>=(H$18:H$27),(G$18:G$27)*(LN((B203-(H$18:H$27))/fomc_b + 1) - LN((B202-(H$18:H$27))/fomc_b + 1)),0)) ->  | AG202: =SUM(IF(B202>=(H$18:H$27),(G$18:G$27)*(POWER((B203-(H$18:H$27))/fomc_b + 1,(-fomc_a+1)) - POWER((B202-(H$18:H$27))/fomc_b + 1,(-fomc_a+1))),0)) ->  | AK202: 0 | AL202: =SUM(IF(B202>=(H$18:H$27),((B202-(H$18:H$27))<hs_tb)*(G$18:G$27)*EXP(-hs_k1*(B202-(H$18:H$27))),0)) -> 0 | AM202: =SUM(IF(B202>=(H$18:H$27),((B202-(H$18:H$27))=hs_tb)*(G$18:G$27)*EXP(-hs_k1*(B202-(H$18:H$27))),0)) -> 0 | AN202: =SUM(IF(B202>=(H$18:H$27),((B202-(H$18:H$27))>hs_tb)*(G$18:G$27)*tb_prefactor*EXP(-hs_k2*(B202-(H$18:H$27)-hs_tb)),0)) -> 0 | AO202: 0.002583535917 | AR202: 0 | AS202: 0 | AU202: =SUM(IF(B202=(H$18:H$27),(G$18:G$27)),0) -> 0 | AV202: 0.1216516031 | AW202: 0
B203: 7.5 | C203: 11.76380805 | D203: 15.09058084 | P203: =SUM(IF(B203>=(H$18:H$27),(G$18:G$27)*EXP(-sfo_k*(B203-(H$18:H$27))),0)) -> 11.76380805 | Q203: 15.09058084 | W203: 0 | X203: =SUM(IF(B203>=(H$18:H$27),g*(G$18:G$27)*EXP(-dfop_k1*(B203-(H$18:H$27))),0)) -> 0 | Y203: =SUM(IF(B203>=(H$18:H$27),(1-g)*(G$18:G$27)*EXP(-dfop_k2*(B203-(H$18:H$27))),0)) -> 0 | Z203: 0.002583535917 | AA203: 0 | AB203: 0.002583535917 | AD203: =SUM(IF(B203>=(H$18:H$27),(G$18:G$27)*POWER(((B203-(H$18:H$27)))/fomc_b + 1,-fomc_a),0)) ->  | AF203: =SUM(IF(B203>=(H$18:H$27),(G$18:G$27)*(LN((B204-(H$18:H$27))/fomc_b + 1) - LN((B203-(H$18:H$27))/fomc_b + 1)),0)) ->  | AG203: =SUM(IF(B203>=(H$18:H$27),(G$18:G$27)*(POWER((B204-(H$18:H$27))/fomc_b + 1,(-fomc_a+1)) - POWER((B203-(H$18:H$27))/fomc_b + 1,(-fomc_a+1))),0)) ->  | AK203: 0 | AL203: =SUM(IF(B203>=(H$18:H$27),((B203-(H$18:H$27))<hs_tb)*(G$18:G$27)*EXP(-hs_k1*(B203-(H$18:H$27))),0)) -> 0 | AM203: =SUM(IF(B203>=(H$18:H$27),((B203-(H$18:H$27))=hs_tb)*(G$18:G$27)*EXP(-hs_k1*(B203-(H$18:H$27))),0)) -> 0 | AN203: =SUM(IF(B203>=(H$18:H$27),((B203-(H$18:H$27))>hs_tb)*(G$18:G$27)*tb_prefactor*EXP(-hs_k2*(B203-(H$18:H$27)-hs_tb)),0)) -> 0 | AO203: 0.002583535917 | AR203: 0 | AS203: 0 | AU203: =SUM(IF(B203=(H$18:H$27),(G$18:G$27)),0) -> 0 | AV203: 0.1204189476 | AW203: 0
B204: 7.55 | C204: 11.64460927 | D204: 15.06606567 | P204: =SUM(IF(B204>=(H$18:H$27),(G$18:G$27)*EXP(-sfo_k*(B204-(H$18:H$27))),0)) -> 11.64460927 | Q204: 15.06606567 | W204: 0 | X204: =SUM(IF(B204>=(H$18:H$27),g*(G$18:G$27)*EXP(-dfop_k1*(B204-(H$18:H$27))),0)) -> 0 | Y204: =SUM(IF(B204>=(H$18:H$27),(1-g)*(G$18:G$27)*EXP(-dfop_k2*(B204-(H$18:H$27))),0)) -> 0 | Z204: 0.002583535917 | AA204: 0 | AB204: 0.002583535917 | AD204: =SUM(IF(B204>=(H$18:H$27),(G$18:G$27)*POWER(((B204-(H$18:H$27)))/fomc_b + 1,-fomc_a),0)) ->  | AF204: =SUM(IF(B204>=(H$18:H$27),(G$18:G$27)*(LN((B205-(H$18:H$27))/fomc_b + 1) - LN((B204-(H$18:H$27))/fomc_b + 1)),0)) ->  | AG204: =SUM(IF(B204>=(H$18:H$27),(G$18:G$27)*(POWER((B205-(H$18:H$27))/fomc_b + 1,(-fomc_a+1)) - POWER((B204-(H$18:H$27))/fomc_b + 1,(-fomc_a+1))),0)) ->  | AK204: 0 | AL204: =SUM(IF(B204>=(H$18:H$27),((B204-(H$18:H$27))<hs_tb)*(G$18:G$27)*EXP(-hs_k1*(B204-(H$18:H$27))),0)) -> 0 | AM204: =SUM(IF(B204>=(H$18:H$27),((B204-(H$18:H$27))=hs_tb)*(G$18:G$27)*EXP(-hs_k1*(B204-(H$18:H$27))),0)) -> 0 | AN204: =SUM(IF(B204>=(H$18:H$27),((B204-(H$18:H$27))>hs_tb)*(G$18:G$27)*tb_prefactor*EXP(-hs_k2*(B204-(H$18:H$27)-hs_tb)),0)) -> 0 | AO204: 0.002583535917 | AR204: 0 | AS204: 0 | AU204: =SUM(IF(B204=(H$18:H$27),(G$18:G$27)),0) -> 0 | AV204: 0.1191987822 | AW204: 0
B205: 7.6 | C205: 11.52661829 | D205: 15.04179892 | P205: =SUM(IF(B205>=(H$18:H$27),(G$18:G$27)*EXP(-sfo_k*(B205-(H$18:H$27))),0)) -> 11.52661829 | Q205: 15.04179892 | W205: 0 | X205: =SUM(IF(B205>=(H$18:H$27),g*(G$18:G$27)*EXP(-dfop_k1*(B205-(H$18:H$27))),0)) -> 0 | Y205: =SUM(IF(B205>=(H$18:H$27),(1-g)*(G$18:G$27)*EXP(-dfop_k2*(B205-(H$18:H$27))),0)) -> 0 | Z205: 0.002583535917 | AA205: 0 | AB205: 0.002583535917 | AD205: =SUM(IF(B205>=(H$18:H$27),(G$18:G$27)*POWER(((B205-(H$18:H$27)))/fomc_b + 1,-fomc_a),0)) ->  | AF205: =SUM(IF(B205>=(H$18:H$27),(G$18:G$27)*(LN((B206-(H$18:H$27))/fomc_b + 1) - LN((B205-(H$18:H$27))/fomc_b + 1)),0)) ->  | AG205: =SUM(IF(B205>=(H$18:H$27),(G$18:G$27)*(POWER((B206-(H$18:H$27))/fomc_b + 1,(-fomc_a+1)) - POWER((B205-(H$18:H$27))/fomc_b + 1,(-fomc_a+1))),0)) ->  | AK205: 0 | AL205: =SUM(IF(B205>=(H$18:H$27),((B205-(H$18:H$27))<hs_tb)*(G$18:G$27)*EXP(-hs_k1*(B205-(H$18:H$27))),0)) -> 0 | AM205: =SUM(IF(B205>=(H$18:H$27),((B205-(H$18:H$27))=hs_tb)*(G$18:G$27)*EXP(-hs_k1*(B205-(H$18:H$27))),0)) -> 0 | AN205: =SUM(IF(B205>=(H$18:H$27),((B205-(H$18:H$27))>hs_tb)*(G$18:G$27)*tb_prefactor*EXP(-hs_k2*(B205-(H$18:H$27)-hs_tb)),0)) -> 0 | AO205: 0.002583535917 | AR205: 0 | AS205: 0 | AU205: =SUM(IF(B205=(H$18:H$27),(G$18:G$27)),0) -> 0 | AV205: 0.1179909803 | AW205: 0
B206: 7.65 | C206: 11.40982287 | D206: 15.01777805 | P206: =SUM(IF(B206>=(H$18:H$27),(G$18:G$27)*EXP(-sfo_k*(B206-(H$18:H$27))),0)) -> 11.40982287 | Q206: 15.01777805 | W206: 0 | X206: =SUM(IF(B206>=(H$18:H$27),g*(G$18:G$27)*EXP(-dfop_k1*(B206-(H$18:H$27))),0)) -> 0 | Y206: =SUM(IF(B206>=(H$18:H$27),(1-g)*(G$18:G$27)*EXP(-dfop_k2*(B206-(H$18:H$27))),0)) -> 0 | Z206: 0.002583535917 | AA206: 0 | AB206: 0.002583535917 | AD206: =SUM(IF(B206>=(H$18:H$27),(G$18:G$27)*POWER(((B206-(H$18:H$27)))/fomc_b + 1,-fomc_a),0)) ->  | AF206: =SUM(IF(B206>=(H$18:H$27),(G$18:G$27)*(LN((B207-(H$18:H$27))/fomc_b + 1) - LN((B206-(H$18:H$27))/fomc_b + 1)),0)) ->  | AG206: =SUM(IF(B206>=(H$18:H$27),(G$18:G$27)*(POWER((B207-(H$18:H$27))/fomc_b + 1,(-fomc_a+1)) - POWER((B206-(H$18:H$27))/fomc_b + 1,(-fomc_a+1))),0)) ->  | AK206: 0 | AL206: =SUM(IF(B206>=(H$18:H$27),((B206-(H$18:H$27))<hs_tb)*(G$18:G$27)*EXP(-hs_k1*(B206-(H$18:H$27))),0)) -> 0 | AM206: =SUM(IF(B206>=(H$18:H$27),((B206-(H$18:H$27))=hs_tb)*(G$18:G$27)*EXP(-hs_k1*(B206-(H$18:H$27))),0)) -> 0 | AN206: =SUM(IF(B206>=(H$18:H$27),((B206-(H$18:H$27))>hs_tb)*(G$18:G$27)*tb_prefactor*EXP(-hs_k2*(B206-(H$18:H$27)-hs_tb)),0)) -> 0 | AO206: 0.002583535917 | AR206: 0 | AS206: 0 | AU206: =SUM(IF(B206=(H$18:H$27),(G$18:G$27)),0) -> 0 | AV206: 0.1167954166 | AW206: 0
B207: 7.7 | C207: 11.29421091 | D207: 14.99400057 | P207: =SUM(IF(B207>=(H$18:H$27),(G$18:G$27)*EXP(-sfo_k*(B207-(H$18:H$27))),0)) -> 11.29421091 | Q207: 14.99400057 | W207: 0 | X207: =SUM(IF(B207>=(H$18:H$27),g*(G$18:G$27)*EXP(-dfop_k1*(B207-(H$18:H$27))),0)) -> 0 | Y207: =SUM(IF(B207>=(H$18:H$27),(1-g)*(G$18:G$27)*EXP(-dfop_k2*(B207-(H$18:H$27))),0)) -> 0 | Z207: 0.002583535917 | AA207: 0 | AB207: 0.002583535917 | AD207: =SUM(IF(B207>=(H$18:H$27),(G$18:G$27)*POWER(((B207-(H$18:H$27)))/fomc_b + 1,-fomc_a),0)) ->  | AF207: =SUM(IF(B207>=(H$18:H$27),(G$18:G$27)*(LN((B208-(H$18:H$27))/fomc_b + 1) - LN((B207-(H$18:H$27))/fomc_b + 1)),0)) ->  | AG207: =SUM(IF(B207>=(H$18:H$27),(G$18:G$27)*(POWER((B208-(H$18:H$27))/fomc_b + 1,(-fomc_a+1)) - POWER((B207-(H$18:H$27))/fomc_b + 1,(-fomc_a+1))),0)) ->  | AK207: 0 | AL207: =SUM(IF(B207>=(H$18:H$27),((B207-(H$18:H$27))<hs_tb)*(G$18:G$27)*EXP(-hs_k1*(B207-(H$18:H$27))),0)) -> 0 | AM207: =SUM(IF(B207>=(H$18:H$27),((B207-(H$18:H$27))=hs_tb)*(G$18:G$27)*EXP(-hs_k1*(B207-(H$18:H$27))),0)) -> 0 | AN207: =SUM(IF(B207>=(H$18:H$27),((B207-(H$18:H$27))>hs_tb)*(G$18:G$27)*tb_prefactor*EXP(-hs_k2*(B207-(H$18:H$27)-hs_tb)),0)) -> 0 | AO207: 0.002583535917 | AR207: 0 | AS207: 0 | AU207: =SUM(IF(B207=(H$18:H$27),(G$18:G$27)),0) -> 0 | AV207: 0.1156119672 | AW207: 0
B208: 7.75 | C208: 11.1797704 | D208: 14.97046403 | P208: =SUM(IF(B208>=(H$18:H$27),(G$18:G$27)*EXP(-sfo_k*(B208-(H$18:H$27))),0)) -> 11.1797704 | Q208: 14.97046403 | W208: 0 | X208: =SUM(IF(B208>=(H$18:H$27),g*(G$18:G$27)*EXP(-dfop_k1*(B208-(H$18:H$27))),0)) -> 0 | Y208: =SUM(IF(B208>=(H$18:H$27),(1-g)*(G$18:G$27)*EXP(-dfop_k2*(B208-(H$18:H$27))),0)) -> 0 | Z208: 0.002583535917 | AA208: 0 | AB208: 0.002583535917 | AD208: =SUM(IF(B208>=(H$18:H$27),(G$18:G$27)*POWER(((B208-(H$18:H$27)))/fomc_b + 1,-fomc_a),0)) ->  | AF208: =SUM(IF(B208>=(H$18:H$27),(G$18:G$27)*(LN((B209-(H$18:H$27))/fomc_b + 1) - LN((B208-(H$18:H$27))/fomc_b + 1)),0)) ->  | AG208: =SUM(IF(B208>=(H$18:H$27),(G$18:G$27)*(POWER((B209-(H$18:H$27))/fomc_b + 1,(-fomc_a+1)) - POWER((B208-(H$18:H$27))/fomc_b + 1,(-fomc_a+1))),0)) ->  | AK208: 0 | AL208: =SUM(IF(B208>=(H$18:H$27),((B208-(H$18:H$27))<hs_tb)*(G$18:G$27)*EXP(-hs_k1*(B208-(H$18:H$27))),0)) -> 0 | AM208: =SUM(IF(B208>=(H$18:H$27),((B208-(H$18:H$27))=hs_tb)*(G$18:G$27)*EXP(-hs_k1*(B208-(H$18:H$27))),0)) -> 0 | AN208: =SUM(IF(B208>=(H$18:H$27),((B208-(H$18:H$27))>hs_tb)*(G$18:G$27)*tb_prefactor*EXP(-hs_k2*(B208-(H$18:H$27)-hs_tb)),0)) -> 0 | AO208: 0.002583535917 | AR208: 0 | AS208: 0 | AU208: =SUM(IF(B208=(H$18:H$27),(G$18:G$27)),0) -> 0 | AV208: 0.1144405094 | AW208: 0
B209: 7.8 | C209: 11.06648948 | D209: 14.94716597 | P209: =SUM(IF(B209>=(H$18:H$27),(G$18:G$27)*EXP(-sfo_k*(B209-(H$18:H$27))),0)) -> 11.06648948 | Q209: 14.94716597 | W209: 0 | X209: =SUM(IF(B209>=(H$18:H$27),g*(G$18:G$27)*EXP(-dfop_k1*(B209-(H$18:H$27))),0)) -> 0 | Y209: =SUM(IF(B209>=(H$18:H$27),(1-g)*(G$18:G$27)*EXP(-dfop_k2*(B209-(H$18:H$27))),0)) -> 0 | Z209: 0.002583535917 | AA209: 0 | AB209: 0.002583535917 | AD209: =SUM(IF(B209>=(H$18:H$27),(G$18:G$27)*POWER(((B209-(H$18:H$27)))/fomc_b + 1,-fomc_a),0)) ->  | AF209: =SUM(IF(B209>=(H$18:H$27),(G$18:G$27)*(LN((B210-(H$18:H$27))/fomc_b + 1) - LN((B209-(H$18:H$27))/fomc_b + 1)),0)) ->  | AG209: =SUM(IF(B209>=(H$18:H$27),(G$18:G$27)*(POWER((B210-(H$18:H$27))/fomc_b + 1,(-fomc_a+1)) - POWER((B209-(H$18:H$27))/fomc_b + 1,(-fomc_a+1))),0)) ->  | AK209: 0 | AL209: =SUM(IF(B209>=(H$18:H$27),((B209-(H$18:H$27))<hs_tb)*(G$18:G$27)*EXP(-hs_k1*(B209-(H$18:H$27))),0)) -> 0 | AM209: =SUM(IF(B209>=(H$18:H$27),((B209-(H$18:H$27))=hs_tb)*(G$18:G$27)*EXP(-hs_k1*(B209-(H$18:H$27))),0)) -> 0 | AN209: =SUM(IF(B209>=(H$18:H$27),((B209-(H$18:H$27))>hs_tb)*(G$18:G$27)*tb_prefactor*EXP(-hs_k2*(B209-(H$18:H$27)-hs_tb)),0)) -> 0 | AO209: 0.002583535917 | AR209: 0 | AS209: 0 | AU209: =SUM(IF(B209=(H$18:H$27),(G$18:G$27)),0) -> 0 | AV209: 0.1132809215 | AW209: 0
B210: 7.85 | C210: 10.95435639 | D210: 14.92410398 | P210: =SUM(IF(B210>=(H$18:H$27),(G$18:G$27)*EXP(-sfo_k*(B210-(H$18:H$27))),0)) -> 10.95435639 | Q210: 14.92410398 | W210: 0 | X210: =SUM(IF(B210>=(H$18:H$27),g*(G$18:G$27)*EXP(-dfop_k1*(B210-(H$18:H$27))),0)) -> 0 | Y210: =SUM(IF(B210>=(H$18:H$27),(1-g)*(G$18:G$27)*EXP(-dfop_k2*(B210-(H$18:H$27))),0)) -> 0 | Z210: 0.002583535917 | AA210: 0 | AB210: 0.002583535917 | AD210: =SUM(IF(B210>=(H$18:H$27),(G$18:G$27)*POWER(((B210-(H$18:H$27)))/fomc_b + 1,-fomc_a),0)) ->  | AF210: =SUM(IF(B210>=(H$18:H$27),(G$18:G$27)*(LN((B211-(H$18:H$27))/fomc_b + 1) - LN((B210-(H$18:H$27))/fomc_b + 1)),0)) ->  | AG210: =SUM(IF(B210>=(H$18:H$27),(G$18:G$27)*(POWER((B211-(H$18:H$27))/fomc_b + 1,(-fomc_a+1)) - POWER((B210-(H$18:H$27))/fomc_b + 1,(-fomc_a+1))),0)) ->  | AK210: 0 | AL210: =SUM(IF(B210>=(H$18:H$27),((B210-(H$18:H$27))<hs_tb)*(G$18:G$27)*EXP(-hs_k1*(B210-(H$18:H$27))),0)) -> 0 | AM210: =SUM(IF(B210>=(H$18:H$27),((B210-(H$18:H$27))=hs_tb)*(G$18:G$27)*EXP(-hs_k1*(B210-(H$18:H$27))),0)) -> 0 | AN210: =SUM(IF(B210>=(H$18:H$27),((B210-(H$18:H$27))>hs_tb)*(G$18:G$27)*tb_prefactor*EXP(-hs_k2*(B210-(H$18:H$27)-hs_tb)),0)) -> 0 | AO210: 0.002583535917 | AR210: 0 | AS210: 0 | AU210: =SUM(IF(B210=(H$18:H$27),(G$18:G$27)),0) -> 0 | AV210: 0.1121330833 | AW210: 0
B211: 7.9 | C211: 10.84335952 | D211: 14.90127568 | P211: =SUM(IF(B211>=(H$18:H$27),(G$18:G$27)*EXP(-sfo_k*(B211-(H$18:H$27))),0)) -> 10.84335952 | Q211: 14.90127568 | W211: 0 | X211: =SUM(IF(B211>=(H$18:H$27),g*(G$18:G$27)*EXP(-dfop_k1*(B211-(H$18:H$27))),0)) -> 0 | Y211: =SUM(IF(B211>=(H$18:H$27),(1-g)*(G$18:G$27)*EXP(-dfop_k2*(B211-(H$18:H$27))),0)) -> 0 | Z211: 0.002583535917 | AA211: 0 | AB211: 0.002583535917 | AD211: =SUM(IF(B211>=(H$18:H$27),(G$18:G$27)*POWER(((B211-(H$18:H$27)))/fomc_b + 1,-fomc_a),0)) ->  | AF211: =SUM(IF(B211>=(H$18:H$27),(G$18:G$27)*(LN((B212-(H$18:H$27))/fomc_b + 1) - LN((B211-(H$18:H$27))/fomc_b + 1)),0)) ->  | AG211: =SUM(IF(B211>=(H$18:H$27),(G$18:G$27)*(POWER((B212-(H$18:H$27))/fomc_b + 1,(-fomc_a+1)) - POWER((B211-(H$18:H$27))/fomc_b + 1,(-fomc_a+1))),0)) ->  | AK211: 0 | AL211: =SUM(IF(B211>=(H$18:H$27),((B211-(H$18:H$27))<hs_tb)*(G$18:G$27)*EXP(-hs_k1*(B211-(H$18:H$27))),0)) -> 0 | AM211: =SUM(IF(B211>=(H$18:H$27),((B211-(H$18:H$27))=hs_tb)*(G$18:G$27)*EXP(-hs_k1*(B211-(H$18:H$27))),0)) -> 0 | AN211: =SUM(IF(B211>=(H$18:H$27),((B211-(H$18:H$27))>hs_tb)*(G$18:G$27)*tb_prefactor*EXP(-hs_k2*(B211-(H$18:H$27)-hs_tb)),0)) -> 0 | AO211: 0.002583535917 | AR211: 0 | AS211: 0 | AU211: =SUM(IF(B211=(H$18:H$27),(G$18:G$27)),0) -> 0 | AV211: 0.1109968758 | AW211: 0
B212: 7.95 | C212: 10.73348734 | D212: 14.87867868 | P212: =SUM(IF(B212>=(H$18:H$27),(G$18:G$27)*EXP(-sfo_k*(B212-(H$18:H$27))),0)) -> 10.73348734 | Q212: 14.87867868 | W212: 0 | X212: =SUM(IF(B212>=(H$18:H$27),g*(G$18:G$27)*EXP(-dfop_k1*(B212-(H$18:H$27))),0)) -> 0 | Y212: =SUM(IF(B212>=(H$18:H$27),(1-g)*(G$18:G$27)*EXP(-dfop_k2*(B212-(H$18:H$27))),0)) -> 0 | Z212: 0.002583535917 | AA212: 0 | AB212: 0.002583535917 | AD212: =SUM(IF(B212>=(H$18:H$27),(G$18:G$27)*POWER(((B212-(H$18:H$27)))/fomc_b + 1,-fomc_a),0)) ->  | AF212: =SUM(IF(B212>=(H$18:H$27),(G$18:G$27)*(LN((B213-(H$18:H$27))/fomc_b + 1) - LN((B212-(H$18:H$27))/fomc_b + 1)),0)) ->  | AG212: =SUM(IF(B212>=(H$18:H$27),(G$18:G$27)*(POWER((B213-(H$18:H$27))/fomc_b + 1,(-fomc_a+1)) - POWER((B212-(H$18:H$27))/fomc_b + 1,(-fomc_a+1))),0)) ->  | AK212: 0 | AL212: =SUM(IF(B212>=(H$18:H$27),((B212-(H$18:H$27))<hs_tb)*(G$18:G$27)*EXP(-hs_k1*(B212-(H$18:H$27))),0)) -> 0 | AM212: =SUM(IF(B212>=(H$18:H$27),((B212-(H$18:H$27))=hs_tb)*(G$18:G$27)*EXP(-hs_k1*(B212-(H$18:H$27))),0)) -> 0 | AN212: =SUM(IF(B212>=(H$18:H$27),((B212-(H$18:H$27))>hs_tb)*(G$18:G$27)*tb_prefactor*EXP(-hs_k2*(B212-(H$18:H$27)-hs_tb)),0)) -> 0 | AO212: 0.002583535917 | AR212: 0 | AS212: 0 | AU212: =SUM(IF(B212=(H$18:H$27),(G$18:G$27)),0) -> 0 | AV212: 0.1098721811 | AW212: 0
B213: 8 | C213: 10.62472845 | D213: 14.85631066 | P213: =SUM(IF(B213>=(H$18:H$27),(G$18:G$27)*EXP(-sfo_k*(B213-(H$18:H$27))),0)) -> 10.62472845 | Q213: 14.85631066 | W213: 0 | X213: =SUM(IF(B213>=(H$18:H$27),g*(G$18:G$27)*EXP(-dfop_k1*(B213-(H$18:H$27))),0)) -> 0 | Y213: =SUM(IF(B213>=(H$18:H$27),(1-g)*(G$18:G$27)*EXP(-dfop_k2*(B213-(H$18:H$27))),0)) -> 0 | Z213: 0.002583535917 | AA213: 0 | AB213: 0.002583535917 | AD213: =SUM(IF(B213>=(H$18:H$27),(G$18:G$27)*POWER(((B213-(H$18:H$27)))/fomc_b + 1,-fomc_a),0)) ->  | AF213: =SUM(IF(B213>=(H$18:H$27),(G$18:G$27)*(LN((B214-(H$18:H$27))/fomc_b + 1) - LN((B213-(H$18:H$27))/fomc_b + 1)),0)) ->  | AG213: =SUM(IF(B213>=(H$18:H$27),(G$18:G$27)*(POWER((B214-(H$18:H$27))/fomc_b + 1,(-fomc_a+1)) - POWER((B213-(H$18:H$27))/fomc_b + 1,(-fomc_a+1))),0)) ->  | AK213: 0 | AL213: =SUM(IF(B213>=(H$18:H$27),((B213-(H$18:H$27))<hs_tb)*(G$18:G$27)*EXP(-hs_k1*(B213-(H$18:H$27))),0)) -> 0 | AM213: =SUM(IF(B213>=(H$18:H$27),((B213-(H$18:H$27))=hs_tb)*(G$18:G$27)*EXP(-hs_k1*(B213-(H$18:H$27))),0)) -> 0 | AN213: =SUM(IF(B213>=(H$18:H$27),((B213-(H$18:H$27))>hs_tb)*(G$18:G$27)*tb_prefactor*EXP(-hs_k2*(B213-(H$18:H$27)-hs_tb)),0)) -> 0 | AO213: 0.002583535917 | AR213: 0 | AS213: 0 | AU213: =SUM(IF(B213=(H$18:H$27),(G$18:G$27)),0) -> 0 | AV213: 0.1087588826 | AW213: 0
... 912 more rows

Sheet MultipleCalcs
A1: Use for evaluation of a range of trials at once | F1: 6 | G1: 7 | H1: 8 | I1: 9 | J1: 10 | K1: 11 | L1: 12 | M1: 13 | N1: 14 | O1: 15 | P1: 16 | Q1: 17 | R1: 18 | S1: 19 | T1: 20 | U1: 21 | V1: 22 | W1: 23 | X1: 24 | Y1: 25 | Z1: 26 | AA1: 27 | AB1: 28 | AC1: 29 | AD1: 30 | AE1: 31 | AF1: 32 | AG1: 33 | AH1: 34 | AI1: 35 | AJ1: 36
Q2: batch processing howto: | AG2: Transfer | AH2: Selector | AI2: 36
B3: =Calculation!E1 -> version 4.3 | C3: =Calculation!F1 -> date 2019-05-15 | Q3: 1 | R3: enter application data on this sheet
Q4: 2 | R4: enter the kinetic parameters on this sheet
Q5: 3 | R5: click "Run all calcs"
R6: (copies sequentially the parameters for individual trials to the calculation sheet, retrieves the results, and writes them in the table below)
B7: x-axis maximum: | C7: 28 | E7: Rough guide: Days after last appl. + 21? | Q7: 4 | R7: use "Clear results" in order to clean up the result in this sheet
X8: =IF(inclMet="no","","parent") ->  | Y8: metabolite | Z8: =IF(inclMet="no","","parent") ->  | AA8: =IF(inclMet="no","","parent") ->  | AB8: metabolite
I9: parent | N9: metabolite | Q9: parent | T9: metabolite | V9: arithmetic mean: | W9: aritmetic meam: | X9: =IFERROR(AVERAGE(X14:X113),"-") -> - | Y9: =IFERROR(AVERAGE(Y14:Y113),"-") -> - | Z9: =IFERROR(AVERAGE(Z14:Z113),"-") -> 1.146061919 | AA9: =IFERROR(AVERAGE(AA14:AA113),"-") -> 0.3731117381 | AB9: =IFERROR(AVERAGE(AB14:AB113),"-") -> -
O10: molmass corr.: | P10: =ROUND(IFERROR(N10/I10,1),3) -> 1 | V10: geometric mean: | W10: geometric mean: | X10: =IFERROR(GEOMEAN(X14:X113),"-") -> - | Y10: =IFERROR(GEOMEAN(Y14:Y113),"-") -> - | Z10: =IFERROR(GEOMEAN(Z14:Z113),"-") -> 1.140451946 | AA10: =IFERROR(GEOMEAN(AA14:AA113),"-") -> 0.3543717247 | AB10: =IFERROR(GEOMEAN(AB14:AB113),"-") -> -
I11: [g/mol] | N11: [g/mol] | V11: median: | W11: median: | X11: =IFERROR(MEDIAN(X14:X113),"-") -> - | Y11: =IFERROR(MEDIAN(Y14:Y113),"-") -> - | Z11: =IFERROR(MEDIAN(Z14:Z113),"-") -> 1.136565833 | AA11: =IFERROR(MEDIAN(AA14:AA113),"-") -> 0.3940402002 | AB11: =IFERROR(MEDIAN(AB14:AB113),"-") -> -
V12: max: | W12: max: | X12: =IF(MAX(X14:X113)=0,"-",MAX(X14:X113)) -> - | Y12: =IF(MAX(Y14:Y113)=0,"-",MAX(Y14:Y113)) -> - | Z12: =IF(MAX(Z14:Z113)=0,"-",MAX(Z14:Z113)) -> 1.484704405 | AA12: =IF(MAX(AA14:AA113)=0,"-",MAX(AA14:AA113)) -> 0.5892921709 | AB12: =IF(MAX(AB14:AB113)=0,"-",MAX(AB14:AB113)) -> -
A13: Number | B13: Trial ID | C13: =IF(KindOfInput="residue increase (mg/kg)", "Tested parent rate (kg a.s./ha)","Application rate (kg a.s./ha)") -> Application rate (kg a.s./ha) | D13: RUD (mg/kg / kg/ha) | E13: Residue increase (mg/kg) | F13: Residue increase (mg/kg) | G13: No of applications | H13: Application interval (days) | I13: TWA int. (days) | J13: Kinetic type | K13: SFO: DT50 DFOP: DT50 (1) FOMC: alpha HS: DT50 (1) | L13: SFO: - DFOP: DT50 (2) FOMC: beta HS: DT50 (2) | M13: SFO: - DFOP: g FOMC: - HS: tb | N13: TWA int. (days) | O13: SFO DT50 | P13: formation fraction | Q13: max TWA start (day) | R13: max TWA end (day) | S13: max TWA | T13: max TWA start (day) | U13: max TWA end (day) | V13: max TWA | W13: Target parent rate (kg a.s../ha) | X13: Extrapolated TWA parent (mg/kg) | Y13: Extrapolated TWA metabolite (mg/kg) | Z13: MAF | AA13: =IF(inclMet="no","fTWA","fTWA (parent)") -> fTWA | AB13: fTWA (metabolite)
A14: 1 | B14: 18-2954-01 | C14: 1 | D14: 54.2 | F14: =IF(C14="","",IF(KindOfInput="residue increase (mg/kg)",E14,C14*D14)) -> 54.2 | G14: 2 | H14: 10 | I14: 21 | J14: SFO | K14: 5.235 | Q14: 0 | R14: 21 | S14: 33.23376511 | X14: =IF(OR(C14="",S14=""),"",IF(ISNUMBER(W14),S14*W14/C14,"")) ->  | Y14: =IF(OR(C14="",V14=""),"",IF(ISNUMBER(W14),V14*W14/C14,"")) ->  | Z14: 1.266052032 | AA14: 0.4843158754 | AE14: kinetics type
A15: 2 | B15: 18-2954-02 | C15: 1 | D15: 54.2 | F15: 54.2 | G15: 2 | H15: 10 | I15: =IF(OR($B15="",I$14=""),"",I$14) -> 21 | J15: SFO | K15: 5.034 | N15: =IF(OR($B15="",N$14=""),"",N$14) ->  | Q15: 0 | R15: 21 | S15: 32.32667297 | W15: =IF(OR($B15="",W$14=""),"",W$14) ->  | X15: =IF(OR(C15="",S15=""),"",IF(ISNUMBER(W15),S15*W15/C15,"")) ->  | Y15: =IF(OR(C15="",V15=""),"",IF(ISNUMBER(W15),V15*W15/C15,"")) ->  | Z15: 1.252351776 | AA15: 0.476250437 | AE15: SFO
A16: 3 | B16: 18-2954-03 | C16: 1 | D16: 54.2 | F16: 54.2 | G16: 2 | H16: 10 | I16: =IF(OR($B16="",I$14=""),"",I$14) -> 21 | J16: SFO | K16: 4.051 | N16: =IF(OR($B16="",N$14=""),"",N$14) ->  | Q16: 0 | R16: 21 | S16: 27.45634721 | W16: =IF(OR($B16="",W$14=""),"",W$14) ->  | Z16: 1.180675615 | AA16: 0.4290549118 | AE16: DFOP
A17: 4 | B17: 18-2951-01 | C17: 1 | D17: 54.2 | F17: 54.2 | G17: 2 | H17: 10 | I17: 21 | J17: SFO | K17: 3.633 | Q17: 0 | R17: 21 | S17: 25.15034579 | Z17: 1.148388778 | AA17: 0.4040691873 | AE17: FOMC
A18: 5 | B18: 18-2951-02 | C18: 1 | D18: 54.2 | F18: 54.2 | G18: 2 | H18: 10 | I18: 21 | J18: SFO | K18: 3.626 | Q18: 0 | R18: 21 | S18: 25.11047302 | Z18: 1.147843231 | AA18: 0.4036203268 | AE18: HS
A19: 6 | B19: 18-2951-03 | C19: 1 | D19: 54.2 | F19: 54.2 | G19: 2 | H19: 10 | I19: 21 | J19: SFO | K19: 3.563 | Q19: 0 | R19: 21 | S19: 24.74973454 | Z19: 1.142929574 | AA19: 0.3995322011
A20: 7 | B20: 15-2953-01 | C20: 1 | D20: 54.2 | F20: 54.2 | G20: 2 | H20: 10 | I20: 21 | J20: SFO | K20: 2.316 | Q20: 0 | R20: 21 | S20: 16.91072747 | Z20: 1.050143646 | AA20: 0.2971079653
A21: 8 | B21: 15-2953-02 | C21: 1 | D21: 54.2 | F21: 54.2 | G21: 2 | H21: 10 | I21: 21 | J21: SFO | K21: 6.189 | Q21: 0 | R21: 21 | S21: 37.17363554 | Z21: 1.326290771 | AA21: 0.5171267489
A22: 9 | B22: 15-2953-03 | C22: 1 | D22: 54.2 | F22: 54.2 | G22: 2 | H22: 10 | I22: 21 | J22: SFO | K22: 4.373 | Q22: 0 | R22: 21 | S22: 29.1345309 | Z22: 1.204935289 | AA22: 0.4461131443
A23: 10 | B23: 16-2951-01 | C23: 1 | D23: 54.2 | F23: 54.2 | G23: 2 | H23: 10 | I23: =IF(OR($B23="",I$14=""),"",I$14) -> 21 | J23: SFO | K23: 3.56 | N23: =IF(OR($B23="",N$14=""),"",N$14) ->  | Q23: 0 | R23: 21 | S23: 24.73247182 | W23: =IF(OR($B23="",W$14=""),"",W$14) ->  | Z23: 1.14269545 | AA23: 0.3993353333
A24: 11 | B24: 16-2951-02 | C24: 1 | D24: 54.2 | F24: 54.2 | G24: 2 | H24: 10 | I24: 21 | J24: SFO | K24: 3.572 | Q24: 0 | R24: 21 | S24: 24.80147643 | Z24: 1.143631882 | AA24: 0.4001215978
A25: 12 | B25: 16-2955-01 | C25: 1 | D25: 54.2 | F25: 54.2 | G25: 2 | H25: 10 | I25: 21 | J25: SFO | K25: 7.308 | Q25: 0 | R25: 21 | S25: 41.12396038 | Z25: 1.387330379 | AA25: 0.5469098552
A26: 13 | B26: 16-2958-01 | C26: 1 | D26: 54.2 | F26: 54.2 | G26: 2 | H26: 10 | I26: 21 | J26: SFO | K26: 1.078 | Q26: 0 | R26: 21 | S26: 8.02451634 | Z26: 1.001612553 | AA26: 0.1478154468
A27: 14 | B27: 16-2958-02 | C27: 1 | D27: 54.2 | F27: 54.2 | G27: 2 | H27: 10 | I27: 21 | J27: SFO | K27: 3.388 | Q27: 0 | R27: 21 | S27: 23.72981703 | Z27: 1.129265227 | AA27: 0.3877029877
A28: 15 | B28: 16-2958-03 | C28: 1 | D28: 54.2 | F28: 54.2 | G28: 2 | H28: 10 | I28: 21 | J28: SFO | K28: 1.705 | Q28: 0 | R28: 21 | S28: 12.62344792 | Z28: 1.01715648 | AA28: 0.2289765123
A29: 16 | B29: 17-2950-01 | C29: 1 | D29: 54.2 | F29: 54.2 | G29: 2 | H29: 10 | I29: 21 | J29: SFO | K29: 1.932 | Q29: 0 | R29: 21 | S29: 14.24486156 | Z29: 1.027661373 | AA29: 0.2557460375
A30: 17 | B30: 17-2950-02 | C30: 1 | D30: 54.2 | F30: 54.2 | G30: 2 | H30: 10 | I30: 21 | J30: SFO | K30: 0.9787 | Q30: 0 | R30: 21 | S30: 7.286923549 | Z30: 1.000839818 | AA30: 0.1343322693
A31: 18 | B31: 17-2950-03 | C31: 1 | D31: 54.2 | F31: 54.2 | G31: 2 | H31: 10 | I31: 21 | J31: SFO | K31: 2.351 | Q31: 0 | R31: 21 | S31: 17.14833978 | Z31: 1.052428346 | AA31: 0.3006285738
A32: 19 | B32: 18-2950-01 | C32: 1 | D32: 54.2 | F32: 54.2 | G32: 2 | H32: 10 | I32: 21 | J32: SFO | K32: 2.37993 | Q32: 0 | R32: 21 | S32: 17.34402745 | Z32: 1.054341408 | AA32: 0.3035074826
A33: 20 | B33: 18-2950-02 | C33: 1 | D33: 54.2 | F33: 54.2 | G33: 2 | H33: 10 | I33: 21 | J33: SFO | K33: 4.569 | Q33: 0 | R33: 21 | S33: 30.11567682 | Z33: 1.219354662 | AA33: 0.4556834948
A34: 21 | B34: 18-2950-03 | C34: 1 | D34: 54.2 | F34: 54.2 | G34: 2 | H34: 10 | I34: 21 | J34: SFO | K34: 2.064 | Q34: 0 | R34: 21 | S34: 15.17293582 | Z34: 1.03479536 | AA34: 0.2705302672
A35: 22 | B35: 18-2950-04 | C35: 1 | D35: 54.2 | F35: 54.2 | G35: 2 | H35: 10 | I35: 21 | J35: SFO | K35: 4.536 | Q35: 0 | R35: 21 | S35: 29.95257649 | Z35: 1.216946988 | AA35: 0.4541122728
A36: 23 | B36: 18-2955-02 | C36: 1 | D36: 54.2 | F36: 54.2 | G36: 2 | H36: 10 | I36: 21 | J36: SFO | K36: 9.571 | Q36: 0 | R36: 21 | S36: 47.42091775 | Z36: 1.484704405 | AA36: 0.5892921709
A37: 24 | B37: 18-2955-04 | C37: 1 | D37: 54.2 | F37: 54.2 | G37: 2 | H37: 10 | I37: 21 | J37: SFO | K37: 6.544 | Q37: 0 | R37: 21 | S37: 38.49898871 | Z37: 1.346729536 | AA37: 0.5274358556
A38: 25 | B38: E 3082938-3-01 | C38: 1 | D38: 54.2 | F38: 54.2 | G38: 2 | H38: 10 | I38: 21 | J38: SFO | K38: 3.296 | Q38: 0 | R38: 21 | S38: 23.18304803 | Z38: 1.122090209 | AA38: 0.3811917348
A39: 26 | B39: E 3082938-3-02 | C39: 1 | D39: 54.2 | F39: 54.2 | G39: 2 | H39: 10 | I39: 21 | J39: SFO | K39: 3.808 | Q39: 0 | R39: 21 | S39: 26.13363537 | Z39: 1.161986959 | AA39: 0.4149533611
A40: 27 | B40: 11-2951-01 | C40: 1 | D40: 54.2 | F40: 54.2 | G40: 2 | H40: 10 | I40: 21 | J40: SFO | K40: 2.074 | Q40: 0 | R40: 21 | S40: 15.24276545 | Z40: 1.035363362 | AA40: 0.2716262186
A41: 28 | B41: 11-2951-02 | C41: 1 | D41: 54.2 | F41: 54.2 | G41: 2 | H41: 10 | I41: 21 | J41: SFO | K41: 5.382 | Q41: 0 | R41: 21 | S41: 33.87939069 | Z41: 1.275849766 | AA41: 0.4899330827
A42: 29 | B42: 16-2952-03 | C42: 1 | D42: 54.2 | F42: 54.2 | G42: 2 | H42: 10 | I42: 21 | J42: SFO | K42: 4.499 | Q42: 0 | R42: 21 | S42: 29.76870474 | Z42: 1.214237634 | AA42: 0.4523316354
A43: 30 | B43: 16-2952-04 | C43: 1 | D43: 54.2 | F43: 54.2 | G43: 2 | H43: 10 | I43: 21 | J43: SFO | K43: 2.682 | Q43: 0 | R43: 21 | S43: 19.34732423 | Z43: 1.075438208 | AA43: 0.3319220936
A44: 31 | B44: 11-2956-01 | C44: 1 | D44: 54.2 | F44: 54.2 | G44: 2 | H44: 10 | I44: 21 | J44: SFO | K44: 1.388 | Q44: 0 | R44: 21 | S44: 10.31510263 | Z44: 1.006779474 | AA44: 0.1890339956
A45: 32 | B45: 11-2956-02 | C45: 1 | D45: 54.2 | F45: 54.2 | G45: 2 | H45: 10 | I45: 21 | J45: SFO | K45: 3.12 | Q45: 0 | R45: 21 | S45: 22.11667342 | Z45: 1.1084327 | AA45: 0.3681384583
A46: 33 | B46: 11-2956-03 | C46: 1 | D46: 54.2 | F46: =IF(C46="","",IF(KindOfInput="residue increase (mg/kg)",E46,C46*D46)) -> 54.2 | G46: 2 | H46: 10 | I46: 21 | J46: SFO | K46: 2.24 | Q46: 0 | R46: 21 | S46: 16.39155275 | Z46: 1.045301866 | AA46: 0.2893204177
A47: 34 | B47: 11-2956-04 | C47: 1 | D47: 54.2 | F47: 54.2 | G47: 2 | H47: 10 | I47: 21 | J47: SFO | K47: 2.536 | Q47: 0 | R47: 21 | S47: 18.38830501 | Z47: 1.065008958 | AA47: 0.3185584663
A48: 35 | B48: 15-2950-01 | C48: 1 | D48: 54.2 | F48: 54.2 | G48: 2 | H48: 10 | I48: 21 | J48: SFO | K48: 2.123 | Q48: 0 | R48: 21 | S48: 15.58392166 | Z48: 1.038199152 | AA48: 0.2769470861
A49: 36 | B49: 15-2950-03 | C49: 1 | D49: 54.2 | F49: 54.2 | G49: 2 | H49: 10 | I49: 21 | J49: SFO | K49: 3.403 | Q49: 0 | R49: 21 | S49: 23.81827144 | Z49: 1.130436216 | AA49: 0.388745067
A50: 37
A51: 38
A52: 39
A53: 40
A54: 41
A55: 42
A56: 43
A57: 44
A58: 45
A59: 46
A60: 47
A61: 48
A62: 49
A63: 50
A64: 51
A65: 52
A66: 53
A67: 54
A68: 55
A69: 56
A70: 57
A71: 58
A72: 59
A73: 60
A74: 61
A75: 62
A76: 63
A77: 64
A78: 65 | F78: =IF(C78="","",IF(KindOfInput="residue increase (mg/kg)",E78,C78*D78)) -> 
A79: 66 | X79: =IF(OR(C79="",S79=""),"",IF(ISNUMBER(W79),S79*W79/C79,"")) ->  | Y79: =IF(OR(C79="",V79=""),"",IF(ISNUMBER(W79),V79*W79/C79,"")) -> 
A80: 67 | I80: =IF(OR($B80="",I$14=""),"",I$14) ->  | N80: =IF(OR($B80="",N$14=""),"",N$14) ->  | W80: =IF(OR($B80="",W$14=""),"",W$14) -> 
A81: 68
A82: 69
A83: 70
A84: 71
A85: 72
A86: 73
A87: 74
A88: 75
A89: 76
A90: 77
A91: 78
A92: 79
A93: 80
A94: 81
A95: 82
A96: 83
A97: 84
A98: 85
A99: 86
A100: 87
A101: 88
A102: 89
A103: 90
A104: 91
A105: 92
A106: 93
A107: 94
A108: 95
A109: 96
A110: 97 | F110: =IF(C110="","",IF(KindOfInput="residue increase (mg/kg)",E110,C110*D110)) -> 
A111: 98
A112: 99
A113: 100

Sheet resultsTables
A1: 1 | B1: 2 | C1: 3 | D1: 4 | E1: 5 | F1: 6 | G1: 7 | H1: 8 | I1: 9 | J1: 10 | K1: 11 | L1: 12 | M1: 13 | N1: 14 | O1: 15 | P1: 16 | Q1: 17 | R1: 18 | S1: 19 | T1: 20 | U1: 21 | V1: 22 | W1: 23 | X1: 24 | Y1: 25 | Z1: 26 | AA1: 27 | AB1: 28 | AC1: 29
B2: Input parameter | Q2: Results
B3: Parent: | C3: =a.s.Name -> Fluopyram | Q3: Parent: | R3: =a.s.Name -> Fluopyram
B4: =IF(inclMet="yes","Metabolite:","") ->  | C4: =IF(inclMet="yes",MetName,"") ->  | Q4: =IF(inclMet="yes","Metabolite:","") ->  | R4: =IF(inclMet="yes",MetName,"") -> 
Y6: =IF(inclMet="yes","parent","") ->  | Z6: metabolite | AA6: =IF(inclMet="yes","parent","") ->  | AB6: =IF(inclMet="yes","parent","") ->  | AC6: metabolite
W7: arithmetic mean: | X7: arithmetic mean: | Y7: =IFERROR(AVERAGE(Y12:Y111),"-") -> - | Z7: =IFERROR(AVERAGE(Z12:Z111),"-") -> - | AA7: =IFERROR(AVERAGE(AA12:AA111),"-") -> 1.146061919 | AB7: =IFERROR(AVERAGE(AB12:AB111),"-") -> 0.3731117381 | AC7: =IFERROR(AVERAGE(AC12:AC111),"-") -> -
W8: geometric mean: | X8: geometric mean: | Y8: =IFERROR(GEOMEAN(Y12:Y111),"-") -> - | Z8: =IFERROR(GEOMEAN(Z12:Z111),"-") -> - | AA8: =IFERROR(GEOMEAN(AA12:AA111),"-") -> 1.140451946 | AB8: =IFERROR(GEOMEAN(AB12:AB111),"-") -> 0.3543717247 | AC8: =IFERROR(GEOMEAN(AC12:AC111),"-") -> -
H9: =IF(inclMet="yes"," parent","") ->  | I9: =IF(inclMet="yes",MultipleCalcs!I10,"") ->  | J9: =IF(inclMet="yes","(g/mol)","") ->  | M9: metabolite | N9: =MultipleCalcs!N10 -> 0 | O9: [g/mol] | R9: =IF(inclMet="yes","parent","") ->  | U9: metabolite | W9: median: | X9: median: | Y9: =IFERROR(MEDIAN(Y12:Y111),"-") -> - | Z9: =IFERROR(MEDIAN(Z12:Z111),"-") -> - | AA9: =IFERROR(MEDIAN(AA12:AA111),"-") -> 1.136565833 | AB9: =IFERROR(MEDIAN(AB12:AB111),"-") -> 0.3940402002 | AC9: =IFERROR(MEDIAN(AC12:AC111),"-") -> -
M10: molmass corr.: | N10: =ROUND(IFERROR(N9/I9,1),3) -> 1 | W10: max: | X10: max: | Y10: =IF(MAX(Y12:Y111)=0,"-",MAX(Y12:Y111)) -> - | Z10: =IF(MAX(Z12:Z111)=0,"-",MAX(Z12:Z111)) -> - | AA10: =IF(MAX(AA12:AA111)=0,"-",MAX(AA12:AA111)) -> 1.484704405 | AB10: =IF(MAX(AB12:AB111)=0,"-",MAX(AB12:AB111)) -> 0.5892921709 | AC10: =IF(MAX(AC12:AC111)=0,"-",MAX(AC12:AC111)) -> -
A11: Number | B11: Trial ID | C11: =MultipleCalcs!C13 -> Application rate (kg a.s./ha) | D11: RUD (mg/kg / kg/ha) | E11: Residue increase (mg/kg) | F11: No of applications | G11: Application interval (days) | H11: TWA int. (days) | I11: Kinetic type | J11: SFO: DT50 DFOP: DT50 (1) FOMC: alpha HS: DT50 (1) | K11: SFO: - DFOP: DT50 (2) FOMC: beta HS: DT50 (2) | L11: SFO: - DFOP: g FOMC: - HS: tb | M11: TWA int. (days) | N11: SFO DT50 | O11: formation fraction | Q11: Trial ID | R11: max TWA start (day) | S11: max TWA end (day) | T11: max TWA | U11: max TWA start (day) | V11: max TWA end (day) | W11: max TWA | X11: Target parent rate (kg a.s./ha) | Y11: Extrapolated TWA parent (mg/kg) | Z11: Extrapolated TWA metabolite (mg/kg) | AA11: MAF | AB11: =IF(inclMet="no","fTWA","fTWA (parent)") -> fTWA | AC11: fTWA (metabolite)
A12: 1 | B12: =IF(MultipleCalcs!B14="","",MultipleCalcs!B14) -> 18-2954-01 | C12: =IF(MultipleCalcs!C14="","",MultipleCalcs!C14) -> 1 | D12: =IF(MultipleCalcs!D14="","",MultipleCalcs!D14) -> 54.2 | E12: =IF(MultipleCalcs!E14="","",MultipleCalcs!E14) ->  | F12: =IF(MultipleCalcs!G14="","",MultipleCalcs!G14) -> 2 | G12: =IF(MultipleCalcs!H14="","",MultipleCalcs!H14) -> 10 | H12: =IF(MultipleCalcs!I14="","",MultipleCalcs!I14) -> 21 | I12: =IF(MultipleCalcs!J14="","",MultipleCalcs!J14) -> SFO | J12: =IF(MultipleCalcs!K14="","",MultipleCalcs!K14) -> 5.235 | K12: =IF(MultipleCalcs!L14="","",MultipleCalcs!L14) ->  | L12: =IF(MultipleCalcs!M14="","",MultipleCalcs!M14) ->  | M12: =IF(MultipleCalcs!N14="","",MultipleCalcs!N14) ->  | N12: =IF(MultipleCalcs!O14="","",MultipleCalcs!O14) ->  | O12: =IF(MultipleCalcs!P14="","",MultipleCalcs!P14) ->  | Q12: =IF(B12="","",B12) -> 18-2954-01 | R12: =IF(MultipleCalcs!Q14="","",MultipleCalcs!Q14) -> 0 | S12: =IF(MultipleCalcs!R14="","",MultipleCalcs!R14) -> 21 | T12: =IF(MultipleCalcs!S14="","",MultipleCalcs!S14) -> 33.23376511 | U12: =IF(MultipleCalcs!T14="","",MultipleCalcs!T14) ->  | V12: =IF(MultipleCalcs!U14="","",MultipleCalcs!U14) ->  | W12: =IF(MultipleCalcs!V14="","",MultipleCalcs!V14) ->  | X12: =IF(MultipleCalcs!W14="","",MultipleCalcs!W14) ->  | Y12: =IF(MultipleCalcs!X14="","",MultipleCalcs!X14) ->  | Z12: =IF(MultipleCalcs!Y14="","",MultipleCalcs!Y14) ->  | AA12: =IF(MultipleCalcs!Z14="","",MultipleCalcs!Z14) -> 1.266052032 | AB12: =IF(MultipleCalcs!AA14="","",MultipleCalcs!AA14) -> 0.4843158754 | AC12: =IF(MultipleCalcs!AB14="","",MultipleCalcs!AB14) -> 
A13: 2 | B13: =IF(MultipleCalcs!B15="","",MultipleCalcs!B15) -> 18-2954-02 | C13: =IF(MultipleCalcs!C15="","",MultipleCalcs!C15) -> 1 | D13: =IF(MultipleCalcs!D15="","",MultipleCalcs!D15) -> 54.2 | E13: =IF(MultipleCalcs!E15="","",MultipleCalcs!E15) ->  | F13: =IF(MultipleCalcs!G15="","",MultipleCalcs!G15) -> 2 | G13: =IF(MultipleCalcs!H15="","",MultipleCalcs!H15) -> 10 | H13: =IF(MultipleCalcs!I15="","",MultipleCalcs!I15) -> 21 | I13: =IF(MultipleCalcs!J15="","",MultipleCalcs!J15) -> SFO | J13: =IF(MultipleCalcs!K15="","",MultipleCalcs!K15) -> 5.034 | K13: =IF(MultipleCalcs!L15="","",MultipleCalcs!L15) ->  | L13: =IF(MultipleCalcs!M15="","",MultipleCalcs!M15) ->  | M13: =IF(MultipleCalcs!N15="","",MultipleCalcs!N15) ->  | N13: =IF(MultipleCalcs!O15="","",MultipleCalcs!O15) ->  | O13: =IF(MultipleCalcs!P15="","",MultipleCalcs!P15) ->  | Q13: =IF(B13="","",B13) -> 18-2954-02 | R13: =IF(MultipleCalcs!Q15="","",MultipleCalcs!Q15) -> 0 | S13: =IF(MultipleCalcs!R15="","",MultipleCalcs!R15) -> 21 | T13: =IF(MultipleCalcs!S15="","",MultipleCalcs!S15) -> 32.32667297 | U13: =IF(MultipleCalcs!T15="","",MultipleCalcs!T15) ->  | V13: =IF(MultipleCalcs!U15="","",MultipleCalcs!U15) ->  | W13: =IF(MultipleCalcs!V15="","",MultipleCalcs!V15) ->  | X13: =IF(MultipleCalcs!W15="","",MultipleCalcs!W15) ->  | Y13: =IF(MultipleCalcs!X15="","",MultipleCalcs!X15) ->  | Z13: =IF(MultipleCalcs!Y15="","",MultipleCalcs!Y15) ->  | AA13: =IF(MultipleCalcs!Z15="","",MultipleCalcs!Z15) -> 1.252351776 | AB13: =IF(MultipleCalcs!AA15="","",MultipleCalcs!AA15) -> 0.476250437 | AC13: =IF(MultipleCalcs!AB15="","",MultipleCalcs!AB15) -> 
A14: 3 | B14: =IF(MultipleCalcs!B16="","",MultipleCalcs!B16) -> 18-2954-03 | C14: =IF(MultipleCalcs!C16="","",MultipleCalcs!C16) -> 1 | D14: =IF(MultipleCalcs!D16="","",MultipleCalcs!D16) -> 54.2 | E14: =IF(MultipleCalcs!E16="","",MultipleCalcs!E16) ->  | F14: =IF(MultipleCalcs!G16="","",MultipleCalcs!G16) -> 2 | G14: =IF(MultipleCalcs!H16="","",MultipleCalcs!H16) -> 10 | H14: =IF(MultipleCalcs!I16="","",MultipleCalcs!I16) -> 21 | I14: =IF(MultipleCalcs!J16="","",MultipleCalcs!J16) -> SFO | J14: =IF(MultipleCalcs!K16="","",MultipleCalcs!K16) -> 4.051 | K14: =IF(MultipleCalcs!L16="","",MultipleCalcs!L16) ->  | L14: =IF(MultipleCalcs!M16="","",MultipleCalcs!M16) ->  | M14: =IF(MultipleCalcs!N16="","",MultipleCalcs!N16) ->  | N14: =IF(MultipleCalcs!O16="","",MultipleCalcs!O16) ->  | O14: =IF(MultipleCalcs!P16="","",MultipleCalcs!P16) ->  | Q14: 18-2954-03 | R14: =IF(MultipleCalcs!Q16="","",MultipleCalcs!Q16) -> 0 | S14: =IF(MultipleCalcs!R16="","",MultipleCalcs!R16) -> 21 | T14: =IF(MultipleCalcs!S16="","",MultipleCalcs!S16) -> 27.45634721 | U14: =IF(MultipleCalcs!T16="","",MultipleCalcs!T16) ->  | V14: =IF(MultipleCalcs!U16="","",MultipleCalcs!U16) ->  | W14: =IF(MultipleCalcs!V16="","",MultipleCalcs!V16) ->  | X14: =IF(MultipleCalcs!W16="","",MultipleCalcs!W16) ->  | Y14: =IF(MultipleCalcs!X16="","",MultipleCalcs!X16) ->  | Z14: =IF(MultipleCalcs!Y16="","",MultipleCalcs!Y16) ->  | AA14: =IF(MultipleCalcs!Z16="","",MultipleCalcs!Z16) -> 1.180675615 | AB14: =IF(MultipleCalcs!AA16="","",MultipleCalcs!AA16) -> 0.4290549118 | AC14: =IF(MultipleCalcs!AB16="","",MultipleCalcs!AB16) -> 
A15: 4 | B15: =IF(MultipleCalcs!B17="","",MultipleCalcs!B17) -> 18-2951-01 | C15: =IF(MultipleCalcs!C17="","",MultipleCalcs!C17) -> 1 | D15: =IF(MultipleCalcs!D17="","",MultipleCalcs!D17) -> 54.2 | E15: =IF(MultipleCalcs!E17="","",MultipleCalcs!E17) ->  | F15: =IF(MultipleCalcs!G17="","",MultipleCalcs!G17) -> 2 | G15: =IF(MultipleCalcs!H17="","",MultipleCalcs!H17) -> 10 | H15: =IF(MultipleCalcs!I17="","",MultipleCalcs!I17) -> 21 | I15: =IF(MultipleCalcs!J17="","",MultipleCalcs!J17) -> SFO | J15: =IF(MultipleCalcs!K17="","",MultipleCalcs!K17) -> 3.633 | K15: =IF(MultipleCalcs!L17="","",MultipleCalcs!L17) ->  | L15: =IF(MultipleCalcs!M17="","",MultipleCalcs!M17) ->  | M15: =IF(MultipleCalcs!N17="","",MultipleCalcs!N17) ->  | N15: =IF(MultipleCalcs!O17="","",MultipleCalcs!O17) ->  | O15: =IF(MultipleCalcs!P17="","",MultipleCalcs!P17) ->  | Q15: 18-2951-01 | R15: =IF(MultipleCalcs!Q17="","",MultipleCalcs!Q17) -> 0 | S15: =IF(MultipleCalcs!R17="","",MultipleCalcs!R17) -> 21 | T15: =IF(MultipleCalcs!S17="","",MultipleCalcs!S17) -> 25.15034579 | U15: =IF(MultipleCalcs!T17="","",MultipleCalcs!T17) ->  | V15: =IF(MultipleCalcs!U17="","",MultipleCalcs!U17) ->  | W15: =IF(MultipleCalcs!V17="","",MultipleCalcs!V17) ->  | X15: =IF(MultipleCalcs!W17="","",MultipleCalcs!W17) ->  | Y15: =IF(MultipleCalcs!X17="","",MultipleCalcs!X17) ->  | Z15: =IF(MultipleCalcs!Y17="","",MultipleCalcs!Y17) ->  | AA15: =IF(MultipleCalcs!Z17="","",MultipleCalcs!Z17) -> 1.148388778 | AB15: =IF(MultipleCalcs!AA17="","",MultipleCalcs!AA17) -> 0.4040691873 | AC15: =IF(MultipleCalcs!AB17="","",MultipleCalcs!AB17) -> 
A16: 5 | B16: =IF(MultipleCalcs!B18="","",MultipleCalcs!B18) -> 18-2951-02 | C16: =IF(MultipleCalcs!C18="","",MultipleCalcs!C18) -> 1 | D16: =IF(MultipleCalcs!D18="","",MultipleCalcs!D18) -> 54.2 | E16: =IF(MultipleCalcs!E18="","",MultipleCalcs!E18) ->  | F16: =IF(MultipleCalcs!G18="","",MultipleCalcs!G18) -> 2 | G16: =IF(MultipleCalcs!H18="","",MultipleCalcs!H18) -> 10 | H16: =IF(MultipleCalcs!I18="","",MultipleCalcs!I18) -> 21 | I16: =IF(MultipleCalcs!J18="","",MultipleCalcs!J18) -> SFO | J16: =IF(MultipleCalcs!K18="","",MultipleCalcs!K18) -> 3.626 | K16: =IF(MultipleCalcs!L18="","",MultipleCalcs!L18) ->  | L16: =IF(MultipleCalcs!M18="","",MultipleCalcs!M18) ->  | M16: =IF(MultipleCalcs!N18="","",MultipleCalcs!N18) ->  | N16: =IF(MultipleCalcs!O18="","",MultipleCalcs!O18) ->  | O16: =IF(MultipleCalcs!P18="","",MultipleCalcs!P18) ->  | Q16: 18-2951-02 | R16: =IF(MultipleCalcs!Q18="","",MultipleCalcs!Q18) -> 0 | S16: =IF(MultipleCalcs!R18="","",MultipleCalcs!R18) -> 21 | T16: =IF(MultipleCalcs!S18="","",MultipleCalcs!S18) -> 25.11047302 | U16: =IF(MultipleCalcs!T18="","",MultipleCalcs!T18) ->  | V16: =IF(MultipleCalcs!U18="","",MultipleCalcs!U18) ->  | W16: =IF(MultipleCalcs!V18="","",MultipleCalcs!V18) ->  | X16: =IF(MultipleCalcs!W18="","",MultipleCalcs!W18) ->  | Y16: =IF(MultipleCalcs!X18="","",MultipleCalcs!X18) ->  | Z16: =IF(MultipleCalcs!Y18="","",MultipleCalcs!Y18) ->  | AA16: =IF(MultipleCalcs!Z18="","",MultipleCalcs!Z18) -> 1.147843231 | AB16: =IF(MultipleCalcs!AA18="","",MultipleCalcs!AA18) -> 0.4036203268 | AC16: =IF(MultipleCalcs!AB18="","",MultipleCalcs!AB18) -> 
A17: 6 | B17: =IF(MultipleCalcs!B19="","",MultipleCalcs!B19) -> 18-2951-03 | C17: =IF(MultipleCalcs!C19="","",MultipleCalcs!C19) -> 1 | D17: =IF(MultipleCalcs!D19="","",MultipleCalcs!D19) -> 54.2 | E17: =IF(MultipleCalcs!E19="","",MultipleCalcs!E19) ->  | F17: =IF(MultipleCalcs!G19="","",MultipleCalcs!G19) -> 2 | G17: =IF(MultipleCalcs!H19="","",MultipleCalcs!H19) -> 10 | H17: =IF(MultipleCalcs!I19="","",MultipleCalcs!I19) -> 21 | I17: =IF(MultipleCalcs!J19="","",MultipleCalcs!J19) -> SFO | J17: =IF(MultipleCalcs!K19="","",MultipleCalcs!K19) -> 3.563 | K17: =IF(MultipleCalcs!L19="","",MultipleCalcs!L19) ->  | L17: =IF(MultipleCalcs!M19="","",MultipleCalcs!M19) ->  | M17: =IF(MultipleCalcs!N19="","",MultipleCalcs!N19) ->  | N17: =IF(MultipleCalcs!O19="","",MultipleCalcs!O19) ->  | O17: =IF(MultipleCalcs!P19="","",MultipleCalcs!P19) ->  | Q17: 18-2951-03 | R17: =IF(MultipleCalcs!Q19="","",MultipleCalcs!Q19) -> 0 | S17: =IF(MultipleCalcs!R19="","",MultipleCalcs!R19) -> 21 | T17: =IF(MultipleCalcs!S19="","",MultipleCalcs!S19) -> 24.74973454 | U17: =IF(MultipleCalcs!T19="","",MultipleCalcs!T19) ->  | V17: =IF(MultipleCalcs!U19="","",MultipleCalcs!U19) ->  | W17: =IF(MultipleCalcs!V19="","",MultipleCalcs!V19) ->  | X17: =IF(MultipleCalcs!W19="","",MultipleCalcs!W19) ->  | Y17: =IF(MultipleCalcs!X19="","",MultipleCalcs!X19) ->  | Z17: =IF(MultipleCalcs!Y19="","",MultipleCalcs!Y19) ->  | AA17: =IF(MultipleCalcs!Z19="","",MultipleCalcs!Z19) -> 1.142929574 | AB17: =IF(MultipleCalcs!AA19="","",MultipleCalcs!AA19) -> 0.3995322011 | AC17: =IF(MultipleCalcs!AB19="","",MultipleCalcs!AB19) -> 
A18: 7 | B18: =IF(MultipleCalcs!B20="","",MultipleCalcs!B20) -> 15-2953-01 | C18: =IF(MultipleCalcs!C20="","",MultipleCalcs!C20) -> 1 | D18: =IF(MultipleCalcs!D20="","",MultipleCalcs!D20) -> 54.2 | E18: =IF(MultipleCalcs!E20="","",MultipleCalcs!E20) ->  | F18: =IF(MultipleCalcs!G20="","",MultipleCalcs!G20) -> 2 | G18: =IF(MultipleCalcs!H20="","",MultipleCalcs!H20) -> 10 | H18: =IF(MultipleCalcs!I20="","",MultipleCalcs!I20) -> 21 | I18: =IF(MultipleCalcs!J20="","",MultipleCalcs!J20) -> SFO | J18: =IF(MultipleCalcs!K20="","",MultipleCalcs!K20) -> 2.316 | K18: =IF(MultipleCalcs!L20="","",MultipleCalcs!L20) ->  | L18: =IF(MultipleCalcs!M20="","",MultipleCalcs!M20) ->  | M18: =IF(MultipleCalcs!N20="","",MultipleCalcs!N20) ->  | N18: =IF(MultipleCalcs!O20="","",MultipleCalcs!O20) ->  | O18: =IF(MultipleCalcs!P20="","",MultipleCalcs!P20) ->  | Q18: 15-2953-01 | R18: =IF(MultipleCalcs!Q20="","",MultipleCalcs!Q20) -> 0 | S18: =IF(MultipleCalcs!R20="","",MultipleCalcs!R20) -> 21 | T18: =IF(MultipleCalcs!S20="","",MultipleCalcs!S20) -> 16.91072747 | U18: =IF(MultipleCalcs!T20="","",MultipleCalcs!T20) ->  | V18: =IF(MultipleCalcs!U20="","",MultipleCalcs!U20) ->  | W18: =IF(MultipleCalcs!V20="","",MultipleCalcs!V20) ->  | X18: =IF(MultipleCalcs!W20="","",MultipleCalcs!W20) ->  | Y18: =IF(MultipleCalcs!X20="","",MultipleCalcs!X20) ->  | Z18: =IF(MultipleCalcs!Y20="","",MultipleCalcs!Y20) ->  | AA18: =IF(MultipleCalcs!Z20="","",MultipleCalcs!Z20) -> 1.050143646 | AB18: =IF(MultipleCalcs!AA20="","",MultipleCalcs!AA20) -> 0.2971079653 | AC18: =IF(MultipleCalcs!AB20="","",MultipleCalcs!AB20) -> 
A19: 8 | B19: =IF(MultipleCalcs!B21="","",MultipleCalcs!B21) -> 15-2953-02 | C19: =IF(MultipleCalcs!C21="","",MultipleCalcs!C21) -> 1 | D19: =IF(MultipleCalcs!D21="","",MultipleCalcs!D21) -> 54.2 | E19: =IF(MultipleCalcs!E21="","",MultipleCalcs!E21) ->  | F19: =IF(MultipleCalcs!G21="","",MultipleCalcs!G21) -> 2 | G19: =IF(MultipleCalcs!H21="","",MultipleCalcs!H21) -> 10 | H19: =IF(MultipleCalcs!I21="","",MultipleCalcs!I21) -> 21 | I19: =IF(MultipleCalcs!J21="","",MultipleCalcs!J21) -> SFO | J19: =IF(MultipleCalcs!K21="","",MultipleCalcs!K21) -> 6.189 | K19: =IF(MultipleCalcs!L21="","",MultipleCalcs!L21) ->  | L19: =IF(MultipleCalcs!M21="","",MultipleCalcs!M21) ->  | M19: =IF(MultipleCalcs!N21="","",MultipleCalcs!N21) ->  | N19: =IF(MultipleCalcs!O21="","",MultipleCalcs!O21) ->  | O19: =IF(MultipleCalcs!P21="","",MultipleCalcs!P21) ->  | Q19: 15-2953-02 | R19: =IF(MultipleCalcs!Q21="","",MultipleCalcs!Q21) -> 0 | S19: =IF(MultipleCalcs!R21="","",MultipleCalcs!R21) -> 21 | T19: =IF(MultipleCalcs!S21="","",MultipleCalcs!S21) -> 37.17363554 | U19: =IF(MultipleCalcs!T21="","",MultipleCalcs!T21) ->  | V19: =IF(MultipleCalcs!U21="","",MultipleCalcs!U21) ->  | W19: =IF(MultipleCalcs!V21="","",MultipleCalcs!V21) ->  | X19: =IF(MultipleCalcs!W21="","",MultipleCalcs!W21) ->  | Y19: =IF(MultipleCalcs!X21="","",MultipleCalcs!X21) ->  | Z19: =IF(MultipleCalcs!Y21="","",MultipleCalcs!Y21) ->  | AA19: =IF(MultipleCalcs!Z21="","",MultipleCalcs!Z21) -> 1.326290771 | AB19: =IF(MultipleCalcs!AA21="","",MultipleCalcs!AA21) -> 0.5171267489 | AC19: =IF(MultipleCalcs!AB21="","",MultipleCalcs!AB21) -> 
A20: 9 | B20: =IF(MultipleCalcs!B22="","",MultipleCalcs!B22) -> 15-2953-03 | C20: =IF(MultipleCalcs!C22="","",MultipleCalcs!C22) -> 1 | D20: =IF(MultipleCalcs!D22="","",MultipleCalcs!D22) -> 54.2 | E20: =IF(MultipleCalcs!E22="","",MultipleCalcs!E22) ->  | F20: =IF(MultipleCalcs!G22="","",MultipleCalcs!G22) -> 2 | G20: =IF(MultipleCalcs!H22="","",MultipleCalcs!H22) -> 10 | H20: =IF(MultipleCalcs!I22="","",MultipleCalcs!I22) -> 21 | I20: =IF(MultipleCalcs!J22="","",MultipleCalcs!J22) -> SFO | J20: =IF(MultipleCalcs!K22="","",MultipleCalcs!K22) -> 4.373 | K20: =IF(MultipleCalcs!L22="","",MultipleCalcs!L22) ->  | L20: =IF(MultipleCalcs!M22="","",MultipleCalcs!M22) ->  | M20: =IF(MultipleCalcs!N22="","",MultipleCalcs!N22) ->  | N20: =IF(MultipleCalcs!O22="","",MultipleCalcs!O22) ->  | O20: =IF(MultipleCalcs!P22="","",MultipleCalcs!P22) ->  | Q20: 15-2953-03 | R20: =IF(MultipleCalcs!Q22="","",MultipleCalcs!Q22) -> 0 | S20: =IF(MultipleCalcs!R22="","",MultipleCalcs!R22) -> 21 | T20: =IF(MultipleCalcs!S22="","",MultipleCalcs!S22) -> 29.1345309 | U20: =IF(MultipleCalcs!T22="","",MultipleCalcs!T22) ->  | V20: =IF(MultipleCalcs!U22="","",MultipleCalcs!U22) ->  | W20: =IF(MultipleCalcs!V22="","",MultipleCalcs!V22) ->  | X20: =IF(MultipleCalcs!W22="","",MultipleCalcs!W22) ->  | Y20: =IF(MultipleCalcs!X22="","",MultipleCalcs!X22) ->  | Z20: =IF(MultipleCalcs!Y22="","",MultipleCalcs!Y22) ->  | AA20: =IF(MultipleCalcs!Z22="","",MultipleCalcs!Z22) -> 1.204935289 | AB20: =IF(MultipleCalcs!AA22="","",MultipleCalcs!AA22) -> 0.4461131443 | AC20: =IF(MultipleCalcs!AB22="","",MultipleCalcs!AB22) -> 
A21: 10 | B21: =IF(MultipleCalcs!B23="","",MultipleCalcs!B23) -> 16-2951-01 | C21: =IF(MultipleCalcs!C23="","",MultipleCalcs!C23) -> 1 | D21: =IF(MultipleCalcs!D23="","",MultipleCalcs!D23) -> 54.2 | E21: =IF(MultipleCalcs!E23="","",MultipleCalcs!E23) ->  | F21: =IF(MultipleCalcs!G23="","",MultipleCalcs!G23) -> 2 | G21: =IF(MultipleCalcs!H23="","",MultipleCalcs!H23) -> 10 | H21: =IF(MultipleCalcs!I23="","",MultipleCalcs!I23) -> 21 | I21: =IF(MultipleCalcs!J23="","",MultipleCalcs!J23) -> SFO | J21: =IF(MultipleCalcs!K23="","",MultipleCalcs!K23) -> 3.56 | K21: =IF(MultipleCalcs!L23="","",MultipleCalcs!L23) ->  | L21: =IF(MultipleCalcs!M23="","",MultipleCalcs!M23) ->  | M21: =IF(MultipleCalcs!N23="","",MultipleCalcs!N23) ->  | N21: =IF(MultipleCalcs!O23="","",MultipleCalcs!O23) ->  | O21: =IF(MultipleCalcs!P23="","",MultipleCalcs!P23) ->  | Q21: 16-2951-01 | R21: =IF(MultipleCalcs!Q23="","",MultipleCalcs!Q23) -> 0 | S21: =IF(MultipleCalcs!R23="","",MultipleCalcs!R23) -> 21 | T21: =IF(MultipleCalcs!S23="","",MultipleCalcs!S23) -> 24.73247182 | U21: =IF(MultipleCalcs!T23="","",MultipleCalcs!T23) ->  | V21: =IF(MultipleCalcs!U23="","",MultipleCalcs!U23) ->  | W21: =IF(MultipleCalcs!V23="","",MultipleCalcs!V23) ->  | X21: =IF(MultipleCalcs!W23="","",MultipleCalcs!W23) ->  | Y21: =IF(MultipleCalcs!X23="","",MultipleCalcs!X23) ->  | Z21: =IF(MultipleCalcs!Y23="","",MultipleCalcs!Y23) ->  | AA21: =IF(MultipleCalcs!Z23="","",MultipleCalcs!Z23) -> 1.14269545 | AB21: =IF(MultipleCalcs!AA23="","",MultipleCalcs!AA23) -> 0.3993353333 | AC21: =IF(MultipleCalcs!AB23="","",MultipleCalcs!AB23) -> 
A22: 11 | B22: =IF(MultipleCalcs!B24="","",MultipleCalcs!B24) -> 16-2951-02 | C22: =IF(MultipleCalcs!C24="","",MultipleCalcs!C24) -> 1 | D22: =IF(MultipleCalcs!D24="","",MultipleCalcs!D24) -> 54.2 | E22: =IF(MultipleCalcs!E24="","",MultipleCalcs!E24) ->  | F22: =IF(MultipleCalcs!G24="","",MultipleCalcs!G24) -> 2 | G22: =IF(MultipleCalcs!H24="","",MultipleCalcs!H24) -> 10 | H22: =IF(MultipleCalcs!I24="","",MultipleCalcs!I24) -> 21 | I22: =IF(MultipleCalcs!J24="","",MultipleCalcs!J24) -> SFO | J22: =IF(MultipleCalcs!K24="","",MultipleCalcs!K24) -> 3.572 | K22: =IF(MultipleCalcs!L24="","",MultipleCalcs!L24) ->  | L22: =IF(MultipleCalcs!M24="","",MultipleCalcs!M24) ->  | M22: =IF(MultipleCalcs!N24="","",MultipleCalcs!N24) ->  | N22: =IF(MultipleCalcs!O24="","",MultipleCalcs!O24) ->  | O22: =IF(MultipleCalcs!P24="","",MultipleCalcs!P24) ->  | Q22: 16-2951-02 | R22: =IF(MultipleCalcs!Q24="","",MultipleCalcs!Q24) -> 0 | S22: =IF(MultipleCalcs!R24="","",MultipleCalcs!R24) -> 21 | T22: =IF(MultipleCalcs!S24="","",MultipleCalcs!S24) -> 24.80147643 | U22: =IF(MultipleCalcs!T24="","",MultipleCalcs!T24) ->  | V22: =IF(MultipleCalcs!U24="","",MultipleCalcs!U24) ->  | W22: =IF(MultipleCalcs!V24="","",MultipleCalcs!V24) ->  | X22: =IF(MultipleCalcs!W24="","",MultipleCalcs!W24) ->  | Y22: =IF(MultipleCalcs!X24="","",MultipleCalcs!X24) ->  | Z22: =IF(MultipleCalcs!Y24="","",MultipleCalcs!Y24) ->  | AA22: =IF(MultipleCalcs!Z24="","",MultipleCalcs!Z24) -> 1.143631882 | AB22: =IF(MultipleCalcs!AA24="","",MultipleCalcs!AA24) -> 0.4001215978 | AC22: =IF(MultipleCalcs!AB24="","",MultipleCalcs!AB24) -> 
A23: 12 | B23: =IF(MultipleCalcs!B25="","",MultipleCalcs!B25) -> 16-2955-01 | C23: =IF(MultipleCalcs!C25="","",MultipleCalcs!C25) -> 1 | D23: =IF(MultipleCalcs!D25="","",MultipleCalcs!D25) -> 54.2 | E23: =IF(MultipleCalcs!E25="","",MultipleCalcs!E25) ->  | F23: =IF(MultipleCalcs!G25="","",MultipleCalcs!G25) -> 2 | G23: =IF(MultipleCalcs!H25="","",MultipleCalcs!H25) -> 10 | H23: =IF(MultipleCalcs!I25="","",MultipleCalcs!I25) -> 21 | I23: =IF(MultipleCalcs!J25="","",MultipleCalcs!J25) -> SFO | J23: =IF(MultipleCalcs!K25="","",MultipleCalcs!K25) -> 7.308 | K23: =IF(MultipleCalcs!L25="","",MultipleCalcs!L25) ->  | L23: =IF(MultipleCalcs!M25="","",MultipleCalcs!M25) ->  | M23: =IF(MultipleCalcs!N25="","",MultipleCalcs!N25) ->  | N23: =IF(MultipleCalcs!O25="","",MultipleCalcs!O25) ->  | O23: =IF(MultipleCalcs!P25="","",MultipleCalcs!P25) ->  | Q23: 16-2955-01 | R23: =IF(MultipleCalcs!Q25="","",MultipleCalcs!Q25) -> 0 | S23: =IF(MultipleCalcs!R25="","",MultipleCalcs!R25) -> 21 | T23: =IF(MultipleCalcs!S25="","",MultipleCalcs!S25) -> 41.12396038 | U23: =IF(MultipleCalcs!T25="","",MultipleCalcs!T25) ->  | V23: =IF(MultipleCalcs!U25="","",MultipleCalcs!U25) ->  | W23: =IF(MultipleCalcs!V25="","",MultipleCalcs!V25) ->  | X23: =IF(MultipleCalcs!W25="","",MultipleCalcs!W25) ->  | Y23: =IF(MultipleCalcs!X25="","",MultipleCalcs!X25) ->  | Z23: =IF(MultipleCalcs!Y25="","",MultipleCalcs!Y25) ->  | AA23: =IF(MultipleCalcs!Z25="","",MultipleCalcs!Z25) -> 1.387330379 | AB23: =IF(MultipleCalcs!AA25="","",MultipleCalcs!AA25) -> 0.5469098552 | AC23: =IF(MultipleCalcs!AB25="","",MultipleCalcs!AB25) -> 
A24: 13 | B24: =IF(MultipleCalcs!B26="","",MultipleCalcs!B26) -> 16-2958-01 | C24: =IF(MultipleCalcs!C26="","",MultipleCalcs!C26) -> 1 | D24: =IF(MultipleCalcs!D26="","",MultipleCalcs!D26) -> 54.2 | E24: =IF(MultipleCalcs!E26="","",MultipleCalcs!E26) ->  | F24: =IF(MultipleCalcs!G26="","",MultipleCalcs!G26) -> 2 | G24: =IF(MultipleCalcs!H26="","",MultipleCalcs!H26) -> 10 | H24: =IF(MultipleCalcs!I26="","",MultipleCalcs!I26) -> 21 | I24: =IF(MultipleCalcs!J26="","",MultipleCalcs!J26) -> SFO | J24: =IF(MultipleCalcs!K26="","",MultipleCalcs!K26) -> 1.078 | K24: =IF(MultipleCalcs!L26="","",MultipleCalcs!L26) ->  | L24: =IF(MultipleCalcs!M26="","",MultipleCalcs!M26) ->  | M24: =IF(MultipleCalcs!N26="","",MultipleCalcs!N26) ->  | N24: =IF(MultipleCalcs!O26="","",MultipleCalcs!O26) ->  | O24: =IF(MultipleCalcs!P26="","",MultipleCalcs!P26) ->  | Q24: 16-2958-01 | R24: =IF(MultipleCalcs!Q26="","",MultipleCalcs!Q26) -> 0 | S24: =IF(MultipleCalcs!R26="","",MultipleCalcs!R26) -> 21 | T24: =IF(MultipleCalcs!S26="","",MultipleCalcs!S26) -> 8.02451634 | U24: =IF(MultipleCalcs!T26="","",MultipleCalcs!T26) ->  | V24: =IF(MultipleCalcs!U26="","",MultipleCalcs!U26) ->  | W24: =IF(MultipleCalcs!V26="","",MultipleCalcs!V26) ->  | X24: =IF(MultipleCalcs!W26="","",MultipleCalcs!W26) ->  | Y24: =IF(MultipleCalcs!X26="","",MultipleCalcs!X26) ->  | Z24: =IF(MultipleCalcs!Y26="","",MultipleCalcs!Y26) ->  | AA24: =IF(MultipleCalcs!Z26="","",MultipleCalcs!Z26) -> 1.001612553 | AB24: =IF(MultipleCalcs!AA26="","",MultipleCalcs!AA26) -> 0.1478154468 | AC24: =IF(MultipleCalcs!AB26="","",MultipleCalcs!AB26) -> 
A25: 14 | B25: =IF(MultipleCalcs!B27="","",MultipleCalcs!B27) -> 16-2958-02 | C25: =IF(MultipleCalcs!C27="","",MultipleCalcs!C27) -> 1 | D25: =IF(MultipleCalcs!D27="","",MultipleCalcs!D27) -> 54.2 | E25: =IF(MultipleCalcs!E27="","",MultipleCalcs!E27) ->  | F25: =IF(MultipleCalcs!G27="","",MultipleCalcs!G27) -> 2 | G25: =IF(MultipleCalcs!H27="","",MultipleCalcs!H27) -> 10 | H25: =IF(MultipleCalcs!I27="","",MultipleCalcs!I27) -> 21 | I25: =IF(MultipleCalcs!J27="","",MultipleCalcs!J27) -> SFO | J25: =IF(MultipleCalcs!K27="","",MultipleCalcs!K27) -> 3.388 | K25: =IF(MultipleCalcs!L27="","",MultipleCalcs!L27) ->  | L25: =IF(MultipleCalcs!M27="","",MultipleCalcs!M27) ->  | M25: =IF(MultipleCalcs!N27="","",MultipleCalcs!N27) ->  | N25: =IF(MultipleCalcs!O27="","",MultipleCalcs!O27) ->  | O25: =IF(MultipleCalcs!P27="","",MultipleCalcs!P27) ->  | Q25: 16-2958-02 | R25: =IF(MultipleCalcs!Q27="","",MultipleCalcs!Q27) -> 0 | S25: =IF(MultipleCalcs!R27="","",MultipleCalcs!R27) -> 21 | T25: =IF(MultipleCalcs!S27="","",MultipleCalcs!S27) -> 23.72981703 | U25: =IF(MultipleCalcs!T27="","",MultipleCalcs!T27) ->  | V25: =IF(MultipleCalcs!U27="","",MultipleCalcs!U27) ->  | W25: =IF(MultipleCalcs!V27="","",MultipleCalcs!V27) ->  | X25: =IF(MultipleCalcs!W27="","",MultipleCalcs!W27) ->  | Y25: =IF(MultipleCalcs!X27="","",MultipleCalcs!X27) ->  | Z25: =IF(MultipleCalcs!Y27="","",MultipleCalcs!Y27) ->  | AA25: =IF(MultipleCalcs!Z27="","",MultipleCalcs!Z27) -> 1.129265227 | AB25: =IF(MultipleCalcs!AA27="","",MultipleCalcs!AA27) -> 0.3877029877 | AC25: =IF(MultipleCalcs!AB27="","",MultipleCalcs!AB27) -> 
A26: 15 | B26: =IF(MultipleCalcs!B28="","",MultipleCalcs!B28) -> 16-2958-03 | C26: =IF(MultipleCalcs!C28="","",MultipleCalcs!C28) -> 1 | D26: =IF(MultipleCalcs!D28="","",MultipleCalcs!D28) -> 54.2 | E26: =IF(MultipleCalcs!E28="","",MultipleCalcs!E28) ->  | F26: =IF(MultipleCalcs!G28="","",MultipleCalcs!G28) -> 2 | G26: =IF(MultipleCalcs!H28="","",MultipleCalcs!H28) -> 10 | H26: =IF(MultipleCalcs!I28="","",MultipleCalcs!I28) -> 21 | I26: =IF(MultipleCalcs!J28="","",MultipleCalcs!J28) -> SFO | J26: =IF(MultipleCalcs!K28="","",MultipleCalcs!K28) -> 1.705 | K26: =IF(MultipleCalcs!L28="","",MultipleCalcs!L28) ->  | L26: =IF(MultipleCalcs!M28="","",MultipleCalcs!M28) ->  | M26: =IF(MultipleCalcs!N28="","",MultipleCalcs!N28) ->  | N26: =IF(MultipleCalcs!O28="","",MultipleCalcs!O28) ->  | O26: =IF(MultipleCalcs!P28="","",MultipleCalcs!P28) ->  | Q26: 16-2958-03 | R26: =IF(MultipleCalcs!Q28="","",MultipleCalcs!Q28) -> 0 | S26: =IF(MultipleCalcs!R28="","",MultipleCalcs!R28) -> 21 | T26: =IF(MultipleCalcs!S28="","",MultipleCalcs!S28) -> 12.62344792 | U26: =IF(MultipleCalcs!T28="","",MultipleCalcs!T28) ->  | V26: =IF(MultipleCalcs!U28="","",MultipleCalcs!U28) ->  | W26: =IF(MultipleCalcs!V28="","",MultipleCalcs!V28) ->  | X26: =IF(MultipleCalcs!W28="","",MultipleCalcs!W28) ->  | Y26: =IF(MultipleCalcs!X28="","",MultipleCalcs!X28) ->  | Z26: =IF(MultipleCalcs!Y28="","",MultipleCalcs!Y28) ->  | AA26: =IF(MultipleCalcs!Z28="","",MultipleCalcs!Z28) -> 1.01715648 | AB26: =IF(MultipleCalcs!AA28="","",MultipleCalcs!AA28) -> 0.2289765123 | AC26: =IF(MultipleCalcs!AB28="","",MultipleCalcs!AB28) -> 
A27: 16 | B27: =IF(MultipleCalcs!B29="","",MultipleCalcs!B29) -> 17-2950-01 | C27: =IF(MultipleCalcs!C29="","",MultipleCalcs!C29) -> 1 | D27: =IF(MultipleCalcs!D29="","",MultipleCalcs!D29) -> 54.2 | E27: =IF(MultipleCalcs!E29="","",MultipleCalcs!E29) ->  | F27: =IF(MultipleCalcs!G29="","",MultipleCalcs!G29) -> 2 | G27: =IF(MultipleCalcs!H29="","",MultipleCalcs!H29) -> 10 | H27: =IF(MultipleCalcs!I29="","",MultipleCalcs!I29) -> 21 | I27: =IF(MultipleCalcs!J29="","",MultipleCalcs!J29) -> SFO | J27: =IF(MultipleCalcs!K29="","",MultipleCalcs!K29) -> 1.932 | K27: =IF(MultipleCalcs!L29="","",MultipleCalcs!L29) ->  | L27: =IF(MultipleCalcs!M29="","",MultipleCalcs!M29) ->  | M27: =IF(MultipleCalcs!N29="","",MultipleCalcs!N29) ->  | N27: =IF(MultipleCalcs!O29="","",MultipleCalcs!O29) ->  | O27: =IF(MultipleCalcs!P29="","",MultipleCalcs!P29) ->  | Q27: 17-2950-01 | R27: =IF(MultipleCalcs!Q29="","",MultipleCalcs!Q29) -> 0 | S27: =IF(MultipleCalcs!R29="","",MultipleCalcs!R29) -> 21 | T27: =IF(MultipleCalcs!S29="","",MultipleCalcs!S29) -> 14.24486156 | U27: =IF(MultipleCalcs!T29="","",MultipleCalcs!T29) ->  | V27: =IF(MultipleCalcs!U29="","",MultipleCalcs!U29) ->  | W27: =IF(MultipleCalcs!V29="","",MultipleCalcs!V29) ->  | X27: =IF(MultipleCalcs!W29="","",MultipleCalcs!W29) ->  | Y27: =IF(MultipleCalcs!X29="","",MultipleCalcs!X29) ->  | Z27: =IF(MultipleCalcs!Y29="","",MultipleCalcs!Y29) ->  | AA27: =IF(MultipleCalcs!Z29="","",MultipleCalcs!Z29) -> 1.027661373 | AB27: =IF(MultipleCalcs!AA29="","",MultipleCalcs!AA29) -> 0.2557460375 | AC27: =IF(MultipleCalcs!AB29="","",MultipleCalcs!AB29) -> 
A28: 17 | B28: =IF(MultipleCalcs!B30="","",MultipleCalcs!B30) -> 17-2950-02 | C28: =IF(MultipleCalcs!C30="","",MultipleCalcs!C30) -> 1 | D28: =IF(MultipleCalcs!D30="","",MultipleCalcs!D30) -> 54.2 | E28: =IF(MultipleCalcs!E30="","",MultipleCalcs!E30) ->  | F28: =IF(MultipleCalcs!G30="","",MultipleCalcs!G30) -> 2 | G28: =IF(MultipleCalcs!H30="","",MultipleCalcs!H30) -> 10 | H28: =IF(MultipleCalcs!I30="","",MultipleCalcs!I30) -> 21 | I28: =IF(MultipleCalcs!J30="","",MultipleCalcs!J30) -> SFO | J28: =IF(MultipleCalcs!K30="","",MultipleCalcs!K30) -> 0.9787 | K28: =IF(MultipleCalcs!L30="","",MultipleCalcs!L30) ->  | L28: =IF(MultipleCalcs!M30="","",MultipleCalcs!M30) ->  | M28: =IF(MultipleCalcs!N30="","",MultipleCalcs!N30) ->  | N28: =IF(MultipleCalcs!O30="","",MultipleCalcs!O30) ->  | O28: =IF(MultipleCalcs!P30="","",MultipleCalcs!P30) ->  | Q28: 17-2950-02 | R28: =IF(MultipleCalcs!Q30="","",MultipleCalcs!Q30) -> 0 | S28: =IF(MultipleCalcs!R30="","",MultipleCalcs!R30) -> 21 | T28: =IF(MultipleCalcs!S30="","",MultipleCalcs!S30) -> 7.286923549 | U28: =IF(MultipleCalcs!T30="","",MultipleCalcs!T30) ->  | V28: =IF(MultipleCalcs!U30="","",MultipleCalcs!U30) ->  | W28: =IF(MultipleCalcs!V30="","",MultipleCalcs!V30) ->  | X28: =IF(MultipleCalcs!W30="","",MultipleCalcs!W30) ->  | Y28: =IF(MultipleCalcs!X30="","",MultipleCalcs!X30) ->  | Z28: =IF(MultipleCalcs!Y30="","",MultipleCalcs!Y30) ->  | AA28: =IF(MultipleCalcs!Z30="","",MultipleCalcs!Z30) -> 1.000839818 | AB28: =IF(MultipleCalcs!AA30="","",MultipleCalcs!AA30) -> 0.1343322693 | AC28: =IF(MultipleCalcs!AB30="","",MultipleCalcs!AB30) -> 
A29: 18 | B29: =IF(MultipleCalcs!B31="","",MultipleCalcs!B31) -> 17-2950-03 | C29: =IF(MultipleCalcs!C31="","",MultipleCalcs!C31) -> 1 | D29: =IF(MultipleCalcs!D31="","",MultipleCalcs!D31) -> 54.2 | E29: =IF(MultipleCalcs!E31="","",MultipleCalcs!E31) ->  | F29: =IF(MultipleCalcs!G31="","",MultipleCalcs!G31) -> 2 | G29: =IF(MultipleCalcs!H31="","",MultipleCalcs!H31) -> 10 | H29: =IF(MultipleCalcs!I31="","",MultipleCalcs!I31) -> 21 | I29: =IF(MultipleCalcs!J31="","",MultipleCalcs!J31) -> SFO | J29: =IF(MultipleCalcs!K31="","",MultipleCalcs!K31) -> 2.351 | K29: =IF(MultipleCalcs!L31="","",MultipleCalcs!L31) ->  | L29: =IF(MultipleCalcs!M31="","",MultipleCalcs!M31) ->  | M29: =IF(MultipleCalcs!N31="","",MultipleCalcs!N31) ->  | N29: =IF(MultipleCalcs!O31="","",MultipleCalcs!O31) ->  | O29: =IF(MultipleCalcs!P31="","",MultipleCalcs!P31) ->  | Q29: 17-2950-03 | R29: =IF(MultipleCalcs!Q31="","",MultipleCalcs!Q31) -> 0 | S29: =IF(MultipleCalcs!R31="","",MultipleCalcs!R31) -> 21 | T29: =IF(MultipleCalcs!S31="","",MultipleCalcs!S31) -> 17.14833978 | U29: =IF(MultipleCalcs!T31="","",MultipleCalcs!T31) ->  | V29: =IF(MultipleCalcs!U31="","",MultipleCalcs!U31) ->  | W29: =IF(MultipleCalcs!V31="","",MultipleCalcs!V31) ->  | X29: =IF(MultipleCalcs!W31="","",MultipleCalcs!W31) ->  | Y29: =IF(MultipleCalcs!X31="","",MultipleCalcs!X31) ->  | Z29: =IF(MultipleCalcs!Y31="","",MultipleCalcs!Y31) ->  | AA29: =IF(MultipleCalcs!Z31="","",MultipleCalcs!Z31) -> 1.052428346 | AB29: =IF(MultipleCalcs!AA31="","",MultipleCalcs!AA31) -> 0.3006285738 | AC29: =IF(MultipleCalcs!AB31="","",MultipleCalcs!AB31) -> 
A30: 19 | B30: =IF(MultipleCalcs!B32="","",MultipleCalcs!B32) -> 18-2950-01 | C30: =IF(MultipleCalcs!C32="","",MultipleCalcs!C32) -> 1 | D30: =IF(MultipleCalcs!D32="","",MultipleCalcs!D32) -> 54.2 | E30: =IF(MultipleCalcs!E32="","",MultipleCalcs!E32) ->  | F30: =IF(MultipleCalcs!G32="","",MultipleCalcs!G32) -> 2 | G30: =IF(MultipleCalcs!H32="","",MultipleCalcs!H32) -> 10 | H30: =IF(MultipleCalcs!I32="","",MultipleCalcs!I32) -> 21 | I30: =IF(MultipleCalcs!J32="","",MultipleCalcs!J32) -> SFO | J30: =IF(MultipleCalcs!K32="","",MultipleCalcs!K32) -> 2.37993 | K30: =IF(MultipleCalcs!L32="","",MultipleCalcs!L32) ->  | L30: =IF(MultipleCalcs!M32="","",MultipleCalcs!M32) ->  | M30: =IF(MultipleCalcs!N32="","",MultipleCalcs!N32) ->  | N30: =IF(MultipleCalcs!O32="","",MultipleCalcs!O32) ->  | O30: =IF(MultipleCalcs!P32="","",MultipleCalcs!P32) ->  | Q30: 18-2950-01 | R30: =IF(MultipleCalcs!Q32="","",MultipleCalcs!Q32) -> 0 | S30: =IF(MultipleCalcs!R32="","",MultipleCalcs!R32) -> 21 | T30: =IF(MultipleCalcs!S32="","",MultipleCalcs!S32) -> 17.34402745 | U30: =IF(MultipleCalcs!T32="","",MultipleCalcs!T32) ->  | V30: =IF(MultipleCalcs!U32="","",MultipleCalcs!U32) ->  | W30: =IF(MultipleCalcs!V32="","",MultipleCalcs!V32) ->  | X30: =IF(MultipleCalcs!W32="","",MultipleCalcs!W32) ->  | Y30: =IF(MultipleCalcs!X32="","",MultipleCalcs!X32) ->  | Z30: =IF(MultipleCalcs!Y32="","",MultipleCalcs!Y32) ->  | AA30: =IF(MultipleCalcs!Z32="","",MultipleCalcs!Z32) -> 1.054341408 | AB30: =IF(MultipleCalcs!AA32="","",MultipleCalcs!AA32) -> 0.3035074826 | AC30: =IF(MultipleCalcs!AB32="","",MultipleCalcs!AB32) -> 
A31: 20 | B31: =IF(MultipleCalcs!B33="","",MultipleCalcs!B33) -> 18-2950-02 | C31: =IF(MultipleCalcs!C33="","",MultipleCalcs!C33) -> 1 | D31: =IF(MultipleCalcs!D33="","",MultipleCalcs!D33) -> 54.2 | E31: =IF(MultipleCalcs!E33="","",MultipleCalcs!E33) ->  | F31: =IF(MultipleCalcs!G33="","",MultipleCalcs!G33) -> 2 | G31: =IF(MultipleCalcs!H33="","",MultipleCalcs!H33) -> 10 | H31: =IF(MultipleCalcs!I33="","",MultipleCalcs!I33) -> 21 | I31: =IF(MultipleCalcs!J33="","",MultipleCalcs!J33) -> SFO | J31: =IF(MultipleCalcs!K33="","",MultipleCalcs!K33) -> 4.569 | K31: =IF(MultipleCalcs!L33="","",MultipleCalcs!L33) ->  | L31: =IF(MultipleCalcs!M33="","",MultipleCalcs!M33) ->  | M31: =IF(MultipleCalcs!N33="","",MultipleCalcs!N33) ->  | N31: =IF(MultipleCalcs!O33="","",MultipleCalcs!O33) ->  | O31: =IF(MultipleCalcs!P33="","",MultipleCalcs!P33) ->  | Q31: 18-2950-02 | R31: =IF(MultipleCalcs!Q33="","",MultipleCalcs!Q33) -> 0 | S31: =IF(MultipleCalcs!R33="","",MultipleCalcs!R33) -> 21 | T31: =IF(MultipleCalcs!S33="","",MultipleCalcs!S33) -> 30.11567682 | U31: =IF(MultipleCalcs!T33="","",MultipleCalcs!T33) ->  | V31: =IF(MultipleCalcs!U33="","",MultipleCalcs!U33) ->  | W31: =IF(MultipleCalcs!V33="","",MultipleCalcs!V33) ->  | X31: =IF(MultipleCalcs!W33="","",MultipleCalcs!W33) ->  | Y31: =IF(MultipleCalcs!X33="","",MultipleCalcs!X33) ->  | Z31: =IF(MultipleCalcs!Y33="","",MultipleCalcs!Y33) ->  | AA31: =IF(MultipleCalcs!Z33="","",MultipleCalcs!Z33) -> 1.219354662 | AB31: =IF(MultipleCalcs!AA33="","",MultipleCalcs!AA33) -> 0.4556834948 | AC31: =IF(MultipleCalcs!AB33="","",MultipleCalcs!AB33) -> 
A32: 21 | B32: =IF(MultipleCalcs!B34="","",MultipleCalcs!B34) -> 18-2950-03 | C32: =IF(MultipleCalcs!C34="","",MultipleCalcs!C34) -> 1 | D32: =IF(MultipleCalcs!D34="","",MultipleCalcs!D34) -> 54.2 | E32: =IF(MultipleCalcs!E34="","",MultipleCalcs!E34) ->  | F32: =IF(MultipleCalcs!G34="","",MultipleCalcs!G34) -> 2 | G32: =IF(MultipleCalcs!H34="","",MultipleCalcs!H34) -> 10 | H32: =IF(MultipleCalcs!I34="","",MultipleCalcs!I34) -> 21 | I32: =IF(MultipleCalcs!J34="","",MultipleCalcs!J34) -> SFO | J32: =IF(MultipleCalcs!K34="","",MultipleCalcs!K34) -> 2.064 | K32: =IF(MultipleCalcs!L34="","",MultipleCalcs!L34) ->  | L32: =IF(MultipleCalcs!M34="","",MultipleCalcs!M34) ->  | M32: =IF(MultipleCalcs!N34="","",MultipleCalcs!N34) ->  | N32: =IF(MultipleCalcs!O34="","",MultipleCalcs!O34) ->  | O32: =IF(MultipleCalcs!P34="","",MultipleCalcs!P34) ->  | Q32: 18-2950-03 | R32: =IF(MultipleCalcs!Q34="","",MultipleCalcs!Q34) -> 0 | S32: =IF(MultipleCalcs!R34="","",MultipleCalcs!R34) -> 21 | T32: =IF(MultipleCalcs!S34="","",MultipleCalcs!S34) -> 15.17293582 | U32: =IF(MultipleCalcs!T34="","",MultipleCalcs!T34) ->  | V32: =IF(MultipleCalcs!U34="","",MultipleCalcs!U34) ->  | W32: =IF(MultipleCalcs!V34="","",MultipleCalcs!V34) ->  | X32: =IF(MultipleCalcs!W34="","",MultipleCalcs!W34) ->  | Y32: =IF(MultipleCalcs!X34="","",MultipleCalcs!X34) ->  | Z32: =IF(MultipleCalcs!Y34="","",MultipleCalcs!Y34) ->  | AA32: =IF(MultipleCalcs!Z34="","",MultipleCalcs!Z34) -> 1.03479536 | AB32: =IF(MultipleCalcs!AA34="","",MultipleCalcs!AA34) -> 0.2705302672 | AC32: =IF(MultipleCalcs!AB34="","",MultipleCalcs!AB34) -> 
A33: 22 | B33: =IF(MultipleCalcs!B35="","",MultipleCalcs!B35) -> 18-2950-04 | C33: =IF(MultipleCalcs!C35="","",MultipleCalcs!C35) -> 1 | D33: =IF(MultipleCalcs!D35="","",MultipleCalcs!D35) -> 54.2 | E33: =IF(MultipleCalcs!E35="","",MultipleCalcs!E35) ->  | F33: =IF(MultipleCalcs!G35="","",MultipleCalcs!G35) -> 2 | G33: =IF(MultipleCalcs!H35="","",MultipleCalcs!H35) -> 10 | H33: =IF(MultipleCalcs!I35="","",MultipleCalcs!I35) -> 21 | I33: =IF(MultipleCalcs!J35="","",MultipleCalcs!J35) -> SFO | J33: =IF(MultipleCalcs!K35="","",MultipleCalcs!K35) -> 4.536 | K33: =IF(MultipleCalcs!L35="","",MultipleCalcs!L35) ->  | L33: =IF(MultipleCalcs!M35="","",MultipleCalcs!M35) ->  | M33: =IF(MultipleCalcs!N35="","",MultipleCalcs!N35) ->  | N33: =IF(MultipleCalcs!O35="","",MultipleCalcs!O35) ->  | O33: =IF(MultipleCalcs!P35="","",MultipleCalcs!P35) ->  | Q33: 18-2950-04 | R33: =IF(MultipleCalcs!Q35="","",MultipleCalcs!Q35) -> 0 | S33: =IF(MultipleCalcs!R35="","",MultipleCalcs!R35) -> 21 | T33: =IF(MultipleCalcs!S35="","",MultipleCalcs!S35) -> 29.95257649 | U33: =IF(MultipleCalcs!T35="","",MultipleCalcs!T35) ->  | V33: =IF(MultipleCalcs!U35="","",MultipleCalcs!U35) ->  | W33: =IF(MultipleCalcs!V35="","",MultipleCalcs!V35) ->  | X33: =IF(MultipleCalcs!W35="","",MultipleCalcs!W35) ->  | Y33: =IF(MultipleCalcs!X35="","",MultipleCalcs!X35) ->  | Z33: =IF(MultipleCalcs!Y35="","",MultipleCalcs!Y35) ->  | AA33: =IF(MultipleCalcs!Z35="","",MultipleCalcs!Z35) -> 1.216946988 | AB33: =IF(MultipleCalcs!AA35="","",MultipleCalcs!AA35) -> 0.4541122728 | AC33: =IF(MultipleCalcs!AB35="","",MultipleCalcs!AB35) -> 
A34: 23 | B34: =IF(MultipleCalcs!B36="","",MultipleCalcs!B36) -> 18-2955-02 | C34: =IF(MultipleCalcs!C36="","",MultipleCalcs!C36) -> 1 | D34: =IF(MultipleCalcs!D36="","",MultipleCalcs!D36) -> 54.2 | E34: =IF(MultipleCalcs!E36="","",MultipleCalcs!E36) ->  | F34: =IF(MultipleCalcs!G36="","",MultipleCalcs!G36) -> 2 | G34: =IF(MultipleCalcs!H36="","",MultipleCalcs!H36) -> 10 | H34: =IF(MultipleCalcs!I36="","",MultipleCalcs!I36) -> 21 | I34: =IF(MultipleCalcs!J36="","",MultipleCalcs!J36) -> SFO | J34: =IF(MultipleCalcs!K36="","",MultipleCalcs!K36) -> 9.571 | K34: =IF(MultipleCalcs!L36="","",MultipleCalcs!L36) ->  | L34: =IF(MultipleCalcs!M36="","",MultipleCalcs!M36) ->  | M34: =IF(MultipleCalcs!N36="","",MultipleCalcs!N36) ->  | N34: =IF(MultipleCalcs!O36="","",MultipleCalcs!O36) ->  | O34: =IF(MultipleCalcs!P36="","",MultipleCalcs!P36) ->  | Q34: 18-2955-02 | R34: =IF(MultipleCalcs!Q36="","",MultipleCalcs!Q36) -> 0 | S34: =IF(MultipleCalcs!R36="","",MultipleCalcs!R36) -> 21 | T34: =IF(MultipleCalcs!S36="","",MultipleCalcs!S36) -> 47.42091775 | U34: =IF(MultipleCalcs!T36="","",MultipleCalcs!T36) ->  | V34: =IF(MultipleCalcs!U36="","",MultipleCalcs!U36) ->  | W34: =IF(MultipleCalcs!V36="","",MultipleCalcs!V36) ->  | X34: =IF(MultipleCalcs!W36="","",MultipleCalcs!W36) ->  | Y34: =IF(MultipleCalcs!X36="","",MultipleCalcs!X36) ->  | Z34: =IF(MultipleCalcs!Y36="","",MultipleCalcs!Y36) ->  | AA34: =IF(MultipleCalcs!Z36="","",MultipleCalcs!Z36) -> 1.484704405 | AB34: =IF(MultipleCalcs!AA36="","",MultipleCalcs!AA36) -> 0.5892921709 | AC34: =IF(MultipleCalcs!AB36="","",MultipleCalcs!AB36) -> 
A35: 24 | B35: =IF(MultipleCalcs!B37="","",MultipleCalcs!B37) -> 18-2955-04 | C35: =IF(MultipleCalcs!C37="","",MultipleCalcs!C37) -> 1 | D35: =IF(MultipleCalcs!D37="","",MultipleCalcs!D37) -> 54.2 | E35: =IF(MultipleCalcs!E37="","",MultipleCalcs!E37) ->  | F35: =IF(MultipleCalcs!G37="","",MultipleCalcs!G37) -> 2 | G35: =IF(MultipleCalcs!H37="","",MultipleCalcs!H37) -> 10 | H35: =IF(MultipleCalcs!I37="","",MultipleCalcs!I37) -> 21 | I35: =IF(MultipleCalcs!J37="","",MultipleCalcs!J37) -> SFO | J35: =IF(MultipleCalcs!K37="","",MultipleCalcs!K37) -> 6.544 | K35: =IF(MultipleCalcs!L37="","",MultipleCalcs!L37) ->  | L35: =IF(MultipleCalcs!M37="","",MultipleCalcs!M37) ->  | M35: =IF(MultipleCalcs!N37="","",MultipleCalcs!N37) ->  | N35: =IF(MultipleCalcs!O37="","",MultipleCalcs!O37) ->  | O35: =IF(MultipleCalcs!P37="","",MultipleCalcs!P37) ->  | Q35: 18-2955-04 | R35: =IF(MultipleCalcs!Q37="","",MultipleCalcs!Q37) -> 0 | S35: =IF(MultipleCalcs!R37="","",MultipleCalcs!R37) -> 21 | T35: =IF(MultipleCalcs!S37="","",MultipleCalcs!S37) -> 38.49898871 | U35: =IF(MultipleCalcs!T37="","",MultipleCalcs!T37) ->  | V35: =IF(MultipleCalcs!U37="","",MultipleCalcs!U37) ->  | W35: =IF(MultipleCalcs!V37="","",MultipleCalcs!V37) ->  | X35: =IF(MultipleCalcs!W37="","",MultipleCalcs!W37) ->  | Y35: =IF(MultipleCalcs!X37="","",MultipleCalcs!X37) ->  | Z35: =IF(MultipleCalcs!Y37="","",MultipleCalcs!Y37) ->  | AA35: =IF(MultipleCalcs!Z37="","",MultipleCalcs!Z37) -> 1.346729536 | AB35: =IF(MultipleCalcs!AA37="","",MultipleCalcs!AA37) -> 0.5274358556 | AC35: =IF(MultipleCalcs!AB37="","",MultipleCalcs!AB37) -> 
A36: 25 | B36: =IF(MultipleCalcs!B38="","",MultipleCalcs!B38) -> E 3082938-3-01 | C36: =IF(MultipleCalcs!C38="","",MultipleCalcs!C38) -> 1 | D36: =IF(MultipleCalcs!D38="","",MultipleCalcs!D38) -> 54.2 | E36: =IF(MultipleCalcs!E38="","",MultipleCalcs!E38) ->  | F36: =IF(MultipleCalcs!G38="","",MultipleCalcs!G38) -> 2 | G36: =IF(MultipleCalcs!H38="","",MultipleCalcs!H38) -> 10 | H36: =IF(MultipleCalcs!I38="","",MultipleCalcs!I38) -> 21 | I36: =IF(MultipleCalcs!J38="","",MultipleCalcs!J38) -> SFO | J36: =IF(MultipleCalcs!K38="","",MultipleCalcs!K38) -> 3.296 | K36: =IF(MultipleCalcs!L38="","",MultipleCalcs!L38) ->  | L36: =IF(MultipleCalcs!M38="","",MultipleCalcs!M38) ->  | M36: =IF(MultipleCalcs!N38="","",MultipleCalcs!N38) ->  | N36: =IF(MultipleCalcs!O38="","",MultipleCalcs!O38) ->  | O36: =IF(MultipleCalcs!P38="","",MultipleCalcs!P38) ->  | Q36: E 3082938-3-01 | R36: =IF(MultipleCalcs!Q38="","",MultipleCalcs!Q38) -> 0 | S36: =IF(MultipleCalcs!R38="","",MultipleCalcs!R38) -> 21 | T36: =IF(MultipleCalcs!S38="","",MultipleCalcs!S38) -> 23.18304803 | U36: =IF(MultipleCalcs!T38="","",MultipleCalcs!T38) ->  | V36: =IF(MultipleCalcs!U38="","",MultipleCalcs!U38) ->  | W36: =IF(MultipleCalcs!V38="","",MultipleCalcs!V38) ->  | X36: =IF(MultipleCalcs!W38="","",MultipleCalcs!W38) ->  | Y36: =IF(MultipleCalcs!X38="","",MultipleCalcs!X38) ->  | Z36: =IF(MultipleCalcs!Y38="","",MultipleCalcs!Y38) ->  | AA36: =IF(MultipleCalcs!Z38="","",MultipleCalcs!Z38) -> 1.122090209 | AB36: =IF(MultipleCalcs!AA38="","",MultipleCalcs!AA38) -> 0.3811917348 | AC36: =IF(MultipleCalcs!AB38="","",MultipleCalcs!AB38) -> 
A37: 26 | B37: =IF(MultipleCalcs!B39="","",MultipleCalcs!B39) -> E 3082938-3-02 | C37: =IF(MultipleCalcs!C39="","",MultipleCalcs!C39) -> 1 | D37: =IF(MultipleCalcs!D39="","",MultipleCalcs!D39) -> 54.2 | E37: =IF(MultipleCalcs!E39="","",MultipleCalcs!E39) ->  | F37: =IF(MultipleCalcs!G39="","",MultipleCalcs!G39) -> 2 | G37: =IF(MultipleCalcs!H39="","",MultipleCalcs!H39) -> 10 | H37: =IF(MultipleCalcs!I39="","",MultipleCalcs!I39) -> 21 | I37: =IF(MultipleCalcs!J39="","",MultipleCalcs!J39) -> SFO | J37: =IF(MultipleCalcs!K39="","",MultipleCalcs!K39) -> 3.808 | K37: =IF(MultipleCalcs!L39="","",MultipleCalcs!L39) ->  | L37: =IF(MultipleCalcs!M39="","",MultipleCalcs!M39) ->  | M37: =IF(MultipleCalcs!N39="","",MultipleCalcs!N39) ->  | N37: =IF(MultipleCalcs!O39="","",MultipleCalcs!O39) ->  | O37: =IF(MultipleCalcs!P39="","",MultipleCalcs!P39) ->  | Q37: E 3082938-3-02 | R37: =IF(MultipleCalcs!Q39="","",MultipleCalcs!Q39) -> 0 | S37: =IF(MultipleCalcs!R39="","",MultipleCalcs!R39) -> 21 | T37: =IF(MultipleCalcs!S39="","",MultipleCalcs!S39) -> 26.13363537 | U37: =IF(MultipleCalcs!T39="","",MultipleCalcs!T39) ->  | V37: =IF(MultipleCalcs!U39="","",MultipleCalcs!U39) ->  | W37: =IF(MultipleCalcs!V39="","",MultipleCalcs!V39) ->  | X37: =IF(MultipleCalcs!W39="","",MultipleCalcs!W39) ->  | Y37: =IF(MultipleCalcs!X39="","",MultipleCalcs!X39) ->  | Z37: =IF(MultipleCalcs!Y39="","",MultipleCalcs!Y39) ->  | AA37: =IF(MultipleCalcs!Z39="","",MultipleCalcs!Z39) -> 1.161986959 | AB37: =IF(MultipleCalcs!AA39="","",MultipleCalcs!AA39) -> 0.4149533611 | AC37: =IF(MultipleCalcs!AB39="","",MultipleCalcs!AB39) -> 
A38: 27 | B38: =IF(MultipleCalcs!B40="","",MultipleCalcs!B40) -> 11-2951-01 | C38: =IF(MultipleCalcs!C40="","",MultipleCalcs!C40) -> 1 | D38: =IF(MultipleCalcs!D40="","",MultipleCalcs!D40) -> 54.2 | E38: =IF(MultipleCalcs!E40="","",MultipleCalcs!E40) ->  | F38: =IF(MultipleCalcs!G40="","",MultipleCalcs!G40) -> 2 | G38: =IF(MultipleCalcs!H40="","",MultipleCalcs!H40) -> 10 | H38: =IF(MultipleCalcs!I40="","",MultipleCalcs!I40) -> 21 | I38: =IF(MultipleCalcs!J40="","",MultipleCalcs!J40) -> SFO | J38: =IF(MultipleCalcs!K40="","",MultipleCalcs!K40) -> 2.074 | K38: =IF(MultipleCalcs!L40="","",MultipleCalcs!L40) ->  | L38: =IF(MultipleCalcs!M40="","",MultipleCalcs!M40) ->  | M38: =IF(MultipleCalcs!N40="","",MultipleCalcs!N40) ->  | N38: =IF(MultipleCalcs!O40="","",MultipleCalcs!O40) ->  | O38: =IF(MultipleCalcs!P40="","",MultipleCalcs!P40) ->  | Q38: 11-2951-01 | R38: =IF(MultipleCalcs!Q40="","",MultipleCalcs!Q40) -> 0 | S38: =IF(MultipleCalcs!R40="","",MultipleCalcs!R40) -> 21 | T38: =IF(MultipleCalcs!S40="","",MultipleCalcs!S40) -> 15.24276545 | U38: =IF(MultipleCalcs!T40="","",MultipleCalcs!T40) ->  | V38: =IF(MultipleCalcs!U40="","",MultipleCalcs!U40) ->  | W38: =IF(MultipleCalcs!V40="","",MultipleCalcs!V40) ->  | X38: =IF(MultipleCalcs!W40="","",MultipleCalcs!W40) ->  | Y38: =IF(MultipleCalcs!X40="","",MultipleCalcs!X40) ->  | Z38: =IF(MultipleCalcs!Y40="","",MultipleCalcs!Y40) ->  | AA38: =IF(MultipleCalcs!Z40="","",MultipleCalcs!Z40) -> 1.035363362 | AB38: =IF(MultipleCalcs!AA40="","",MultipleCalcs!AA40) -> 0.2716262186 | AC38: =IF(MultipleCalcs!AB40="","",MultipleCalcs!AB40) -> 
A39: 28 | B39: =IF(MultipleCalcs!B41="","",MultipleCalcs!B41) -> 11-2951-02 | C39: =IF(MultipleCalcs!C41="","",MultipleCalcs!C41) -> 1 | D39: =IF(MultipleCalcs!D41="","",MultipleCalcs!D41) -> 54.2 | E39: =IF(MultipleCalcs!E41="","",MultipleCalcs!E41) ->  | F39: =IF(MultipleCalcs!G41="","",MultipleCalcs!G41) -> 2 | G39: =IF(MultipleCalcs!H41="","",MultipleCalcs!H41) -> 10 | H39: =IF(MultipleCalcs!I41="","",MultipleCalcs!I41) -> 21 | I39: =IF(MultipleCalcs!J41="","",MultipleCalcs!J41) -> SFO | J39: =IF(MultipleCalcs!K41="","",MultipleCalcs!K41) -> 5.382 | K39: =IF(MultipleCalcs!L41="","",MultipleCalcs!L41) ->  | L39: =IF(MultipleCalcs!M41="","",MultipleCalcs!M41) ->  | M39: =IF(MultipleCalcs!N41="","",MultipleCalcs!N41) ->  | N39: =IF(MultipleCalcs!O41="","",MultipleCalcs!O41) ->  | O39: =IF(MultipleCalcs!P41="","",MultipleCalcs!P41) ->  | Q39: 11-2951-02 | R39: =IF(MultipleCalcs!Q41="","",MultipleCalcs!Q41) -> 0 | S39: =IF(MultipleCalcs!R41="","",MultipleCalcs!R41) -> 21 | T39: =IF(MultipleCalcs!S41="","",MultipleCalcs!S41) -> 33.87939069 | U39: =IF(MultipleCalcs!T41="","",MultipleCalcs!T41) ->  | V39: =IF(MultipleCalcs!U41="","",MultipleCalcs!U41) ->  | W39: =IF(MultipleCalcs!V41="","",MultipleCalcs!V41) ->  | X39: =IF(MultipleCalcs!W41="","",MultipleCalcs!W41) ->  | Y39: =IF(MultipleCalcs!X41="","",MultipleCalcs!X41) ->  | Z39: =IF(MultipleCalcs!Y41="","",MultipleCalcs!Y41) ->  | AA39: =IF(MultipleCalcs!Z41="","",MultipleCalcs!Z41) -> 1.275849766 | AB39: =IF(MultipleCalcs!AA41="","",MultipleCalcs!AA41) -> 0.4899330827 | AC39: =IF(MultipleCalcs!AB41="","",MultipleCalcs!AB41) -> 
A40: 29 | B40: =IF(MultipleCalcs!B42="","",MultipleCalcs!B42) -> 16-2952-03 | C40: =IF(MultipleCalcs!C42="","",MultipleCalcs!C42) -> 1 | D40: =IF(MultipleCalcs!D42="","",MultipleCalcs!D42) -> 54.2 | E40: =IF(MultipleCalcs!E42="","",MultipleCalcs!E42) ->  | F40: =IF(MultipleCalcs!G42="","",MultipleCalcs!G42) -> 2 | G40: =IF(MultipleCalcs!H42="","",MultipleCalcs!H42) -> 10 | H40: =IF(MultipleCalcs!I42="","",MultipleCalcs!I42) -> 21 | I40: =IF(MultipleCalcs!J42="","",MultipleCalcs!J42) -> SFO | J40: =IF(MultipleCalcs!K42="","",MultipleCalcs!K42) -> 4.499 | K40: =IF(MultipleCalcs!L42="","",MultipleCalcs!L42) ->  | L40: =IF(MultipleCalcs!M42="","",MultipleCalcs!M42) ->  | M40: =IF(MultipleCalcs!N42="","",MultipleCalcs!N42) ->  | N40: =IF(MultipleCalcs!O42="","",MultipleCalcs!O42) ->  | O40: =IF(MultipleCalcs!P42="","",MultipleCalcs!P42) ->  | Q40: 16-2952-03 | R40: =IF(MultipleCalcs!Q42="","",MultipleCalcs!Q42) -> 0 | S40: =IF(MultipleCalcs!R42="","",MultipleCalcs!R42) -> 21 | T40: =IF(MultipleCalcs!S42="","",MultipleCalcs!S42) -> 29.76870474 | U40: =IF(MultipleCalcs!T42="","",MultipleCalcs!T42) ->  | V40: =IF(MultipleCalcs!U42="","",MultipleCalcs!U42) ->  | W40: =IF(MultipleCalcs!V42="","",MultipleCalcs!V42) ->  | X40: =IF(MultipleCalcs!W42="","",MultipleCalcs!W42) ->  | Y40: =IF(MultipleCalcs!X42="","",MultipleCalcs!X42) ->  | Z40: =IF(MultipleCalcs!Y42="","",MultipleCalcs!Y42) ->  | AA40: =IF(MultipleCalcs!Z42="","",MultipleCalcs!Z42) -> 1.214237634 | AB40: =IF(MultipleCalcs!AA42="","",MultipleCalcs!AA42) -> 0.4523316354 | AC40: =IF(MultipleCalcs!AB42="","",MultipleCalcs!AB42) -> 
A41: 30 | B41: =IF(MultipleCalcs!B43="","",MultipleCalcs!B43) -> 16-2952-04 | C41: =IF(MultipleCalcs!C43="","",MultipleCalcs!C43) -> 1 | D41: =IF(MultipleCalcs!D43="","",MultipleCalcs!D43) -> 54.2 | E41: =IF(MultipleCalcs!E43="","",MultipleCalcs!E43) ->  | F41: =IF(MultipleCalcs!G43="","",MultipleCalcs!G43) -> 2 | G41: =IF(MultipleCalcs!H43="","",MultipleCalcs!H43) -> 10 | H41: =IF(MultipleCalcs!I43="","",MultipleCalcs!I43) -> 21 | I41: =IF(MultipleCalcs!J43="","",MultipleCalcs!J43) -> SFO | J41: =IF(MultipleCalcs!K43="","",MultipleCalcs!K43) -> 2.682 | K41: =IF(MultipleCalcs!L43="","",MultipleCalcs!L43) ->  | L41: =IF(MultipleCalcs!M43="","",MultipleCalcs!M43) ->  | M41: =IF(MultipleCalcs!N43="","",MultipleCalcs!N43) ->  | N41: =IF(MultipleCalcs!O43="","",MultipleCalcs!O43) ->  | O41: =IF(MultipleCalcs!P43="","",MultipleCalcs!P43) ->  | Q41: 16-2952-04 | R41: =IF(MultipleCalcs!Q43="","",MultipleCalcs!Q43) -> 0 | S41: =IF(MultipleCalcs!R43="","",MultipleCalcs!R43) -> 21 | T41: =IF(MultipleCalcs!S43="","",MultipleCalcs!S43) -> 19.34732423 | U41: =IF(MultipleCalcs!T43="","",MultipleCalcs!T43) ->  | V41: =IF(MultipleCalcs!U43="","",MultipleCalcs!U43) ->  | W41: =IF(MultipleCalcs!V43="","",MultipleCalcs!V43) ->  | X41: =IF(MultipleCalcs!W43="","",MultipleCalcs!W43) ->  | Y41: =IF(MultipleCalcs!X43="","",MultipleCalcs!X43) ->  | Z41: =IF(MultipleCalcs!Y43="","",MultipleCalcs!Y43) ->  | AA41: =IF(MultipleCalcs!Z43="","",MultipleCalcs!Z43) -> 1.075438208 | AB41: =IF(MultipleCalcs!AA43="","",MultipleCalcs!AA43) -> 0.3319220936 | AC41: =IF(MultipleCalcs!AB43="","",MultipleCalcs!AB43) -> 
A42: 31 | B42: =IF(MultipleCalcs!B44="","",MultipleCalcs!B44) -> 11-2956-01 | C42: =IF(MultipleCalcs!C44="","",MultipleCalcs!C44) -> 1 | D42: =IF(MultipleCalcs!D44="","",MultipleCalcs!D44) -> 54.2 | E42: =IF(MultipleCalcs!E44="","",MultipleCalcs!E44) ->  | F42: =IF(MultipleCalcs!G44="","",MultipleCalcs!G44) -> 2 | G42: =IF(MultipleCalcs!H44="","",MultipleCalcs!H44) -> 10 | H42: =IF(MultipleCalcs!I44="","",MultipleCalcs!I44) -> 21 | I42: =IF(MultipleCalcs!J44="","",MultipleCalcs!J44) -> SFO | J42: =IF(MultipleCalcs!K44="","",MultipleCalcs!K44) -> 1.388 | K42: =IF(MultipleCalcs!L44="","",MultipleCalcs!L44) ->  | L42: =IF(MultipleCalcs!M44="","",MultipleCalcs!M44) ->  | M42: =IF(MultipleCalcs!N44="","",MultipleCalcs!N44) ->  | N42: =IF(MultipleCalcs!O44="","",MultipleCalcs!O44) ->  | O42: =IF(MultipleCalcs!P44="","",MultipleCalcs!P44) ->  | Q42: 11-2956-01 | R42: =IF(MultipleCalcs!Q44="","",MultipleCalcs!Q44) -> 0 | S42: =IF(MultipleCalcs!R44="","",MultipleCalcs!R44) -> 21 | T42: =IF(MultipleCalcs!S44="","",MultipleCalcs!S44) -> 10.31510263 | U42: =IF(MultipleCalcs!T44="","",MultipleCalcs!T44) ->  | V42: =IF(MultipleCalcs!U44="","",MultipleCalcs!U44) ->  | W42: =IF(MultipleCalcs!V44="","",MultipleCalcs!V44) ->  | X42: =IF(MultipleCalcs!W44="","",MultipleCalcs!W44) ->  | Y42: =IF(MultipleCalcs!X44="","",MultipleCalcs!X44) ->  | Z42: =IF(MultipleCalcs!Y44="","",MultipleCalcs!Y44) ->  | AA42: =IF(MultipleCalcs!Z44="","",MultipleCalcs!Z44) -> 1.006779474 | AB42: =IF(MultipleCalcs!AA44="","",MultipleCalcs!AA44) -> 0.1890339956 | AC42: =IF(MultipleCalcs!AB44="","",MultipleCalcs!AB44) -> 
A43: 32 | B43: =IF(MultipleCalcs!B45="","",MultipleCalcs!B45) -> 11-2956-02 | C43: =IF(MultipleCalcs!C45="","",MultipleCalcs!C45) -> 1 | D43: =IF(MultipleCalcs!D45="","",MultipleCalcs!D45) -> 54.2 | E43: =IF(MultipleCalcs!E45="","",MultipleCalcs!E45) ->  | F43: =IF(MultipleCalcs!G45="","",MultipleCalcs!G45) -> 2 | G43: =IF(MultipleCalcs!H45="","",MultipleCalcs!H45) -> 10 | H43: =IF(MultipleCalcs!I45="","",MultipleCalcs!I45) -> 21 | I43: =IF(MultipleCalcs!J45="","",MultipleCalcs!J45) -> SFO | J43: =IF(MultipleCalcs!K45="","",MultipleCalcs!K45) -> 3.12 | K43: =IF(MultipleCalcs!L45="","",MultipleCalcs!L45) ->  | L43: =IF(MultipleCalcs!M45="","",MultipleCalcs!M45) ->  | M43: =IF(MultipleCalcs!N45="","",MultipleCalcs!N45) ->  | N43: =IF(MultipleCalcs!O45="","",MultipleCalcs!O45) ->  | O43: =IF(MultipleCalcs!P45="","",MultipleCalcs!P45) ->  | Q43: 11-2956-02 | R43: =IF(MultipleCalcs!Q45="","",MultipleCalcs!Q45) -> 0 | S43: =IF(MultipleCalcs!R45="","",MultipleCalcs!R45) -> 21 | T43: =IF(MultipleCalcs!S45="","",MultipleCalcs!S45) -> 22.11667342 | U43: =IF(MultipleCalcs!T45="","",MultipleCalcs!T45) ->  | V43: =IF(MultipleCalcs!U45="","",MultipleCalcs!U45) ->  | W43: =IF(MultipleCalcs!V45="","",MultipleCalcs!V45) ->  | X43: =IF(MultipleCalcs!W45="","",MultipleCalcs!W45) ->  | Y43: =IF(MultipleCalcs!X45="","",MultipleCalcs!X45) ->  | Z43: =IF(MultipleCalcs!Y45="","",MultipleCalcs!Y45) ->  | AA43: =IF(MultipleCalcs!Z45="","",MultipleCalcs!Z45) -> 1.1084327 | AB43: =IF(MultipleCalcs!AA45="","",MultipleCalcs!AA45) -> 0.3681384583 | AC43: =IF(MultipleCalcs!AB45="","",MultipleCalcs!AB45) -> 
A44: 33 | B44: =IF(MultipleCalcs!B46="","",MultipleCalcs!B46) -> 11-2956-03 | C44: =IF(MultipleCalcs!C46="","",MultipleCalcs!C46) -> 1 | D44: =IF(MultipleCalcs!D46="","",MultipleCalcs!D46) -> 54.2 | E44: =IF(MultipleCalcs!E46="","",MultipleCalcs!E46) ->  | F44: =IF(MultipleCalcs!G46="","",MultipleCalcs!G46) -> 2 | G44: =IF(MultipleCalcs!H46="","",MultipleCalcs!H46) -> 10 | H44: =IF(MultipleCalcs!I46="","",MultipleCalcs!I46) -> 21 | I44: =IF(MultipleCalcs!J46="","",MultipleCalcs!J46) -> SFO | J44: =IF(MultipleCalcs!K46="","",MultipleCalcs!K46) -> 2.24 | K44: =IF(MultipleCalcs!L46="","",MultipleCalcs!L46) ->  | L44: =IF(MultipleCalcs!M46="","",MultipleCalcs!M46) ->  | M44: =IF(MultipleCalcs!N46="","",MultipleCalcs!N46) ->  | N44: =IF(MultipleCalcs!O46="","",MultipleCalcs!O46) ->  | O44: =IF(MultipleCalcs!P46="","",MultipleCalcs!P46) ->  | Q44: 11-2956-03 | R44: =IF(MultipleCalcs!Q46="","",MultipleCalcs!Q46) -> 0 | S44: =IF(MultipleCalcs!R46="","",MultipleCalcs!R46) -> 21 | T44: =IF(MultipleCalcs!S46="","",MultipleCalcs!S46) -> 16.39155275 | U44: =IF(MultipleCalcs!T46="","",MultipleCalcs!T46) ->  | V44: =IF(MultipleCalcs!U46="","",MultipleCalcs!U46) ->  | W44: =IF(MultipleCalcs!V46="","",MultipleCalcs!V46) ->  | X44: =IF(MultipleCalcs!W46="","",MultipleCalcs!W46) ->  | Y44: =IF(MultipleCalcs!X46="","",MultipleCalcs!X46) ->  | Z44: =IF(MultipleCalcs!Y46="","",MultipleCalcs!Y46) ->  | AA44: =IF(MultipleCalcs!Z46="","",MultipleCalcs!Z46) -> 1.045301866 | AB44: =IF(MultipleCalcs!AA46="","",MultipleCalcs!AA46) -> 0.2893204177 | AC44: =IF(MultipleCalcs!AB46="","",MultipleCalcs!AB46) -> 
A45: 34 | B45: =IF(MultipleCalcs!B47="","",MultipleCalcs!B47) -> 11-2956-04 | C45: =IF(MultipleCalcs!C47="","",MultipleCalcs!C47) -> 1 | D45: =IF(MultipleCalcs!D47="","",MultipleCalcs!D47) -> 54.2 | E45: =IF(MultipleCalcs!E47="","",MultipleCalcs!E47) ->  | F45: =IF(MultipleCalcs!G47="","",MultipleCalcs!G47) -> 2 | G45: =IF(MultipleCalcs!H47="","",MultipleCalcs!H47) -> 10 | H45: =IF(MultipleCalcs!I47="","",MultipleCalcs!I47) -> 21 | I45: =IF(MultipleCalcs!J47="","",MultipleCalcs!J47) -> SFO | J45: =IF(MultipleCalcs!K47="","",MultipleCalcs!K47) -> 2.536 | K45: =IF(MultipleCalcs!L47="","",MultipleCalcs!L47) ->  | L45: =IF(MultipleCalcs!M47="","",MultipleCalcs!M47) ->  | M45: =IF(MultipleCalcs!N47="","",MultipleCalcs!N47) ->  | N45: =IF(MultipleCalcs!O47="","",MultipleCalcs!O47) ->  | O45: =IF(MultipleCalcs!P47="","",MultipleCalcs!P47) ->  | Q45: 11-2956-04 | R45: =IF(MultipleCalcs!Q47="","",MultipleCalcs!Q47) -> 0 | S45: =IF(MultipleCalcs!R47="","",MultipleCalcs!R47) -> 21 | T45: =IF(MultipleCalcs!S47="","",MultipleCalcs!S47) -> 18.38830501 | U45: =IF(MultipleCalcs!T47="","",MultipleCalcs!T47) ->  | V45: =IF(MultipleCalcs!U47="","",MultipleCalcs!U47) ->  | W45: =IF(MultipleCalcs!V47="","",MultipleCalcs!V47) ->  | X45: =IF(MultipleCalcs!W47="","",MultipleCalcs!W47) ->  | Y45: =IF(MultipleCalcs!X47="","",MultipleCalcs!X47) ->  | Z45: =IF(MultipleCalcs!Y47="","",MultipleCalcs!Y47) ->  | AA45: =IF(MultipleCalcs!Z47="","",MultipleCalcs!Z47) -> 1.065008958 | AB45: =IF(MultipleCalcs!AA47="","",MultipleCalcs!AA47) -> 0.3185584663 | AC45: =IF(MultipleCalcs!AB47="","",MultipleCalcs!AB47) -> 
A46: 35 | B46: =IF(MultipleCalcs!B48="","",MultipleCalcs!B48) -> 15-2950-01 | C46: =IF(MultipleCalcs!C48="","",MultipleCalcs!C48) -> 1 | D46: =IF(MultipleCalcs!D48="","",MultipleCalcs!D48) -> 54.2 | E46: =IF(MultipleCalcs!E48="","",MultipleCalcs!E48) ->  | F46: =IF(MultipleCalcs!G48="","",MultipleCalcs!G48) -> 2 | G46: =IF(MultipleCalcs!H48="","",MultipleCalcs!H48) -> 10 | H46: =IF(MultipleCalcs!I48="","",MultipleCalcs!I48) -> 21 | I46: =IF(MultipleCalcs!J48="","",MultipleCalcs!J48) -> SFO | J46: =IF(MultipleCalcs!K48="","",MultipleCalcs!K48) -> 2.123 | K46: =IF(MultipleCalcs!L48="","",MultipleCalcs!L48) ->  | L46: =IF(MultipleCalcs!M48="","",MultipleCalcs!M48) ->  | M46: =IF(MultipleCalcs!N48="","",MultipleCalcs!N48) ->  | N46: =IF(MultipleCalcs!O48="","",MultipleCalcs!O48) ->  | O46: =IF(MultipleCalcs!P48="","",MultipleCalcs!P48) ->  | Q46: 15-2950-01 | R46: =IF(MultipleCalcs!Q48="","",MultipleCalcs!Q48) -> 0 | S46: =IF(MultipleCalcs!R48="","",MultipleCalcs!R48) -> 21 | T46: =IF(MultipleCalcs!S48="","",MultipleCalcs!S48) -> 15.58392166 | U46: =IF(MultipleCalcs!T48="","",MultipleCalcs!T48) ->  | V46: =IF(MultipleCalcs!U48="","",MultipleCalcs!U48) ->  | W46: =IF(MultipleCalcs!V48="","",MultipleCalcs!V48) ->  | X46: =IF(MultipleCalcs!W48="","",MultipleCalcs!W48) ->  | Y46: =IF(MultipleCalcs!X48="","",MultipleCalcs!X48) ->  | Z46: =IF(MultipleCalcs!Y48="","",MultipleCalcs!Y48) ->  | AA46: =IF(MultipleCalcs!Z48="","",MultipleCalcs!Z48) -> 1.038199152 | AB46: =IF(MultipleCalcs!AA48="","",MultipleCalcs!AA48) -> 0.2769470861 | AC46: =IF(MultipleCalcs!AB48="","",MultipleCalcs!AB48) -> 
A47: 36 | B47: =IF(MultipleCalcs!B49="","",MultipleCalcs!B49) -> 15-2950-03 | C47: =IF(MultipleCalcs!C49="","",MultipleCalcs!C49) -> 1 | D47: =IF(MultipleCalcs!D49="","",MultipleCalcs!D49) -> 54.2 | E47: =IF(MultipleCalcs!E49="","",MultipleCalcs!E49) ->  | F47: =IF(MultipleCalcs!G49="","",MultipleCalcs!G49) -> 2 | G47: =IF(MultipleCalcs!H49="","",MultipleCalcs!H49) -> 10 | H47: =IF(MultipleCalcs!I49="","",MultipleCalcs!I49) -> 21 | I47: =IF(MultipleCalcs!J49="","",MultipleCalcs!J49) -> SFO | J47: =IF(MultipleCalcs!K49="","",MultipleCalcs!K49) -> 3.403 | K47: =IF(MultipleCalcs!L49="","",MultipleCalcs!L49) ->  | L47: =IF(MultipleCalcs!M49="","",MultipleCalcs!M49) ->  | M47: =IF(MultipleCalcs!N49="","",MultipleCalcs!N49) ->  | N47: =IF(MultipleCalcs!O49="","",MultipleCalcs!O49) ->  | O47: =IF(MultipleCalcs!P49="","",MultipleCalcs!P49) ->  | Q47: 15-2950-03 | R47: =IF(MultipleCalcs!Q49="","",MultipleCalcs!Q49) -> 0 | S47: =IF(MultipleCalcs!R49="","",MultipleCalcs!R49) -> 21 | T47: =IF(MultipleCalcs!S49="","",MultipleCalcs!S49) -> 23.81827144 | U47: =IF(MultipleCalcs!T49="","",MultipleCalcs!T49) ->  | V47: =IF(MultipleCalcs!U49="","",MultipleCalcs!U49) ->  | W47: =IF(MultipleCalcs!V49="","",MultipleCalcs!V49) ->  | X47: =IF(MultipleCalcs!W49="","",MultipleCalcs!W49) ->  | Y47: =IF(MultipleCalcs!X49="","",MultipleCalcs!X49) ->  | Z47: =IF(MultipleCalcs!Y49="","",MultipleCalcs!Y49) ->  | AA47: =IF(MultipleCalcs!Z49="","",MultipleCalcs!Z49) -> 1.130436216 | AB47: =IF(MultipleCalcs!AA49="","",MultipleCalcs!AA49) -> 0.388745067 | AC47: =IF(MultipleCalcs!AB49="","",MultipleCalcs!AB49) -> 
